Workbook

Sheet Summary
B3: Target Community | C3: Index | D3: Option | E3: % Diesel | F3: % Renewable | G3: NPV | H3: Capex
H4: 2026 | I4: 2027 | J4: 2028 | K4: 2029 | L4: 2030
B5: =DCF!B286 -> Aramac | C5: =DCF!C286 -> 1 | D5: =DCF!D286 -> Diesel Option | E5: =DCF!E286 -> 1 | F5: =DCF!F286 -> 0 | G5: =DCF!G286 -> 2047662.872 | H5: =DCF!H286 -> 4060000 | I5: =DCF!I286 -> 0 | J5: =DCF!J286 -> 0 | K5: =DCF!K286 -> 0 | L5: =DCF!L286 -> 0
B6: =DCF!B287 -> Aramac | D6: =DCF!D287 -> Pure Renewable | E6: =DCF!E287 -> 0 | F6: =DCF!F287 -> 1 | G6: =DCF!G287 -> -2401585.4 | H6: =DCF!H287 -> 17945514.71 | I6: =DCF!I287 -> 0 | J6: =DCF!J287 -> 0 | K6: =DCF!K287 -> 0 | L6: =DCF!L287 -> 0
B7: =DCF!B288 -> Aramac | D7: =DCF!D288 -> Hybrid Option | E7: =DCF!E288 -> 0.9 | F7: =DCF!F288 -> 0.1 | G7: =DCF!G288 -> 1602738.045 | H7: =DCF!H288 -> 5448551.471 | I7: =DCF!I288 -> 0 | J7: =DCF!J288 -> 0 | K7: =DCF!K288 -> 0 | L7: =DCF!L288 -> 0
B8: =DCF!B289 -> AUGATHELLA | C8: =DCF!C289 -> 2 | D8: =DCF!D289 -> Diesel Option | E8: =DCF!E289 -> 1 | F8: =DCF!F289 -> 0 | G8: =DCF!G289 -> 4533217.535 | H8: =DCF!H289 -> 0 | I8: =DCF!I289 -> 4700000 | J8: =DCF!J289 -> 0 | K8: =DCF!K289 -> 0 | L8: =DCF!L289 -> 0
C9: =DCF!C290 -> 2 | D9: =DCF!D290 -> Pure Renewable | E9: =DCF!E290 -> 0 | F9: =DCF!F290 -> 1 | G9: =DCF!G290 -> -3746878.031 | H9: =DCF!H290 -> 0 | I9: =DCF!I290 -> 30576274.69 | J9: =DCF!J290 -> 0 | K9: =DCF!K290 -> 0 | L9: =DCF!L290 -> 0
C10: =DCF!C291 -> 2 | D10: =DCF!D291 -> Hybrid Option | E10: =DCF!E291 -> 0.9 | F10: =DCF!F291 -> 0.1 | G10: =DCF!G291 -> 3705207.979 | H10: =DCF!H291 -> 0 | I10: =DCF!I291 -> 7287627.469 | J10: =DCF!J291 -> 0 | K10: =DCF!K291 -> 0 | L10: =DCF!L291 -> 0
B11: =DCF!B292 -> Duaringa | C11: =DCF!C292 -> 3 | D11: =DCF!D292 -> Diesel Option | E11: =DCF!E292 -> 1 | F11: =DCF!F292 -> 0 | G11: =DCF!G292 -> 3478971.67 | H11: =DCF!H292 -> 0 | I11: =DCF!I292 -> 7880000 | J11: =DCF!J292 -> 0 | K11: =DCF!K292 -> 0 | L11: =DCF!L292 -> 0
B12: =DCF!B293 -> Duaringa | C12: =DCF!C293 -> 3 | D12: =DCF!D293 -> Pure Renewable | E12: =DCF!E293 -> 0 | F12: =DCF!F293 -> 1 | G12: =DCF!G293 -> -5748886.341 | H12: =DCF!H293 -> 0 | I12: =DCF!I293 -> 36507239.26 | J12: =DCF!J293 -> 0 | K12: =DCF!K293 -> 0 | L12: =DCF!L293 -> 0
B13: =DCF!B294 -> Duaringa | C13: =DCF!C294 -> 3 | D13: =DCF!D294 -> Hybrid Option | E13: =DCF!E294 -> 0.9 | F13: =DCF!F294 -> 0.1 | G13: =DCF!G294 -> 2556185.869 | H13: =DCF!H294 -> 0 | I13: =DCF!I294 -> 10742723.93 | J13: =DCF!J294 -> 0 | K13: =DCF!K294 -> 0 | L13: =DCF!L294 -> 0
B14: =DCF!B295 -> EULO | C14: =DCF!C295 -> 4 | D14: =DCF!D295 -> Diesel Option | E14: =DCF!E295 -> 1 | F14: =DCF!F295 -> 0 | G14: =DCF!G295 -> 442978.4862 | H14: =DCF!H295 -> 0 | I14: =DCF!I295 -> 0 | J14: =DCF!J295 -> 3820000 | K14: =DCF!K295 -> 0 | L14: =DCF!L295 -> 0
B15: =DCF!B296 -> EULO | C15: =DCF!C296 -> 4 | D15: =DCF!D296 -> Pure Renewable | E15: =DCF!E296 -> 0 | F15: =DCF!F296 -> 1 | G15: =DCF!G296 -> -2525553.393 | H15: =DCF!H296 -> 0 | I15: =DCF!I296 -> 0 | J15: =DCF!J296 -> 13389695.82 | K15: =DCF!K296 -> 0 | L15: =DCF!L296 -> 0
B16: =DCF!B297 -> EULO | C16: =DCF!C297 -> 4 | D16: =DCF!D297 -> Hybrid Option | E16: =DCF!E297 -> 0.9 | F16: =DCF!F297 -> 0.1 | G16: =DCF!G297 -> 146125.2983 | H16: =DCF!H297 -> 0 | I16: =DCF!I297 -> 0 | J16: =DCF!J297 -> 4776969.582 | K16: =DCF!K297 -> 0 | L16: =DCF!L297 -> 0
B17: =DCF!B298 -> KARUMBA | C17: =DCF!C298 -> 5 | D17: =DCF!D298 -> Diesel Option | E17: =DCF!E298 -> 1 | F17: =DCF!F298 -> 0 | G17: =DCF!G298 -> 9648924.979 | H17: =DCF!H298 -> 0 | I17: =DCF!I298 -> 0 | J17: =DCF!J298 -> 4540000 | K17: =DCF!K298 -> 0 | L17: =DCF!L298 -> 0
B18: =DCF!B299 -> KARUMBA | C18: =DCF!C299 -> 5 | D18: =DCF!D299 -> Pure Renewable | E18: =DCF!E299 -> 0 | F18: =DCF!F299 -> 1 | G18: =DCF!G299 -> 1594760.39 | H18: =DCF!H299 -> 0 | I18: =DCF!I299 -> 0 | J18: =DCF!J299 -> 30200716.11 | K18: =DCF!K299 -> 0 | L18: =DCF!L299 -> 0
B19: =DCF!B300 -> KARUMBA | C19: =DCF!C300 -> 5 | D19: =DCF!D300 -> Hybrid Option | E19: =DCF!E300 -> 0.9 | F19: =DCF!F300 -> 0.1 | G19: =DCF!G300 -> 8843508.52 | H19: =DCF!H300 -> 0 | I19: =DCF!I300 -> 0 | J19: =DCF!J300 -> 7106071.611 | K19: =DCF!K300 -> 0 | L19: =DCF!L300 -> 0
B20: =DCF!B301 -> MORVEN | C20: =DCF!C301 -> 6 | D20: =DCF!D301 -> Diesel Option | E20: =DCF!E301 -> 1 | F20: =DCF!F301 -> 0 | G20: =DCF!G301 -> 444054.7557 | H20: =DCF!H301 -> 0 | I20: =DCF!I301 -> 0 | J20: =DCF!J301 -> 0 | K20: =DCF!K301 -> 3580000 | L20: =DCF!L301 -> 0
B21: =DCF!B302 -> MORVEN | C21: =DCF!C302 -> 6 | D21: =DCF!D302 -> Pure Renewable | E21: =DCF!E302 -> 0 | F21: =DCF!F302 -> 1 | G21: =DCF!G302 -> -1395183.057 | H21: =DCF!H302 -> 0 | I21: =DCF!I302 -> 0 | J21: =DCF!J302 -> 0 | K21: =DCF!K302 -> 9593333.333 | L21: =DCF!L302 -> 0
B22: =DCF!B303 -> MORVEN | C22: =DCF!C303 -> 6 | D22: =DCF!D303 -> Hybrid Option | E22: =DCF!E303 -> 0.9 | F22: =DCF!F303 -> 0.1 | G22: =DCF!G303 -> 260130.9744 | H22: =DCF!H303 -> 0 | I22: =DCF!I303 -> 0 | J22: =DCF!J303 -> 0 | K22: =DCF!K303 -> 4181333.333 | L22: =DCF!L303 -> 0
B23: =DCF!B304 -> Northern | C23: =DCF!C304 -> 7 | D23: =DCF!D304 -> Diesel Option | E23: =DCF!E304 -> 1 | F23: =DCF!F304 -> 0 | G23: =DCF!G304 -> 5189006.25 | H23: =DCF!H304 -> 0 | I23: =DCF!I304 -> 0 | J23: =DCF!J304 -> 0 | K23: =DCF!K304 -> 7480000 | L23: =DCF!L304 -> 0
B24: =DCF!B305 -> Northern | C24: =DCF!C305 -> 7 | D24: =DCF!D305 -> Pure Renewable | E24: =DCF!E305 -> 0 | F24: =DCF!F305 -> 1 | G24: =DCF!G305 -> -377339.7989 | H24: =DCF!H305 -> 0 | I24: =DCF!I305 -> 0 | J24: =DCF!J305 -> 0 | K24: =DCF!K305 -> 25652582.55 | L24: =DCF!L305 -> 0
B25: =DCF!B306 -> Northern | C25: =DCF!C306 -> 7 | D25: =DCF!D306 -> Hybrid Option | E25: =DCF!E306 -> 0.9 | F25: =DCF!F306 -> 0.1 | G25: =DCF!G306 -> 4632371.645 | H25: =DCF!H306 -> 0 | I25: =DCF!I306 -> 0 | J25: =DCF!J306 -> 0 | K25: =DCF!K306 -> 9297258.255 | L25: =DCF!L306 -> 0
B26: =DCF!B307 -> Tambo | C26: =DCF!C307 -> 8 | D26: =DCF!D307 -> Diesel Option | E26: =DCF!E307 -> 1 | F26: =DCF!F307 -> 0 | G26: =DCF!G307 -> 353088.1282 | H26: =DCF!H307 -> 0 | I26: =DCF!I307 -> 0 | J26: =DCF!J307 -> 0 | K26: =DCF!K307 -> 0 | L26: =DCF!L307 -> 3740000
B27: =DCF!B308 -> Tambo | C27: =DCF!C308 -> 8 | D27: =DCF!D308 -> Pure Renewable | E27: =DCF!E308 -> 0 | F27: =DCF!F308 -> 1 | G27: =DCF!G308 -> -2703796.445 | H27: =DCF!H308 -> 0 | I27: =DCF!I308 -> 0 | J27: =DCF!J308 -> 0 | K27: =DCF!K308 -> 0 | L27: =DCF!L308 -> 13448382.35
B28: =DCF!B309 -> Tambo | C28: =DCF!C309 -> 8 | D28: =DCF!D309 -> Hybrid Option | E28: =DCF!E309 -> 0.9 | F28: =DCF!F309 -> 0.1 | G28: =DCF!G309 -> 47399.67086 | H28: =DCF!H309 -> 0 | I28: =DCF!I309 -> 0 | J28: =DCF!J309 -> 0 | K28: =DCF!K309 -> 0 | L28: =DCF!L309 -> 4710838.235
B30: Total Capex and NPV Summary | G30: 2026 | H30: 2027 | I30: 2028 | J30: 2029 | K30: 2030 | L30: SUM
D31: Diesel Option | F31: Total Capex | G31: =SUMIF($D$5:$D$28,$D31,H$5:H$28) -> 4060000 | H31: =SUMIF($D$5:$D$28,$D31,I$5:I$28) -> 12580000 | I31: =SUMIF($D$5:$D$28,$D31,J$5:J$28) -> 8360000 | J31: =SUMIF($D$5:$D$28,$D31,K$5:K$28) -> 11060000 | K31: =SUMIF($D$5:$D$28,$D31,L$5:L$28) -> 3740000 | L31: =SUM(G31:K31) -> 39800000
D32: Diesel Option | F32: NPV | L32: =SUMIF($D$5:$D$28,$D32,G$5:G$28) -> 26137904.68
D33: =D15 -> Pure Renewable | F33: Total Capex | G33: =SUMIF($D$5:$D$28,$D33,H$5:H$28) -> 17945514.71 | H33: =SUMIF($D$5:$D$28,$D33,I$5:I$28) -> 67083513.95 | I33: =SUMIF($D$5:$D$28,$D33,J$5:J$28) -> 43590411.93 | J33: =SUMIF($D$5:$D$28,$D33,K$5:K$28) -> 35245915.88 | K33: =SUMIF($D$5:$D$28,$D33,L$5:L$28) -> 13448382.35 | L33: =SUM(G33:K33) -> 177313738.8
D34: =D33 -> Pure Renewable | F34: NPV | L34: =SUMIF($D$5:$D$28,$D34,G$5:G$28) -> -17304462.08
D35: =D16 -> Hybrid Option | F35: Total Capex | G35: =SUMIF($D$5:$D$28,$D35,H$5:H$28) -> 5448551.471 | H35: =SUMIF($D$5:$D$28,$D35,I$5:I$28) -> 18030351.39 | I35: =SUMIF($D$5:$D$28,$D35,J$5:J$28) -> 11883041.19 | J35: =SUMIF($D$5:$D$28,$D35,K$5:K$28) -> 13478591.59 | K35: =SUMIF($D$5:$D$28,$D35,L$5:L$28) -> 4710838.235 | L35: =SUM(G35:K35) -> 53551373.88
D36: =D35 -> Hybrid Option | F36: NPV | L36: =SUMIF($D$5:$D$28,$D36,G$5:G$28) -> 21793668

Sheet Input
B1: 1. Model General Input
C2: Item | D2: Value | E2: Unit
C3: Model Start Year | D3: 2023 | E3: [year]
C4: Benefit Year | D4: =ROUND(IF(Operation_Mode=1,Input!#REF!,Input!#REF!),0) ->  | E4: Years
C5: Effectiveness Rate | D5: =#REF! -> 
C6: Effectiveness Rate | D6: =IF(Operation_Mode=1,Input!#REF!,Input!D5) -> 
C7: Program Life | D7: 5 | E7: Years
C8: Pre-Tax Real WACC | D8: 0.035 | E8: %
C9: Asset Life | D9: 20 | E9: [year]
B12: 2. Input for Diesel
C13: Item | D13: Value | E13: Unit
C14: Fuel Consumption Rate | D14: 270 | E14: [litres/MWh]
C15: Fuel Price | D15: 2.2 | E15: [$/Litre]
C16: O&M as % of Capex | D16: 0.0005 | E16: [% of Capex]
C17: Carbon Emission for Diesel Generation | D17: 2.8 | E17: [kg/litre]
C18: Inefficiency Factor | D18: 0.2 | E18: [%]
C19: Connection skid and protection. Includes civil for this componant | D19: 1350000 | E19: [$/site]
C20: Local Fuel Storage | D20: 50000 | E20: [$/site]
C21: Land, approvals etc | D21: 350000 | E21: [$/site]
C22: Additional, Civils, fencing, security etc | D22: 450000 | E22: [$/site]
C23: 2MVA Step up tx including civils | D23: 480000 | E23: [$/site]
C24: Reclosers, coms and automoation to faciliate islanding | D24: 500000 | E24: [$/site]
C25: Total Fixed Cost | D25: =SUM(D19:D24) -> 3180000 | E25: Fixed Cost Per Site
C26: Generator Variable Cost | D26: 800000 | E26: cost per MW
B28: 3. Input for Renewable
C29: Item | D29: Value | E29: Unit
C30: Solar Output | D30: 4 | E30: [kWh/kW/Day]
C31: Battery Duration | D31: 2 | E31: [hour]
C32: PV Cost | D32: 1500000 | E32: [$/MW]
C33: Battery Cost | D33: 1200000 | E33: [$/MWh]
C34: PV Degradation Rate (%) | D34: 0.015 | E34: [%]
C35: O&M as % of Capex | D35: 0.01 | E35: [% of Capex]
C36: Battery Arbitrage Application | D36: 0.5 | E36: [%]
B38: 4. Options
B39: 1 | C39: =B39+1 -> 2 | D39: =C39+1 -> 3 | E39: 4 | G39: =E39+1 -> 5 | K39: 1 | O39: =N39+1 -> 1 | P39: =O39+1 -> 2 | Q39: =P39+1 -> 3
B40: 4.1 Diesel Option | D40: No of Sites | E40: Diesel Capacity to Provide as % Total Capacity | F40: Scaled Peak Demand | G40: Peak Day Scaled Consumption | H40: Diesel Capacity | I40: Solar Capacity | J40: BESS Capacity | K40: Diesel Capex | L40: PV Capex | M40: Battery Capex | N40: Fixed Cost | O40: Total Capex
B41: 1 | C41: =B41+1 -> 2 | D41: =C41+1 -> 3 | E41: 4 | F41: 5 | G41: 6 | H41: 7 | I41: 8 | J41: 9 | K41: 10 | L41: 11 | M41: 12 | N41: 13 | O41: 14
C42: Target Community | D42: [#] | E42: % | F42: [MW] | G42: [MWh] | H42: [MW] | I42: [MW] | J42: [MWh] | K42: [$/location] | L42: [$/location] | M42: [$/location] | N42: [$/location] | O42: [$/location]
B43: 1 | C43: Aramac | D43: 1 | E43: 1 | F43: =Historical_Data!H28*E43/1000 -> 1.062745098 | G43: =Historical_Data!J28 -> 15.14411765 | H43: =ROUNDUP(F43,1)*E43 -> 1.1 | I43: =G43/Average_Solar_Output*(1-E43) -> 0 | J43: =I43*Duration -> 0 | K43: =H43*Diesel_Cost -> 880000 | L43: =I43*PV_Cost -> 0 | M43: =J43*Battery_Cost -> 0 | N43: =D43*Fixed_Cost_Per_Site -> 3180000 | O43: =SUM(K43:N43) -> 4060000
B44: =B43+1 -> 2 | C44: Augathella | D44: 1 | E44: =E43 -> 1 | F44: =Historical_Data!H29*E44/1000 -> 1.862886894 | G44: =Historical_Data!J29 -> 28.09874327 | H44: 1.9 | I44: 0 | J44: 0 | K44: 1520000 | L44: 0 | M44: 0 | N44: 3180000 | O44: 4700000
B45: 3 | C45: Duaringa and Dingo | D45: 2 | E45: 1 | F45: =Historical_Data!H30*E45/1000 -> 1.828803681 | G45: =Historical_Data!J30 -> 30.9202454 | H45: 1.9 | I45: 0 | J45: 0 | K45: 1520000 | L45: 0 | M45: 0 | N45: 6360000 | O45: 7880000
B46: 4 | C46: Thargomindah | D46: 1 | E46: 1 | F46: =Historical_Data!H31*E46/1000 -> 0.7321825095 | G46: =Historical_Data!J31 -> 10.47148289 | H46: 0.8 | I46: 0 | J46: 0 | K46: 640000 | L46: 0 | M46: 0 | N46: 3180000 | O46: 3820000
B47: 5 | C47: Karumba | D47: 1 | E47: 1 | F47: =Historical_Data!H32*E47/1000 -> 1.629161125 | G47: =Historical_Data!J32 -> 27.71355499 | H47: 1.7 | I47: 0 | J47: 0 | K47: 1360000 | L47: 0 | M47: 0 | N47: 3180000 | O47: 4540000
B48: 6 | C48: Morven | D48: 1 | E48: 1 | F48: =Historical_Data!H33*E48/1000 -> 0.4302222222 | G48: =Historical_Data!J33 -> 6.577777778 | H48: 0.5 | I48: 0 | J48: 0 | K48: 400000 | L48: 0 | M48: 0 | N48: 3180000 | O48: 3580000
B49: 7 | C49: Clairview and Stanage Bay | D49: 2 | E49: 1 | F49: =Historical_Data!H34*E49/1000 -> 1.396630189 | G49: =Historical_Data!J34 -> 19.78726415 | H49: 1.4 | I49: 0 | J49: 0 | K49: 1120000 | L49: 0 | M49: 0 | N49: 6360000 | O49: 7480000
B50: 8 | C50: Tambo | D50: 1 | E50: 1 | F50: =Historical_Data!H35*E50/1000 -> 0.6525942685 | G50: =Historical_Data!J35 -> 10.53167421 | H50: 0.7 | I50: 0 | J50: 0 | K50: 560000 | L50: 0 | M50: 0 | N50: 3180000 | O50: 3740000
C51: SUM | K51: =SUM(K43:K50) -> 8000000 | L51: =SUM(L43:L50) -> 0 | M51: =SUM(M43:M50) -> 0 | N51: =SUM(N43:N50) -> 31800000 | O51: =SUM(O43:O50) -> 39800000 | P51: =1-0.0405 -> 0.9595
B53: 4.2 Pure Renewable Option | D53: No of Sites | E53: Diesel Capacity to Provide as % Total Capacity | F53: Scaled Peak Demand | G53: Peak Day Scaled Consumption | H53: Diesel Capacity | I53: Solar Capacity | J53: BESS Capacity | K53: Diesel Capex | L53: PV Capex | M53: Battery Capex | N53: Fixed Cost | O53: Total Capex
B54: 1 | C54: =B54+1 -> 2 | D54: =C54+1 -> 3 | E54: 4 | F54: 5 | G54: 6 | H54: 7 | I54: 8 | J54: 9 | K54: 10 | L54: 11 | M54: 12 | N54: 13 | O54: 14
C55: Target Community | D55: [#] | E55: % | F55: [MW] | G55: [MWh] | H55: [MW] | I55: [MW] | J55: [MWh] | K55: [$/location] | L55: [$/location] | M55: [$/location] | N55: [$/location] | O55: [$/location]
B56: 1 | C56: Aramac | D56: 1 | E56: 0 | F56: =F43 -> 1.062745098 | G56: 15.14411765 | H56: =ROUNDUP(F56,1)*E56 -> 0 | I56: =G56/Average_Solar_Output*(1-E56) -> 3.786029412 | J56: =I56*Duration -> 7.572058824 | K56: =H56*Diesel_Cost -> 0 | L56: =I56*PV_Cost -> 5679044.118 | M56: =J56*Battery_Cost -> 9086470.588 | N56: =D56*Fixed_Cost_Per_Site -> 3180000 | O56: =SUM(K56:N56) -> 17945514.71
B57: =B56+1 -> 2 | C57: Augathella | D57: 1 | E57: =E56 -> 0 | F57: 1.862886894 | G57: 28.09874327 | H57: 0 | I57: 7.024685817 | J57: 14.04937163 | K57: 0 | L57: 10537028.73 | M57: 16859245.96 | N57: 3180000 | O57: 30576274.69
B58: 3 | C58: Duaringa and Dingo | D58: 2 | E58: 0 | F58: 1.828803681 | G58: 30.9202454 | H58: 0 | I58: 7.73006135 | J58: 15.4601227 | K58: 0 | L58: 11595092.02 | M58: 18552147.24 | N58: 6360000 | O58: 36507239.26
B59: 4 | C59: Thargomindah | D59: 1 | E59: 0 | F59: 0.7321825095 | G59: 10.47148289 | H59: 0 | I59: 2.617870722 | J59: 5.235741445 | K59: 0 | L59: 3926806.084 | M59: 6282889.734 | N59: 3180000 | O59: 13389695.82
B60: 5 | C60: Karumba | D60: 1 | E60: 0 | F60: 1.629161125 | G60: 27.71355499 | H60: 0 | I60: 6.928388747 | J60: 13.85677749 | K60: 0 | L60: 10392583.12 | M60: 16628132.99 | N60: 3180000 | O60: 30200716.11
B61: 6 | C61: Morven | D61: 1 | E61: 0 | F61: 0.4302222222 | G61: 6.577777778 | H61: 0 | I61: 1.644444444 | J61: 3.288888889 | K61: 0 | L61: 2466666.667 | M61: 3946666.667 | N61: 3180000 | O61: 9593333.333
B62: 7 | C62: Clairview and Stanage Bay | D62: 2 | E62: 0 | F62: 1.396630189 | G62: 19.78726415 | H62: 0 | I62: 4.946816038 | J62: 9.893632075 | K62: 0 | L62: 7420224.057 | M62: 11872358.49 | N62: 6360000 | O62: 25652582.55
B63: 8 | C63: Tambo | D63: 1 | E63: 0 | F63: 0.6525942685 | G63: 10.53167421 | H63: 0 | I63: 2.632918552 | J63: 5.265837104 | K63: 0 | L63: 3949377.828 | M63: 6319004.525 | N63: 3180000 | O63: 13448382.35
C64: SUM | K64: =SUM(K56:K63) -> 0 | L64: =SUM(L56:L63) -> 55966822.62 | M64: =SUM(M56:M63) -> 89546916.2 | N64: =SUM(N56:N63) -> 31800000 | O64: =SUM(O56:O63) -> 177313738.8
B66: 4.3 Hybrid Option 1 (Diesel, Solar & BESS) | D66: No of Sites | E66: Diesel Capacity to Provide as % Total Capacity | F66: Scaled Peak Demand | G66: Peak Day Scaled Consumption | H66: Diesel Capacity | I66: Solar Capacity | J66: BESS Capacity | K66: Diesel Capex | L66: PV Capex | M66: Battery Capex | N66: Fixed Cost | O66: Total Capex
B67: 1 | C67: =B67+1 -> 2 | D67: =C67+1 -> 3 | E67: 4 | F67: 5 | G67: 6 | H67: 7 | I67: 8 | J67: 9 | K67: 10 | L67: 11 | M67: 12 | N67: 13 | O67: 14
C68: Target Community | D68: [#] | E68: % | F68: [MW] | G68: [MWh] | H68: [MW] | I68: [MW] | J68: [MWh] | K68: [$/location] | L68: [$/location] | M68: [$/location] | N68: [$/location] | O68: [$/location]
B69: 1 | C69: Aramac | D69: 1 | E69: 0.9 | F69: =F56 -> 1.062745098 | G69: 15.14411765 | H69: =ROUNDUP(F69,1)*E69 -> 0.99 | I69: =G69/Average_Solar_Output*(1-E69) -> 0.3786029412 | J69: =I69*Duration -> 0.7572058824 | K69: =H69*Diesel_Cost -> 792000 | L69: =I69*PV_Cost -> 567904.4118 | M69: =J69*Battery_Cost -> 908647.0588 | N69: =D69*Fixed_Cost_Per_Site -> 3180000 | O69: =SUM(K69:N69) -> 5448551.471
B70: =B69+1 -> 2 | C70: Augathella | D70: 1 | E70: 0.9 | F70: 1.862886894 | G70: 28.09874327 | H70: 1.71 | I70: 0.7024685817 | J70: 1.404937163 | K70: 1368000 | L70: 1053702.873 | M70: 1685924.596 | N70: 3180000 | O70: 7287627.469
B71: 3 | C71: Duaringa and Dingo | D71: 2 | E71: 0.9 | F71: 1.828803681 | G71: 30.9202454 | H71: 1.71 | I71: 0.773006135 | J71: 1.54601227 | K71: 1368000 | L71: 1159509.202 | M71: 1855214.724 | N71: 6360000 | O71: 10742723.93
B72: 4 | C72: Thargomindah | D72: 1 | E72: 0.9 | F72: 0.7321825095 | G72: 10.47148289 | H72: 0.72 | I72: 0.2617870722 | J72: 0.5235741445 | K72: 576000 | L72: 392680.6084 | M72: 628288.9734 | N72: 3180000 | O72: 4776969.582
B73: 5 | C73: Karumba | D73: 1 | E73: 0.9 | F73: 1.629161125 | G73: 27.71355499 | H73: 1.53 | I73: 0.6928388747 | J73: 1.385677749 | K73: 1224000 | L73: 1039258.312 | M73: 1662813.299 | N73: 3180000 | O73: 7106071.611
B74: 6 | C74: Morven | D74: 1 | E74: 0.9 | F74: 0.4302222222 | G74: 6.577777778 | H74: 0.45 | I74: 0.1644444444 | J74: 0.3288888889 | K74: 360000 | L74: 246666.6667 | M74: 394666.6667 | N74: 3180000 | O74: 4181333.333
B75: 7 | C75: Clairview and Stanage Bay | D75: 2 | E75: 0.9 | F75: 1.396630189 | G75: 19.78726415 | H75: 1.26 | I75: 0.4946816038 | J75: 0.9893632075 | K75: 1008000 | L75: 742022.4057 | M75: 1187235.849 | N75: 6360000 | O75: 9297258.255
B76: 8 | C76: Tambo | D76: 1 | E76: 0.9 | F76: 0.6525942685 | G76: 10.53167421 | H76: 0.63 | I76: 0.2632918552 | J76: 0.5265837104 | K76: 504000 | L76: 394937.7828 | M76: 631900.4525 | N76: 3180000 | O76: 4710838.235
C77: SUM | K77: =SUM(K69:K76) -> 7200000 | L77: =SUM(L69:L76) -> 5596682.262 | M77: =SUM(M69:M76) -> 8954691.62 | N77: =SUM(N69:N76) -> 31800000 | O77: =SUM(O69:O76) -> 53551373.88
B79: 5. Build Year
D80: Build Year
C81: Target Community | D81: [year]
B82: 1 | C82: Aramac | D82: 2026
B83: =B82+1 -> 2 | C83: AUGATHELLA | D83: 2027
B84: 3 | C84: Duaringa | D84: 2027
B85: 4 | C85: EULO | D85: 2028
B86: 5 | C86: KARUMBA | D86: 2028
B87: 6 | C87: MORVEN | D87: 2029
B88: 7 | C88: Northern | D88: 2029
B89: 8 | C89: Tambo | D89: 2030
B91: 6. AER VNR Value
E92: Agriculture | F92: Commercial | G92: Industrial | H92: Residential
B93: 1 | C93: <12 | E93: 44.4 | F93: 52.2 | G93: 74.79 | H93: 27.86
B94: =B93+1 -> 2 | C94: <24 | E94: =E93*1.5 -> 66.6 | F94: =F93*1.5 -> 78.3 | G94: =G93*1.5 -> 112.185 | H94: =H93*2 -> 55.72
B95: =B94+1 -> 3 | C95: <72 | E95: =E93 -> 44.4 | F95: =F93 -> 52.2 | G95: =G93 -> 74.79 | H95: =H93*1.5 -> 41.79
B96: 4 | C96: >72 | E96: =E93/2 -> 22.2 | F96: =F93/2 -> 26.1 | G96: =G93/2 -> 37.395 | H96: =H95 -> 41.79
B98: 7. LGC Forecast
C99: Year | E99: Value | F99: Unit
B100: 1 | C100: 2023 | E100: 54.5 | F100: [$/MWh]
B101: =B100+1 -> 2 | C101: =C100+1 -> 2024 | E101: =E100 -> 54.5 | F101: [$/MWh]
B102: =B101+1 -> 3 | C102: =C101+1 -> 2025 | E102: =E101 -> 54.5 | F102: [$/MWh]
B103: 4 | C103: 2026 | E103: 54.5 | F103: [$/MWh]
B104: 5 | C104: 2027 | E104: 54.5 | F104: [$/MWh]
B105: 6 | C105: 2028 | E105: 54.5 | F105: [$/MWh]
B106: 7 | C106: 2029 | E106: 54.5 | F106: [$/MWh]
B107: 8 | C107: 2030 | E107: 54.5 | F107: [$/MWh]
B109: 8. CECV
D111: 2024 | E111: 2025 | F111: 2026 | G111: 2027 | H111: 2028 | I111: 2029 | J111: 2030 | K111: 2031 | L111: 2032 | M111: 2033 | N111: 2034 | O111: 2035 | P111: 2036 | Q111: 2037 | R111: 2038 | S111: 2039 | T111: 2040 | U111: 2041 | V111: 2042 | W111: 2043 | X111: 2044 | Y111: 2045 | Z111: 2046 | AA111: 2047 | AB111: 2048 | AC111: 2049 | AD111: 2050 | AE111: 2051
B112: 1 | C112: CECV Solar ($/100 MW System) | D112: =Cal!HE4 -> 10647566.22 | E112: =Cal!HF4 -> 8943836.78 | F112: =Cal!HG4 -> 8069913.713 | G112: =Cal!HH4 -> 7621713.749 | H112: =Cal!HI4 -> 7347245.442 | I112: =Cal!HJ4 -> 6786918.509 | J112: =Cal!HK4 -> 8335234.804 | K112: =Cal!HL4 -> 9956986.678 | L112: =Cal!HM4 -> 9831023.711 | M112: =Cal!HN4 -> 8951142.156 | N112: =Cal!HO4 -> 8713895.368 | O112: =Cal!HP4 -> 13018489.27 | P112: =Cal!HQ4 -> 14525026.76 | Q112: =Cal!HR4 -> 13283547.76 | R112: =Cal!HS4 -> 8452837.28 | S112: =Cal!HT4 -> 7101033.173 | T112: =Cal!HU4 -> 12723582.2 | U112: =Cal!HV4 -> 16421074.19 | V112: =Cal!HW4 -> 10602594.41 | W112: =Cal!HX4 -> 12130563.93 | X112: =Cal!HY4 -> 12183179.97 | Y112: =X112 -> 12183179.97 | Z112: =Y112 -> 12183179.97 | AA112: 12183179.97 | AB112: 12183179.97 | AC112: 12183179.97 | AD112: 12183179.97 | AE112: 12183179.97
B113: 2 | C113: Battery Arbitrage ($/1 MWh System) | D113: =AER_CECV!DH5 -> 12711.14619 | E113: =AER_CECV!DI5 -> 23038.80372 | F113: =AER_CECV!DJ5 -> 21749.44426 | G113: =AER_CECV!DK5 -> 31965.64572 | H113: =AER_CECV!DL5 -> 40537.00493 | I113: =AER_CECV!DM5 -> 50720.14398 | J113: =AER_CECV!DN5 -> 42596.73187 | K113: =AER_CECV!DO5 -> 33998.37366 | L113: =AER_CECV!DP5 -> 31985.99413 | M113: =AER_CECV!DQ5 -> 28464.13344 | N113: =AER_CECV!DR5 -> 41449.62613 | O113: =AER_CECV!DS5 -> 42258.82525 | P113: =AER_CECV!DT5 -> 37927.8977 | Q113: =AER_CECV!DU5 -> 43429.43396 | R113: =AER_CECV!DV5 -> 46256.87412 | S113: =AER_CECV!DW5 -> 44063.35698 | T113: =AER_CECV!DX5 -> 50130.7872 | U113: =AER_CECV!DY5 -> 59756.40518 | V113: =AER_CECV!DZ5 -> 82514.21158 | W113: =AER_CECV!EA5 -> 66025.34834 | X113: =AER_CECV!EB5 -> 64481.18428 | Y113: =X113 -> 64481.18428 | Z113: =Y113 -> 64481.18428 | AA113: 64481.18428 | AB113: 64481.18428 | AC113: 64481.18428 | AD113: 64481.18428 | AE113: 64481.18428
B115: 9. Carbon Assumption
D116: 2024 | E116: =D116+1 -> 2025 | F116: =E116+1 -> 2026 | G116: 2027 | H116: 2028 | I116: 2029 | J116: 2030 | K116: 2031 | L116: 2032 | M116: 2033 | N116: 2034 | O116: 2035 | P116: 2036 | Q116: 2037 | R116: 2038 | S116: 2039 | T116: 2040 | U116: 2041 | V116: 2042 | W116: 2043 | X116: 2044 | Y116: 2045 | Z116: 2046 | AA116: 2047 | AB116: 2048 | AC116: 2049 | AD116: 2050 | AE116: 2051
B117: 1 | C117: Carbon Conversion (Ton/MWh) | D117: 0.81 | E117: 0.77 | F117: 0.61 | G117: 0.58 | H117: 0.54 | I117: 0.54 | J117: 0.5 | K117: 0.46 | L117: 0.42 | M117: 0.36 | N117: 0.29 | O117: 0.26 | P117: 0.24 | Q117: 0.22 | R117: 0.21 | S117: 0.19 | T117: 0.18 | U117: 0.16 | V117: 0.14 | W117: 0.13 | X117: 0.11 | Y117: 0.1 | Z117: 0.08 | AA117: 0.06 | AB117: 0.05 | AC117: 0.03 | AD117: 0.02 | AE117: 0
B118: 2 | C118: Carbon Price ($/Ton) | D118: 70 | E118: 75 | F118: 80 | G118: 84 | H118: 89 | I118: 95 | J118: 105 | K118: 114 | L118: 124 | M118: 134 | N118: 146 | O118: 157 | P118: 169 | Q118: 181 | R118: 194 | S118: 207 | T118: 221 | U118: 236 | V118: 252 | W118: 268 | X118: 286 | Y118: 305 | Z118: 325 | AA118: 346 | AB118: 369 | AC118: 393 | AD118: 420 | AE118: 421
D119: `

Sheet DCF
A1: ="R"&ROW(Start_1)+Index_Resilence*3-3&"C"&COLUMN(Start_1) -> R307C2 | B1: Discounted Cashflow Analysis | C1: All $ in Real AUD2023 | H1: =Hiden_1!B29 -> 8 | I1: =Hiden_1!C29 -> Tambo
B3: Year Index | E3: 0 | F3: 1 | G3: =F3+1 -> 2 | H3: =G3+1 -> 3 | I3: 4 | J3: 5 | K3: 6 | L3: 7 | M3: 8 | N3: 9 | O3: 10 | P3: 11 | Q3: 12 | R3: 13 | S3: 14 | T3: 15 | U3: 16 | V3: 17 | W3: 18 | X3: 19 | Y3: 20 | Z3: =Y3+1 -> 21 | AA3: 22 | AB3: 23 | AC3: 24 | AD3: 25 | AE3: 26 | AF3: 27 | AG3: 28 | AH3: 29 | AI3: 30 | AJ3: 31 | AK3: 32 | AL3: 33 | AM3: 34 | AN3: 35 | AO3: 36 | AP3: 37 | AQ3: 38 | AR3: 39 | AS3: 40 | AT3: 41 | AU3: 42 | AV3: 43 | AW3: 44 | AX3: 45 | AY3: 46 | AZ3: 47 | BA3: 48 | BB3: 49 | BC3: 50 | BD3: 51 | BE3: 52 | BF3: 53 | BG3: 54 | BH3: 55 | BI3: 56 | BJ3: 57 | BK3: 58 | BL3: 59 | BM3: 60
B4: Financial Year | D4: Sum | E4: =Input!D3 -> 2023 | F4: =E4+1 -> 2024 | G4: =F4+1 -> 2025 | H4: 2026 | I4: 2027 | J4: 2028 | K4: 2029 | L4: 2030 | M4: 2031 | N4: 2032 | O4: 2033 | P4: 2034 | Q4: 2035 | R4: 2036 | S4: 2037 | T4: 2038 | U4: 2039 | V4: 2040 | W4: 2041 | X4: 2042 | Y4: 2043 | Z4: =Y4+1 -> 2044 | AA4: 2045 | AB4: 2046 | AC4: 2047 | AD4: 2048 | AE4: 2049 | AF4: 2050 | AG4: 2051 | AH4: 2052 | AI4: 2053 | AJ4: 2054 | AK4: 2055 | AL4: 2056 | AM4: 2057 | AN4: 2058 | AO4: 2059 | AP4: 2060 | AQ4: 2061 | AR4: 2062 | AS4: 2063 | AT4: 2064 | AU4: 2065 | AV4: 2066 | AW4: 2067 | AX4: 2068 | AY4: 2069 | AZ4: 2070 | BA4: 2071 | BB4: 2072 | BC4: 2073 | BD4: 2074 | BE4: 2075 | BF4: 2076 | BG4: 2077 | BH4: 2078 | BI4: 2079 | BJ4: 2080 | BK4: 2081 | BL4: 2082 | BM4: 2083
B5: Generation Build Flag | F5: =IF(F4=VLOOKUP($H$1,Table_Other,3,FALSE),1,0) -> 0 | G5: 0 | H5: 0 | I5: 0 | J5: 0 | K5: 0 | L5: 1 | M5: 0 | N5: 0 | O5: 0 | P5: 0 | Q5: 0 | R5: 0 | S5: 0 | T5: 0 | U5: 0 | V5: 0 | W5: 0 | X5: 0 | Y5: 0 | Z5: 0 | AA5: 0 | AB5: 0 | AC5: 0 | AD5: 0 | AE5: 0 | AF5: 0 | AG5: 0 | AH5: 0 | AI5: 0 | AJ5: 0 | AK5: 0 | AL5: =IF(AL4=VLOOKUP($H$1,Table_Other,3,FALSE),1,0) -> 0 | AM5: 0 | AN5: 0 | AO5: 0 | AP5: 0 | AQ5: 0 | AR5: 0 | AS5: 0 | AT5: 0 | AU5: 0 | AV5: 0 | AW5: 0 | AX5: 0 | AY5: 0 | AZ5: 0 | BA5: 0 | BB5: 0 | BC5: 0 | BD5: 0 | BE5: 0 | BF5: 0 | BG5: 0 | BH5: 0 | BI5: 0 | BJ5: 0 | BK5: 0 | BL5: 0 | BM5: 0
B6: Operating Start Flag | F6: =IF(F4=VLOOKUP($H$1,Table_Other,3,FALSE)+1,1,0) -> 0 | G6: 0 | H6: 0 | I6: 0 | J6: 0 | K6: 0 | L6: 0 | M6: 1 | N6: 0 | O6: 0 | P6: 0 | Q6: 0 | R6: 0 | S6: 0 | T6: 0 | U6: 0 | V6: 0 | W6: 0 | X6: 0 | Y6: 0 | Z6: 0 | AA6: 0 | AB6: 0 | AC6: 0 | AD6: 0 | AE6: 0 | AF6: 0 | AG6: 0 | AH6: 0 | AI6: 0 | AJ6: 0 | AK6: 0 | AL6: =IF(AL4=VLOOKUP($H$1,Table_Other,3,FALSE)+1,1,0) -> 0 | AM6: 0 | AN6: 0 | AO6: 0 | AP6: 0 | AQ6: 0 | AR6: 0 | AS6: 0 | AT6: 0 | AU6: 0 | AV6: 0 | AW6: 0 | AX6: 0 | AY6: 0 | AZ6: 0 | BA6: 0 | BB6: 0 | BC6: 0 | BD6: 0 | BE6: 0 | BF6: 0 | BG6: 0 | BH6: 0 | BI6: 0 | BJ6: 0 | BK6: 0 | BL6: 0 | BM6: 0
B7: Operating Year Count | F7: =IF(F4<VLOOKUP($H$1,Table_Other,3,FALSE)+1,0,IF(F6=1,F6,E7+1)) -> 0 | G7: 0 | H7: 0 | I7: 0 | J7: 0 | K7: 0 | L7: 0 | M7: 1 | N7: 2 | O7: 3 | P7: 4 | Q7: 5 | R7: 6 | S7: 7 | T7: 8 | U7: 9 | V7: 10 | W7: 11 | X7: 12 | Y7: 13 | Z7: 14 | AA7: 15 | AB7: 16 | AC7: 17 | AD7: 18 | AE7: 19 | AF7: 20 | AG7: 21 | AH7: 22 | AI7: 23 | AJ7: 24 | AK7: 25 | AL7: =IF(AL4<VLOOKUP($H$1,Table_Other,3,FALSE)+1,0,IF(AL6=1,AL6,AK7+1)) -> 26 | AM7: 27 | AN7: 28 | AO7: 29 | AP7: 30 | AQ7: 31 | AR7: 32 | AS7: 33 | AT7: 34 | AU7: 35 | AV7: 36 | AW7: 37 | AX7: 38 | AY7: 39 | AZ7: 40 | BA7: 41 | BB7: 42 | BC7: 43 | BD7: 44 | BE7: 45 | BF7: 46 | BG7: 47 | BH7: 48 | BI7: 49 | BJ7: 50 | BK7: 51 | BL7: 52 | BM7: 53
B8: Operating Period Flag | D8: =SUM(F8:BM8) -> 20 | F8: =IF(OR(F7=0,F7>Asset_Life),0,1) -> 0 | G8: 0 | H8: 0 | I8: 0 | J8: 0 | K8: 0 | L8: 0 | M8: 1 | N8: 1 | O8: 1 | P8: 1 | Q8: 1 | R8: 1 | S8: 1 | T8: 1 | U8: 1 | V8: 1 | W8: 1 | X8: 1 | Y8: 1 | Z8: 1 | AA8: 1 | AB8: 1 | AC8: 1 | AD8: 1 | AE8: 1 | AF8: 1 | AG8: 0 | AH8: 0 | AI8: 0 | AJ8: 0 | AK8: 0 | AL8: =IF(OR(AL7=0,AL7>Asset_Life),0,1) -> 0 | AM8: 0 | AN8: 0 | AO8: 0 | AP8: 0 | AQ8: 0 | AR8: 0 | AS8: 0 | AT8: 0 | AU8: 0 | AV8: 0 | AW8: 0 | AX8: 0 | AY8: 0 | AZ8: 0 | BA8: 0 | BB8: 0 | BC8: 0 | BD8: 0 | BE8: 0 | BF8: 0 | BG8: 0 | BH8: 0 | BI8: 0 | BJ8: 0 | BK8: 0 | BL8: 0 | BM8: 0
B10: VNR Benefit
B11: VNR Benefit | D11: =SUM(F11:BM11) -> 6651850.804 | F11: =VLOOKUP($H$1,VNR_Benefit,15,FALSE)*F$8 -> 0 | G11: 0 | H11: 0 | I11: 0 | J11: 0 | K11: 0 | L11: 0 | M11: 332592.5402 | N11: 332592.5402 | O11: 332592.5402 | P11: 332592.5402 | Q11: 332592.5402 | R11: 332592.5402 | S11: 332592.5402 | T11: 332592.5402 | U11: 332592.5402 | V11: 332592.5402 | W11: 332592.5402 | X11: 332592.5402 | Y11: 332592.5402 | Z11: 332592.5402 | AA11: 332592.5402 | AB11: 332592.5402 | AC11: 332592.5402 | AD11: 332592.5402 | AE11: 332592.5402 | AF11: 332592.5402 | AG11: 0 | AH11: 0 | AI11: 0 | AJ11: 0 | AK11: 0 | AL11: =VLOOKUP($H$1,VNR_Benefit,15,FALSE)*AL$8 -> 0 | AM11: 0 | AN11: 0 | AO11: 0 | AP11: 0 | AQ11: 0 | AR11: 0 | AS11: 0 | AT11: 0 | AU11: 0 | AV11: 0 | AW11: 0 | AX11: 0 | AY11: 0 | AZ11: 0 | BA11: 0 | BB11: 0 | BC11: 0 | BD11: 0 | BE11: 0 | BF11: 0 | BG11: 0 | BH11: 0 | BI11: 0 | BJ11: 0 | BK11: 0 | BL11: 0 | BM11: 0
B13: Diesel Option Analysis
B15: Targeted Unserved Energy(MWh) | D15: =SUM(F15:BM15) -> 125.5350144 | F15: =VLOOKUP($H$1,Data_Table_1,23,FALSE)*F$8 -> 0 | G15: 0 | H15: 0 | I15: 0 | J15: 0 | K15: 0 | L15: 0 | M15: 6.276750722 | N15: 6.276750722 | O15: 6.276750722 | P15: 6.276750722 | Q15: 6.276750722 | R15: 6.276750722 | S15: 6.276750722 | T15: 6.276750722 | U15: 6.276750722 | V15: 6.276750722 | W15: 6.276750722 | X15: 6.276750722 | Y15: 6.276750722 | Z15: 6.276750722 | AA15: 6.276750722 | AB15: 6.276750722 | AC15: 6.276750722 | AD15: 6.276750722 | AE15: 6.276750722 | AF15: 6.276750722 | AG15: 0 | AH15: 0 | AI15: 0 | AJ15: 0 | AK15: 0 | AL15: =VLOOKUP($H$1,Data_Table_1,23,FALSE)*AL$8 -> 0 | AM15: 0 | AN15: 0 | AO15: 0 | AP15: 0 | AQ15: 0 | AR15: 0 | AS15: 0 | AT15: 0 | AU15: 0 | AV15: 0 | AW15: 0 | AX15: 0 | AY15: 0 | AZ15: 0 | BA15: 0 | BB15: 0 | BC15: 0 | BD15: 0 | BE15: 0 | BF15: 0 | BG15: 0 | BH15: 0 | BI15: 0 | BJ15: 0 | BK15: 0 | BL15: 0 | BM15: 0
B16: Diesel Output (MWh) | D16: 125.5350144 | F16: =VLOOKUP($H$1,Diesel_Table,4,FALSE)*F15 -> 0 | G16: 0 | H16: 0 | I16: 0 | J16: 0 | K16: 0 | L16: 0 | M16: 6.276750722 | N16: 6.276750722 | O16: 6.276750722 | P16: 6.276750722 | Q16: 6.276750722 | R16: 6.276750722 | S16: 6.276750722 | T16: 6.276750722 | U16: 6.276750722 | V16: 6.276750722 | W16: 6.276750722 | X16: 6.276750722 | Y16: 6.276750722 | Z16: 6.276750722 | AA16: 6.276750722 | AB16: 6.276750722 | AC16: 6.276750722 | AD16: 6.276750722 | AE16: 6.276750722 | AF16: 6.276750722 | AG16: 0 | AH16: 0 | AI16: 0 | AJ16: 0 | AK16: 0 | AL16: =VLOOKUP($H$1,Diesel_Table,4,FALSE)*AL15 -> 0 | AM16: 0 | AN16: 0 | AO16: 0 | AP16: 0 | AQ16: 0 | AR16: 0 | AS16: 0 | AT16: 0 | AU16: 0 | AV16: 0 | AW16: 0 | AX16: 0 | AY16: 0 | AZ16: 0 | BA16: 0 | BB16: 0 | BC16: 0 | BD16: 0 | BE16: 0 | BF16: 0 | BG16: 0 | BH16: 0 | BI16: 0 | BJ16: 0 | BK16: 0 | BL16: 0 | BM16: 0
B17: Renewable Output (MWh) | D17: 0 | F17: =F15-F16 -> 0 | G17: =G15-G16 -> 0 | H17: =H15-H16 -> 0 | I17: =I15-I16 -> 0 | J17: =J15-J16 -> 0 | K17: =K15-K16 -> 0 | L17: =L15-L16 -> 0 | M17: =M15-M16 -> 0 | N17: =N15-N16 -> 0 | O17: =O15-O16 -> 0 | P17: =P15-P16 -> 0 | Q17: =Q15-Q16 -> 0 | R17: =R15-R16 -> 0 | S17: =S15-S16 -> 0 | T17: =T15-T16 -> 0 | U17: =U15-U16 -> 0 | V17: =V15-V16 -> 0 | W17: =W15-W16 -> 0 | X17: =X15-X16 -> 0 | Y17: =Y15-Y16 -> 0 | Z17: =Z15-Z16 -> 0 | AA17: =AA15-AA16 -> 0 | AB17: =AB15-AB16 -> 0 | AC17: =AC15-AC16 -> 0 | AD17: =AD15-AD16 -> 0 | AE17: =AE15-AE16 -> 0 | AF17: =AF15-AF16 -> 0 | AG17: =AG15-AG16 -> 0 | AH17: =AH15-AH16 -> 0 | AI17: =AI15-AI16 -> 0 | AJ17: =AJ15-AJ16 -> 0 | AK17: =AK15-AK16 -> 0 | AL17: =AL15-AL16 -> 0 | AM17: =AM15-AM16 -> 0 | AN17: =AN15-AN16 -> 0 | AO17: =AO15-AO16 -> 0 | AP17: =AP15-AP16 -> 0 | AQ17: =AQ15-AQ16 -> 0 | AR17: =AR15-AR16 -> 0 | AS17: =AS15-AS16 -> 0 | AT17: =AT15-AT16 -> 0 | AU17: =AU15-AU16 -> 0 | AV17: =AV15-AV16 -> 0 | AW17: =AW15-AW16 -> 0 | AX17: =AX15-AX16 -> 0 | AY17: =AY15-AY16 -> 0 | AZ17: =AZ15-AZ16 -> 0 | BA17: =BA15-BA16 -> 0 | BB17: =BB15-BB16 -> 0 | BC17: =BC15-BC16 -> 0 | BD17: =BD15-BD16 -> 0 | BE17: =BE15-BE16 -> 0 | BF17: =BF15-BF16 -> 0 | BG17: =BG15-BG16 -> 0 | BH17: =BH15-BH16 -> 0 | BI17: =BI15-BI16 -> 0 | BJ17: =BJ15-BJ16 -> 0 | BK17: =BK15-BK16 -> 0 | BL17: =BL15-BL16 -> 0 | BM17: =BM15-BM16 -> 0
B18: Battery Capacity (MWh) | F18: =VLOOKUP($H$1,Diesel_Table,9,FALSE)*F$8 -> 0 | G18: 0 | H18: 0 | I18: 0 | J18: 0 | K18: 0 | L18: 0 | M18: 0 | N18: 0 | O18: 0 | P18: 0 | Q18: 0 | R18: 0 | S18: 0 | T18: 0 | U18: 0 | V18: 0 | W18: 0 | X18: 0 | Y18: 0 | Z18: 0 | AA18: 0 | AB18: 0 | AC18: 0 | AD18: 0 | AE18: 0 | AF18: 0 | AG18: 0 | AH18: 0 | AI18: 0 | AJ18: 0 | AK18: 0 | AL18: =VLOOKUP($H$1,Diesel_Table,9,FALSE)*AL$8 -> 0 | AM18: 0 | AN18: 0 | AO18: 0 | AP18: 0 | AQ18: 0 | AR18: 0 | AS18: 0 | AT18: 0 | AU18: 0 | AV18: 0 | AW18: 0 | AX18: 0 | AY18: 0 | AZ18: 0 | BA18: 0 | BB18: 0 | BC18: 0 | BD18: 0 | BE18: 0 | BF18: 0 | BG18: 0 | BH18: 0 | BI18: 0 | BJ18: 0 | BK18: 0 | BL18: 0 | BM18: 0
B19: Diesel Consumption (Litre) | D19: =SUM(F19:BM19) -> 40673.34468 | F19: =Fuel_Consumption*F16*(1+Inefficiency_Factor) -> 0 | G19: 0 | H19: 0 | I19: 0 | J19: 0 | K19: 0 | L19: 0 | M19: 2033.667234 | N19: 2033.667234 | O19: 2033.667234 | P19: 2033.667234 | Q19: 2033.667234 | R19: 2033.667234 | S19: 2033.667234 | T19: 2033.667234 | U19: 2033.667234 | V19: 2033.667234 | W19: 2033.667234 | X19: 2033.667234 | Y19: 2033.667234 | Z19: 2033.667234 | AA19: 2033.667234 | AB19: 2033.667234 | AC19: 2033.667234 | AD19: 2033.667234 | AE19: 2033.667234 | AF19: 2033.667234 | AG19: 0 | AH19: 0 | AI19: 0 | AJ19: 0 | AK19: 0 | AL19: =Fuel_Consumption*AL16*(1+Inefficiency_Factor) -> 0 | AM19: 0 | AN19: 0 | AO19: 0 | AP19: 0 | AQ19: 0 | AR19: 0 | AS19: 0 | AT19: 0 | AU19: 0 | AV19: 0 | AW19: 0 | AX19: 0 | AY19: 0 | AZ19: 0 | BA19: 0 | BB19: 0 | BC19: 0 | BD19: 0 | BE19: 0 | BF19: 0 | BG19: 0 | BH19: 0 | BI19: 0 | BJ19: 0 | BK19: 0 | BL19: 0 | BM19: 0
B20: CO2 Emissions (Ton) | D20: =SUM(E20:BM20) -> 113.8853651 | F20: =F19*Carbon_Conversion/1000 -> 0 | G20: =G19*Carbon_Conversion/1000 -> 0 | H20: =H19*Carbon_Conversion/1000 -> 0 | I20: =I19*Carbon_Conversion/1000 -> 0 | J20: =J19*Carbon_Conversion/1000 -> 0 | K20: =K19*Carbon_Conversion/1000 -> 0 | L20: =L19*Carbon_Conversion/1000 -> 0 | M20: =M19*Carbon_Conversion/1000 -> 5.694268255 | N20: =N19*Carbon_Conversion/1000 -> 5.694268255 | O20: =O19*Carbon_Conversion/1000 -> 5.694268255 | P20: =P19*Carbon_Conversion/1000 -> 5.694268255 | Q20: =Q19*Carbon_Conversion/1000 -> 5.694268255 | R20: =R19*Carbon_Conversion/1000 -> 5.694268255 | S20: =S19*Carbon_Conversion/1000 -> 5.694268255 | T20: =T19*Carbon_Conversion/1000 -> 5.694268255 | U20: =U19*Carbon_Conversion/1000 -> 5.694268255 | V20: =V19*Carbon_Conversion/1000 -> 5.694268255 | W20: =W19*Carbon_Conversion/1000 -> 5.694268255 | X20: =X19*Carbon_Conversion/1000 -> 5.694268255 | Y20: =Y19*Carbon_Conversion/1000 -> 5.694268255 | Z20: =Z19*Carbon_Conversion/1000 -> 5.694268255 | AA20: =AA19*Carbon_Conversion/1000 -> 5.694268255 | AB20: =AB19*Carbon_Conversion/1000 -> 5.694268255 | AC20: =AC19*Carbon_Conversion/1000 -> 5.694268255 | AD20: =AD19*Carbon_Conversion/1000 -> 5.694268255 | AE20: =AE19*Carbon_Conversion/1000 -> 5.694268255 | AF20: =AF19*Carbon_Conversion/1000 -> 5.694268255 | AG20: =AG19*Carbon_Conversion/1000 -> 0 | AH20: =AH19*Carbon_Conversion/1000 -> 0 | AI20: =AI19*Carbon_Conversion/1000 -> 0 | AJ20: =AJ19*Carbon_Conversion/1000 -> 0 | AK20: =AK19*Carbon_Conversion/1000 -> 0 | AL20: =AL19*Carbon_Conversion/1000 -> 0 | AM20: =AM19*Carbon_Conversion/1000 -> 0 | AN20: =AN19*Carbon_Conversion/1000 -> 0 | AO20: =AO19*Carbon_Conversion/1000 -> 0 | AP20: =AP19*Carbon_Conversion/1000 -> 0 | AQ20: =AQ19*Carbon_Conversion/1000 -> 0 | AR20: =AR19*Carbon_Conversion/1000 -> 0 | AS20: =AS19*Carbon_Conversion/1000 -> 0 | AT20: =AT19*Carbon_Conversion/1000 -> 0 | AU20: =AU19*Carbon_Conversion/1000 -> 0 | AV20: =AV19*Carbon_Conversion/1000 -> 0 | AW20: =AW19*Carbon_Conversion/1000 -> 0 | AX20: =AX19*Carbon_Conversion/1000 -> 0 | AY20: =AY19*Carbon_Conversion/1000 -> 0 | AZ20: =AZ19*Carbon_Conversion/1000 -> 0 | BA20: =BA19*Carbon_Conversion/1000 -> 0 | BB20: =BB19*Carbon_Conversion/1000 -> 0 | BC20: =BC19*Carbon_Conversion/1000 -> 0 | BD20: =BD19*Carbon_Conversion/1000 -> 0 | BE20: =BE19*Carbon_Conversion/1000 -> 0 | BF20: =BF19*Carbon_Conversion/1000 -> 0 | BG20: =BG19*Carbon_Conversion/1000 -> 0 | BH20: =BH19*Carbon_Conversion/1000 -> 0 | BI20: =BI19*Carbon_Conversion/1000 -> 0 | BJ20: =BJ19*Carbon_Conversion/1000 -> 0 | BK20: =BK19*Carbon_Conversion/1000 -> 0 | BL20: =BL19*Carbon_Conversion/1000 -> 0 | BM20: =BM19*Carbon_Conversion/1000 -> 0
B21: LGC Price ($/MWh) | D21: =SUM(F21:Y21) -> 0 | F21: =IF(F$4>2030,0, VLOOKUP(F$4,LGC_Table,3,FALSE))*F$8 -> 0 | G21: 0 | H21: 0 | I21: 0 | J21: 0 | K21: 0 | L21: 0 | M21: 0 | N21: 0 | O21: 0 | P21: 0 | Q21: 0 | R21: 0 | S21: 0 | T21: 0 | U21: 0 | V21: 0 | W21: 0 | X21: 0 | Y21: 0 | Z21: 0 | AA21: 0 | AB21: 0 | AC21: 0 | AD21: 0 | AE21: 0 | AF21: 0 | AG21: 0 | AH21: 0 | AI21: 0 | AJ21: 0 | AK21: 0 | AL21: 0 | AM21: 0 | AN21: 0 | AO21: 0 | AP21: 0 | AQ21: 0 | AR21: 0 | AS21: 0 | AT21: 0 | AU21: 0 | AV21: 0 | AW21: 0 | AX21: 0 | AY21: 0 | AZ21: 0 | BA21: 0 | BB21: 0 | BC21: 0 | BD21: 0 | BE21: 0 | BF21: 0 | BG21: 0 | BH21: 0 | BI21: 0 | BJ21: 0 | BK21: 0 | BL21: 0 | BM21: 0
B22: Solar Output Degradation | F22: =F$8*(1-Degradation)^F$7 -> 0 | G22: 0 | H22: 0 | I22: 0 | J22: 0 | K22: 0 | L22: 0 | M22: 0.985 | N22: 0.970225 | O22: 0.955671625 | P22: 0.9413365506 | Q22: 0.9272165024 | R22: 0.9133082548 | S22: 0.899608631 | T22: 0.8861145015 | U22: 0.872822784 | V22: 0.8597304423 | W22: 0.8468344856 | X22: 0.8341319683 | Y22: 0.8216199888 | Z22: 0.809295689 | AA22: 0.7971562536 | AB22: 0.7851989098 | AC22: 0.7734209262 | AD22: 0.7618196123 | AE22: 0.7503923181 | AF22: 0.7391364333 | AG22: 0 | AH22: 0 | AI22: 0 | AJ22: 0 | AK22: 0 | AL22: 0 | AM22: 0 | AN22: 0 | AO22: 0 | AP22: 0 | AQ22: 0 | AR22: 0 | AS22: 0 | AT22: 0 | AU22: 0 | AV22: 0 | AW22: 0 | AX22: 0 | AY22: 0 | AZ22: 0 | BA22: 0 | BB22: 0 | BC22: 0 | BD22: 0 | BE22: 0 | BF22: 0 | BG22: 0 | BH22: 0 | BI22: 0 | BJ22: 0 | BK22: 0 | BL22: 0 | BM22: 0
B23: Solar Capacity (MW) | F23: =VLOOKUP($H$1,Diesel_Table,8,FALSE)*F$8*F22 -> 0 | G23: 0 | H23: 0 | I23: 0 | J23: 0 | K23: 0 | L23: 0 | M23: 0 | N23: 0 | O23: 0 | P23: 0 | Q23: 0 | R23: 0 | S23: 0 | T23: 0 | U23: 0 | V23: 0 | W23: 0 | X23: 0 | Y23: 0 | Z23: 0 | AA23: 0 | AB23: 0 | AC23: 0 | AD23: 0 | AE23: 0 | AF23: 0 | AG23: 0 | AH23: 0 | AI23: 0 | AJ23: 0 | AK23: 0 | AL23: =VLOOKUP($H$1,Diesel_Table,8,FALSE)*AL$8*AL22 -> 0 | AM23: 0 | AN23: 0 | AO23: 0 | AP23: 0 | AQ23: 0 | AR23: 0 | AS23: 0 | AT23: 0 | AU23: 0 | AV23: 0 | AW23: 0 | AX23: 0 | AY23: 0 | AZ23: 0 | BA23: 0 | BB23: 0 | BC23: 0 | BD23: 0 | BE23: 0 | BF23: 0 | BG23: 0 | BH23: 0 | BI23: 0 | BJ23: 0 | BK23: 0 | BL23: 0 | BM23: 0
B24: CECV (Solar) -Matrix ($/1 MW system) | F24: =IFERROR(HLOOKUP(F$4,Matrix,2,FALSE)*F$8,E24)/100 -> 0 | G24: 0 | H24: 0 | I24: 0 | J24: 0 | K24: 0 | L24: 0 | M24: 99569.86678 | N24: 98310.23711 | O24: 89511.42156 | P24: 87138.95368 | Q24: 130184.8927 | R24: 145250.2676 | S24: 132835.4776 | T24: 84528.3728 | U24: 71010.33173 | V24: 127235.822 | W24: 164210.7419 | X24: 106025.9441 | Y24: 121305.6393 | Z24: 121831.7997 | AA24: 121831.7997 | AB24: 121831.7997 | AC24: 121831.7997 | AD24: 121831.7997 | AE24: 121831.7997 | AF24: 121831.7997 | AG24: 0 | AH24: 0 | AI24: 0 | AJ24: 0 | AK24: 0 | AL24: =IFERROR(HLOOKUP(AL$4,Matrix,2,FALSE)*AL$8,AK24)/100 -> 0 | AM24: 0 | AN24: 0 | AO24: 0 | AP24: 0 | AQ24: 0 | AR24: 0 | AS24: 0 | AT24: 0 | AU24: 0 | AV24: 0 | AW24: 0 | AX24: 0 | AY24: 0 | AZ24: 0 | BA24: 0 | BB24: 0 | BC24: 0 | BD24: 0 | BE24: 0 | BF24: 0 | BG24: 0 | BH24: 0 | BI24: 0 | BJ24: 0 | BK24: 0 | BL24: 0 | BM24: 0
B25: CECV (Battery) - ($/1 MWh system) | F25: =IFERROR(HLOOKUP(F$4,Matrix,3,FALSE)*F$8,E25) -> 0 | G25: 0 | H25: 0 | I25: 0 | J25: 0 | K25: 0 | L25: 0 | M25: 33998.37366 | N25: 31985.99413 | O25: 28464.13344 | P25: 41449.62613 | Q25: 42258.82525 | R25: 37927.8977 | S25: 43429.43396 | T25: 46256.87412 | U25: 44063.35698 | V25: 50130.7872 | W25: 59756.40518 | X25: 82514.21158 | Y25: 66025.34834 | Z25: 64481.18428 | AA25: 64481.18428 | AB25: 64481.18428 | AC25: 64481.18428 | AD25: 64481.18428 | AE25: 64481.18428 | AF25: 64481.18428 | AG25: 0 | AH25: 0 | AI25: 0 | AJ25: 0 | AK25: 0 | AL25: =IFERROR(HLOOKUP(AL$4,Matrix,3,FALSE)*AL$8,AK25) -> 0 | AM25: 0 | AN25: 0 | AO25: 0 | AP25: 0 | AQ25: 0 | AR25: 0 | AS25: 0 | AT25: 0 | AU25: 0 | AV25: 0 | AW25: 0 | AX25: 0 | AY25: 0 | AZ25: 0 | BA25: 0 | BB25: 0 | BC25: 0 | BD25: 0 | BE25: 0 | BF25: 0 | BG25: 0 | BH25: 0 | BI25: 0 | BJ25: 0 | BK25: 0 | BL25: 0 | BM25: 0
B26: Solar Maximum Output (MWh) | D26: =SUM(F26:BM26) -> 0 | F26: =F23*Average_Solar_Output*365*F$8*F22 -> 0 | G26: 0 | H26: 0 | I26: 0 | J26: 0 | K26: 0 | L26: 0 | M26: 0 | N26: 0 | O26: 0 | P26: 0 | Q26: 0 | R26: 0 | S26: 0 | T26: 0 | U26: 0 | V26: 0 | W26: 0 | X26: 0 | Y26: 0 | Z26: 0 | AA26: 0 | AB26: 0 | AC26: 0 | AD26: 0 | AE26: 0 | AF26: 0 | AG26: 0 | AH26: 0 | AI26: 0 | AJ26: 0 | AK26: 0 | AL26: =AL23*Average_Solar_Output*365*AL$8*AL22 -> 0 | AM26: 0 | AN26: 0 | AO26: 0 | AP26: 0 | AQ26: 0 | AR26: 0 | AS26: 0 | AT26: 0 | AU26: 0 | AV26: 0 | AW26: 0 | AX26: 0 | AY26: 0 | AZ26: 0 | BA26: 0 | BB26: 0 | BC26: 0 | BD26: 0 | BE26: 0 | BF26: 0 | BG26: 0 | BH26: 0 | BI26: 0 | BJ26: 0 | BK26: 0 | BL26: 0 | BM26: 0
B27: Carbon Conversion FOR Solar Output(%) | F27: =IFERROR(HLOOKUP(F$4,Carbon_Table,2,FALSE),0)*F$8 -> 0 | G27: 0 | H27: 0 | I27: 0 | J27: 0 | K27: 0 | L27: 0 | M27: 0.46 | N27: 0.42 | O27: 0.36 | P27: 0.29 | Q27: 0.26 | R27: 0.24 | S27: 0.22 | T27: 0.21 | U27: 0.19 | V27: 0.18 | W27: 0.16 | X27: 0.14 | Y27: 0.13 | Z27: 0.11 | AA27: 0.1 | AB27: 0.08 | AC27: 0.06 | AD27: 0.05 | AE27: 0.03 | AF27: 0.02 | AG27: 0 | AH27: 0 | AI27: 0 | AJ27: 0 | AK27: 0 | AL27: =IFERROR(HLOOKUP(AL$4,Carbon_Table,2,FALSE),0)*AL$8 -> 0 | AM27: 0 | AN27: 0 | AO27: 0 | AP27: 0 | AQ27: 0 | AR27: 0 | AS27: 0 | AT27: 0 | AU27: 0 | AV27: 0 | AW27: 0 | AX27: 0 | AY27: 0 | AZ27: 0 | BA27: 0 | BB27: 0 | BC27: 0 | BD27: 0 | BE27: 0 | BF27: 0 | BG27: 0 | BH27: 0 | BI27: 0 | BJ27: 0 | BK27: 0 | BL27: 0 | BM27: 0
B28: CO2 Emissions Credit From Solar(Ton) | D28: =SUM(F28:BM28) -> 0 | F28: =F27*F26 -> 0 | G28: =G27*G26 -> 0 | H28: 0 | I28: 0 | J28: 0 | K28: 0 | L28: 0 | M28: 0 | N28: 0 | O28: 0 | P28: 0 | Q28: 0 | R28: 0 | S28: 0 | T28: 0 | U28: 0 | V28: 0 | W28: 0 | X28: 0 | Y28: 0 | Z28: 0 | AA28: 0 | AB28: 0 | AC28: 0 | AD28: 0 | AE28: 0 | AF28: 0 | AG28: 0 | AH28: 0 | AI28: 0 | AJ28: 0 | AK28: 0 | AL28: 0 | AM28: 0 | AN28: 0 | AO28: 0 | AP28: 0 | AQ28: 0 | AR28: 0 | AS28: 0 | AT28: 0 | AU28: 0 | AV28: 0 | AW28: 0 | AX28: 0 | AY28: 0 | AZ28: 0 | BA28: 0 | BB28: 0 | BC28: 0 | BD28: 0 | BE28: 0 | BF28: 0 | BG28: 0 | BH28: 0 | BI28: 0 | BJ28: 0 | BK28: 0 | BL28: 0 | BM28: 0
B29: Carbon Cost/Credit ($/ton) | F29: =IFERROR(HLOOKUP(F$4,Carbon_Table,3,FALSE),0)*F$8 -> 0 | G29: 0 | H29: 0 | I29: 0 | J29: 0 | K29: 0 | L29: 0 | M29: 114 | N29: 124 | O29: 134 | P29: 146 | Q29: 157 | R29: 169 | S29: 181 | T29: 194 | U29: 207 | V29: 221 | W29: 236 | X29: 252 | Y29: 268 | Z29: 286 | AA29: 305 | AB29: 325 | AC29: 346 | AD29: 369 | AE29: 393 | AF29: 420 | AG29: 0 | AH29: 0 | AI29: 0 | AJ29: 0 | AK29: 0 | AL29: 0 | AM29: 0 | AN29: 0 | AO29: 0 | AP29: 0 | AQ29: 0 | AR29: 0 | AS29: 0 | AT29: 0 | AU29: 0 | AV29: 0 | AW29: 0 | AX29: 0 | AY29: 0 | AZ29: 0 | BA29: 0 | BB29: 0 | BC29: 0 | BD29: 0 | BE29: 0 | BF29: 0 | BG29: 0 | BH29: 0 | BI29: 0 | BJ29: 0 | BK29: 0 | BL29: 0 | BM29: 0
B31: Cashflow Inflow (Benefit) | D31: Sum
B32: VNR Benefit | D32: =SUM(F32:BM32) -> 6651850.804 | F32: =F$11 -> 0 | G32: =G$11 -> 0 | H32: 0 | I32: 0 | J32: 0 | K32: 0 | L32: 0 | M32: 332592.5402 | N32: 332592.5402 | O32: 332592.5402 | P32: 332592.5402 | Q32: 332592.5402 | R32: 332592.5402 | S32: 332592.5402 | T32: 332592.5402 | U32: 332592.5402 | V32: 332592.5402 | W32: 332592.5402 | X32: 332592.5402 | Y32: 332592.5402 | Z32: 332592.5402 | AA32: 332592.5402 | AB32: 332592.5402 | AC32: 332592.5402 | AD32: 332592.5402 | AE32: 332592.5402 | AF32: 332592.5402 | AG32: 0 | AH32: 0 | AI32: 0 | AJ32: 0 | AK32: 0 | AL32: 0 | AM32: 0 | AN32: 0 | AO32: 0 | AP32: 0 | AQ32: 0 | AR32: 0 | AS32: 0 | AT32: 0 | AU32: 0 | AV32: 0 | AW32: 0 | AX32: 0 | AY32: 0 | AZ32: 0 | BA32: 0 | BB32: 0 | BC32: 0 | BD32: 0 | BE32: 0 | BF32: 0 | BG32: 0 | BH32: 0 | BI32: 0 | BJ32: 0 | BK32: 0 | BL32: 0 | BM32: 0
B33: CECV (Solar) | D33: =SUM(E33:BM33) -> 0 | F33: =F24*F23 -> 0 | G33: =G24*G23 -> 0 | H33: 0 | I33: 0 | J33: 0 | K33: 0 | L33: 0 | M33: 0 | N33: 0 | O33: 0 | P33: 0 | Q33: 0 | R33: 0 | S33: 0 | T33: 0 | U33: 0 | V33: 0 | W33: 0 | X33: 0 | Y33: 0 | Z33: 0 | AA33: 0 | AB33: 0 | AC33: 0 | AD33: 0 | AE33: 0 | AF33: 0 | AG33: 0 | AH33: 0 | AI33: 0 | AJ33: 0 | AK33: 0 | AL33: 0 | AM33: 0 | AN33: 0 | AO33: 0 | AP33: 0 | AQ33: 0 | AR33: 0 | AS33: 0 | AT33: 0 | AU33: 0 | AV33: 0 | AW33: 0 | AX33: 0 | AY33: 0 | AZ33: 0 | BA33: 0 | BB33: 0 | BC33: 0 | BD33: 0 | BE33: 0 | BF33: 0 | BG33: 0 | BH33: 0 | BI33: 0 | BJ33: 0 | BK33: 0 | BL33: 0 | BM33: 0
B34: CECV (Battery) | D34: =SUM(E34:BM34) -> 0 | F34: =F18*F25 -> 0 | G34: =G18*G25 -> 0 | H34: 0 | I34: 0 | J34: 0 | K34: 0 | L34: 0 | M34: 0 | N34: 0 | O34: 0 | P34: 0 | Q34: 0 | R34: 0 | S34: 0 | T34: 0 | U34: 0 | V34: 0 | W34: 0 | X34: 0 | Y34: 0 | Z34: 0 | AA34: 0 | AB34: 0 | AC34: 0 | AD34: 0 | AE34: 0 | AF34: 0 | AG34: 0 | AH34: 0 | AI34: 0 | AJ34: 0 | AK34: 0 | AL34: 0 | AM34: 0 | AN34: 0 | AO34: 0 | AP34: 0 | AQ34: 0 | AR34: 0 | AS34: 0 | AT34: 0 | AU34: 0 | AV34: 0 | AW34: 0 | AX34: 0 | AY34: 0 | AZ34: 0 | BA34: 0 | BB34: 0 | BC34: 0 | BD34: 0 | BE34: 0 | BF34: 0 | BG34: 0 | BH34: 0 | BI34: 0 | BJ34: 0 | BK34: 0 | BL34: 0 | BM34: 0
B35: LGC Benefit | D35: =SUM(E35:BM35) -> 0 | F35: =F26*F21 -> 0 | G35: 0 | H35: 0 | I35: 0 | J35: 0 | K35: 0 | L35: 0 | M35: 0 | N35: 0 | O35: 0 | P35: 0 | Q35: 0 | R35: 0 | S35: 0 | T35: 0 | U35: 0 | V35: 0 | W35: 0 | X35: 0 | Y35: 0 | Z35: 0 | AA35: 0 | AB35: 0 | AC35: 0 | AD35: 0 | AE35: 0 | AF35: 0 | AG35: 0 | AH35: 0 | AI35: 0 | AJ35: 0 | AK35: 0 | AL35: =AL26*AL21 -> 0 | AM35: 0 | AN35: 0 | AO35: 0 | AP35: 0 | AQ35: 0 | AR35: 0 | AS35: 0 | AT35: 0 | AU35: 0 | AV35: 0 | AW35: 0 | AX35: 0 | AY35: 0 | AZ35: 0 | BA35: 0 | BB35: 0 | BC35: 0 | BD35: 0 | BE35: 0 | BF35: 0 | BG35: 0 | BH35: 0 | BI35: 0 | BJ35: 0 | BK35: 0 | BL35: 0 | BM35: 0
B36: Carbon Credit | D36: =SUM(E36:BM36) -> 0 | F36: =F29*F28 -> 0 | G36: 0 | H36: 0 | I36: 0 | J36: 0 | K36: 0 | L36: 0 | M36: 0 | N36: 0 | O36: 0 | P36: 0 | Q36: 0 | R36: 0 | S36: 0 | T36: 0 | U36: 0 | V36: 0 | W36: 0 | X36: 0 | Y36: 0 | Z36: 0 | AA36: 0 | AB36: 0 | AC36: 0 | AD36: 0 | AE36: 0 | AF36: 0 | AG36: 0 | AH36: 0 | AI36: 0 | AJ36: 0 | AK36: 0 | AL36: =AL29*AL28 -> 0 | AM36: 0 | AN36: 0 | AO36: 0 | AP36: 0 | AQ36: 0 | AR36: 0 | AS36: 0 | AT36: 0 | AU36: 0 | AV36: 0 | AW36: 0 | AX36: 0 | AY36: 0 | AZ36: 0 | BA36: 0 | BB36: 0 | BC36: 0 | BD36: 0 | BE36: 0 | BF36: 0 | BG36: 0 | BH36: 0 | BI36: 0 | BJ36: 0 | BK36: 0 | BL36: 0 | BM36: 0
B37: Total Cashflow Inflow | D37: =SUM(F37:BM37) -> 6651850.804 | F37: =SUM(F32:F36) -> 0 | G37: 0 | H37: 0 | I37: 0 | J37: 0 | K37: 0 | L37: 0 | M37: 332592.5402 | N37: 332592.5402 | O37: 332592.5402 | P37: 332592.5402 | Q37: 332592.5402 | R37: 332592.5402 | S37: 332592.5402 | T37: 332592.5402 | U37: 332592.5402 | V37: 332592.5402 | W37: 332592.5402 | X37: 332592.5402 | Y37: 332592.5402 | Z37: 332592.5402 | AA37: 332592.5402 | AB37: 332592.5402 | AC37: 332592.5402 | AD37: 332592.5402 | AE37: 332592.5402 | AF37: 332592.5402 | AG37: 0 | AH37: 0 | AI37: 0 | AJ37: 0 | AK37: 0 | AL37: =SUM(AL32:AL36) -> 0 | AM37: 0 | AN37: 0 | AO37: 0 | AP37: 0 | AQ37: 0 | AR37: 0 | AS37: 0 | AT37: 0 | AU37: 0 | AV37: 0 | AW37: 0 | AX37: 0 | AY37: 0 | AZ37: 0 | BA37: 0 | BB37: 0 | BC37: 0 | BD37: 0 | BE37: 0 | BF37: 0 | BG37: 0 | BH37: 0 | BI37: 0 | BJ37: 0 | BK37: 0 | BL37: 0 | BM37: 0
B39: Cashflow Outflow
B40: Diesel Capex | D40: =SUM(F40:BM40) -> 560000 | F40: =VLOOKUP($H$1,Diesel_Table,10,FALSE)*F$5 -> 0 | G40: 0 | H40: 0 | I40: 0 | J40: 0 | K40: 0 | L40: 560000 | M40: 0 | N40: 0 | O40: 0 | P40: 0 | Q40: 0 | R40: 0 | S40: 0 | T40: 0 | U40: 0 | V40: 0 | W40: 0 | X40: 0 | Y40: 0 | Z40: 0 | AA40: 0 | AB40: 0 | AC40: 0 | AD40: 0 | AE40: 0 | AF40: 0 | AG40: 0 | AH40: 0 | AI40: 0 | AJ40: 0 | AK40: 0 | AL40: =VLOOKUP($H$1,Diesel_Table,10,FALSE)*AL$5 -> 0 | AM40: 0 | AN40: 0 | AO40: 0 | AP40: 0 | AQ40: 0 | AR40: 0 | AS40: 0 | AT40: 0 | AU40: 0 | AV40: 0 | AW40: 0 | AX40: 0 | AY40: 0 | AZ40: 0 | BA40: 0 | BB40: 0 | BC40: 0 | BD40: 0 | BE40: 0 | BF40: 0 | BG40: 0 | BH40: 0 | BI40: 0 | BJ40: 0 | BK40: 0 | BL40: 0 | BM40: 0
B41: PV Capex | D41: =SUM(E41:BM41) -> 0 | F41: =VLOOKUP($H$1,Diesel_Table,11,FALSE)*F$5 -> 0 | G41: 0 | H41: 0 | I41: 0 | J41: 0 | K41: 0 | L41: 0 | M41: 0 | N41: 0 | O41: 0 | P41: 0 | Q41: 0 | R41: 0 | S41: 0 | T41: 0 | U41: 0 | V41: 0 | W41: 0 | X41: 0 | Y41: 0 | Z41: 0 | AA41: 0 | AB41: 0 | AC41: 0 | AD41: 0 | AE41: 0 | AF41: 0 | AG41: 0 | AH41: 0 | AI41: 0 | AJ41: 0 | AK41: 0 | AL41: =VLOOKUP($H$1,Diesel_Table,11,FALSE)*AL$5 -> 0 | AM41: 0 | AN41: 0 | AO41: 0 | AP41: 0 | AQ41: 0 | AR41: 0 | AS41: 0 | AT41: 0 | AU41: 0 | AV41: 0 | AW41: 0 | AX41: 0 | AY41: 0 | AZ41: 0 | BA41: 0 | BB41: 0 | BC41: 0 | BD41: 0 | BE41: 0 | BF41: 0 | BG41: 0 | BH41: 0 | BI41: 0 | BJ41: 0 | BK41: 0 | BL41: 0 | BM41: 0
B42: Battery Capex | D42: 0 | F42: =VLOOKUP($H$1,Diesel_Table,12,FALSE)*F$5 -> 0 | G42: 0 | H42: 0 | I42: 0 | J42: 0 | K42: 0 | L42: 0 | M42: 0 | N42: 0 | O42: 0 | P42: 0 | Q42: 0 | R42: 0 | S42: 0 | T42: 0 | U42: 0 | V42: 0 | W42: 0 | X42: 0 | Y42: 0 | Z42: 0 | AA42: 0 | AB42: 0 | AC42: 0 | AD42: 0 | AE42: 0 | AF42: 0 | AG42: 0 | AH42: 0 | AI42: 0 | AJ42: 0 | AK42: 0 | AL42: =VLOOKUP($H$1,Diesel_Table,12,FALSE)*AL$5 -> 0 | AM42: 0 | AN42: 0 | AO42: 0 | AP42: 0 | AQ42: 0 | AR42: 0 | AS42: 0 | AT42: 0 | AU42: 0 | AV42: 0 | AW42: 0 | AX42: 0 | AY42: 0 | AZ42: 0 | BA42: 0 | BB42: 0 | BC42: 0 | BD42: 0 | BE42: 0 | BF42: 0 | BG42: 0 | BH42: 0 | BI42: 0 | BJ42: 0 | BK42: 0 | BL42: 0 | BM42: 0
B43: Fixed Cost | D43: 3180000 | F43: =VLOOKUP($H$1,Diesel_Table,13,FALSE)*F$5 -> 0 | G43: 0 | H43: 0 | I43: 0 | J43: 0 | K43: 0 | L43: 3180000 | M43: 0 | N43: 0 | O43: 0 | P43: 0 | Q43: 0 | R43: 0 | S43: 0 | T43: 0 | U43: 0 | V43: 0 | W43: 0 | X43: 0 | Y43: 0 | Z43: 0 | AA43: 0 | AB43: 0 | AC43: 0 | AD43: 0 | AE43: 0 | AF43: 0 | AG43: 0 | AH43: 0 | AI43: 0 | AJ43: 0 | AK43: 0 | AL43: =VLOOKUP($H$1,Diesel_Table,13,FALSE)*AL$5 -> 0 | AM43: 0 | AN43: 0 | AO43: 0 | AP43: 0 | AQ43: 0 | AR43: 0 | AS43: 0 | AT43: 0 | AU43: 0 | AV43: 0 | AW43: 0 | AX43: 0 | AY43: 0 | AZ43: 0 | BA43: 0 | BB43: 0 | BC43: 0 | BD43: 0 | BE43: 0 | BF43: 0 | BG43: 0 | BH43: 0 | BI43: 0 | BJ43: 0 | BK43: 0 | BL43: 0 | BM43: 0
B44: Diesel Fuel Cost | D44: =SUM(E44:BM44) -> 89481.35829 | F44: =F19*(Fuel_Price) -> 0 | G44: 0 | H44: 0 | I44: 0 | J44: 0 | K44: 0 | L44: 0 | M44: 4474.067915 | N44: 4474.067915 | O44: 4474.067915 | P44: 4474.067915 | Q44: 4474.067915 | R44: 4474.067915 | S44: 4474.067915 | T44: 4474.067915 | U44: 4474.067915 | V44: 4474.067915 | W44: 4474.067915 | X44: 4474.067915 | Y44: 4474.067915 | Z44: 4474.067915 | AA44: 4474.067915 | AB44: 4474.067915 | AC44: 4474.067915 | AD44: 4474.067915 | AE44: 4474.067915 | AF44: 4474.067915 | AG44: 0 | AH44: 0 | AI44: 0 | AJ44: 0 | AK44: 0 | AL44: 0 | AM44: 0 | AN44: 0 | AO44: 0 | AP44: 0 | AQ44: 0 | AR44: 0 | AS44: 0 | AT44: 0 | AU44: 0 | AV44: 0 | AW44: 0 | AX44: 0 | AY44: 0 | AZ44: 0 | BA44: 0 | BB44: 0 | BC44: 0 | BD44: 0 | BE44: 0 | BF44: 0 | BG44: 0 | BH44: 0 | BI44: 0 | BJ44: 0 | BK44: 0 | BL44: 0 | BM44: 0
B45: Carbon Cost | D45: =SUM(E45:BM45) -> 27600.11823 | F45: =F20*F29 -> 0 | G45: 0 | H45: 0 | I45: 0 | J45: 0 | K45: 0 | L45: 0 | M45: 649.1465811 | N45: 706.0892636 | O45: 763.0319462 | P45: 831.3631652 | Q45: 894.000116 | R45: 962.3313351 | S45: 1030.662554 | T45: 1104.688041 | U45: 1178.713529 | V45: 1258.433284 | W45: 1343.847308 | X45: 1434.9556 | Y45: 1526.063892 | Z45: 1628.560721 | AA45: 1736.751818 | AB45: 1850.637183 | AC45: 1970.216816 | AD45: 2101.184986 | AE45: 2237.847424 | AF45: 2391.592667 | AG45: 0 | AH45: 0 | AI45: 0 | AJ45: 0 | AK45: 0 | AL45: =AL20*AL29 -> 0 | AM45: 0 | AN45: 0 | AO45: 0 | AP45: 0 | AQ45: 0 | AR45: 0 | AS45: 0 | AT45: 0 | AU45: 0 | AV45: 0 | AW45: 0 | AX45: 0 | AY45: 0 | AZ45: 0 | BA45: 0 | BB45: 0 | BC45: 0 | BD45: 0 | BE45: 0 | BF45: 0 | BG45: 0 | BH45: 0 | BI45: 0 | BJ45: 0 | BK45: 0 | BL45: 0 | BM45: 0
B46: O&M | D46: =SUM(F46:BM46) -> 641600 | F46: =(SUM($F41:F$43)*Renewable_O_M+SUM($F40:F$40)*Diesel_O_M)*F$8 -> 0 | G46: =(SUM($F41:G$43)*Renewable_O_M+SUM($F40:G$40)*Diesel_O_M)*G$8 -> 0 | H46: =(SUM($F41:H$43)*Renewable_O_M+SUM($F40:H$40)*Diesel_O_M)*H$8 -> 0 | I46: =(SUM($F41:I$43)*Renewable_O_M+SUM($F40:I$40)*Diesel_O_M)*I$8 -> 0 | J46: =(SUM($F41:J$43)*Renewable_O_M+SUM($F40:J$40)*Diesel_O_M)*J$8 -> 0 | K46: =(SUM($F41:K$43)*Renewable_O_M+SUM($F40:K$40)*Diesel_O_M)*K$8 -> 0 | L46: =(SUM($F41:L$43)*Renewable_O_M+SUM($F40:L$40)*Diesel_O_M)*L$8 -> 0 | M46: =(SUM($F41:M$43)*Renewable_O_M+SUM($F40:M$40)*Diesel_O_M)*M$8 -> 32080 | N46: =(SUM($F41:N$43)*Renewable_O_M+SUM($F40:N$40)*Diesel_O_M)*N$8 -> 32080 | O46: =(SUM($F41:O$43)*Renewable_O_M+SUM($F40:O$40)*Diesel_O_M)*O$8 -> 32080 | P46: =(SUM($F41:P$43)*Renewable_O_M+SUM($F40:P$40)*Diesel_O_M)*P$8 -> 32080 | Q46: =(SUM($F41:Q$43)*Renewable_O_M+SUM($F40:Q$40)*Diesel_O_M)*Q$8 -> 32080 | R46: =(SUM($F41:R$43)*Renewable_O_M+SUM($F40:R$40)*Diesel_O_M)*R$8 -> 32080 | S46: =(SUM($F41:S$43)*Renewable_O_M+SUM($F40:S$40)*Diesel_O_M)*S$8 -> 32080 | T46: =(SUM($F41:T$43)*Renewable_O_M+SUM($F40:T$40)*Diesel_O_M)*T$8 -> 32080 | U46: =(SUM($F41:U$43)*Renewable_O_M+SUM($F40:U$40)*Diesel_O_M)*U$8 -> 32080 | V46: =(SUM($F41:V$43)*Renewable_O_M+SUM($F40:V$40)*Diesel_O_M)*V$8 -> 32080 | W46: =(SUM($F41:W$43)*Renewable_O_M+SUM($F40:W$40)*Diesel_O_M)*W$8 -> 32080 | X46: =(SUM($F41:X$43)*Renewable_O_M+SUM($F40:X$40)*Diesel_O_M)*X$8 -> 32080 | Y46: =(SUM($F41:Y$43)*Renewable_O_M+SUM($F40:Y$40)*Diesel_O_M)*Y$8 -> 32080 | Z46: =(SUM($F41:Z$43)*Renewable_O_M+SUM($F40:Z$40)*Diesel_O_M)*Z$8 -> 32080 | AA46: =(SUM($F41:AA$43)*Renewable_O_M+SUM($F40:AA$40)*Diesel_O_M)*AA$8 -> 32080 | AB46: =(SUM($F41:AB$43)*Renewable_O_M+SUM($F40:AB$40)*Diesel_O_M)*AB$8 -> 32080 | AC46: =(SUM($F41:AC$43)*Renewable_O_M+SUM($F40:AC$40)*Diesel_O_M)*AC$8 -> 32080 | AD46: =(SUM($F41:AD$43)*Renewable_O_M+SUM($F40:AD$40)*Diesel_O_M)*AD$8 -> 32080 | AE46: =(SUM($F41:AE$43)*Renewable_O_M+SUM($F40:AE$40)*Diesel_O_M)*AE$8 -> 32080 | AF46: =(SUM($F41:AF$43)*Renewable_O_M+SUM($F40:AF$40)*Diesel_O_M)*AF$8 -> 32080 | AG46: =(SUM($F41:AG$43)*Renewable_O_M+SUM($F40:AG$40)*Diesel_O_M)*AG$8 -> 0 | AH46: =(SUM($F41:AH$43)*Renewable_O_M+SUM($F40:AH$40)*Diesel_O_M)*AH$8 -> 0 | AI46: =(SUM($F41:AI$43)*Renewable_O_M+SUM($F40:AI$40)*Diesel_O_M)*AI$8 -> 0 | AJ46: =(SUM($F41:AJ$43)*Renewable_O_M+SUM($F40:AJ$40)*Diesel_O_M)*AJ$8 -> 0 | AK46: =(SUM($F41:AK$43)*Renewable_O_M+SUM($F40:AK$40)*Diesel_O_M)*AK$8 -> 0 | AL46: =(SUM($F41:AL$43)*Renewable_O_M+SUM($F40:AL$40)*Diesel_O_M)*AL$8 -> 0 | AM46: =(SUM($F41:AM$43)*Renewable_O_M+SUM($F40:AM$40)*Diesel_O_M)*AM$8 -> 0 | AN46: =(SUM($F41:AN$43)*Renewable_O_M+SUM($F40:AN$40)*Diesel_O_M)*AN$8 -> 0 | AO46: =(SUM($F41:AO$43)*Renewable_O_M+SUM($F40:AO$40)*Diesel_O_M)*AO$8 -> 0 | AP46: =(SUM($F41:AP$43)*Renewable_O_M+SUM($F40:AP$40)*Diesel_O_M)*AP$8 -> 0 | AQ46: =(SUM($F41:AQ$43)*Renewable_O_M+SUM($F40:AQ$40)*Diesel_O_M)*AQ$8 -> 0 | AR46: =(SUM($F41:AR$43)*Renewable_O_M+SUM($F40:AR$40)*Diesel_O_M)*AR$8 -> 0 | AS46: =(SUM($F41:AS$43)*Renewable_O_M+SUM($F40:AS$40)*Diesel_O_M)*AS$8 -> 0 | AT46: =(SUM($F41:AT$43)*Renewable_O_M+SUM($F40:AT$40)*Diesel_O_M)*AT$8 -> 0 | AU46: =(SUM($F41:AU$43)*Renewable_O_M+SUM($F40:AU$40)*Diesel_O_M)*AU$8 -> 0 | AV46: =(SUM($F41:AV$43)*Renewable_O_M+SUM($F40:AV$40)*Diesel_O_M)*AV$8 -> 0 | AW46: =(SUM($F41:AW$43)*Renewable_O_M+SUM($F40:AW$40)*Diesel_O_M)*AW$8 -> 0 | AX46: =(SUM($F41:AX$43)*Renewable_O_M+SUM($F40:AX$40)*Diesel_O_M)*AX$8 -> 0 | AY46: =(SUM($F41:AY$43)*Renewable_O_M+SUM($F40:AY$40)*Diesel_O_M)*AY$8 -> 0 | AZ46: =(SUM($F41:AZ$43)*Renewable_O_M+SUM($F40:AZ$40)*Diesel_O_M)*AZ$8 -> 0 | BA46: =(SUM($F41:BA$43)*Renewable_O_M+SUM($F40:BA$40)*Diesel_O_M)*BA$8 -> 0 | BB46: =(SUM($F41:BB$43)*Renewable_O_M+SUM($F40:BB$40)*Diesel_O_M)*BB$8 -> 0 | BC46: =(SUM($F41:BC$43)*Renewable_O_M+SUM($F40:BC$40)*Diesel_O_M)*BC$8 -> 0 | BD46: =(SUM($F41:BD$43)*Renewable_O_M+SUM($F40:BD$40)*Diesel_O_M)*BD$8 -> 0 | BE46: =(SUM($F41:BE$43)*Renewable_O_M+SUM($F40:BE$40)*Diesel_O_M)*BE$8 -> 0 | BF46: =(SUM($F41:BF$43)*Renewable_O_M+SUM($F40:BF$40)*Diesel_O_M)*BF$8 -> 0 | BG46: =(SUM($F41:BG$43)*Renewable_O_M+SUM($F40:BG$40)*Diesel_O_M)*BG$8 -> 0 | BH46: =(SUM($F41:BH$43)*Renewable_O_M+SUM($F40:BH$40)*Diesel_O_M)*BH$8 -> 0 | BI46: =(SUM($F41:BI$43)*Renewable_O_M+SUM($F40:BI$40)*Diesel_O_M)*BI$8 -> 0 | BJ46: =(SUM($F41:BJ$43)*Renewable_O_M+SUM($F40:BJ$40)*Diesel_O_M)*BJ$8 -> 0 | BK46: =(SUM($F41:BK$43)*Renewable_O_M+SUM($F40:BK$40)*Diesel_O_M)*BK$8 -> 0 | BL46: =(SUM($F41:BL$43)*Renewable_O_M+SUM($F40:BL$40)*Diesel_O_M)*BL$8 -> 0 | BM46: =(SUM($F41:BM$43)*Renewable_O_M+SUM($F40:BM$40)*Diesel_O_M)*BM$8 -> 0
B47: Total Cashflow Outflow | D47: =SUM(F47:BM47) -> 4498681.477 | F47: =SUM(F40:F46) -> 0 | G47: 0 | H47: 0 | I47: 0 | J47: 0 | K47: 0 | L47: 3740000 | M47: 37203.2145 | N47: 37260.15718 | O47: 37317.09986 | P47: 37385.43108 | Q47: 37448.06803 | R47: 37516.39925 | S47: 37584.73047 | T47: 37658.75596 | U47: 37732.78144 | V47: 37812.5012 | W47: 37897.91522 | X47: 37989.02351 | Y47: 38080.13181 | Z47: 38182.62864 | AA47: 38290.81973 | AB47: 38404.7051 | AC47: 38524.28473 | AD47: 38655.2529 | AE47: 38791.91534 | AF47: 38945.66058 | AG47: 0 | AH47: 0 | AI47: 0 | AJ47: 0 | AK47: 0 | AL47: 0 | AM47: 0 | AN47: 0 | AO47: 0 | AP47: 0 | AQ47: 0 | AR47: 0 | AS47: 0 | AT47: 0 | AU47: 0 | AV47: 0 | AW47: 0 | AX47: 0 | AY47: 0 | AZ47: 0 | BA47: 0 | BB47: 0 | BC47: 0 | BD47: 0 | BE47: 0 | BF47: 0 | BG47: 0 | BH47: 0 | BI47: 0 | BJ47: 0 | BK47: 0 | BL47: 0 | BM47: 0
B49: Net Cashflow | D49: =SUM(F49:BM49) -> 2153169.327 | F49: =F37-F47 -> 0 | G49: =G37-G47 -> 0 | H49: 0 | I49: 0 | J49: 0 | K49: 0 | L49: -3740000 | M49: 295389.3257 | N49: 295332.383 | O49: 295275.4403 | P49: 295207.1091 | Q49: 295144.4722 | R49: 295076.141 | S49: 295007.8097 | T49: 294933.7842 | U49: 294859.7588 | V49: 294780.039 | W49: 294694.625 | X49: 294603.5167 | Y49: 294512.4084 | Z49: 294409.9116 | AA49: 294301.7205 | AB49: 294187.8351 | AC49: 294068.2555 | AD49: 293937.2873 | AE49: 293800.6249 | AF49: 293646.8796 | AG49: 0 | AH49: 0 | AI49: 0 | AJ49: 0 | AK49: 0 | AL49: 0 | AM49: 0 | AN49: 0 | AO49: 0 | AP49: 0 | AQ49: 0 | AR49: 0 | AS49: 0 | AT49: 0 | AU49: 0 | AV49: 0 | AW49: 0 | AX49: 0 | AY49: 0 | AZ49: 0 | BA49: 0 | BB49: 0 | BC49: 0 | BD49: 0 | BE49: 0 | BF49: 0 | BG49: 0 | BH49: 0 | BI49: 0 | BJ49: 0 | BK49: 0 | BL49: 0 | BM49: 0
B51: NPV | D51: =NPV(WACC,DCF!F49:BM49) -> 353088.1282
B53: Pure Renewable ( Solar & BESS)
B55: Targeted Unserved Energy(MWh) | D55: =SUM(F55:BM55) -> 125.5350144 | F55: =VLOOKUP($H$1,Data_Table_1,23,FALSE)*F$8 -> 0 | G55: 0 | H55: 0 | I55: 0 | J55: 0 | K55: 0 | L55: 0 | M55: 6.276750722 | N55: 6.276750722 | O55: 6.276750722 | P55: 6.276750722 | Q55: 6.276750722 | R55: 6.276750722 | S55: 6.276750722 | T55: 6.276750722 | U55: 6.276750722 | V55: 6.276750722 | W55: 6.276750722 | X55: 6.276750722 | Y55: 6.276750722 | Z55: 6.276750722 | AA55: 6.276750722 | AB55: 6.276750722 | AC55: 6.276750722 | AD55: 6.276750722 | AE55: 6.276750722 | AF55: 6.276750722 | AG55: 0 | AH55: 0 | AI55: 0 | AJ55: 0 | AK55: 0 | AL55: =VLOOKUP($H$1,Data_Table_1,23,FALSE)*AL$8 -> 0 | AM55: 0 | AN55: 0 | AO55: 0 | AP55: 0 | AQ55: 0 | AR55: 0 | AS55: 0 | AT55: 0 | AU55: 0 | AV55: 0 | AW55: 0 | AX55: 0 | AY55: 0 | AZ55: 0 | BA55: 0 | BB55: 0 | BC55: 0 | BD55: 0 | BE55: 0 | BF55: 0 | BG55: 0 | BH55: 0 | BI55: 0 | BJ55: 0 | BK55: 0 | BL55: 0 | BM55: 0
B56: Diesel Output (MWh) | D56: 0 | F56: =VLOOKUP($H$1,Pure_Renewable,4,FALSE)*F55 -> 0 | G56: 0 | H56: 0 | I56: 0 | J56: 0 | K56: 0 | L56: 0 | M56: 0 | N56: 0 | O56: 0 | P56: 0 | Q56: 0 | R56: 0 | S56: 0 | T56: 0 | U56: 0 | V56: 0 | W56: 0 | X56: 0 | Y56: 0 | Z56: 0 | AA56: 0 | AB56: 0 | AC56: 0 | AD56: 0 | AE56: 0 | AF56: 0 | AG56: 0 | AH56: 0 | AI56: 0 | AJ56: 0 | AK56: 0 | AL56: =VLOOKUP($H$1,Pure_Renewable,4,FALSE)*AL55 -> 0 | AM56: 0 | AN56: 0 | AO56: 0 | AP56: 0 | AQ56: 0 | AR56: 0 | AS56: 0 | AT56: 0 | AU56: 0 | AV56: 0 | AW56: 0 | AX56: 0 | AY56: 0 | AZ56: 0 | BA56: 0 | BB56: 0 | BC56: 0 | BD56: 0 | BE56: 0 | BF56: 0 | BG56: 0 | BH56: 0 | BI56: 0 | BJ56: 0 | BK56: 0 | BL56: 0 | BM56: 0
B57: Renewable Output (MWh) | D57: 125.5350144 | F57: =F55-F56 -> 0 | G57: =G55-G56 -> 0 | H57: =H55-H56 -> 0 | I57: =I55-I56 -> 0 | J57: =J55-J56 -> 0 | K57: =K55-K56 -> 0 | L57: =L55-L56 -> 0 | M57: =M55-M56 -> 6.276750722 | N57: =N55-N56 -> 6.276750722 | O57: =O55-O56 -> 6.276750722 | P57: =P55-P56 -> 6.276750722 | Q57: =Q55-Q56 -> 6.276750722 | R57: =R55-R56 -> 6.276750722 | S57: =S55-S56 -> 6.276750722 | T57: =T55-T56 -> 6.276750722 | U57: =U55-U56 -> 6.276750722 | V57: =V55-V56 -> 6.276750722 | W57: =W55-W56 -> 6.276750722 | X57: =X55-X56 -> 6.276750722 | Y57: =Y55-Y56 -> 6.276750722 | Z57: =Z55-Z56 -> 6.276750722 | AA57: =AA55-AA56 -> 6.276750722 | AB57: =AB55-AB56 -> 6.276750722 | AC57: =AC55-AC56 -> 6.276750722 | AD57: =AD55-AD56 -> 6.276750722 | AE57: =AE55-AE56 -> 6.276750722 | AF57: =AF55-AF56 -> 6.276750722 | AG57: =AG55-AG56 -> 0 | AH57: =AH55-AH56 -> 0 | AI57: =AI55-AI56 -> 0 | AJ57: =AJ55-AJ56 -> 0 | AK57: =AK55-AK56 -> 0 | AL57: =AL55-AL56 -> 0 | AM57: =AM55-AM56 -> 0 | AN57: =AN55-AN56 -> 0 | AO57: =AO55-AO56 -> 0 | AP57: =AP55-AP56 -> 0 | AQ57: =AQ55-AQ56 -> 0 | AR57: =AR55-AR56 -> 0 | AS57: =AS55-AS56 -> 0 | AT57: =AT55-AT56 -> 0 | AU57: =AU55-AU56 -> 0 | AV57: =AV55-AV56 -> 0 | AW57: =AW55-AW56 -> 0 | AX57: =AX55-AX56 -> 0 | AY57: =AY55-AY56 -> 0 | AZ57: =AZ55-AZ56 -> 0 | BA57: =BA55-BA56 -> 0 | BB57: =BB55-BB56 -> 0 | BC57: =BC55-BC56 -> 0 | BD57: =BD55-BD56 -> 0 | BE57: =BE55-BE56 -> 0 | BF57: =BF55-BF56 -> 0 | BG57: =BG55-BG56 -> 0 | BH57: =BH55-BH56 -> 0 | BI57: =BI55-BI56 -> 0 | BJ57: =BJ55-BJ56 -> 0 | BK57: =BK55-BK56 -> 0 | BL57: =BL55-BL56 -> 0 | BM57: =BM55-BM56 -> 0
B58: Battery Capacity (MWh) | F58: =VLOOKUP($H$1,Pure_Renewable,9,FALSE)*F$8 -> 0 | G58: 0 | H58: 0 | I58: 0 | J58: 0 | K58: 0 | L58: 0 | M58: 5.265837104 | N58: 5.265837104 | O58: 5.265837104 | P58: 5.265837104 | Q58: 5.265837104 | R58: 5.265837104 | S58: 5.265837104 | T58: 5.265837104 | U58: 5.265837104 | V58: 5.265837104 | W58: 5.265837104 | X58: 5.265837104 | Y58: 5.265837104 | Z58: 5.265837104 | AA58: 5.265837104 | AB58: 5.265837104 | AC58: 5.265837104 | AD58: 5.265837104 | AE58: 5.265837104 | AF58: 5.265837104 | AG58: 0 | AH58: 0 | AI58: 0 | AJ58: 0 | AK58: 0 | AL58: =VLOOKUP($H$1,Pure_Renewable,9,FALSE)*AL$8 -> 0 | AM58: 0 | AN58: 0 | AO58: 0 | AP58: 0 | AQ58: 0 | AR58: 0 | AS58: 0 | AT58: 0 | AU58: 0 | AV58: 0 | AW58: 0 | AX58: 0 | AY58: 0 | AZ58: 0 | BA58: 0 | BB58: 0 | BC58: 0 | BD58: 0 | BE58: 0 | BF58: 0 | BG58: 0 | BH58: 0 | BI58: 0 | BJ58: 0 | BK58: 0 | BL58: 0 | BM58: 0
B59: Diesel Consumption (Litre) | D59: =SUM(F59:BM59) -> 0 | F59: =Fuel_Consumption*F56*(1+Inefficiency_Factor) -> 0 | G59: 0 | H59: 0 | I59: 0 | J59: 0 | K59: 0 | L59: 0 | M59: 0 | N59: 0 | O59: 0 | P59: 0 | Q59: 0 | R59: 0 | S59: 0 | T59: 0 | U59: 0 | V59: 0 | W59: 0 | X59: 0 | Y59: 0 | Z59: 0 | AA59: 0 | AB59: 0 | AC59: 0 | AD59: 0 | AE59: 0 | AF59: 0 | AG59: 0 | AH59: 0 | AI59: 0 | AJ59: 0 | AK59: 0 | AL59: =Fuel_Consumption*AL56*(1+Inefficiency_Factor) -> 0 | AM59: 0 | AN59: 0 | AO59: 0 | AP59: 0 | AQ59: 0 | AR59: 0 | AS59: 0 | AT59: 0 | AU59: 0 | AV59: 0 | AW59: 0 | AX59: 0 | AY59: 0 | AZ59: 0 | BA59: 0 | BB59: 0 | BC59: 0 | BD59: 0 | BE59: 0 | BF59: 0 | BG59: 0 | BH59: 0 | BI59: 0 | BJ59: 0 | BK59: 0 | BL59: 0 | BM59: 0
B60: CO2 Emissions (Ton) | D60: =SUM(E60:BM60) -> 0 | F60: =F59*Carbon_Conversion/1000 -> 0 | G60: =G59*Carbon_Conversion/1000 -> 0 | H60: =H59*Carbon_Conversion/1000 -> 0 | I60: =I59*Carbon_Conversion/1000 -> 0 | J60: =J59*Carbon_Conversion/1000 -> 0 | K60: =K59*Carbon_Conversion/1000 -> 0 | L60: =L59*Carbon_Conversion/1000 -> 0 | M60: =M59*Carbon_Conversion/1000 -> 0 | N60: =N59*Carbon_Conversion/1000 -> 0 | O60: =O59*Carbon_Conversion/1000 -> 0 | P60: =P59*Carbon_Conversion/1000 -> 0 | Q60: =Q59*Carbon_Conversion/1000 -> 0 | R60: =R59*Carbon_Conversion/1000 -> 0 | S60: =S59*Carbon_Conversion/1000 -> 0 | T60: =T59*Carbon_Conversion/1000 -> 0 | U60: =U59*Carbon_Conversion/1000 -> 0 | V60: =V59*Carbon_Conversion/1000 -> 0 | W60: =W59*Carbon_Conversion/1000 -> 0 | X60: =X59*Carbon_Conversion/1000 -> 0 | Y60: =Y59*Carbon_Conversion/1000 -> 0 | Z60: =Z59*Carbon_Conversion/1000 -> 0 | AA60: =AA59*Carbon_Conversion/1000 -> 0 | AB60: =AB59*Carbon_Conversion/1000 -> 0 | AC60: =AC59*Carbon_Conversion/1000 -> 0 | AD60: =AD59*Carbon_Conversion/1000 -> 0 | AE60: =AE59*Carbon_Conversion/1000 -> 0 | AF60: =AF59*Carbon_Conversion/1000 -> 0 | AG60: =AG59*Carbon_Conversion/1000 -> 0 | AH60: =AH59*Carbon_Conversion/1000 -> 0 | AI60: =AI59*Carbon_Conversion/1000 -> 0 | AJ60: =AJ59*Carbon_Conversion/1000 -> 0 | AK60: =AK59*Carbon_Conversion/1000 -> 0 | AL60: =AL59*Carbon_Conversion/1000 -> 0 | AM60: =AM59*Carbon_Conversion/1000 -> 0 | AN60: =AN59*Carbon_Conversion/1000 -> 0 | AO60: =AO59*Carbon_Conversion/1000 -> 0 | AP60: =AP59*Carbon_Conversion/1000 -> 0 | AQ60: =AQ59*Carbon_Conversion/1000 -> 0 | AR60: =AR59*Carbon_Conversion/1000 -> 0 | AS60: =AS59*Carbon_Conversion/1000 -> 0 | AT60: =AT59*Carbon_Conversion/1000 -> 0 | AU60: =AU59*Carbon_Conversion/1000 -> 0 | AV60: =AV59*Carbon_Conversion/1000 -> 0 | AW60: =AW59*Carbon_Conversion/1000 -> 0 | AX60: =AX59*Carbon_Conversion/1000 -> 0 | AY60: =AY59*Carbon_Conversion/1000 -> 0 | AZ60: =AZ59*Carbon_Conversion/1000 -> 0 | BA60: =BA59*Carbon_Conversion/1000 -> 0 | BB60: =BB59*Carbon_Conversion/1000 -> 0 | BC60: =BC59*Carbon_Conversion/1000 -> 0 | BD60: =BD59*Carbon_Conversion/1000 -> 0 | BE60: =BE59*Carbon_Conversion/1000 -> 0 | BF60: =BF59*Carbon_Conversion/1000 -> 0 | BG60: =BG59*Carbon_Conversion/1000 -> 0 | BH60: =BH59*Carbon_Conversion/1000 -> 0 | BI60: =BI59*Carbon_Conversion/1000 -> 0 | BJ60: =BJ59*Carbon_Conversion/1000 -> 0 | BK60: =BK59*Carbon_Conversion/1000 -> 0 | BL60: =BL59*Carbon_Conversion/1000 -> 0 | BM60: =BM59*Carbon_Conversion/1000 -> 0
B61: LGC Price ($/MWh) | D61: =SUM(F61:Y61) -> 0 | F61: =IF(F$4>2030,0, VLOOKUP(F$4,LGC_Table,3,FALSE))*F$8 -> 0 | G61: 0 | H61: 0 | I61: 0 | J61: 0 | K61: 0 | L61: 0 | M61: 0 | N61: 0 | O61: 0 | P61: 0 | Q61: 0 | R61: 0 | S61: 0 | T61: 0 | U61: 0 | V61: 0 | W61: 0 | X61: 0 | Y61: 0 | Z61: 0 | AA61: 0 | AB61: 0 | AC61: 0 | AD61: 0 | AE61: 0 | AF61: 0 | AG61: 0 | AH61: 0 | AI61: 0 | AJ61: 0 | AK61: 0 | AL61: 0 | AM61: 0 | AN61: 0 | AO61: 0 | AP61: 0 | AQ61: 0 | AR61: 0 | AS61: 0 | AT61: 0 | AU61: 0 | AV61: 0 | AW61: 0 | AX61: 0 | AY61: 0 | AZ61: 0 | BA61: 0 | BB61: 0 | BC61: 0 | BD61: 0 | BE61: 0 | BF61: 0 | BG61: 0 | BH61: 0 | BI61: 0 | BJ61: 0 | BK61: 0 | BL61: 0 | BM61: 0
B62: Solar Output Degradation | F62: =F$8*(1-Degradation)^F$7 -> 0 | G62: 0 | H62: 0 | I62: 0 | J62: 0 | K62: 0 | L62: 0 | M62: 0.985 | N62: 0.970225 | O62: 0.955671625 | P62: 0.9413365506 | Q62: 0.9272165024 | R62: 0.9133082548 | S62: 0.899608631 | T62: 0.8861145015 | U62: 0.872822784 | V62: 0.8597304423 | W62: 0.8468344856 | X62: 0.8341319683 | Y62: 0.8216199888 | Z62: 0.809295689 | AA62: 0.7971562536 | AB62: 0.7851989098 | AC62: 0.7734209262 | AD62: 0.7618196123 | AE62: 0.7503923181 | AF62: 0.7391364333 | AG62: 0 | AH62: 0 | AI62: 0 | AJ62: 0 | AK62: 0 | AL62: 0 | AM62: 0 | AN62: 0 | AO62: 0 | AP62: 0 | AQ62: 0 | AR62: 0 | AS62: 0 | AT62: 0 | AU62: 0 | AV62: 0 | AW62: 0 | AX62: 0 | AY62: 0 | AZ62: 0 | BA62: 0 | BB62: 0 | BC62: 0 | BD62: 0 | BE62: 0 | BF62: 0 | BG62: 0 | BH62: 0 | BI62: 0 | BJ62: 0 | BK62: 0 | BL62: 0 | BM62: 0
B63: Solar Capacity (MW) | F63: =VLOOKUP($H$1,Pure_Renewable,8,FALSE)*F$8*F62 -> 0 | G63: 0 | H63: 0 | I63: 0 | J63: 0 | K63: 0 | L63: 0 | M63: 2.593424774 | N63: 2.554523402 | O63: 2.516205551 | P63: 2.478462468 | Q63: 2.441285531 | R63: 2.404666248 | S63: 2.368596254 | T63: 2.33306731 | U63: 2.298071301 | V63: 2.263600231 | W63: 2.229646228 | X63: 2.196201534 | Y63: 2.163258511 | Z63: 2.130809634 | AA63: 2.098847489 | AB63: 2.067364777 | AC63: 2.036354305 | AD63: 2.005808991 | AE63: 1.975721856 | AF63: 1.946086028 | AG63: 0 | AH63: 0 | AI63: 0 | AJ63: 0 | AK63: 0 | AL63: =VLOOKUP($H$1,Pure_Renewable,8,FALSE)*AL$8*AL62 -> 0 | AM63: 0 | AN63: 0 | AO63: 0 | AP63: 0 | AQ63: 0 | AR63: 0 | AS63: 0 | AT63: 0 | AU63: 0 | AV63: 0 | AW63: 0 | AX63: 0 | AY63: 0 | AZ63: 0 | BA63: 0 | BB63: 0 | BC63: 0 | BD63: 0 | BE63: 0 | BF63: 0 | BG63: 0 | BH63: 0 | BI63: 0 | BJ63: 0 | BK63: 0 | BL63: 0 | BM63: 0
B64: CECV (Solar) -Matrix ($/1 MW system) | F64: =IFERROR(HLOOKUP(F$4,Matrix,2,FALSE)*F$8,E64)/100 -> 0 | G64: 0 | H64: 0 | I64: 0 | J64: 0 | K64: 0 | L64: 0 | M64: 99569.86678 | N64: 98310.23711 | O64: 89511.42156 | P64: 87138.95368 | Q64: 130184.8927 | R64: 145250.2676 | S64: 132835.4776 | T64: 84528.3728 | U64: 71010.33173 | V64: 127235.822 | W64: 164210.7419 | X64: 106025.9441 | Y64: 121305.6393 | Z64: 121831.7997 | AA64: 121831.7997 | AB64: 121831.7997 | AC64: 121831.7997 | AD64: 121831.7997 | AE64: 121831.7997 | AF64: 121831.7997 | AG64: 0 | AH64: 0 | AI64: 0 | AJ64: 0 | AK64: 0 | AL64: =IFERROR(HLOOKUP(AL$4,Matrix,2,FALSE)*AL$8,AK64)/100 -> 0 | AM64: 0 | AN64: 0 | AO64: 0 | AP64: 0 | AQ64: 0 | AR64: 0 | AS64: 0 | AT64: 0 | AU64: 0 | AV64: 0 | AW64: 0 | AX64: 0 | AY64: 0 | AZ64: 0 | BA64: 0 | BB64: 0 | BC64: 0 | BD64: 0 | BE64: 0 | BF64: 0 | BG64: 0 | BH64: 0 | BI64: 0 | BJ64: 0 | BK64: 0 | BL64: 0 | BM64: 0
B65: CECV (Battery) - ($/1 MWh system) | F65: =IFERROR(HLOOKUP(F$4,Matrix,3,FALSE)*F$8,E65) -> 0 | G65: 0 | H65: 0 | I65: 0 | J65: 0 | K65: 0 | L65: 0 | M65: 33998.37366 | N65: 31985.99413 | O65: 28464.13344 | P65: 41449.62613 | Q65: 42258.82525 | R65: 37927.8977 | S65: 43429.43396 | T65: 46256.87412 | U65: 44063.35698 | V65: 50130.7872 | W65: 59756.40518 | X65: 82514.21158 | Y65: 66025.34834 | Z65: 64481.18428 | AA65: 64481.18428 | AB65: 64481.18428 | AC65: 64481.18428 | AD65: 64481.18428 | AE65: 64481.18428 | AF65: 64481.18428 | AG65: 0 | AH65: 0 | AI65: 0 | AJ65: 0 | AK65: 0 | AL65: =IFERROR(HLOOKUP(AL$4,Matrix,3,FALSE)*AL$8,AK65) -> 0 | AM65: 0 | AN65: 0 | AO65: 0 | AP65: 0 | AQ65: 0 | AR65: 0 | AS65: 0 | AT65: 0 | AU65: 0 | AV65: 0 | AW65: 0 | AX65: 0 | AY65: 0 | AZ65: 0 | BA65: 0 | BB65: 0 | BC65: 0 | BD65: 0 | BE65: 0 | BF65: 0 | BG65: 0 | BH65: 0 | BI65: 0 | BJ65: 0 | BK65: 0 | BL65: 0 | BM65: 0
B66: Solar Maximum Output (MWh) | D66: =SUM(F66:BM66) -> 56827.4348 | F66: =F63*Average_Solar_Output*365*F$8*F62 -> 0 | G66: 0 | H66: 0 | I66: 0 | J66: 0 | K66: 0 | L66: 0 | M66: 3729.604167 | N66: 3618.555203 | O66: 3510.812722 | P66: 3406.278273 | Q66: 3304.856338 | R66: 3206.45424 | S66: 3110.982065 | T66: 3018.352574 | U66: 2928.481126 | V66: 2841.285601 | W66: 2756.686322 | X66: 2674.605987 | Y66: 2594.969593 | Z66: 2517.704374 | AA66: 2442.739726 | AB66: 2370.007151 | AC66: 2299.440188 | AD66: 2230.974356 | AE66: 2164.547095 | AF66: 2100.097705 | AG66: 0 | AH66: 0 | AI66: 0 | AJ66: 0 | AK66: 0 | AL66: =AL63*Average_Solar_Output*365*AL$8*AL62 -> 0 | AM66: 0 | AN66: 0 | AO66: 0 | AP66: 0 | AQ66: 0 | AR66: 0 | AS66: 0 | AT66: 0 | AU66: 0 | AV66: 0 | AW66: 0 | AX66: 0 | AY66: 0 | AZ66: 0 | BA66: 0 | BB66: 0 | BC66: 0 | BD66: 0 | BE66: 0 | BF66: 0 | BG66: 0 | BH66: 0 | BI66: 0 | BJ66: 0 | BK66: 0 | BL66: 0 | BM66: 0
B67: Carbon Conversion FOR Solar Output(%) | F67: =IFERROR(HLOOKUP(F$4,Carbon_Table,2,FALSE),0)*F$8 -> 0 | G67: 0 | H67: 0 | I67: 0 | J67: 0 | K67: 0 | L67: 0 | M67: 0.46 | N67: 0.42 | O67: 0.36 | P67: 0.29 | Q67: 0.26 | R67: 0.24 | S67: 0.22 | T67: 0.21 | U67: 0.19 | V67: 0.18 | W67: 0.16 | X67: 0.14 | Y67: 0.13 | Z67: 0.11 | AA67: 0.1 | AB67: 0.08 | AC67: 0.06 | AD67: 0.05 | AE67: 0.03 | AF67: 0.02 | AG67: 0 | AH67: 0 | AI67: 0 | AJ67: 0 | AK67: 0 | AL67: =IFERROR(HLOOKUP(AL$4,Carbon_Table,2,FALSE),0)*AL$8 -> 0 | AM67: 0 | AN67: 0 | AO67: 0 | AP67: 0 | AQ67: 0 | AR67: 0 | AS67: 0 | AT67: 0 | AU67: 0 | AV67: 0 | AW67: 0 | AX67: 0 | AY67: 0 | AZ67: 0 | BA67: 0 | BB67: 0 | BC67: 0 | BD67: 0 | BE67: 0 | BF67: 0 | BG67: 0 | BH67: 0 | BI67: 0 | BJ67: 0 | BK67: 0 | BL67: 0 | BM67: 0
B68: CO2 Emissions Credit From Solar(Ton) | D68: =SUM(F68:BM68) -> 11722.18518 | F68: =F67*F66 -> 0 | G68: =G67*G66 -> 0 | H68: 0 | I68: 0 | J68: 0 | K68: 0 | L68: 0 | M68: 1715.617917 | N68: 1519.793185 | O68: 1263.89258 | P68: 987.8206992 | Q68: 859.2626478 | R68: 769.5490176 | S68: 684.4160543 | T68: 633.8540406 | U68: 556.411414 | V68: 511.4314081 | W68: 441.0698115 | X68: 374.4448381 | Y68: 337.3460471 | Z68: 276.9474811 | AA68: 244.2739726 | AB68: 189.6005721 | AC68: 137.9664113 | AD68: 111.5487178 | AE68: 64.93641284 | AF68: 42.0019541 | AG68: 0 | AH68: 0 | AI68: 0 | AJ68: 0 | AK68: 0 | AL68: 0 | AM68: 0 | AN68: 0 | AO68: 0 | AP68: 0 | AQ68: 0 | AR68: 0 | AS68: 0 | AT68: 0 | AU68: 0 | AV68: 0 | AW68: 0 | AX68: 0 | AY68: 0 | AZ68: 0 | BA68: 0 | BB68: 0 | BC68: 0 | BD68: 0 | BE68: 0 | BF68: 0 | BG68: 0 | BH68: 0 | BI68: 0 | BJ68: 0 | BK68: 0 | BL68: 0 | BM68: 0
B69: Carbon Credit ($/ton) | F69: =IFERROR(HLOOKUP(F$4,Carbon_Table,3,FALSE),0)*F$8 -> 0 | G69: 0 | H69: 0 | I69: 0 | J69: 0 | K69: 0 | L69: 0 | M69: 114 | N69: 124 | O69: 134 | P69: 146 | Q69: 157 | R69: 169 | S69: 181 | T69: 194 | U69: 207 | V69: 221 | W69: 236 | X69: 252 | Y69: 268 | Z69: 286 | AA69: 305 | AB69: 325 | AC69: 346 | AD69: 369 | AE69: 393 | AF69: 420 | AG69: 0 | AH69: 0 | AI69: 0 | AJ69: 0 | AK69: 0 | AL69: 0 | AM69: 0 | AN69: 0 | AO69: 0 | AP69: 0 | AQ69: 0 | AR69: 0 | AS69: 0 | AT69: 0 | AU69: 0 | AV69: 0 | AW69: 0 | AX69: 0 | AY69: 0 | AZ69: 0 | BA69: 0 | BB69: 0 | BC69: 0 | BD69: 0 | BE69: 0 | BF69: 0 | BG69: 0 | BH69: 0 | BI69: 0 | BJ69: 0 | BK69: 0 | BL69: 0 | BM69: 0
B71: Cashflow Inflow (Benefit) | D71: Sum
B72: VNR Benefit | D72: =SUM(F72:BM72) -> 6651850.804 | F72: =F$11 -> 0 | G72: =G$11 -> 0 | H72: 0 | I72: 0 | J72: 0 | K72: 0 | L72: 0 | M72: 332592.5402 | N72: 332592.5402 | O72: 332592.5402 | P72: 332592.5402 | Q72: 332592.5402 | R72: 332592.5402 | S72: 332592.5402 | T72: 332592.5402 | U72: 332592.5402 | V72: 332592.5402 | W72: 332592.5402 | X72: 332592.5402 | Y72: 332592.5402 | Z72: 332592.5402 | AA72: 332592.5402 | AB72: 332592.5402 | AC72: 332592.5402 | AD72: 332592.5402 | AE72: 332592.5402 | AF72: 332592.5402 | AG72: 0 | AH72: 0 | AI72: 0 | AJ72: 0 | AK72: 0 | AL72: 0 | AM72: 0 | AN72: 0 | AO72: 0 | AP72: 0 | AQ72: 0 | AR72: 0 | AS72: 0 | AT72: 0 | AU72: 0 | AV72: 0 | AW72: 0 | AX72: 0 | AY72: 0 | AZ72: 0 | BA72: 0 | BB72: 0 | BC72: 0 | BD72: 0 | BE72: 0 | BF72: 0 | BG72: 0 | BH72: 0 | BI72: 0 | BJ72: 0 | BK72: 0 | BL72: 0 | BM72: 0
B73: CECV (Solar) | D73: =SUM(E73:BM73) -> 5179545.385 | F73: =F64*F63 -> 0 | G73: =G64*G63 -> 0 | H73: 0 | I73: 0 | J73: 0 | K73: 0 | L73: 0 | M73: 258226.9592 | N73: 251135.8014 | O73: 225229.1358 | P73: 215970.6262 | Q73: 317818.4948 | R73: 349278.4159 | S73: 314633.6148 | T73: 197210.3834 | U73: 163186.8054 | V73: 288011.0362 | W73: 366131.8612 | X73: 232854.341 | Y73: 262415.4566 | Z73: 259600.3726 | AA73: 255706.367 | AB73: 251870.7715 | AC73: 248092.7099 | AD73: 244371.3192 | AE73: 240705.7494 | AF73: 237095.1632 | AG73: 0 | AH73: 0 | AI73: 0 | AJ73: 0 | AK73: 0 | AL73: 0 | AM73: 0 | AN73: 0 | AO73: 0 | AP73: 0 | AQ73: 0 | AR73: 0 | AS73: 0 | AT73: 0 | AU73: 0 | AV73: 0 | AW73: 0 | AX73: 0 | AY73: 0 | AZ73: 0 | BA73: 0 | BB73: 0 | BC73: 0 | BD73: 0 | BE73: 0 | BF73: 0 | BG73: 0 | BH73: 0 | BI73: 0 | BJ73: 0 | BK73: 0 | BL73: 0 | BM73: 0
B74: CECV (Battery) | D74: =SUM(E74:BM74) -> 2789918.321 | F74: =F58*F65*Battery_Application -> 0 | G74: 0 | H74: 0 | I74: 0 | J74: 0 | K74: 0 | L74: 0 | M74: 89514.94874 | N74: 84216.51736 | O74: 74943.745 | P74: 109133.4896 | Q74: 111264.045 | R74: 99861.06549 | S74: 114346.1624 | T74: 121790.582 | U74: 116015.2301 | V74: 131990.2796 | W74: 157333.7478 | X74: 217253.1985 | Y74: 173839.3646 | Z74: 169773.7063 | AA74: 169773.7063 | AB74: 169773.7063 | AC74: 169773.7063 | AD74: 169773.7063 | AE74: 169773.7063 | AF74: 169773.7063 | AG74: 0 | AH74: 0 | AI74: 0 | AJ74: 0 | AK74: 0 | AL74: =AL58*AL65*Battery_Application -> 0 | AM74: 0 | AN74: 0 | AO74: 0 | AP74: 0 | AQ74: 0 | AR74: 0 | AS74: 0 | AT74: 0 | AU74: 0 | AV74: 0 | AW74: 0 | AX74: 0 | AY74: 0 | AZ74: 0 | BA74: 0 | BB74: 0 | BC74: 0 | BD74: 0 | BE74: 0 | BF74: 0 | BG74: 0 | BH74: 0 | BI74: 0 | BJ74: 0 | BK74: 0 | BL74: 0 | BM74: 0
B75: LGC Benefit | D75: =SUM(E75:BM75) -> 0 | F75: =F66*F61 -> 0 | G75: 0 | H75: 0 | I75: 0 | J75: 0 | K75: 0 | L75: 0 | M75: 0 | N75: 0 | O75: 0 | P75: 0 | Q75: 0 | R75: 0 | S75: 0 | T75: 0 | U75: 0 | V75: 0 | W75: 0 | X75: 0 | Y75: 0 | Z75: 0 | AA75: 0 | AB75: 0 | AC75: 0 | AD75: 0 | AE75: 0 | AF75: 0 | AG75: 0 | AH75: 0 | AI75: 0 | AJ75: 0 | AK75: 0 | AL75: =AL66*AL61 -> 0 | AM75: 0 | AN75: 0 | AO75: 0 | AP75: 0 | AQ75: 0 | AR75: 0 | AS75: 0 | AT75: 0 | AU75: 0 | AV75: 0 | AW75: 0 | AX75: 0 | AY75: 0 | AZ75: 0 | BA75: 0 | BB75: 0 | BC75: 0 | BD75: 0 | BE75: 0 | BF75: 0 | BG75: 0 | BH75: 0 | BI75: 0 | BJ75: 0 | BK75: 0 | BL75: 0 | BM75: 0
B76: Carbon Credit | D76: =SUM(E76:BM76) -> 2073877.467 | F76: =F69*F68 -> 0 | G76: 0 | H76: 0 | I76: 0 | J76: 0 | K76: 0 | L76: 0 | M76: 195580.4425 | N76: 188454.355 | O76: 169361.6057 | P76: 144221.8221 | Q76: 134904.2357 | R76: 130053.784 | S76: 123879.3058 | T76: 122967.6839 | U76: 115177.1627 | V76: 113026.3412 | W76: 104092.4755 | X76: 94360.09921 | Y76: 90408.74063 | Z76: 79206.9796 | AA76: 74503.56164 | AB76: 61620.18592 | AC76: 47736.3783 | AD76: 41161.47687 | AE76: 25520.01025 | AF76: 17640.82072 | AG76: 0 | AH76: 0 | AI76: 0 | AJ76: 0 | AK76: 0 | AL76: =AL69*AL68 -> 0 | AM76: 0 | AN76: 0 | AO76: 0 | AP76: 0 | AQ76: 0 | AR76: 0 | AS76: 0 | AT76: 0 | AU76: 0 | AV76: 0 | AW76: 0 | AX76: 0 | AY76: 0 | AZ76: 0 | BA76: 0 | BB76: 0 | BC76: 0 | BD76: 0 | BE76: 0 | BF76: 0 | BG76: 0 | BH76: 0 | BI76: 0 | BJ76: 0 | BK76: 0 | BL76: 0 | BM76: 0
B77: Total Cashflow Inflow | D77: =SUM(F77:BM77) -> 16695191.98 | F77: =SUM(F72:F76) -> 0 | G77: 0 | H77: 0 | I77: 0 | J77: 0 | K77: 0 | L77: 0 | M77: 875914.8907 | N77: 856399.2139 | O77: 802127.0267 | P77: 801918.4781 | Q77: 896579.3157 | R77: 911785.8056 | S77: 885451.6232 | T77: 774561.1895 | U77: 726971.7384 | V77: 865620.1972 | W77: 960150.6247 | X77: 877060.1789 | Y77: 859256.102 | Z77: 841173.5987 | AA77: 832576.1752 | AB77: 815857.2039 | AC77: 798195.3347 | AD77: 787899.0427 | AE77: 768592.0062 | AF77: 757102.2305 | AG77: 0 | AH77: 0 | AI77: 0 | AJ77: 0 | AK77: 0 | AL77: =SUM(AL72:AL76) -> 0 | AM77: 0 | AN77: 0 | AO77: 0 | AP77: 0 | AQ77: 0 | AR77: 0 | AS77: 0 | AT77: 0 | AU77: 0 | AV77: 0 | AW77: 0 | AX77: 0 | AY77: 0 | AZ77: 0 | BA77: 0 | BB77: 0 | BC77: 0 | BD77: 0 | BE77: 0 | BF77: 0 | BG77: 0 | BH77: 0 | BI77: 0 | BJ77: 0 | BK77: 0 | BL77: 0 | BM77: 0
B79: Cashflow Outflow
B80: Diesel Capex | D80: =SUM(F80:BM80) -> 0 | F80: =VLOOKUP($H$1,Pure_Renewable,10,FALSE)*F$5 -> 0 | G80: 0 | H80: 0 | I80: 0 | J80: 0 | K80: 0 | L80: 0 | M80: 0 | N80: 0 | O80: 0 | P80: 0 | Q80: 0 | R80: 0 | S80: 0 | T80: 0 | U80: 0 | V80: 0 | W80: 0 | X80: 0 | Y80: 0 | Z80: 0 | AA80: 0 | AB80: 0 | AC80: 0 | AD80: 0 | AE80: 0 | AF80: 0 | AG80: 0 | AH80: 0 | AI80: 0 | AJ80: 0 | AK80: 0 | AL80: =VLOOKUP($H$1,Pure_Renewable,10,FALSE)*AL$5 -> 0 | AM80: 0 | AN80: 0 | AO80: 0 | AP80: 0 | AQ80: 0 | AR80: 0 | AS80: 0 | AT80: 0 | AU80: 0 | AV80: 0 | AW80: 0 | AX80: 0 | AY80: 0 | AZ80: 0 | BA80: 0 | BB80: 0 | BC80: 0 | BD80: 0 | BE80: 0 | BF80: 0 | BG80: 0 | BH80: 0 | BI80: 0 | BJ80: 0 | BK80: 0 | BL80: 0 | BM80: 0
B81: PV Capex | D81: =SUM(E81:BM81) -> 3949377.828 | F81: =VLOOKUP($H$1,Pure_Renewable,11,FALSE)*F$5 -> 0 | G81: 0 | H81: 0 | I81: 0 | J81: 0 | K81: 0 | L81: 3949377.828 | M81: 0 | N81: 0 | O81: 0 | P81: 0 | Q81: 0 | R81: 0 | S81: 0 | T81: 0 | U81: 0 | V81: 0 | W81: 0 | X81: 0 | Y81: 0 | Z81: 0 | AA81: 0 | AB81: 0 | AC81: 0 | AD81: 0 | AE81: 0 | AF81: 0 | AG81: 0 | AH81: 0 | AI81: 0 | AJ81: 0 | AK81: 0 | AL81: =VLOOKUP($H$1,Pure_Renewable,11,FALSE)*AL$5 -> 0 | AM81: 0 | AN81: 0 | AO81: 0 | AP81: 0 | AQ81: 0 | AR81: 0 | AS81: 0 | AT81: 0 | AU81: 0 | AV81: 0 | AW81: 0 | AX81: 0 | AY81: 0 | AZ81: 0 | BA81: 0 | BB81: 0 | BC81: 0 | BD81: 0 | BE81: 0 | BF81: 0 | BG81: 0 | BH81: 0 | BI81: 0 | BJ81: 0 | BK81: 0 | BL81: 0 | BM81: 0
B82: Battery Capex | D82: 6319004.525 | F82: =VLOOKUP($H$1,Pure_Renewable,12,FALSE)*F$5 -> 0 | G82: 0 | H82: 0 | I82: 0 | J82: 0 | K82: 0 | L82: 6319004.525 | M82: 0 | N82: 0 | O82: 0 | P82: 0 | Q82: 0 | R82: 0 | S82: 0 | T82: 0 | U82: 0 | V82: 0 | W82: 0 | X82: 0 | Y82: 0 | Z82: 0 | AA82: 0 | AB82: 0 | AC82: 0 | AD82: 0 | AE82: 0 | AF82: 0 | AG82: 0 | AH82: 0 | AI82: 0 | AJ82: 0 | AK82: 0 | AL82: =VLOOKUP($H$1,Pure_Renewable,12,FALSE)*AL$5 -> 0 | AM82: 0 | AN82: 0 | AO82: 0 | AP82: 0 | AQ82: 0 | AR82: 0 | AS82: 0 | AT82: 0 | AU82: 0 | AV82: 0 | AW82: 0 | AX82: 0 | AY82: 0 | AZ82: 0 | BA82: 0 | BB82: 0 | BC82: 0 | BD82: 0 | BE82: 0 | BF82: 0 | BG82: 0 | BH82: 0 | BI82: 0 | BJ82: 0 | BK82: 0 | BL82: 0 | BM82: 0
B83: Fixed Cost | D83: 3180000 | F83: =VLOOKUP($H$1,Pure_Renewable,13,FALSE)*F$5 -> 0 | G83: 0 | H83: 0 | I83: 0 | J83: 0 | K83: 0 | L83: 3180000 | M83: 0 | N83: 0 | O83: 0 | P83: 0 | Q83: 0 | R83: 0 | S83: 0 | T83: 0 | U83: 0 | V83: 0 | W83: 0 | X83: 0 | Y83: 0 | Z83: 0 | AA83: 0 | AB83: 0 | AC83: 0 | AD83: 0 | AE83: 0 | AF83: 0 | AG83: 0 | AH83: 0 | AI83: 0 | AJ83: 0 | AK83: 0 | AL83: =VLOOKUP($H$1,Pure_Renewable,13,FALSE)*AL$5 -> 0 | AM83: 0 | AN83: 0 | AO83: 0 | AP83: 0 | AQ83: 0 | AR83: 0 | AS83: 0 | AT83: 0 | AU83: 0 | AV83: 0 | AW83: 0 | AX83: 0 | AY83: 0 | AZ83: 0 | BA83: 0 | BB83: 0 | BC83: 0 | BD83: 0 | BE83: 0 | BF83: 0 | BG83: 0 | BH83: 0 | BI83: 0 | BJ83: 0 | BK83: 0 | BL83: 0 | BM83: 0
B84: Diesel Fuel Cost | D84: =SUM(E84:BM84) -> 0 | F84: =F59*(Fuel_Price) -> 0 | G84: 0 | H84: 0 | I84: 0 | J84: 0 | K84: 0 | L84: 0 | M84: 0 | N84: 0 | O84: 0 | P84: 0 | Q84: 0 | R84: 0 | S84: 0 | T84: 0 | U84: 0 | V84: 0 | W84: 0 | X84: 0 | Y84: 0 | Z84: 0 | AA84: 0 | AB84: 0 | AC84: 0 | AD84: 0 | AE84: 0 | AF84: 0 | AG84: 0 | AH84: 0 | AI84: 0 | AJ84: 0 | AK84: 0 | AL84: 0 | AM84: 0 | AN84: 0 | AO84: 0 | AP84: 0 | AQ84: 0 | AR84: 0 | AS84: 0 | AT84: 0 | AU84: 0 | AV84: 0 | AW84: 0 | AX84: 0 | AY84: 0 | AZ84: 0 | BA84: 0 | BB84: 0 | BC84: 0 | BD84: 0 | BE84: 0 | BF84: 0 | BG84: 0 | BH84: 0 | BI84: 0 | BJ84: 0 | BK84: 0 | BL84: 0 | BM84: 0
B85: Carbon Cost | D85: =SUM(E85:BM85) -> 0 | F85: =F60*F69 -> 0 | G85: 0 | H85: 0 | I85: 0 | J85: 0 | K85: 0 | L85: 0 | M85: 0 | N85: 0 | O85: 0 | P85: 0 | Q85: 0 | R85: 0 | S85: 0 | T85: 0 | U85: 0 | V85: 0 | W85: 0 | X85: 0 | Y85: 0 | Z85: 0 | AA85: 0 | AB85: 0 | AC85: 0 | AD85: 0 | AE85: 0 | AF85: 0 | AG85: 0 | AH85: 0 | AI85: 0 | AJ85: 0 | AK85: 0 | AL85: =AL60*AL69 -> 0 | AM85: 0 | AN85: 0 | AO85: 0 | AP85: 0 | AQ85: 0 | AR85: 0 | AS85: 0 | AT85: 0 | AU85: 0 | AV85: 0 | AW85: 0 | AX85: 0 | AY85: 0 | AZ85: 0 | BA85: 0 | BB85: 0 | BC85: 0 | BD85: 0 | BE85: 0 | BF85: 0 | BG85: 0 | BH85: 0 | BI85: 0 | BJ85: 0 | BK85: 0 | BL85: 0 | BM85: 0
B86: O&M | D86: =SUM(F86:BM86) -> 2689676.471 | F86: =(SUM($F81:F$83)*Renewable_O_M+SUM($F80:F$80)*Diesel_O_M)*F$8 -> 0 | G86: =(SUM($F81:G$83)*Renewable_O_M+SUM($F80:G$80)*Diesel_O_M)*G$8 -> 0 | H86: =(SUM($F81:H$83)*Renewable_O_M+SUM($F80:H$80)*Diesel_O_M)*H$8 -> 0 | I86: =(SUM($F81:I$83)*Renewable_O_M+SUM($F80:I$80)*Diesel_O_M)*I$8 -> 0 | J86: =(SUM($F81:J$83)*Renewable_O_M+SUM($F80:J$80)*Diesel_O_M)*J$8 -> 0 | K86: =(SUM($F81:K$83)*Renewable_O_M+SUM($F80:K$80)*Diesel_O_M)*K$8 -> 0 | L86: =(SUM($F81:L$83)*Renewable_O_M+SUM($F80:L$80)*Diesel_O_M)*L$8 -> 0 | M86: =(SUM($F81:M$83)*Renewable_O_M+SUM($F80:M$80)*Diesel_O_M)*M$8 -> 134483.8235 | N86: =(SUM($F81:N$83)*Renewable_O_M+SUM($F80:N$80)*Diesel_O_M)*N$8 -> 134483.8235 | O86: =(SUM($F81:O$83)*Renewable_O_M+SUM($F80:O$80)*Diesel_O_M)*O$8 -> 134483.8235 | P86: =(SUM($F81:P$83)*Renewable_O_M+SUM($F80:P$80)*Diesel_O_M)*P$8 -> 134483.8235 | Q86: =(SUM($F81:Q$83)*Renewable_O_M+SUM($F80:Q$80)*Diesel_O_M)*Q$8 -> 134483.8235 | R86: =(SUM($F81:R$83)*Renewable_O_M+SUM($F80:R$80)*Diesel_O_M)*R$8 -> 134483.8235 | S86: =(SUM($F81:S$83)*Renewable_O_M+SUM($F80:S$80)*Diesel_O_M)*S$8 -> 134483.8235 | T86: =(SUM($F81:T$83)*Renewable_O_M+SUM($F80:T$80)*Diesel_O_M)*T$8 -> 134483.8235 | U86: =(SUM($F81:U$83)*Renewable_O_M+SUM($F80:U$80)*Diesel_O_M)*U$8 -> 134483.8235 | V86: =(SUM($F81:V$83)*Renewable_O_M+SUM($F80:V$80)*Diesel_O_M)*V$8 -> 134483.8235 | W86: =(SUM($F81:W$83)*Renewable_O_M+SUM($F80:W$80)*Diesel_O_M)*W$8 -> 134483.8235 | X86: =(SUM($F81:X$83)*Renewable_O_M+SUM($F80:X$80)*Diesel_O_M)*X$8 -> 134483.8235 | Y86: =(SUM($F81:Y$83)*Renewable_O_M+SUM($F80:Y$80)*Diesel_O_M)*Y$8 -> 134483.8235 | Z86: =(SUM($F81:Z$83)*Renewable_O_M+SUM($F80:Z$80)*Diesel_O_M)*Z$8 -> 134483.8235 | AA86: =(SUM($F81:AA$83)*Renewable_O_M+SUM($F80:AA$80)*Diesel_O_M)*AA$8 -> 134483.8235 | AB86: =(SUM($F81:AB$83)*Renewable_O_M+SUM($F80:AB$80)*Diesel_O_M)*AB$8 -> 134483.8235 | AC86: =(SUM($F81:AC$83)*Renewable_O_M+SUM($F80:AC$80)*Diesel_O_M)*AC$8 -> 134483.8235 | AD86: =(SUM($F81:AD$83)*Renewable_O_M+SUM($F80:AD$80)*Diesel_O_M)*AD$8 -> 134483.8235 | AE86: =(SUM($F81:AE$83)*Renewable_O_M+SUM($F80:AE$80)*Diesel_O_M)*AE$8 -> 134483.8235 | AF86: =(SUM($F81:AF$83)*Renewable_O_M+SUM($F80:AF$80)*Diesel_O_M)*AF$8 -> 134483.8235 | AG86: =(SUM($F81:AG$83)*Renewable_O_M+SUM($F80:AG$80)*Diesel_O_M)*AG$8 -> 0 | AH86: =(SUM($F81:AH$83)*Renewable_O_M+SUM($F80:AH$80)*Diesel_O_M)*AH$8 -> 0 | AI86: =(SUM($F81:AI$83)*Renewable_O_M+SUM($F80:AI$80)*Diesel_O_M)*AI$8 -> 0 | AJ86: =(SUM($F81:AJ$83)*Renewable_O_M+SUM($F80:AJ$80)*Diesel_O_M)*AJ$8 -> 0 | AK86: =(SUM($F81:AK$83)*Renewable_O_M+SUM($F80:AK$80)*Diesel_O_M)*AK$8 -> 0 | AL86: =(SUM($F81:AL$83)*Renewable_O_M+SUM($F80:AL$80)*Diesel_O_M)*AL$8 -> 0 | AM86: =(SUM($F81:AM$83)*Renewable_O_M+SUM($F80:AM$80)*Diesel_O_M)*AM$8 -> 0 | AN86: =(SUM($F81:AN$83)*Renewable_O_M+SUM($F80:AN$80)*Diesel_O_M)*AN$8 -> 0 | AO86: =(SUM($F81:AO$83)*Renewable_O_M+SUM($F80:AO$80)*Diesel_O_M)*AO$8 -> 0 | AP86: =(SUM($F81:AP$83)*Renewable_O_M+SUM($F80:AP$80)*Diesel_O_M)*AP$8 -> 0 | AQ86: =(SUM($F81:AQ$83)*Renewable_O_M+SUM($F80:AQ$80)*Diesel_O_M)*AQ$8 -> 0 | AR86: =(SUM($F81:AR$83)*Renewable_O_M+SUM($F80:AR$80)*Diesel_O_M)*AR$8 -> 0 | AS86: =(SUM($F81:AS$83)*Renewable_O_M+SUM($F80:AS$80)*Diesel_O_M)*AS$8 -> 0 | AT86: =(SUM($F81:AT$83)*Renewable_O_M+SUM($F80:AT$80)*Diesel_O_M)*AT$8 -> 0 | AU86: =(SUM($F81:AU$83)*Renewable_O_M+SUM($F80:AU$80)*Diesel_O_M)*AU$8 -> 0 | AV86: =(SUM($F81:AV$83)*Renewable_O_M+SUM($F80:AV$80)*Diesel_O_M)*AV$8 -> 0 | AW86: =(SUM($F81:AW$83)*Renewable_O_M+SUM($F80:AW$80)*Diesel_O_M)*AW$8 -> 0 | AX86: =(SUM($F81:AX$83)*Renewable_O_M+SUM($F80:AX$80)*Diesel_O_M)*AX$8 -> 0 | AY86: =(SUM($F81:AY$83)*Renewable_O_M+SUM($F80:AY$80)*Diesel_O_M)*AY$8 -> 0 | AZ86: =(SUM($F81:AZ$83)*Renewable_O_M+SUM($F80:AZ$80)*Diesel_O_M)*AZ$8 -> 0 | BA86: =(SUM($F81:BA$83)*Renewable_O_M+SUM($F80:BA$80)*Diesel_O_M)*BA$8 -> 0 | BB86: =(SUM($F81:BB$83)*Renewable_O_M+SUM($F80:BB$80)*Diesel_O_M)*BB$8 -> 0 | BC86: =(SUM($F81:BC$83)*Renewable_O_M+SUM($F80:BC$80)*Diesel_O_M)*BC$8 -> 0 | BD86: =(SUM($F81:BD$83)*Renewable_O_M+SUM($F80:BD$80)*Diesel_O_M)*BD$8 -> 0 | BE86: =(SUM($F81:BE$83)*Renewable_O_M+SUM($F80:BE$80)*Diesel_O_M)*BE$8 -> 0 | BF86: =(SUM($F81:BF$83)*Renewable_O_M+SUM($F80:BF$80)*Diesel_O_M)*BF$8 -> 0 | BG86: =(SUM($F81:BG$83)*Renewable_O_M+SUM($F80:BG$80)*Diesel_O_M)*BG$8 -> 0 | BH86: =(SUM($F81:BH$83)*Renewable_O_M+SUM($F80:BH$80)*Diesel_O_M)*BH$8 -> 0 | BI86: =(SUM($F81:BI$83)*Renewable_O_M+SUM($F80:BI$80)*Diesel_O_M)*BI$8 -> 0 | BJ86: =(SUM($F81:BJ$83)*Renewable_O_M+SUM($F80:BJ$80)*Diesel_O_M)*BJ$8 -> 0 | BK86: =(SUM($F81:BK$83)*Renewable_O_M+SUM($F80:BK$80)*Diesel_O_M)*BK$8 -> 0 | BL86: =(SUM($F81:BL$83)*Renewable_O_M+SUM($F80:BL$80)*Diesel_O_M)*BL$8 -> 0 | BM86: =(SUM($F81:BM$83)*Renewable_O_M+SUM($F80:BM$80)*Diesel_O_M)*BM$8 -> 0
B87: Total Cashflow Outflow | D87: =SUM(F87:BM87) -> 16138058.82 | F87: =SUM(F80:F86) -> 0 | G87: 0 | H87: 0 | I87: 0 | J87: 0 | K87: 0 | L87: 13448382.35 | M87: 134483.8235 | N87: 134483.8235 | O87: 134483.8235 | P87: 134483.8235 | Q87: 134483.8235 | R87: 134483.8235 | S87: 134483.8235 | T87: 134483.8235 | U87: 134483.8235 | V87: 134483.8235 | W87: 134483.8235 | X87: 134483.8235 | Y87: 134483.8235 | Z87: 134483.8235 | AA87: 134483.8235 | AB87: 134483.8235 | AC87: 134483.8235 | AD87: 134483.8235 | AE87: 134483.8235 | AF87: 134483.8235 | AG87: 0 | AH87: 0 | AI87: 0 | AJ87: 0 | AK87: 0 | AL87: 0 | AM87: 0 | AN87: 0 | AO87: 0 | AP87: 0 | AQ87: 0 | AR87: 0 | AS87: 0 | AT87: 0 | AU87: 0 | AV87: 0 | AW87: 0 | AX87: 0 | AY87: 0 | AZ87: 0 | BA87: 0 | BB87: 0 | BC87: 0 | BD87: 0 | BE87: 0 | BF87: 0 | BG87: 0 | BH87: 0 | BI87: 0 | BJ87: 0 | BK87: 0 | BL87: 0 | BM87: 0
B89: Net Cashflow | D89: =SUM(F89:BM89) -> 557133.1528 | F89: =F77-F87 -> 0 | G89: =G77-G87 -> 0 | H89: 0 | I89: 0 | J89: 0 | K89: 0 | L89: -13448382.35 | M89: 741431.0672 | N89: 721915.3904 | O89: 667643.2032 | P89: 667434.6545 | Q89: 762095.4921 | R89: 777301.982 | S89: 750967.7997 | T89: 640077.3659 | U89: 592487.9148 | V89: 731136.3737 | W89: 825666.8012 | X89: 742576.3554 | Y89: 724772.2785 | Z89: 706689.7752 | AA89: 698092.3516 | AB89: 681373.3804 | AC89: 663711.5112 | AD89: 653415.2191 | AE89: 634108.1827 | AF89: 622618.4069 | AG89: 0 | AH89: 0 | AI89: 0 | AJ89: 0 | AK89: 0 | AL89: 0 | AM89: 0 | AN89: 0 | AO89: 0 | AP89: 0 | AQ89: 0 | AR89: 0 | AS89: 0 | AT89: 0 | AU89: 0 | AV89: 0 | AW89: 0 | AX89: 0 | AY89: 0 | AZ89: 0 | BA89: 0 | BB89: 0 | BC89: 0 | BD89: 0 | BE89: 0 | BF89: 0 | BG89: 0 | BH89: 0 | BI89: 0 | BJ89: 0 | BK89: 0 | BL89: 0 | BM89: 0
B91: NPV | D91: =NPV(WACC,DCF!F89:BM89) -> -2703796.445
B95: Hybrid Option 1 (Diesel, Solar & BESS)
B97: Targeted Unserved Energy(MWh) | D97: =SUM(F97:BM97) -> 125.5350144 | F97: =VLOOKUP($H$1,Data_Table_1,23,FALSE)*F$8 -> 0 | G97: 0 | H97: 0 | I97: 0 | J97: 0 | K97: 0 | L97: 0 | M97: 6.276750722 | N97: 6.276750722 | O97: 6.276750722 | P97: 6.276750722 | Q97: 6.276750722 | R97: 6.276750722 | S97: 6.276750722 | T97: 6.276750722 | U97: 6.276750722 | V97: 6.276750722 | W97: 6.276750722 | X97: 6.276750722 | Y97: 6.276750722 | Z97: 6.276750722 | AA97: 6.276750722 | AB97: 6.276750722 | AC97: 6.276750722 | AD97: 6.276750722 | AE97: 6.276750722 | AF97: 6.276750722 | AG97: 0 | AH97: 0 | AI97: 0 | AJ97: 0 | AK97: 0 | AL97: =VLOOKUP($H$1,Data_Table_1,23,FALSE)*AL$8 -> 0 | AM97: 0 | AN97: 0 | AO97: 0 | AP97: 0 | AQ97: 0 | AR97: 0 | AS97: 0 | AT97: 0 | AU97: 0 | AV97: 0 | AW97: 0 | AX97: 0 | AY97: 0 | AZ97: 0 | BA97: 0 | BB97: 0 | BC97: 0 | BD97: 0 | BE97: 0 | BF97: 0 | BG97: 0 | BH97: 0 | BI97: 0 | BJ97: 0 | BK97: 0 | BL97: 0 | BM97: 0
B98: Diesel Output (MWh) | D98: 112.981513 | F98: =VLOOKUP($H$1,Hybrid_Option1,4,FALSE)*F97 -> 0 | G98: 0 | H98: 0 | I98: 0 | J98: 0 | K98: 0 | L98: 0 | M98: 5.64907565 | N98: 5.64907565 | O98: 5.64907565 | P98: 5.64907565 | Q98: 5.64907565 | R98: 5.64907565 | S98: 5.64907565 | T98: 5.64907565 | U98: 5.64907565 | V98: 5.64907565 | W98: 5.64907565 | X98: 5.64907565 | Y98: 5.64907565 | Z98: 5.64907565 | AA98: 5.64907565 | AB98: 5.64907565 | AC98: 5.64907565 | AD98: 5.64907565 | AE98: 5.64907565 | AF98: 5.64907565 | AG98: 0 | AH98: 0 | AI98: 0 | AJ98: 0 | AK98: 0 | AL98: =VLOOKUP($H$1,Hybrid_Option1,4,FALSE)*AL97 -> 0 | AM98: 0 | AN98: 0 | AO98: 0 | AP98: 0 | AQ98: 0 | AR98: 0 | AS98: 0 | AT98: 0 | AU98: 0 | AV98: 0 | AW98: 0 | AX98: 0 | AY98: 0 | AZ98: 0 | BA98: 0 | BB98: 0 | BC98: 0 | BD98: 0 | BE98: 0 | BF98: 0 | BG98: 0 | BH98: 0 | BI98: 0 | BJ98: 0 | BK98: 0 | BL98: 0 | BM98: 0
B99: Renewable Output (MWh) | D99: 12.55350144 | F99: =F97-F98 -> 0 | G99: =G97-G98 -> 0 | H99: 0 | I99: 0 | J99: 0 | K99: 0 | L99: 0 | M99: 0.6276750722 | N99: 0.6276750722 | O99: 0.6276750722 | P99: 0.6276750722 | Q99: 0.6276750722 | R99: 0.6276750722 | S99: 0.6276750722 | T99: 0.6276750722 | U99: 0.6276750722 | V99: 0.6276750722 | W99: 0.6276750722 | X99: 0.6276750722 | Y99: 0.6276750722 | Z99: 0.6276750722 | AA99: 0.6276750722 | AB99: 0.6276750722 | AC99: 0.6276750722 | AD99: 0.6276750722 | AE99: 0.6276750722 | AF99: 0.6276750722 | AG99: 0 | AH99: 0 | AI99: 0 | AJ99: 0 | AK99: 0 | AL99: 0 | AM99: 0 | AN99: 0 | AO99: 0 | AP99: 0 | AQ99: 0 | AR99: 0 | AS99: 0 | AT99: 0 | AU99: 0 | AV99: 0 | AW99: 0 | AX99: 0 | AY99: 0 | AZ99: 0 | BA99: 0 | BB99: 0 | BC99: 0 | BD99: 0 | BE99: 0 | BF99: 0 | BG99: 0 | BH99: 0 | BI99: 0 | BJ99: 0 | BK99: 0 | BL99: 0 | BM99: 0
B100: Battery Capacity (MWh) | F100: =VLOOKUP($H$1,Hybrid_Option1,9,FALSE)*F$8 -> 0 | G100: 0 | H100: 0 | I100: 0 | J100: 0 | K100: 0 | L100: 0 | M100: 0.5265837104 | N100: 0.5265837104 | O100: 0.5265837104 | P100: 0.5265837104 | Q100: 0.5265837104 | R100: 0.5265837104 | S100: 0.5265837104 | T100: 0.5265837104 | U100: 0.5265837104 | V100: 0.5265837104 | W100: 0.5265837104 | X100: 0.5265837104 | Y100: 0.5265837104 | Z100: 0.5265837104 | AA100: 0.5265837104 | AB100: 0.5265837104 | AC100: 0.5265837104 | AD100: 0.5265837104 | AE100: 0.5265837104 | AF100: 0.5265837104 | AG100: 0 | AH100: 0 | AI100: 0 | AJ100: 0 | AK100: 0 | AL100: =VLOOKUP($H$1,Hybrid_Option1,9,FALSE)*AL$8 -> 0 | AM100: 0 | AN100: 0 | AO100: 0 | AP100: 0 | AQ100: 0 | AR100: 0 | AS100: 0 | AT100: 0 | AU100: 0 | AV100: 0 | AW100: 0 | AX100: 0 | AY100: 0 | AZ100: 0 | BA100: 0 | BB100: 0 | BC100: 0 | BD100: 0 | BE100: 0 | BF100: 0 | BG100: 0 | BH100: 0 | BI100: 0 | BJ100: 0 | BK100: 0 | BL100: 0 | BM100: 0
B101: Diesel Consumption (Litre) | D101: 36606.01021 | F101: =Fuel_Consumption*F98*(1+Inefficiency_Factor) -> 0 | G101: 0 | H101: 0 | I101: 0 | J101: 0 | K101: 0 | L101: 0 | M101: 1830.30051 | N101: 1830.30051 | O101: 1830.30051 | P101: 1830.30051 | Q101: 1830.30051 | R101: 1830.30051 | S101: 1830.30051 | T101: 1830.30051 | U101: 1830.30051 | V101: 1830.30051 | W101: 1830.30051 | X101: 1830.30051 | Y101: 1830.30051 | Z101: 1830.30051 | AA101: 1830.30051 | AB101: 1830.30051 | AC101: 1830.30051 | AD101: 1830.30051 | AE101: 1830.30051 | AF101: 1830.30051 | AG101: 0 | AH101: 0 | AI101: 0 | AJ101: 0 | AK101: 0 | AL101: =Fuel_Consumption*AL98*(1+Inefficiency_Factor) -> 0 | AM101: 0 | AN101: 0 | AO101: 0 | AP101: 0 | AQ101: 0 | AR101: 0 | AS101: 0 | AT101: 0 | AU101: 0 | AV101: 0 | AW101: 0 | AX101: 0 | AY101: 0 | AZ101: 0 | BA101: 0 | BB101: 0 | BC101: 0 | BD101: 0 | BE101: 0 | BF101: 0 | BG101: 0 | BH101: 0 | BI101: 0 | BJ101: 0 | BK101: 0 | BL101: 0 | BM101: 0
B102: CO2 Emissions (Ton) | D102: =SUM(E102:BM102) -> 102.4968286 | F102: =F101*Carbon_Conversion/1000 -> 0 | G102: 0 | H102: 0 | I102: 0 | J102: 0 | K102: 0 | L102: 0 | M102: 5.124841429 | N102: 5.124841429 | O102: 5.124841429 | P102: 5.124841429 | Q102: 5.124841429 | R102: 5.124841429 | S102: 5.124841429 | T102: 5.124841429 | U102: 5.124841429 | V102: 5.124841429 | W102: 5.124841429 | X102: 5.124841429 | Y102: 5.124841429 | Z102: 5.124841429 | AA102: 5.124841429 | AB102: 5.124841429 | AC102: 5.124841429 | AD102: 5.124841429 | AE102: 5.124841429 | AF102: 5.124841429 | AG102: 0 | AH102: 0 | AI102: 0 | AJ102: 0 | AK102: 0 | AL102: =AL101*Carbon_Conversion/1000 -> 0 | AM102: 0 | AN102: 0 | AO102: 0 | AP102: 0 | AQ102: 0 | AR102: 0 | AS102: 0 | AT102: 0 | AU102: 0 | AV102: 0 | AW102: 0 | AX102: 0 | AY102: 0 | AZ102: 0 | BA102: 0 | BB102: 0 | BC102: 0 | BD102: 0 | BE102: 0 | BF102: 0 | BG102: 0 | BH102: 0 | BI102: 0 | BJ102: 0 | BK102: 0 | BL102: 0 | BM102: 0
B103: LGC Price ($/MWh) | D103: =SUM(F103:Y103) -> 0 | F103: =IF(F$4>2030,0, VLOOKUP(F$4,LGC_Table,3,FALSE))*F$8 -> 0 | G103: 0 | H103: 0 | I103: 0 | J103: 0 | K103: 0 | L103: 0 | M103: 0 | N103: 0 | O103: 0 | P103: 0 | Q103: 0 | R103: 0 | S103: 0 | T103: 0 | U103: 0 | V103: 0 | W103: 0 | X103: 0 | Y103: 0 | Z103: 0 | AA103: 0 | AB103: 0 | AC103: 0 | AD103: 0 | AE103: 0 | AF103: 0 | AG103: 0 | AH103: 0 | AI103: 0 | AJ103: 0 | AK103: 0 | AL103: =IF(AL$4>2030,0, VLOOKUP(AL$4,LGC_Table,3,FALSE))*AL$8 -> 0 | AM103: 0 | AN103: 0 | AO103: 0 | AP103: 0 | AQ103: 0 | AR103: 0 | AS103: 0 | AT103: 0 | AU103: 0 | AV103: 0 | AW103: 0 | AX103: 0 | AY103: 0 | AZ103: 0 | BA103: 0 | BB103: 0 | BC103: 0 | BD103: 0 | BE103: 0 | BF103: 0 | BG103: 0 | BH103: 0 | BI103: 0 | BJ103: 0 | BK103: 0 | BL103: 0 | BM103: 0
B104: Solar Output Degradation | F104: =F$8*(1-Degradation)^F$7 -> 0 | G104: 0 | H104: 0 | I104: 0 | J104: 0 | K104: 0 | L104: 0 | M104: 0.985 | N104: 0.970225 | O104: 0.955671625 | P104: 0.9413365506 | Q104: 0.9272165024 | R104: 0.9133082548 | S104: 0.899608631 | T104: 0.8861145015 | U104: 0.872822784 | V104: 0.8597304423 | W104: 0.8468344856 | X104: 0.8341319683 | Y104: 0.8216199888 | Z104: 0.809295689 | AA104: 0.7971562536 | AB104: 0.7851989098 | AC104: 0.7734209262 | AD104: 0.7618196123 | AE104: 0.7503923181 | AF104: 0.7391364333 | AG104: 0 | AH104: 0 | AI104: 0 | AJ104: 0 | AK104: 0 | AL104: =AL$8*(1-Degradation)^AL$7 -> 0 | AM104: 0 | AN104: 0 | AO104: 0 | AP104: 0 | AQ104: 0 | AR104: 0 | AS104: 0 | AT104: 0 | AU104: 0 | AV104: 0 | AW104: 0 | AX104: 0 | AY104: 0 | AZ104: 0 | BA104: 0 | BB104: 0 | BC104: 0 | BD104: 0 | BE104: 0 | BF104: 0 | BG104: 0 | BH104: 0 | BI104: 0 | BJ104: 0 | BK104: 0 | BL104: 0 | BM104: 0
B105: Solar Capacity (MW) | F105: =VLOOKUP($H$1,Hybrid_Option1,8,FALSE)*F$8*F104 -> 0 | G105: 0 | H105: 0 | I105: 0 | J105: 0 | K105: 0 | L105: 0 | M105: 0.2593424774 | N105: 0.2554523402 | O105: 0.2516205551 | P105: 0.2478462468 | Q105: 0.2441285531 | R105: 0.2404666248 | S105: 0.2368596254 | T105: 0.233306731 | U105: 0.2298071301 | V105: 0.2263600231 | W105: 0.2229646228 | X105: 0.2196201534 | Y105: 0.2163258511 | Z105: 0.2130809634 | AA105: 0.2098847489 | AB105: 0.2067364777 | AC105: 0.2036354305 | AD105: 0.2005808991 | AE105: 0.1975721856 | AF105: 0.1946086028 | AG105: 0 | AH105: 0 | AI105: 0 | AJ105: 0 | AK105: 0 | AL105: =VLOOKUP($H$1,Hybrid_Option1,8,FALSE)*AL$8*AL104 -> 0 | AM105: 0 | AN105: 0 | AO105: 0 | AP105: 0 | AQ105: 0 | AR105: 0 | AS105: 0 | AT105: 0 | AU105: 0 | AV105: 0 | AW105: 0 | AX105: 0 | AY105: 0 | AZ105: 0 | BA105: 0 | BB105: 0 | BC105: 0 | BD105: 0 | BE105: 0 | BF105: 0 | BG105: 0 | BH105: 0 | BI105: 0 | BJ105: 0 | BK105: 0 | BL105: 0 | BM105: 0
B106: CECV (Solar) -Matrix ($/1 MW system) | F106: =IFERROR(HLOOKUP(F$4,Matrix,2,FALSE)*F$8,E106)/100 -> 0 | G106: 0 | H106: 0 | I106: 0 | J106: 0 | K106: 0 | L106: 0 | M106: 99569.86678 | N106: 98310.23711 | O106: 89511.42156 | P106: 87138.95368 | Q106: 130184.8927 | R106: 145250.2676 | S106: 132835.4776 | T106: 84528.3728 | U106: 71010.33173 | V106: 127235.822 | W106: 164210.7419 | X106: 106025.9441 | Y106: 121305.6393 | Z106: 121831.7997 | AA106: 121831.7997 | AB106: 121831.7997 | AC106: 121831.7997 | AD106: 121831.7997 | AE106: 121831.7997 | AF106: 121831.7997 | AG106: 0 | AH106: 0 | AI106: 0 | AJ106: 0 | AK106: 0 | AL106: =IFERROR(HLOOKUP(AL$4,Matrix,2,FALSE)*AL$8,AK106)/100 -> 0 | AM106: 0 | AN106: 0 | AO106: 0 | AP106: 0 | AQ106: 0 | AR106: 0 | AS106: 0 | AT106: 0 | AU106: 0 | AV106: 0 | AW106: 0 | AX106: 0 | AY106: 0 | AZ106: 0 | BA106: 0 | BB106: 0 | BC106: 0 | BD106: 0 | BE106: 0 | BF106: 0 | BG106: 0 | BH106: 0 | BI106: 0 | BJ106: 0 | BK106: 0 | BL106: 0 | BM106: 0
B107: CECV (Battery) - ($/1 MWh system) | F107: =IFERROR(HLOOKUP(F$4,Matrix,3,FALSE)*F$8,E107) -> 0 | G107: =IFERROR(HLOOKUP(G$4,Matrix,3,FALSE)*G$8,F107) -> 0 | H107: =IFERROR(HLOOKUP(H$4,Matrix,3,FALSE)*H$8,G107) -> 0 | I107: =IFERROR(HLOOKUP(I$4,Matrix,3,FALSE)*I$8,H107) -> 0 | J107: =IFERROR(HLOOKUP(J$4,Matrix,3,FALSE)*J$8,I107) -> 0 | K107: =IFERROR(HLOOKUP(K$4,Matrix,3,FALSE)*K$8,J107) -> 0 | L107: =IFERROR(HLOOKUP(L$4,Matrix,3,FALSE)*L$8,K107) -> 0 | M107: =IFERROR(HLOOKUP(M$4,Matrix,3,FALSE)*M$8,L107) -> 33998.37366 | N107: =IFERROR(HLOOKUP(N$4,Matrix,3,FALSE)*N$8,M107) -> 31985.99413 | O107: =IFERROR(HLOOKUP(O$4,Matrix,3,FALSE)*O$8,N107) -> 28464.13344 | P107: =IFERROR(HLOOKUP(P$4,Matrix,3,FALSE)*P$8,O107) -> 41449.62613 | Q107: =IFERROR(HLOOKUP(Q$4,Matrix,3,FALSE)*Q$8,P107) -> 42258.82525 | R107: =IFERROR(HLOOKUP(R$4,Matrix,3,FALSE)*R$8,Q107) -> 37927.8977 | S107: =IFERROR(HLOOKUP(S$4,Matrix,3,FALSE)*S$8,R107) -> 43429.43396 | T107: =IFERROR(HLOOKUP(T$4,Matrix,3,FALSE)*T$8,S107) -> 46256.87412 | U107: =IFERROR(HLOOKUP(U$4,Matrix,3,FALSE)*U$8,T107) -> 44063.35698 | V107: =IFERROR(HLOOKUP(V$4,Matrix,3,FALSE)*V$8,U107) -> 50130.7872 | W107: =IFERROR(HLOOKUP(W$4,Matrix,3,FALSE)*W$8,V107) -> 59756.40518 | X107: =IFERROR(HLOOKUP(X$4,Matrix,3,FALSE)*X$8,W107) -> 82514.21158 | Y107: =IFERROR(HLOOKUP(Y$4,Matrix,3,FALSE)*Y$8,X107) -> 66025.34834 | Z107: =IFERROR(HLOOKUP(Z$4,Matrix,3,FALSE)*Z$8,Y107) -> 64481.18428 | AA107: =IFERROR(HLOOKUP(AA$4,Matrix,3,FALSE)*AA$8,Z107) -> 64481.18428 | AB107: =IFERROR(HLOOKUP(AB$4,Matrix,3,FALSE)*AB$8,AA107) -> 64481.18428 | AC107: =IFERROR(HLOOKUP(AC$4,Matrix,3,FALSE)*AC$8,AB107) -> 64481.18428 | AD107: =IFERROR(HLOOKUP(AD$4,Matrix,3,FALSE)*AD$8,AC107) -> 64481.18428 | AE107: =IFERROR(HLOOKUP(AE$4,Matrix,3,FALSE)*AE$8,AD107) -> 64481.18428 | AF107: =IFERROR(HLOOKUP(AF$4,Matrix,3,FALSE)*AF$8,AE107) -> 64481.18428 | AG107: =IFERROR(HLOOKUP(AG$4,Matrix,3,FALSE)*AG$8,AF107) -> 0 | AH107: =IFERROR(HLOOKUP(AH$4,Matrix,3,FALSE)*AH$8,AG107) -> 0 | AI107: =IFERROR(HLOOKUP(AI$4,Matrix,3,FALSE)*AI$8,AH107) -> 0 | AJ107: =IFERROR(HLOOKUP(AJ$4,Matrix,3,FALSE)*AJ$8,AI107) -> 0 | AK107: =IFERROR(HLOOKUP(AK$4,Matrix,3,FALSE)*AK$8,AJ107) -> 0 | AL107: =IFERROR(HLOOKUP(AL$4,Matrix,3,FALSE)*AL$8,AK107) -> 0 | AM107: =IFERROR(HLOOKUP(AM$4,Matrix,3,FALSE)*AM$8,AL107) -> 0 | AN107: =IFERROR(HLOOKUP(AN$4,Matrix,3,FALSE)*AN$8,AM107) -> 0 | AO107: =IFERROR(HLOOKUP(AO$4,Matrix,3,FALSE)*AO$8,AN107) -> 0 | AP107: =IFERROR(HLOOKUP(AP$4,Matrix,3,FALSE)*AP$8,AO107) -> 0 | AQ107: =IFERROR(HLOOKUP(AQ$4,Matrix,3,FALSE)*AQ$8,AP107) -> 0 | AR107: =IFERROR(HLOOKUP(AR$4,Matrix,3,FALSE)*AR$8,AQ107) -> 0 | AS107: =IFERROR(HLOOKUP(AS$4,Matrix,3,FALSE)*AS$8,AR107) -> 0 | AT107: =IFERROR(HLOOKUP(AT$4,Matrix,3,FALSE)*AT$8,AS107) -> 0 | AU107: =IFERROR(HLOOKUP(AU$4,Matrix,3,FALSE)*AU$8,AT107) -> 0 | AV107: =IFERROR(HLOOKUP(AV$4,Matrix,3,FALSE)*AV$8,AU107) -> 0 | AW107: =IFERROR(HLOOKUP(AW$4,Matrix,3,FALSE)*AW$8,AV107) -> 0 | AX107: =IFERROR(HLOOKUP(AX$4,Matrix,3,FALSE)*AX$8,AW107) -> 0 | AY107: =IFERROR(HLOOKUP(AY$4,Matrix,3,FALSE)*AY$8,AX107) -> 0 | AZ107: =IFERROR(HLOOKUP(AZ$4,Matrix,3,FALSE)*AZ$8,AY107) -> 0 | BA107: =IFERROR(HLOOKUP(BA$4,Matrix,3,FALSE)*BA$8,AZ107) -> 0 | BB107: =IFERROR(HLOOKUP(BB$4,Matrix,3,FALSE)*BB$8,BA107) -> 0 | BC107: =IFERROR(HLOOKUP(BC$4,Matrix,3,FALSE)*BC$8,BB107) -> 0 | BD107: =IFERROR(HLOOKUP(BD$4,Matrix,3,FALSE)*BD$8,BC107) -> 0 | BE107: =IFERROR(HLOOKUP(BE$4,Matrix,3,FALSE)*BE$8,BD107) -> 0 | BF107: =IFERROR(HLOOKUP(BF$4,Matrix,3,FALSE)*BF$8,BE107) -> 0 | BG107: =IFERROR(HLOOKUP(BG$4,Matrix,3,FALSE)*BG$8,BF107) -> 0 | BH107: =IFERROR(HLOOKUP(BH$4,Matrix,3,FALSE)*BH$8,BG107) -> 0 | BI107: =IFERROR(HLOOKUP(BI$4,Matrix,3,FALSE)*BI$8,BH107) -> 0 | BJ107: =IFERROR(HLOOKUP(BJ$4,Matrix,3,FALSE)*BJ$8,BI107) -> 0 | BK107: =IFERROR(HLOOKUP(BK$4,Matrix,3,FALSE)*BK$8,BJ107) -> 0 | BL107: =IFERROR(HLOOKUP(BL$4,Matrix,3,FALSE)*BL$8,BK107) -> 0 | BM107: =IFERROR(HLOOKUP(BM$4,Matrix,3,FALSE)*BM$8,BL107) -> 0
B108: Solar Maximum Output (MWh) | D108: =SUM(F108:BM108) -> 5682.74348 | F108: =F105*Average_Solar_Output*365*F$8*F104 -> 0 | G108: 0 | H108: 0 | I108: 0 | J108: 0 | K108: 0 | L108: 0 | M108: 372.9604167 | N108: 361.8555203 | O108: 351.0812722 | P108: 340.6278273 | Q108: 330.4856338 | R108: 320.645424 | S108: 311.0982065 | T108: 301.8352574 | U108: 292.8481126 | V108: 284.1285601 | W108: 275.6686322 | X108: 267.4605987 | Y108: 259.4969593 | Z108: 251.7704374 | AA108: 244.2739726 | AB108: 237.0007151 | AC108: 229.9440188 | AD108: 223.0974356 | AE108: 216.4547095 | AF108: 210.0097705 | AG108: 0 | AH108: 0 | AI108: 0 | AJ108: 0 | AK108: 0 | AL108: =AL105*Average_Solar_Output*365*AL$8*AL104 -> 0 | AM108: 0 | AN108: 0 | AO108: 0 | AP108: 0 | AQ108: 0 | AR108: 0 | AS108: 0 | AT108: 0 | AU108: 0 | AV108: 0 | AW108: 0 | AX108: 0 | AY108: 0 | AZ108: 0 | BA108: 0 | BB108: 0 | BC108: 0 | BD108: 0 | BE108: 0 | BF108: 0 | BG108: 0 | BH108: 0 | BI108: 0 | BJ108: 0 | BK108: 0 | BL108: 0 | BM108: 0
B109: Carbon Conversion FOR Solar Output(%) | F109: =IFERROR(HLOOKUP(F$4,Carbon_Table,2,FALSE),0)*F$8 -> 0 | G109: =IFERROR(HLOOKUP(G4,Carbon_Table,2,FALSE),0) -> 0.77 | H109: 0.61 | I109: 0.58 | J109: 0.54 | K109: 0.54 | L109: 0.5 | M109: 0.46 | N109: 0.42 | O109: 0.36 | P109: 0.29 | Q109: 0.26 | R109: 0.24 | S109: 0.22 | T109: 0.21 | U109: 0.19 | V109: 0.18 | W109: 0.16 | X109: 0.14 | Y109: 0.13 | Z109: 0.11 | AA109: 0.1 | AB109: 0.08 | AC109: 0.06 | AD109: 0.05 | AE109: 0.03 | AF109: 0.02 | AG109: 0 | AH109: 0 | AI109: 0 | AJ109: 0 | AK109: 0 | AL109: 0 | AM109: =IFERROR(HLOOKUP(AM4,Carbon_Table,2,FALSE),0) -> 0 | AN109: 0 | AO109: 0 | AP109: 0 | AQ109: 0 | AR109: 0 | AS109: 0 | AT109: 0 | AU109: 0 | AV109: 0 | AW109: 0 | AX109: 0 | AY109: 0 | AZ109: 0 | BA109: 0 | BB109: 0 | BC109: 0 | BD109: 0 | BE109: 0 | BF109: 0 | BG109: 0 | BH109: 0 | BI109: 0 | BJ109: 0 | BK109: 0 | BL109: 0 | BM109: 0
B110: CO2 Emissions Credit From Solar(Ton) | D110: =SUM(F110:BM110) -> 1172.218518 | F110: =F109*F108 -> 0 | G110: =G109*G108 -> 0 | H110: 0 | I110: 0 | J110: 0 | K110: 0 | L110: 0 | M110: 171.5617917 | N110: 151.9793185 | O110: 126.389258 | P110: 98.78206992 | Q110: 85.92626478 | R110: 76.95490176 | S110: 68.44160543 | T110: 63.38540406 | U110: 55.6411414 | V110: 51.14314081 | W110: 44.10698115 | X110: 37.44448381 | Y110: 33.73460471 | Z110: 27.69474811 | AA110: 24.42739726 | AB110: 18.96005721 | AC110: 13.79664113 | AD110: 11.15487178 | AE110: 6.493641284 | AF110: 4.20019541 | AG110: 0 | AH110: 0 | AI110: 0 | AJ110: 0 | AK110: 0 | AL110: 0 | AM110: 0 | AN110: 0 | AO110: 0 | AP110: 0 | AQ110: 0 | AR110: 0 | AS110: 0 | AT110: 0 | AU110: 0 | AV110: 0 | AW110: 0 | AX110: 0 | AY110: 0 | AZ110: 0 | BA110: 0 | BB110: 0 | BC110: 0 | BD110: 0 | BE110: 0 | BF110: 0 | BG110: 0 | BH110: 0 | BI110: 0 | BJ110: 0 | BK110: 0 | BL110: 0 | BM110: 0
B111: Carbon Credit ($/ton) | F111: =IFERROR(HLOOKUP(F$4,Carbon_Table,3,FALSE),0)*F$8 -> 0 | G111: 0 | H111: 0 | I111: 0 | J111: 0 | K111: 0 | L111: 0 | M111: 114 | N111: 124 | O111: 134 | P111: 146 | Q111: 157 | R111: 169 | S111: 181 | T111: 194 | U111: 207 | V111: 221 | W111: 236 | X111: 252 | Y111: 268 | Z111: 286 | AA111: 305 | AB111: 325 | AC111: 346 | AD111: 369 | AE111: 393 | AF111: 420 | AG111: 0 | AH111: 0 | AI111: 0 | AJ111: 0 | AK111: 0 | AL111: =IFERROR(HLOOKUP(AL$4,Carbon_Table,3,FALSE),0)*AL$8 -> 0 | AM111: 0 | AN111: 0 | AO111: 0 | AP111: 0 | AQ111: 0 | AR111: 0 | AS111: 0 | AT111: 0 | AU111: 0 | AV111: 0 | AW111: 0 | AX111: 0 | AY111: 0 | AZ111: 0 | BA111: 0 | BB111: 0 | BC111: 0 | BD111: 0 | BE111: 0 | BF111: 0 | BG111: 0 | BH111: 0 | BI111: 0 | BJ111: 0 | BK111: 0 | BL111: 0 | BM111: 0
B113: Cashflow Inflow (Benefit) | D113: Sum
B114: VNR Benefit | D114: =SUM(F114:BM114) -> 6651850.804 | F114: =F$11 -> 0 | G114: =G$11 -> 0 | H114: 0 | I114: 0 | J114: 0 | K114: 0 | L114: 0 | M114: 332592.5402 | N114: 332592.5402 | O114: 332592.5402 | P114: 332592.5402 | Q114: 332592.5402 | R114: 332592.5402 | S114: 332592.5402 | T114: 332592.5402 | U114: 332592.5402 | V114: 332592.5402 | W114: 332592.5402 | X114: 332592.5402 | Y114: 332592.5402 | Z114: 332592.5402 | AA114: 332592.5402 | AB114: 332592.5402 | AC114: 332592.5402 | AD114: 332592.5402 | AE114: 332592.5402 | AF114: 332592.5402 | AG114: 0 | AH114: 0 | AI114: 0 | AJ114: 0 | AK114: 0 | AL114: 0 | AM114: 0 | AN114: 0 | AO114: 0 | AP114: 0 | AQ114: 0 | AR114: 0 | AS114: 0 | AT114: 0 | AU114: 0 | AV114: 0 | AW114: 0 | AX114: 0 | AY114: 0 | AZ114: 0 | BA114: 0 | BB114: 0 | BC114: 0 | BD114: 0 | BE114: 0 | BF114: 0 | BG114: 0 | BH114: 0 | BI114: 0 | BJ114: 0 | BK114: 0 | BL114: 0 | BM114: 0
B115: CECV (Solar) | D115: =SUM(E115:BM115) -> 517954.5385 | F115: =F106*F105 -> 0 | G115: =G106*G105 -> 0 | H115: 0 | I115: 0 | J115: 0 | K115: 0 | L115: 0 | M115: 25822.69592 | N115: 25113.58014 | O115: 22522.91358 | P115: 21597.06262 | Q115: 31781.84948 | R115: 34927.84159 | S115: 31463.36148 | T115: 19721.03834 | U115: 16318.68054 | V115: 28801.10362 | W115: 36613.18612 | X115: 23285.4341 | Y115: 26241.54566 | Z115: 25960.03726 | AA115: 25570.6367 | AB115: 25187.07715 | AC115: 24809.27099 | AD115: 24437.13192 | AE115: 24070.57494 | AF115: 23709.51632 | AG115: 0 | AH115: 0 | AI115: 0 | AJ115: 0 | AK115: 0 | AL115: 0 | AM115: 0 | AN115: 0 | AO115: 0 | AP115: 0 | AQ115: 0 | AR115: 0 | AS115: 0 | AT115: 0 | AU115: 0 | AV115: 0 | AW115: 0 | AX115: 0 | AY115: 0 | AZ115: 0 | BA115: 0 | BB115: 0 | BC115: 0 | BD115: 0 | BE115: 0 | BF115: 0 | BG115: 0 | BH115: 0 | BI115: 0 | BJ115: 0 | BK115: 0 | BL115: 0 | BM115: 0
B116: CECV (Battery) | D116: =SUM(E116:BM116) -> 278991.8321 | F116: =F100*F107*Battery_Application -> 0 | G116: 0 | H116: 0 | I116: 0 | J116: 0 | K116: 0 | L116: 0 | M116: 8951.494874 | N116: 8421.651736 | O116: 7494.3745 | P116: 10913.34896 | Q116: 11126.4045 | R116: 9986.106549 | S116: 11434.61624 | T116: 12179.0582 | U116: 11601.52301 | V116: 13199.02796 | W116: 15733.37478 | X116: 21725.31985 | Y116: 17383.93646 | Z116: 16977.37063 | AA116: 16977.37063 | AB116: 16977.37063 | AC116: 16977.37063 | AD116: 16977.37063 | AE116: 16977.37063 | AF116: 16977.37063 | AG116: 0 | AH116: 0 | AI116: 0 | AJ116: 0 | AK116: 0 | AL116: =AL100*AL107*Battery_Application -> 0 | AM116: 0 | AN116: 0 | AO116: 0 | AP116: 0 | AQ116: 0 | AR116: 0 | AS116: 0 | AT116: 0 | AU116: 0 | AV116: 0 | AW116: 0 | AX116: 0 | AY116: 0 | AZ116: 0 | BA116: 0 | BB116: 0 | BC116: 0 | BD116: 0 | BE116: 0 | BF116: 0 | BG116: 0 | BH116: 0 | BI116: 0 | BJ116: 0 | BK116: 0 | BL116: 0 | BM116: 0
B117: LGC Benefit | D117: =SUM(E117:BM117) -> 0 | F117: =F108*F103 -> 0 | G117: 0 | H117: 0 | I117: 0 | J117: 0 | K117: 0 | L117: 0 | M117: 0 | N117: 0 | O117: 0 | P117: 0 | Q117: 0 | R117: 0 | S117: 0 | T117: 0 | U117: 0 | V117: 0 | W117: 0 | X117: 0 | Y117: 0 | Z117: 0 | AA117: 0 | AB117: 0 | AC117: 0 | AD117: 0 | AE117: 0 | AF117: 0 | AG117: 0 | AH117: 0 | AI117: 0 | AJ117: 0 | AK117: 0 | AL117: =AL108*AL103 -> 0 | AM117: 0 | AN117: 0 | AO117: 0 | AP117: 0 | AQ117: 0 | AR117: 0 | AS117: 0 | AT117: 0 | AU117: 0 | AV117: 0 | AW117: 0 | AX117: 0 | AY117: 0 | AZ117: 0 | BA117: 0 | BB117: 0 | BC117: 0 | BD117: 0 | BE117: 0 | BF117: 0 | BG117: 0 | BH117: 0 | BI117: 0 | BJ117: 0 | BK117: 0 | BL117: 0 | BM117: 0
B118: Carbon Credit | D118: =SUM(E118:BM118) -> 207387.7467 | F118: =F111*F110 -> 0 | G118: 0 | H118: 0 | I118: 0 | J118: 0 | K118: 0 | L118: 0 | M118: 19558.04425 | N118: 18845.4355 | O118: 16936.16057 | P118: 14422.18221 | Q118: 13490.42357 | R118: 13005.3784 | S118: 12387.93058 | T118: 12296.76839 | U118: 11517.71627 | V118: 11302.63412 | W118: 10409.24755 | X118: 9436.009921 | Y118: 9040.874063 | Z118: 7920.69796 | AA118: 7450.356164 | AB118: 6162.018592 | AC118: 4773.63783 | AD118: 4116.147687 | AE118: 2552.001025 | AF118: 1764.082072 | AG118: 0 | AH118: 0 | AI118: 0 | AJ118: 0 | AK118: 0 | AL118: =AL111*AL110 -> 0 | AM118: 0 | AN118: 0 | AO118: 0 | AP118: 0 | AQ118: 0 | AR118: 0 | AS118: 0 | AT118: 0 | AU118: 0 | AV118: 0 | AW118: 0 | AX118: 0 | AY118: 0 | AZ118: 0 | BA118: 0 | BB118: 0 | BC118: 0 | BD118: 0 | BE118: 0 | BF118: 0 | BG118: 0 | BH118: 0 | BI118: 0 | BJ118: 0 | BK118: 0 | BL118: 0 | BM118: 0
B119: Total Cashflow Inflow | D119: =SUM(F119:BM119) -> 7656184.921 | F119: =SUM(F114:F118) -> 0 | G119: 0 | H119: 0 | I119: 0 | J119: 0 | K119: 0 | L119: 0 | M119: 386924.7752 | N119: 384973.2076 | O119: 379545.9889 | P119: 379525.134 | Q119: 388991.2177 | R119: 390511.8667 | S119: 387878.4485 | T119: 376789.4051 | U119: 372030.46 | V119: 385895.3059 | W119: 395348.3487 | X119: 387039.3041 | Y119: 385258.8964 | Z119: 383450.646 | AA119: 382590.9037 | AB119: 380919.0066 | AC119: 379152.8197 | AD119: 378123.1904 | AE119: 376192.4868 | AF119: 375043.5092 | AG119: 0 | AH119: 0 | AI119: 0 | AJ119: 0 | AK119: 0 | AL119: =SUM(AL114:AL118) -> 0 | AM119: 0 | AN119: 0 | AO119: 0 | AP119: 0 | AQ119: 0 | AR119: 0 | AS119: 0 | AT119: 0 | AU119: 0 | AV119: 0 | AW119: 0 | AX119: 0 | AY119: 0 | AZ119: 0 | BA119: 0 | BB119: 0 | BC119: 0 | BD119: 0 | BE119: 0 | BF119: 0 | BG119: 0 | BH119: 0 | BI119: 0 | BJ119: 0 | BK119: 0 | BL119: 0 | BM119: 0
B121: Cashflow Outflow
B122: Diesel Capex | D122: =SUM(F122:BM122) -> 504000 | F122: =VLOOKUP($H$1,Hybrid_Option1,10,FALSE)*F$5 -> 0 | G122: 0 | H122: 0 | I122: 0 | J122: 0 | K122: 0 | L122: 504000 | M122: 0 | N122: 0 | O122: 0 | P122: 0 | Q122: 0 | R122: 0 | S122: 0 | T122: 0 | U122: 0 | V122: 0 | W122: 0 | X122: 0 | Y122: 0 | Z122: 0 | AA122: 0 | AB122: 0 | AC122: 0 | AD122: 0 | AE122: 0 | AF122: 0 | AG122: 0 | AH122: 0 | AI122: 0 | AJ122: 0 | AK122: 0 | AL122: =VLOOKUP($H$1,Hybrid_Option1,10,FALSE)*AL$5 -> 0 | AM122: 0 | AN122: 0 | AO122: 0 | AP122: 0 | AQ122: 0 | AR122: 0 | AS122: 0 | AT122: 0 | AU122: 0 | AV122: 0 | AW122: 0 | AX122: 0 | AY122: 0 | AZ122: 0 | BA122: 0 | BB122: 0 | BC122: 0 | BD122: 0 | BE122: 0 | BF122: 0 | BG122: 0 | BH122: 0 | BI122: 0 | BJ122: 0 | BK122: 0 | BL122: 0 | BM122: 0
B123: PV Capex | D123: =SUM(E123:BM123) -> 394937.7828 | F123: =VLOOKUP($H$1,Hybrid_Option1,11,FALSE)*F$5 -> 0 | G123: 0 | H123: 0 | I123: 0 | J123: 0 | K123: 0 | L123: 394937.7828 | M123: 0 | N123: 0 | O123: 0 | P123: 0 | Q123: 0 | R123: 0 | S123: 0 | T123: 0 | U123: 0 | V123: 0 | W123: 0 | X123: 0 | Y123: 0 | Z123: 0 | AA123: 0 | AB123: 0 | AC123: 0 | AD123: 0 | AE123: 0 | AF123: 0 | AG123: 0 | AH123: 0 | AI123: 0 | AJ123: 0 | AK123: 0 | AL123: =VLOOKUP($H$1,Hybrid_Option1,11,FALSE)*AL$5 -> 0 | AM123: 0 | AN123: 0 | AO123: 0 | AP123: 0 | AQ123: 0 | AR123: 0 | AS123: 0 | AT123: 0 | AU123: 0 | AV123: 0 | AW123: 0 | AX123: 0 | AY123: 0 | AZ123: 0 | BA123: 0 | BB123: 0 | BC123: 0 | BD123: 0 | BE123: 0 | BF123: 0 | BG123: 0 | BH123: 0 | BI123: 0 | BJ123: 0 | BK123: 0 | BL123: 0 | BM123: 0
B124: Battery Capex | D124: 631900.4525 | F124: =VLOOKUP($H$1,Hybrid_Option1,12,FALSE)*F$5 -> 0 | G124: 0 | H124: 0 | I124: 0 | J124: 0 | K124: 0 | L124: 631900.4525 | M124: 0 | N124: 0 | O124: 0 | P124: 0 | Q124: 0 | R124: 0 | S124: 0 | T124: 0 | U124: 0 | V124: 0 | W124: 0 | X124: 0 | Y124: 0 | Z124: 0 | AA124: 0 | AB124: 0 | AC124: 0 | AD124: 0 | AE124: 0 | AF124: 0 | AG124: 0 | AH124: 0 | AI124: 0 | AJ124: 0 | AK124: 0 | AL124: =VLOOKUP($H$1,Hybrid_Option1,12,FALSE)*AL$5 -> 0 | AM124: 0 | AN124: 0 | AO124: 0 | AP124: 0 | AQ124: 0 | AR124: 0 | AS124: 0 | AT124: 0 | AU124: 0 | AV124: 0 | AW124: 0 | AX124: 0 | AY124: 0 | AZ124: 0 | BA124: 0 | BB124: 0 | BC124: 0 | BD124: 0 | BE124: 0 | BF124: 0 | BG124: 0 | BH124: 0 | BI124: 0 | BJ124: 0 | BK124: 0 | BL124: 0 | BM124: 0
B125: Fixed Cost | D125: 3180000 | F125: =VLOOKUP($H$1,Hybrid_Option1,13,FALSE)*F$5 -> 0 | G125: 0 | H125: 0 | I125: 0 | J125: 0 | K125: 0 | L125: 3180000 | M125: 0 | N125: 0 | O125: 0 | P125: 0 | Q125: 0 | R125: 0 | S125: 0 | T125: 0 | U125: 0 | V125: 0 | W125: 0 | X125: 0 | Y125: 0 | Z125: 0 | AA125: 0 | AB125: 0 | AC125: 0 | AD125: 0 | AE125: 0 | AF125: 0 | AG125: 0 | AH125: 0 | AI125: 0 | AJ125: 0 | AK125: 0 | AL125: =VLOOKUP($H$1,Hybrid_Option1,13,FALSE)*AL$5 -> 0 | AM125: 0 | AN125: 0 | AO125: 0 | AP125: 0 | AQ125: 0 | AR125: 0 | AS125: 0 | AT125: 0 | AU125: 0 | AV125: 0 | AW125: 0 | AX125: 0 | AY125: 0 | AZ125: 0 | BA125: 0 | BB125: 0 | BC125: 0 | BD125: 0 | BE125: 0 | BF125: 0 | BG125: 0 | BH125: 0 | BI125: 0 | BJ125: 0 | BK125: 0 | BL125: 0 | BM125: 0
B126: Diesel Fuel Cost | D126: =SUM(E126:BM126) -> 80533.22246 | F126: =F101*(Fuel_Price) -> 0 | G126: 0 | H126: 0 | I126: 0 | J126: 0 | K126: 0 | L126: 0 | M126: 4026.661123 | N126: 4026.661123 | O126: 4026.661123 | P126: 4026.661123 | Q126: 4026.661123 | R126: 4026.661123 | S126: 4026.661123 | T126: 4026.661123 | U126: 4026.661123 | V126: 4026.661123 | W126: 4026.661123 | X126: 4026.661123 | Y126: 4026.661123 | Z126: 4026.661123 | AA126: 4026.661123 | AB126: 4026.661123 | AC126: 4026.661123 | AD126: 4026.661123 | AE126: 4026.661123 | AF126: 4026.661123 | AG126: 0 | AH126: 0 | AI126: 0 | AJ126: 0 | AK126: 0 | AL126: =AL101*(Fuel_Price) -> 0 | AM126: 0 | AN126: 0 | AO126: 0 | AP126: 0 | AQ126: 0 | AR126: 0 | AS126: 0 | AT126: 0 | AU126: 0 | AV126: 0 | AW126: 0 | AX126: 0 | AY126: 0 | AZ126: 0 | BA126: 0 | BB126: 0 | BC126: 0 | BD126: 0 | BE126: 0 | BF126: 0 | BG126: 0 | BH126: 0 | BI126: 0 | BJ126: 0 | BK126: 0 | BL126: 0 | BM126: 0
B127: Carbon Cost | D127: =SUM(E127:BM127) -> 24840.10641 | F127: =F102*F111 -> 0 | G127: 0 | H127: 0 | I127: 0 | J127: 0 | K127: 0 | L127: 0 | M127: 584.231923 | N127: 635.4803372 | O127: 686.7287515 | P127: 748.2268487 | Q127: 804.6001044 | R127: 866.0982016 | S127: 927.5962987 | T127: 994.2192373 | U127: 1060.842176 | V127: 1132.589956 | W127: 1209.462577 | X127: 1291.46004 | Y127: 1373.457503 | Z127: 1465.704649 | AA127: 1563.076636 | AB127: 1665.573465 | AC127: 1773.195135 | AD127: 1891.066487 | AE127: 2014.062682 | AF127: 2152.4334 | AG127: 0 | AH127: 0 | AI127: 0 | AJ127: 0 | AK127: 0 | AL127: =AL102*AL111 -> 0 | AM127: 0 | AN127: 0 | AO127: 0 | AP127: 0 | AQ127: 0 | AR127: 0 | AS127: 0 | AT127: 0 | AU127: 0 | AV127: 0 | AW127: 0 | AX127: 0 | AY127: 0 | AZ127: 0 | BA127: 0 | BB127: 0 | BC127: 0 | BD127: 0 | BE127: 0 | BF127: 0 | BG127: 0 | BH127: 0 | BI127: 0 | BJ127: 0 | BK127: 0 | BL127: 0 | BM127: 0
B128: O&M | D128: =SUM(F128:BM128) -> 846407.6471 | F128: =(SUM($F$123:F125)*Renewable_O_M+SUM($F$122:F122)*Diesel_O_M)*F$8 -> 0 | G128: =(SUM($F$123:G125)*Renewable_O_M+SUM($F$122:G122)*Diesel_O_M)*G$8 -> 0 | H128: =(SUM($F$123:H125)*Renewable_O_M+SUM($F$122:H122)*Diesel_O_M)*H$8 -> 0 | I128: =(SUM($F$123:I125)*Renewable_O_M+SUM($F$122:I122)*Diesel_O_M)*I$8 -> 0 | J128: =(SUM($F$123:J125)*Renewable_O_M+SUM($F$122:J122)*Diesel_O_M)*J$8 -> 0 | K128: =(SUM($F$123:K125)*Renewable_O_M+SUM($F$122:K122)*Diesel_O_M)*K$8 -> 0 | L128: =(SUM($F$123:L125)*Renewable_O_M+SUM($F$122:L122)*Diesel_O_M)*L$8 -> 0 | M128: =(SUM($F$123:M125)*Renewable_O_M+SUM($F$122:M122)*Diesel_O_M)*M$8 -> 42320.38235 | N128: =(SUM($F$123:N125)*Renewable_O_M+SUM($F$122:N122)*Diesel_O_M)*N$8 -> 42320.38235 | O128: =(SUM($F$123:O125)*Renewable_O_M+SUM($F$122:O122)*Diesel_O_M)*O$8 -> 42320.38235 | P128: =(SUM($F$123:P125)*Renewable_O_M+SUM($F$122:P122)*Diesel_O_M)*P$8 -> 42320.38235 | Q128: =(SUM($F$123:Q125)*Renewable_O_M+SUM($F$122:Q122)*Diesel_O_M)*Q$8 -> 42320.38235 | R128: =(SUM($F$123:R125)*Renewable_O_M+SUM($F$122:R122)*Diesel_O_M)*R$8 -> 42320.38235 | S128: =(SUM($F$123:S125)*Renewable_O_M+SUM($F$122:S122)*Diesel_O_M)*S$8 -> 42320.38235 | T128: =(SUM($F$123:T125)*Renewable_O_M+SUM($F$122:T122)*Diesel_O_M)*T$8 -> 42320.38235 | U128: =(SUM($F$123:U125)*Renewable_O_M+SUM($F$122:U122)*Diesel_O_M)*U$8 -> 42320.38235 | V128: =(SUM($F$123:V125)*Renewable_O_M+SUM($F$122:V122)*Diesel_O_M)*V$8 -> 42320.38235 | W128: =(SUM($F$123:W125)*Renewable_O_M+SUM($F$122:W122)*Diesel_O_M)*W$8 -> 42320.38235 | X128: =(SUM($F$123:X125)*Renewable_O_M+SUM($F$122:X122)*Diesel_O_M)*X$8 -> 42320.38235 | Y128: =(SUM($F$123:Y125)*Renewable_O_M+SUM($F$122:Y122)*Diesel_O_M)*Y$8 -> 42320.38235 | Z128: =(SUM($F$123:Z125)*Renewable_O_M+SUM($F$122:Z122)*Diesel_O_M)*Z$8 -> 42320.38235 | AA128: =(SUM($F$123:AA125)*Renewable_O_M+SUM($F$122:AA122)*Diesel_O_M)*AA$8 -> 42320.38235 | AB128: =(SUM($F$123:AB125)*Renewable_O_M+SUM($F$122:AB122)*Diesel_O_M)*AB$8 -> 42320.38235 | AC128: =(SUM($F$123:AC125)*Renewable_O_M+SUM($F$122:AC122)*Diesel_O_M)*AC$8 -> 42320.38235 | AD128: =(SUM($F$123:AD125)*Renewable_O_M+SUM($F$122:AD122)*Diesel_O_M)*AD$8 -> 42320.38235 | AE128: =(SUM($F$123:AE125)*Renewable_O_M+SUM($F$122:AE122)*Diesel_O_M)*AE$8 -> 42320.38235 | AF128: =(SUM($F$123:AF125)*Renewable_O_M+SUM($F$122:AF122)*Diesel_O_M)*AF$8 -> 42320.38235 | AG128: =(SUM($F$123:AG125)*Renewable_O_M+SUM($F$122:AG122)*Diesel_O_M)*AG$8 -> 0 | AH128: =(SUM($F$123:AH125)*Renewable_O_M+SUM($F$122:AH122)*Diesel_O_M)*AH$8 -> 0 | AI128: =(SUM($F$123:AI125)*Renewable_O_M+SUM($F$122:AI122)*Diesel_O_M)*AI$8 -> 0 | AJ128: =(SUM($F$123:AJ125)*Renewable_O_M+SUM($F$122:AJ122)*Diesel_O_M)*AJ$8 -> 0 | AK128: =(SUM($F$123:AK125)*Renewable_O_M+SUM($F$122:AK122)*Diesel_O_M)*AK$8 -> 0 | AL128: =(SUM($F$123:AL125)*Renewable_O_M+SUM($F$122:AL122)*Diesel_O_M)*AL$8 -> 0 | AM128: =(SUM($F$123:AM125)*Renewable_O_M+SUM($F$122:AM122)*Diesel_O_M)*AM$8 -> 0 | AN128: =(SUM($F$123:AN125)*Renewable_O_M+SUM($F$122:AN122)*Diesel_O_M)*AN$8 -> 0 | AO128: =(SUM($F$123:AO125)*Renewable_O_M+SUM($F$122:AO122)*Diesel_O_M)*AO$8 -> 0 | AP128: =(SUM($F$123:AP125)*Renewable_O_M+SUM($F$122:AP122)*Diesel_O_M)*AP$8 -> 0 | AQ128: =(SUM($F$123:AQ125)*Renewable_O_M+SUM($F$122:AQ122)*Diesel_O_M)*AQ$8 -> 0 | AR128: =(SUM($F$123:AR125)*Renewable_O_M+SUM($F$122:AR122)*Diesel_O_M)*AR$8 -> 0 | AS128: =(SUM($F$123:AS125)*Renewable_O_M+SUM($F$122:AS122)*Diesel_O_M)*AS$8 -> 0 | AT128: =(SUM($F$123:AT125)*Renewable_O_M+SUM($F$122:AT122)*Diesel_O_M)*AT$8 -> 0 | AU128: =(SUM($F$123:AU125)*Renewable_O_M+SUM($F$122:AU122)*Diesel_O_M)*AU$8 -> 0 | AV128: =(SUM($F$123:AV125)*Renewable_O_M+SUM($F$122:AV122)*Diesel_O_M)*AV$8 -> 0 | AW128: =(SUM($F$123:AW125)*Renewable_O_M+SUM($F$122:AW122)*Diesel_O_M)*AW$8 -> 0 | AX128: =(SUM($F$123:AX125)*Renewable_O_M+SUM($F$122:AX122)*Diesel_O_M)*AX$8 -> 0 | AY128: =(SUM($F$123:AY125)*Renewable_O_M+SUM($F$122:AY122)*Diesel_O_M)*AY$8 -> 0 | AZ128: =(SUM($F$123:AZ125)*Renewable_O_M+SUM($F$122:AZ122)*Diesel_O_M)*AZ$8 -> 0 | BA128: =(SUM($F$123:BA125)*Renewable_O_M+SUM($F$122:BA122)*Diesel_O_M)*BA$8 -> 0 | BB128: =(SUM($F$123:BB125)*Renewable_O_M+SUM($F$122:BB122)*Diesel_O_M)*BB$8 -> 0 | BC128: =(SUM($F$123:BC125)*Renewable_O_M+SUM($F$122:BC122)*Diesel_O_M)*BC$8 -> 0 | BD128: =(SUM($F$123:BD125)*Renewable_O_M+SUM($F$122:BD122)*Diesel_O_M)*BD$8 -> 0 | BE128: =(SUM($F$123:BE125)*Renewable_O_M+SUM($F$122:BE122)*Diesel_O_M)*BE$8 -> 0 | BF128: =(SUM($F$123:BF125)*Renewable_O_M+SUM($F$122:BF122)*Diesel_O_M)*BF$8 -> 0 | BG128: =(SUM($F$123:BG125)*Renewable_O_M+SUM($F$122:BG122)*Diesel_O_M)*BG$8 -> 0 | BH128: =(SUM($F$123:BH125)*Renewable_O_M+SUM($F$122:BH122)*Diesel_O_M)*BH$8 -> 0 | BI128: =(SUM($F$123:BI125)*Renewable_O_M+SUM($F$122:BI122)*Diesel_O_M)*BI$8 -> 0 | BJ128: =(SUM($F$123:BJ125)*Renewable_O_M+SUM($F$122:BJ122)*Diesel_O_M)*BJ$8 -> 0 | BK128: =(SUM($F$123:BK125)*Renewable_O_M+SUM($F$122:BK122)*Diesel_O_M)*BK$8 -> 0 | BL128: =(SUM($F$123:BL125)*Renewable_O_M+SUM($F$122:BL122)*Diesel_O_M)*BL$8 -> 0 | BM128: =(SUM($F$123:BM125)*Renewable_O_M+SUM($F$122:BM122)*Diesel_O_M)*BM$8 -> 0
B129: Total Cashflow Outflow | D129: =SUM(F129:BM129) -> 5662619.211 | F129: =SUM(F122:F128) -> 0 | G129: 0 | H129: 0 | I129: 0 | J129: 0 | K129: 0 | L129: 4710838.235 | M129: 46931.2754 | N129: 46982.52381 | O129: 47033.77223 | P129: 47095.27032 | Q129: 47151.64358 | R129: 47213.14168 | S129: 47274.63977 | T129: 47341.26271 | U129: 47407.88565 | V129: 47479.63343 | W129: 47556.50605 | X129: 47638.50352 | Y129: 47720.50098 | Z129: 47812.74812 | AA129: 47910.12011 | AB129: 48012.61694 | AC129: 48120.23861 | AD129: 48238.10996 | AE129: 48361.10616 | AF129: 48499.47688 | AG129: 0 | AH129: 0 | AI129: 0 | AJ129: 0 | AK129: 0 | AL129: =SUM(AL122:AL128) -> 0 | AM129: 0 | AN129: 0 | AO129: 0 | AP129: 0 | AQ129: 0 | AR129: 0 | AS129: 0 | AT129: 0 | AU129: 0 | AV129: 0 | AW129: 0 | AX129: 0 | AY129: 0 | AZ129: 0 | BA129: 0 | BB129: 0 | BC129: 0 | BD129: 0 | BE129: 0 | BF129: 0 | BG129: 0 | BH129: 0 | BI129: 0 | BJ129: 0 | BK129: 0 | BL129: 0 | BM129: 0
B131: Net Cashflow | D131: =SUM(F131:BM131) -> 1993565.71 | F131: =F119-F129 -> 0 | G131: =G119-G129 -> 0 | H131: 0 | I131: 0 | J131: 0 | K131: 0 | L131: -4710838.235 | M131: 339993.4998 | N131: 337990.6838 | O131: 332512.2166 | P131: 332429.8637 | Q131: 341839.5742 | R131: 343298.7251 | S131: 340603.8087 | T131: 329448.1424 | U131: 324622.5744 | V131: 338415.6725 | W131: 347791.8426 | X131: 339400.8006 | Y131: 337538.3954 | Z131: 335637.8979 | AA131: 334680.7836 | AB131: 332906.3896 | AC131: 331032.581 | AD131: 329885.0805 | AE131: 327831.3806 | AF131: 326544.0324 | AG131: 0 | AH131: 0 | AI131: 0 | AJ131: 0 | AK131: 0 | AL131: 0 | AM131: 0 | AN131: 0 | AO131: 0 | AP131: 0 | AQ131: 0 | AR131: 0 | AS131: 0 | AT131: 0 | AU131: 0 | AV131: 0 | AW131: 0 | AX131: 0 | AY131: 0 | AZ131: 0 | BA131: 0 | BB131: 0 | BC131: 0 | BD131: 0 | BE131: 0 | BF131: 0 | BG131: 0 | BH131: 0 | BI131: 0 | BJ131: 0 | BK131: 0 | BL131: 0 | BM131: 0
B133: NPV | D133: =NPV(WACC,DCF!F131:BM131) -> 47399.67086
B279: Output | H279: 2026 | I279: 2027 | J279: 2028 | K279: 2029 | L279: 2030
C280: Index | D280: Name | E280: % Diesel | F280: % Renewable | G280: NPV | H280: Capex
B281: =$I$1 -> Tambo | C281: =H1 -> 8 | D281: Diesel Option | E281: 1 | F281: 0 | G281: =D51 -> 353088.1282 | H281: =SUM(H40:H43) -> 0 | I281: =SUM(I40:I43) -> 0 | J281: 0 | K281: 0 | L281: 3740000
B282: =$I$1 -> Tambo | C282: =C281 -> 8 | D282: Pure Renewable | E282: 0 | F282: 1 | G282: =D91 -> -2703796.445 | H282: =SUM(H80:H83) -> 0 | I282: =SUM(I80:I83) -> 0 | J282: 0 | K282: 0 | L282: 13448382.35
B283: Tambo | C283: =C282 -> 8 | D283: Hybrid Option | E283: =VLOOKUP(H1,Hybrid_Option1,4,FALSE) -> 0.9 | F283: =1-E283 -> 0.1 | G283: =D133 -> 47399.67086 | H283: =SUM(H122:H125) -> 0 | I283: =SUM(I122:I125) -> 0 | J283: 0 | K283: 0 | L283: 4710838.235
C285: Index | D285: Name | E285: % Diesel | F285: % Renewable | G285: NPV | H285: Capex
B286: Aramac | C286: 1 | D286: Diesel Option | E286: 1 | F286: 0 | G286: 2047662.872 | H286: 4060000 | I286: 0 | J286: 0 | K286: 0 | L286: 0
B287: Aramac | C287: 1 | D287: Pure Renewable | E287: 0 | F287: 1 | G287: -2401585.4 | H287: 17945514.71 | I287: 0 | J287: 0 | K287: 0 | L287: 0
B288: Aramac | C288: 1 | D288: Hybrid Option | E288: 0.9 | F288: 0.1 | G288: 1602738.045 | H288: 5448551.471 | I288: 0 | J288: 0 | K288: 0 | L288: 0
B289: AUGATHELLA | C289: 2 | D289: Diesel Option | E289: 1 | F289: 0 | G289: 4533217.535 | H289: 0 | I289: 4700000 | J289: 0 | K289: 0 | L289: 0
B290: AUGATHELLA | C290: 2 | D290: Pure Renewable | E290: 0 | F290: 1 | G290: -3746878.031 | H290: 0 | I290: 30576274.69 | J290: 0 | K290: 0 | L290: 0
B291: AUGATHELLA | C291: 2 | D291: Hybrid Option | E291: 0.9 | F291: 0.1 | G291: 3705207.979 | H291: 0 | I291: 7287627.469 | J291: 0 | K291: 0 | L291: 0
B292: Duaringa | C292: 3 | D292: Diesel Option | E292: 1 | F292: 0 | G292: 3478971.67 | H292: 0 | I292: 7880000 | J292: 0 | K292: 0 | L292: 0
B293: Duaringa | C293: 3 | D293: Pure Renewable | E293: 0 | F293: 1 | G293: -5748886.341 | H293: 0 | I293: 36507239.26 | J293: 0 | K293: 0 | L293: 0
B294: Duaringa | C294: 3 | D294: Hybrid Option | E294: 0.9 | F294: 0.1 | G294: 2556185.869 | H294: 0 | I294: 10742723.93 | J294: 0 | K294: 0 | L294: 0
B295: EULO | C295: 4 | D295: Diesel Option | E295: 1 | F295: 0 | G295: 442978.4862 | H295: 0 | I295: 0 | J295: 3820000 | K295: 0 | L295: 0
B296: EULO | C296: 4 | D296: Pure Renewable | E296: 0 | F296: 1 | G296: -2525553.393 | H296: 0 | I296: 0 | J296: 13389695.82 | K296: 0 | L296: 0
B297: EULO | C297: 4 | D297: Hybrid Option | E297: 0.9 | F297: 0.1 | G297: 146125.2983 | H297: 0 | I297: 0 | J297: 4776969.582 | K297: 0 | L297: 0
B298: KARUMBA | C298: 5 | D298: Diesel Option | E298: 1 | F298: 0 | G298: 9648924.979 | H298: 0 | I298: 0 | J298: 4540000 | K298: 0 | L298: 0
B299: KARUMBA | C299: 5 | D299: Pure Renewable | E299: 0 | F299: 1 | G299: 1594760.39 | H299: 0 | I299: 0 | J299: 30200716.11 | K299: 0 | L299: 0
B300: KARUMBA | C300: 5 | D300: Hybrid Option | E300: 0.9 | F300: 0.1 | G300: 8843508.52 | H300: 0 | I300: 0 | J300: 7106071.611 | K300: 0 | L300: 0
B301: MORVEN | C301: 6 | D301: Diesel Option | E301: 1 | F301: 0 | G301: 444054.7557 | H301: 0 | I301: 0 | J301: 0 | K301: 3580000 | L301: 0
B302: MORVEN | C302: 6 | D302: Pure Renewable | E302: 0 | F302: 1 | G302: -1395183.057 | H302: 0 | I302: 0 | J302: 0 | K302: 9593333.333 | L302: 0
B303: MORVEN | C303: 6 | D303: Hybrid Option | E303: 0.9 | F303: 0.1 | G303: 260130.9744 | H303: 0 | I303: 0 | J303: 0 | K303: 4181333.333 | L303: 0
B304: Northern | C304: 7 | D304: Diesel Option | E304: 1 | F304: 0 | G304: 5189006.25 | H304: 0 | I304: 0 | J304: 0 | K304: 7480000 | L304: 0
B305: Northern | C305: 7 | D305: Pure Renewable | E305: 0 | F305: 1 | G305: -377339.7989 | H305: 0 | I305: 0 | J305: 0 | K305: 25652582.55 | L305: 0
B306: Northern | C306: 7 | D306: Hybrid Option | E306: 0.9 | F306: 0.1 | G306: 4632371.645 | H306: 0 | I306: 0 | J306: 0 | K306: 9297258.255 | L306: 0
B307: Tambo | C307: 8 | D307: Diesel Option | E307: 1 | F307: 0 | G307: 353088.1282 | H307: 0 | I307: 0 | J307: 0 | K307: 0 | L307: 3740000
B308: Tambo | C308: 8 | D308: Pure Renewable | E308: 0 | F308: 1 | G308: -2703796.445 | H308: 0 | I308: 0 | J308: 0 | K308: 0 | L308: 13448382.35
B309: Tambo | C309: 8 | D309: Hybrid Option | E309: 0.9 | F309: 0.1 | G309: 47399.67086 | H309: 0 | I309: 0 | J309: 0 | K309: 0 | L309: 4710838.235

Sheet Padmounts (hidden)
A1: Raise Padmount height or install polemount to replace (where this is possible)
B2: Unit | C2: Comment | G2: Year | I2: NPV
A3: Padmount size (KVA) | B3: 450 | C3: Possibly use average size | F3: =$B$9*$B$12/5 -> 15697.584 | G3: =B14/2 -> 2.5 | H3: =($B$9+$B$10)*$B$12*(1+$B$11)^G3 -> 78487.92 | I3: =H3/(1+$B$13)^$G3 -> 73376.94053
A4: Average load Percentage | B4: 0.2 | C4: Need to confirm | F4: =$B$9*$B$12/5 -> 15697.584 | G4: =G3+$B$14 -> 7.5 | H4: =($B$9+$B$10)*$B$12*(1+$B$11)^G4 -> 78487.92 | I4: 64131.76008
A5: Average load | B5: =B4*B3 -> 90 | F5: 15697.584 | G5: =G4+$B$14 -> 12.5 | H5: 78487.92 | I5: 56051.4328
A6: Outage Duration | B6: 24 | C6: Need to confirm typical duration | F6: 15697.584 | G6: =G5+$B$14 -> 17.5 | H6: 78487.92 | I6: 48989.19217
A7: Lost Energy (kWh) | B7: =B6*B5 -> 2160 | F7: 15697.584 | G7: =G6+$B$14 -> 22.5 | H7: 78487.92 | I7: 42816.76364
A8: $/kwh (VCR Average Rate across SE) | B8: 51.91 | F8: 15697.584 | G8: =G7+$B$14 -> 27.5 | H8: 78487.92 | I8: 37422.03468
A9: Total VCR Benefit $ | B9: =B7*B8 -> 112125.6 | F9: 15697.584 | G9: =G8+$B$14 -> 32.5 | H9: 78487.92 | I9: 32707.01848
A10: Avoided Damage 10% of Capaital cost | B10: 0 | C10: Need to confirm | F10: 15697.584 | G10: 37.5 | H10: 78487.92 | I10: 28586.07414
A11: Average Inflation rate | B11: 0 | F11: =B17*B20/5 -> 0 | G11: 42.5 | H11: 78487.92 | I11: 24984.35115
A12: Effectiveness Rate | B12: 0.7 | C12: Will not stop all flood scenarios.
A13: WACC | B13: 0.0273 | F13: NPV Benefit per job= | I13: =SUM(I3:I11) -> 409065.5677
A14: Frequency of event (one in x years) x= | B14: 5 | F14: Total Program NPV Benefit = | H14: =I13*B16 -> 61359835.15
A15: Average relocation cost | B15: 93942 | C15: Based on sample projects post Brisbane floods (this is total cost, not direct). Would implement some higher cost projects as well so this will still be low end) | F15: Total Program Cost = | H15: =B15*B16 -> 14091300
A16: Asset volume requiring relocation | B16: 150 | C16: Need to confirm. Approx volume in 2022 floods | F16: Average annual cost = | H16: =H15/5 -> 2818260
A19: Model does not consider those impacted more frequently so this will be conservative. Could break this down based on Matts Data

Sheet Pillars (hidden)
A1: Install flood zone pillars
G2: Year | I2: NPV
G3: =$B$14/2 -> 10 | H3: =($B$9+$B$10)*(1+$B$11)^G3 -> 3534.6 | I3: =H3/(1+$B$13)^$G3 -> 2700.022554
B4: Unit | C4: Comment | G4: =G3+$B$14 -> 30 | H4: 3534.6 | I4: =H4/(1+$B$13)^$G4 -> 1575.511689
A5: Average load Through a pillar to be relocated | B5: 2.5 | C5: Need to confirm (What is the average load per customer | G5: =G4+$B$14 -> 50 | H5: 3534.6 | I5: 919.3393881
A6: Outage Duration | B6: 24 | C6: Need to confirm typical duration | G6: 70 | H6: 3534.6 | I6: 536.4510567
A7: Lost Energy (kWh) | B7: =B6*B5 -> 60 | G7: 90 | H7: 3534.6 | I7: 313.0288335
A8: $/kwh (VCR Average Rate across SE) | B8: 51.91 | G8: 110 | H8: 3534.6 | I8: 182.6579506
A9: Total VCR Benefit $ | B9: =B7*B8 -> 3114.6
A10: Avoided Damage 10% of Capaital cost | B10: =B15/10 -> 420
A11: Average Inflation rate | B11: 0
A12: Effectiveness Rate | B12: 0.7 | C12: Will not stop all flood scenarios. | F12: NPV Benefit per job= | I12: =SUM(I3:I5) -> 5194.873632
A13: WACC | B13: 0.0273 | F13: Total Program NPV Benefit = | H13: =I12*B16 -> 5714360.995
A14: Frequency of event (one in x years) x= | B14: 20 | F14: Total Program Cost = | H14: =B15*B16 -> 4620000
A15: Average relocation cost per pillar | B15: 4200 | C15: Approximately average cost based on the 3 projects I can see). Estimate is directd | F15: Average annual cost = | H15: =H14/5 -> 924000
A16: Asset volume requiring relocation | B16: 1100 | C16: Approximate volume in 2022 floods
A19: Model does not consider those impacted more frequently so this will be conservative. Could break this down based on Matts Data

Sheet RMU (hidden)
A1: Raise RMU height or install Water Proof switchgear
B2: Unit | C2: Comment | G2: Year | I2: NPV
A3: Load through RMU (KVA) | B3: 500 | G3: =B14/2 -> 5 | H3: =($B$9+$B$10)*$B$12*(1+$B$11)^G3 -> 107878.4104 | I3: =H3/(1+$B$13)^$G3 -> 94286.19241
A4: Average load Percentage | B4: 0.2 | C4: Need to confirm | G4: =G3+$B$14 -> 15 | H4: =($B$9+$B$10)*$B$12*(1+$B$11)^G4 -> 131503.1803 | I4: 87796.44565
A5: Average load | B5: =B4*B3 -> 100 | G5: =G4+$B$14 -> 25 | H5: 160301.643 | I5: 81753.3901
A6: Outage Duration | B6: 24 | C6: Need to confirm typical duration | G6: =G5+$B$14 -> 35 | H6: 195406.8083 | I6: 76126.27987
A7: Lost Energy (kWh) | B7: =B6*B5 -> 2400 | G7: =G6+$B$14 -> 45 | H7: 238199.809 | I7: 70886.48531
A8: $/kwh (VCR Average Rate across SE) | B8: 51.91 | G8: =G7+$B$14 -> 55 | H8: 290364.238 | I8: 66007.34738
A9: Total VCR Benefit $ | B9: =B7*B8 -> 124584
A10: Avoided Damage 10% of Capaital cost | B10: =B15*0.1 -> 15000
A11: Average Inflation rate | B11: 0.02
A12: Effectiveness Rate | B12: 0.7 | C12: Will not stop all flood scenarios.
A13: WACC | B13: 0.0273 | F13: NPV Benefit per job= | I13: =SUM(I3:I7) -> 410848.7933
A14: Frequency of event (one in x years) x= | B14: 10 | F14: Total Program NPV Benefit = | H14: =H8*B16 -> 14518211.9
A15: Average relocation cost | B15: 150000 | C15: Based on sample projects post Brisbane floods (this is total cost, not direct). Would implement some higher cost projects as well so this will still be low end) | F15: Total Program Cost = | H15: =B15*B16 -> 7500000
A16: Asset volume requiring relocation | B16: 50 | C16: Need to confirm | F16: Average annual cost = | H16: =H15/5 -> 1500000

Sheet Hiden (hidden)
B3: Year List
B5: 2022
B6: =B5+1 -> 2023
B7: =B6+1 -> 2024
B8: 2025
B9: 2026
B10: 2027
B11: 2028
B12: 2029
B13: 2030
B14: 2031
B15: 2032
B16: 2033
B17: 2034
B18: 2035
B19: 2036
B20: 2037
B21: 2038
B25: =VLOOKUP(Input!#REF!,Hiden!B26:C27,2,FALSE) ->  | D25: =VLOOKUP(B25,C26:D27,2,FALSE) -> 
B26: Normal Modelling Mode | C26: 1 | D26: =B26 -> Normal Modelling Mode
B27: Simulation Mode | C27: 2 | D27: =B27 -> Simulation Mode
B30: Distribution Type
B31: Normal
B32: Triangle
B33: Randbetween
B34: Fixed

Sheet Hiden_1 (hidden)
B3: 1 | C3: 2023
B4: =B3+1 -> 2 | C4: =C3+1 -> 2024
B5: =B4+1 -> 3 | C5: =C4+1 -> 2025
B6: 4 | C6: 2026
B7: 5 | C7: 2027
B8: 6 | C8: 2028
B9: 7 | C9: 2029
B10: 8 | C10: 2030
B11: 9 | C11: 2031
B12: 10 | C12: 2032
B13: 11 | C13: 2033
B14: 12 | C14: 2034
B15: 13 | C15: 2035
B16: 14 | C16: 2036
B17: 15 | C17: 2037
B18: 16 | C18: 2038
B19: 17 | C19: 2039
B20: 18 | C20: 2040
B21: 19 | C21: 2041
B22: 20 | C22: 2042
B23: 21 | C23: 2043
B24: 22 | C24: 2044
B25: 23 | C25: 2045
B26: 24 | C26: 2046
B27: 25 | C27: 2047
B29: 8 | C29: =VLOOKUP(B29,List_2,2,FALSE) -> Tambo
B30: 1 | C30: Aramac | E30: Aramac | F30: Aramac
B31: =B30+1 -> 2 | C31: AUGATHELLA | E31: AUGATHELLA | F31: AUGATHELLA
B32: =B31+1 -> 3 | C32: Duaringa | E32: Duaringa | F32: Duaringa
B33: 4 | C33: EULO | E33: EULO | F33: EULO
B34: 5 | C34: KARUMBA | E34: KARUMBA | F34: KARUMBA
B35: 6 | C35: MORVEN | E35: MORVEN | F35: MORVEN
B36: 7 | C36: Northern | E36: Northern | F36: Northern
B37: 8 | C37: Tambo | E37: Tambo | F37: Tambo
B38: 9
B39: 10
B40: 11
B41: 12
B42: 13
B43: 14
B44: 15
B47: Feeder Hosting Capacity
B48: Index | C48: feeder ID
B49: 1 | C49: 10020655 | D49: 1.96 | G49: 40001062 | H49: =VLOOKUP(G49,Feeder_Table,2,FALSE) -> 2.991175534
B50: =B49+1 -> 2 | C50: 10020669 | D50: 1.495587767 | G50: 40001061 | H50: 3.888528195
B51: =B50+1 -> 3 | C51: 10020670 | D51: 1.495587767 | G51: 60026701 | H51: 6.175601174
B52: 4 | C52: 10020673 | D52: 2.621479682 | G52: 10020847 | H52: 6.486481777
B53: 5 | C53: 10020674 | D53: 1.794705321 | G53: 40001038 | H53: 4.565183634
B54: 6 | C54: 10020675 | D54: 0.98 | G54: 60026766 | H54: 1.495587767
B55: 7 | C55: 10020679 | D55: 5.601452312 | G55: 10020675 | H55: 0.98
B56: 8 | C56: 10020689 | D56: 6.68813406 | G56: 60026716 | H56: 1.26032677
B57: 9 | C57: 10020722 | D57: 5.601452312 | G57: 30053769 | H57: 2.766837369
B58: 10 | C58: 10020744 | D58: 4.486763302 | G58: 40216323 | H58: 0
B59: 11 | C59: 10020755 | D59: 4.638002514 | G59: 40000974 | H59: 0.98
B60: 12 | C60: 10020761 | D60: 5.601452312 | G60: 40001010 | H60: 4.621198157
B61: 13 | C61: 10020764 | D61: 3.92 | G61: 10020804 | H61: 8.973526603
B62: 14 | C62: 10020767 | D62: 5.982351069 | G62: 10020799 | H62: 5.461416004
B63: 15 | C63: 10020768 | D63: 4.9
B64: 16 | C64: 10020770 | D64: 9.601673466
B65: 17 | C65: 10020771 | D65: 6.553699205
B66: 18 | C66: 10020772 | D66: 8.402178468
B67: 19 | C67: 10020774 | D67: 4.9
B68: 20 | C68: 10020775 | D68: 5.982351069
B69: 21 | C69: 10020776 | D69: 2.94
B70: 22 | C70: 10020777 | D70: 7.00181539
B71: 23 | C71: 10020779 | D71: 8.402178468
B72: 24 | C72: 10020780 | D72: 1.96
B73: 25 | C73: 10020782 | D73: 7.309895267
B74: 26 | C74: 10020783 | D74: 11.20290462
B75: 27 | C75: 10020784 | D75: 8.962323699
B76: 28 | C76: 10020785 | D76: 5.88
B77: 29 | C77: 10020786 | D77: 8.962323699
B78: 30 | C78: 10020788 | D78: 8.962323699
B79: 31 | C79: 10020794 | D79: 8.962323699
B80: 32 | C80: 10020795 | D80: 0
B81: 33 | C81: 10020796 | D81: 11.20290462
B82: 34 | C82: 10020797 | D82: 4.9
B83: 35 | C83: 10020798 | D83: 3.92
B84: 36 | C84: 10020799 | D84: 5.461416004
B85: 37 | C85: 10020800 | D85: 8.962323699
B86: 38 | C86: 10020804 | D86: 8.973526603
B87: 39 | C87: 10020805 | D87: 11.20290462
B88: 40 | C88: 10020806 | D88: 5.982351069
B89: 41 | C89: 10020807 | D89: 8.962323699
B90: 42 | C90: 10020808 | D90: 11.20290462
B91: 43 | C91: 10020809 | D91: 7.84
B92: 44 | C92: 10020811 | D92: 7.00181539
B93: 45 | C93: 10020816 | D93: 7.00181539
B94: 46 | C94: 10020817 | D94: 4.9
B95: 47 | C95: 10020820 | D95: 7.00181539
B96: 48 | C96: 10020821 | D96: 7.00181539
B97: 49 | C97: 10020822 | D97: 7.00181539
B98: 50 | C98: 10020824 | D98: 3.92
B99: 51 | C99: 10020825 | D99: 3.92
B100: 52 | C100: 10020826 | D100: 6.86
B101: 53 | C101: 10020827 | D101: 3.921016618
B102: 54 | C102: 10020828 | D102: 5.982351069
B103: 55 | C103: 10020829 | D103: 4.9
B104: 56 | C104: 10020830 | D104: 5.88
B105: 57 | C105: 10020831 | D105: 5.88
B106: 58 | C106: 10020832 | D106: 9.802541545
B107: 59 | C107: 10020833 | D107: 7.00181539
B108: 60 | C108: 10020834 | D108: 7.00181539
B109: 61 | C109: 10020835 | D109: 7.00181539
B110: 62 | C110: 10020836 | D110: 5.881524927
B111: 63 | C111: 10020838 | D111: 4.901270773
B112: 64 | C112: 10020839 | D112: 5.601452312
B113: 65 | C113: 10020840 | D113: 4.9
B114: 66 | C114: 10020844 | D114: 3.589410641
B115: =B114+1 -> 67 | C115: 10020846 | D115: 4.9
B116: 68 | C116: 10020847 | D116: 6.486481777
B117: 69 | C117: 10020848 | D117: 6.25122078
B118: 70 | C118: 10020850 | D118: 5.982351069
B119: 71 | C119: 10020855 | D119: 2.94
B120: 72 | C120: 10020856 | D120: 2.94
B121: 73 | C121: 10020857 | D121: 4.436350231
B122: 74 | C122: 10128810 | D122: 2.57241096
B123: 75 | C123: 10129302 | D123: 13.44348555
B124: 76 | C124: 10129324 | D124: 6.352046921
B125: 77 | C125: 10129677 | D125: 2.923958107
B126: 78 | C126: 10129863 | D126: 8.962323699
B127: 79 | C127: 10130404 | D127: 11.20290462
B128: 80 | C128: 10130408 | D128: 8.962323699
B129: 81 | C129: 10132684 | D129: 2.957566821
B130: 82 | C130: 10132687 | D130: 1.794705321
B131: 83 | C131: 10134499 | D131: 5.601452312
B132: 84 | C132: 10134518 | D132: 5.601452312
B133: 85 | C133: 10134605 | D133: 4.9
B134: 86 | C134: 20001080 | D134: 3.589410641
B135: 87 | C135: 20001081 | D135: 3.589410641
B136: 88 | C136: 20001108 | D136: 2.45
B137: 89 | C137: 20001141 | D137: 4.187085603
B138: 90 | C138: 20001148 | D138: 3.05279151
B139: 91 | C139: 20001165 | D139: 1.96
B140: 92 | C140: 20001178 | D140: 2.45
B141: 93 | C141: 20001246 | D141: 4.481161849
B142: 94 | C142: 20001263 | D142: 3.43
B143: 95 | C143: 20001353 | D143: 1.47
B144: 96 | C144: 20001488 | D144: 1.47
B145: 97 | C145: 20001649 | D145: 1.47
B146: 98 | C146: 20001859 | D146: 0.98
B147: 99 | C147: 20002064 | D147: 1.47
B148: 100 | C148: 20002267 | D148: 1.794705321
B149: 101 | C149: 20002331 | D149: 2.45
B150: 102 | C150: 20002494 | D150: 0.49
B151: 103 | C151: 20002622 | D151: 2.786722525
B152: 104 | C152: 20002652 | D152: 2.991175534
B153: 105 | C153: 20002698 | D153: 2.45
B154: 106 | C154: 20002752 | D154: 1.96
B155: 107 | C155: 20002914 | D155: 3.05279151
B156: 108 | C156: 20002948 | D156: 4.187085603
B157: 109 | C157: 20002985 | D157: 2.94
B158: 110 | C158: 20003026 | D158: 3.43
B159: 111 | C159: 20003061 | D159: 3.43
B160: 112 | C160: 20003088 | D160: 2.94
B161: 113 | C161: 20003281 | D161: 5.601452312
B162: 114 | C162: 20003294 | D162: 3.626940372
B163: 115 | C163: 20003306 | D163: 3.388878649
B164: 116 | C164: 20003317 | D164: 3.500907695
B165: 117 | C165: 20003329 | D165: 3.570925849
B166: 118 | C166: 20003349 | D166: 3.304856864
B167: 119 | C167: 20003387 | D167: 1.47
B168: 120 | C168: 20003411 | D168: 3.43
B169: 121 | C169: 20003435 | D169: 1.47
B170: 122 | C170: 20003471 | D170: 1.47
B171: 123 | C171: 20003547 | D171: 2.923958107
B172: 124 | C172: 20003550 | D172: 0.98
B173: 125 | C173: 20003792 | D173: 1.495587767
B174: 126 | C174: 20003866 | D174: 0.49
B175: 127 | C175: 20003949 | D175: 16.15234789
B176: 128 | C176: 20003983 | D176: 13.05698534
B177: 129 | C177: 20004054 | D177: 0.747793884
B178: 130 | C178: 20004081 | D178: 0.747793884
B179: =B178+1 -> 131 | C179: 20004307 | D179: 2.632682586
B180: 132 | C180: 20004592 | D180: 1.47
B181: 133 | C181: 20004700 | D181: 3.663349812
B182: 134 | C182: 20004715 | D182: 1.47
B183: 135 | C183: 20004751 | D183: 1.96
B184: 136 | C184: 20004796 | D184: 1.96
B185: 137 | C185: 20004893 | D185: 3.43
B186: 138 | C186: 20004903 | D186: 2.45
B187: 139 | C187: 20004937 | D187: 3.921016618
B188: 140 | C188: 20004955 | D188: 3.738969418
B189: 141 | C189: 20005133 | D189: 3.192827818
B190: 142 | C190: 20005188 | D190: 0.98
B191: 143 | C191: 20005242 | D191: 4.719223573
B192: 144 | C192: 20005265 | D192: 0.98
B193: 145 | C193: 20005314 | D193: 0.98
B194: 146 | C194: 20005336 | D194: 1.47
B195: 147 | C195: 20005357 | D195: 1.47
B196: 148 | C196: 20005412 | D196: 1.47
B197: 149 | C197: 20005447 | D197: 0.98
B198: 150 | C198: 20005482 | D198: 0.98
B199: 151 | C199: 20005577 | D199: 1.47
B200: 152 | C200: 20005605 | D200: 1.47
B201: 153 | C201: 20005628 | D201: 1.47
B202: 154 | C202: 20005832 | D202: 1.47
B203: 155 | C203: 20005851 | D203: 2.45
B204: 156 | C204: 20005887 | D204: 3.220835079
B205: 157 | C205: 20005919 | D205: 4.187085603
... 876 more rows

Sheet Data>>

Sheet Historical_Data
B1: Historical Outage Information Based on Community
B2: 1 | C2: =B2+1 -> 2 | D2: =C2+1 -> 3 | E2: 4 | F2: =E2+1 -> 5 | G2: =F2+1 -> 6 | H2: =G2+1 -> 7 | I2: =H2+1 -> 8 | J2: =I2+1 -> 9 | K2: =J2+1 -> 10 | L2: =K2+1 -> 11 | M2: =L2+1 -> 12 | N2: =M2+1 -> 13 | O2: =N2+1 -> 14 | P2: =O2+1 -> 15 | Q2: =P2+1 -> 16 | R2: =Q2+1 -> 17 | S2: =R2+1 -> 18 | T2: =S2+1 -> 19 | U2: =T2+1 -> 20 | V2: =U2+1 -> 21 | W2: =V2+1 -> 22 | X2: =W2+1 -> 23
C3: Outrage Data | D3: Feeder ID | E3: Agriculture | F3: Commercial | G3: Industrial | H3: Residential | I3: Total | J3: Customer Outage Minutes (5 Years) | O3: Average Energy Per Minute Per Customer | P3: Customer Unserved Energy (Annual) | U3: Customer No | V3: Customers to be microgridded | W3: Percentage improvement | X3: Customer Unserved Energy (Targeted)
E4: KWh | F4: KWh | G4: KWh | H4: KWh | I4: KWh | J4: <12 | K4: <24 | L4: <72 | M4: >72 | N4: Total | P4: <12 | Q4: <24 | R4: <72 | S4: >72 | T4: Total | U4: [#] | V4: [#] | W4: [%] | X4: MWh
B5: 1 | C5: Aramac | D5: 40001061 | E5: =VLOOKUP($D5,Source_1!$B$1:I1393,D$2,FALSE) -> 645375.2 | F5: =VLOOKUP($D5,Source_1!$B$1:J1393,E$2,FALSE) -> 1633566.5 | G5: =VLOOKUP($D5,Source_1!$B$1:K1393,F$2,FALSE) -> 18194.2 | H5: =VLOOKUP($D5,Source_1!$B$1:L1393,G$2,FALSE) -> 2561051.9 | I5: =VLOOKUP($D5,Source_1!$B$1:M1393,H$2,FALSE) -> 4858187.8 | J5: =VLOOKUP($C5,Source_3,2,FALSE) -> 2306821.433 | K5: =VLOOKUP($C5,Source_3,3,FALSE) -> 1142313.733 | L5: =VLOOKUP($C5,Source_3,4,FALSE) -> 580398.0167 | M5: =VLOOKUP($C5,Source_3,5,FALSE) -> 47950.13333 | N5: =SUM(J5:M5) -> 4077483.317 | O5: =VLOOKUP(D5,Source_2!$A$1:$E$1226,4,FALSE) -> 0.02176079629 | P5: =J5/5*$O5 -> 10039.65426 | Q5: =K5/5*$O5 -> 4971.531291 | R5: =L5/5*$O5 -> 2525.984602 | S5: =M5/5*$O5 -> 208.6866167 | T5: =SUM(P5:S5) -> 17745.85677 | U5: 510 | V5: 271 | W5: =V5/U5 -> 0.531372549 | X5: =W5*T5/1000 -> 9.429661145
B6: =B5+1 -> 2 | C6: AUGATHELLA | D6: 60026701 | E6: =VLOOKUP($D6,Source_1!$B$1:I1394,D$2,FALSE) -> 1864265.5 | F6: =VLOOKUP($D6,Source_1!$B$1:J1394,E$2,FALSE) -> 2523273 | G6: =VLOOKUP($D6,Source_1!$B$1:K1394,F$2,FALSE) -> 5646415.8 | H6: =VLOOKUP($D6,Source_1!$B$1:L1394,G$2,FALSE) -> 2779082.9 | I6: =VLOOKUP($D6,Source_1!$B$1:M1394,H$2,FALSE) -> 12813037.2 | J6: 1197444.483 | K6: 694704.6 | L6: 128998.25 | M6: 347270.4667 | N6: 2368417.8 | O6: =VLOOKUP(D6,Source_2!$A$1:$E$1226,4,FALSE) -> 0.05484249099 | P6: 13134.16766 | Q6: 7619.866153 | R6: 1414.917073 | S6: 3809.035488 | T6: 25977.98637 | U6: 557 | V6: 222 | W6: 0.3985637343 | X6: 10.35388326
B7: 3 | C7: Duaringa | D7: 40001038 | E7: =VLOOKUP($D7,Source_1!$B$1:I1395,D$2,FALSE) -> 444782.4 | F7: =VLOOKUP($D7,Source_1!$B$1:J1395,E$2,FALSE) -> 3369958.9 | G7: =VLOOKUP($D7,Source_1!$B$1:K1395,F$2,FALSE) -> 4930679.8 | H7: =VLOOKUP($D7,Source_1!$B$1:L1395,G$2,FALSE) -> 4060633.3 | I7: =VLOOKUP($D7,Source_1!$B$1:M1395,H$2,FALSE) -> 12806054.4 | J7: 1112431.917 | K7: 887585.2833 | L7: 247361.0667 | M7: 20458.81667 | N7: 2267837.083 | O7: =VLOOKUP(D7,Source_2!$A$1:$E$1226,4,FALSE) -> 0.04453975161 | P7: 9909.488251 | Q7: 7906.565611 | R7: 2203.480094 | S7: 182.2461225 | T7: 20201.78008 | U7: 652 | V7: 420 | W7: 0.6441717791 | X7: 13.01341661
B8: 4 | C8: EULO | D8: 60026766 | E8: =VLOOKUP($D8,Source_1!$B$1:I1396,D$2,FALSE) -> 622384 | F8: =VLOOKUP($D8,Source_1!$B$1:J1396,E$2,FALSE) -> 1989297.2 | G8: =VLOOKUP($D8,Source_1!$B$1:K1396,F$2,FALSE) -> 62922.8 | H8: =VLOOKUP($D8,Source_1!$B$1:L1396,G$2,FALSE) -> 1997396.2 | I8: =VLOOKUP($D8,Source_1!$B$1:M1396,H$2,FALSE) -> 4672000.2 | J8: 1291374.317 | K8: 1320475.017 | L8: 598761.5667 | M8: 220122.95 | N8: 3430733.85 | O8: =VLOOKUP(D8,Source_2!$A$1:$E$1226,4,FALSE) -> 0.01879771593 | P8: 4854.977512 | Q8: 4964.38285 | R8: 2251.069968 | S8: 827.5617366 | T8: 12897.99207 | U8: 526 | V8: 216 | W8: 0.4106463878 | X8: 5.296513852
B9: 5 | C9: KARUMBA | D9: 10020675 | E9: =VLOOKUP($D9,Source_1!$B$1:I1397,D$2,FALSE) -> 6384 | F9: =VLOOKUP($D9,Source_1!$B$1:J1397,E$2,FALSE) -> 5506983.1 | G9: =VLOOKUP($D9,Source_1!$B$1:K1397,F$2,FALSE) -> 452313.6 | H9: =VLOOKUP($D9,Source_1!$B$1:L1397,G$2,FALSE) -> 2784527.1 | I9: =VLOOKUP($D9,Source_1!$B$1:M1397,H$2,FALSE) -> 8750207.8 | J9: 988875.8833 | K9: 287950.5333 | L9: 1158141.4 | M9: 0 | N9: 2434967.817 | O9: =VLOOKUP(D9,Source_2!$A$1:$E$1226,4,FALSE) -> 0.04569377872 | P9: 9037.095159 | Q9: 2631.50959 | R9: 10583.97137 | S9: 0 | T9: 22252.57612 | U9: 391 | V9: 387 | W9: 0.989769821 | X9: 22.02492828
B10: 6 | C10: MORVEN | D10: 60026716 | E10: =VLOOKUP($D10,Source_1!$B$1:I1398,D$2,FALSE) -> 1078643.6 | F10: =VLOOKUP($D10,Source_1!$B$1:J1398,E$2,FALSE) -> 1665711.7 | G10: =VLOOKUP($D10,Source_1!$B$1:K1398,F$2,FALSE) -> 17626 | H10: =VLOOKUP($D10,Source_1!$B$1:L1398,G$2,FALSE) -> 1653806 | I10: =VLOOKUP($D10,Source_1!$B$1:M1398,H$2,FALSE) -> 4415787.3 | J10: 934536.25 | K10: 959728.4333 | L10: 171567.05 | M10: 24353.16667 | N10: 2090184.9 | O10: =VLOOKUP(D10,Source_2!$A$1:$E$1226,4,FALSE) -> 0.02997695241 | P10: 5602.909739 | Q10: 5753.946715 | R10: 1028.611459 | S10: 146.0067437 | T10: 12531.47466 | U10: 360 | V10: 160 | W10: 0.4444444444 | X10: 5.569544292
B11: 7 | C11: Northern | D11: 30053769 | E11: =VLOOKUP($D11,Source_1!$B$1:I1399,D$2,FALSE) -> 105217.2 | F11: =VLOOKUP($D11,Source_1!$B$1:J1399,E$2,FALSE) -> 825219.2 | G11: =VLOOKUP($D11,Source_1!$B$1:K1399,F$2,FALSE) -> 353730.8 | H11: =VLOOKUP($D11,Source_1!$B$1:L1399,G$2,FALSE) -> 3735079.3 | I11: =VLOOKUP($D11,Source_1!$B$1:M1399,H$2,FALSE) -> 5019246.5 | J11: 6056106.95 | K11: 3417174.433 | L11: 723709.5167 | M11: 653080.1667 | N11: 10850071.07 | O11: =VLOOKUP(D11,Source_2!$A$1:$E$1226,4,FALSE) -> 0.01846703469 | P11: 22367.66743 | Q11: 12621.01576 | R11: 2672.95375 | S11: 2412.090819 | T11: 40073.72776 | U11: 1060 | V11: 531 | W11: =V11/U11 -> 0.5009433962 | X11: 20.07466929
B12: 8 | C12: Tambo | D12: 40216323 | E12: =VLOOKUP($D12,Source_1!$B$1:I1400,D$2,FALSE) -> 1462623.8 | F12: =VLOOKUP($D12,Source_1!$B$1:J1400,E$2,FALSE) -> 1753753.8 | G12: =VLOOKUP($D12,Source_1!$B$1:K1400,F$2,FALSE) -> 64947.8 | H12: =VLOOKUP($D12,Source_1!$B$1:L1400,G$2,FALSE) -> 3509908.5 | I12: =VLOOKUP($D12,Source_1!$B$1:M1400,H$2,FALSE) -> 6791233.9 | J12: 1589140.833 | K12: 1302562.2 | L12: 317008.2 | M12: 75760.8 | N12: 3284472.033 | O12: =VLOOKUP(D12,Source_2!$A$1:$E$1226,4,FALSE) -> 0.02585751357 | P12: 8218.246133 | Q12: 6736.203953 | R12: 1639.408767 | S12: 391.7971828 | T12: 16985.65604 | U12: 663 | V12: 245 | W12: =V12/U12 -> 0.3695324284 | X12: 6.276750722
B14: 1 | C14: =B14+1 -> 2 | D14: =C14+1 -> 3 | E14: 4 | F14: 5 | G14: 6 | H14: 7 | I14: 8 | J14: 9 | K14: 10 | L14: 11 | M14: 12 | N14: 13 | O14: 14 | P14: 15 | Q14: 16
C15: VNR | E15: <12 | F15: <24 | G15: <72 | H15: >72 | I15: <12 | J15: <24 | K15: <72 | L15: >72 | M15: Sum of VNR | N15: VCR $ with lost consumption | O15: Annual VNR | P15: VNR Improvement Based On Targeted Customer
E16: Weighted Average VNR Rate | I16: VNR Based on Outrage (Annual)
B17: 1 | C17: Aramac | E17: =SUMPRODUCT(Input!$E$93:$H$93,Historical_Data!$E5:$H5)/Historical_Data!$I5 -> 38.41730456 | F17: =SUMPRODUCT(Input!$E$94:$H$94,Historical_Data!$E5:$H5)/Historical_Data!$I5 -> 64.96932322 | G17: =SUMPRODUCT(Input!$E$95:$H$95,Historical_Data!$E5:$H5)/Historical_Data!$I5 -> 45.76067094 | H17: =SUMPRODUCT(Input!$E$96:$H$96,Historical_Data!$E5:$H5)/Historical_Data!$I5 -> 33.89538504 | I17: =E17*P5 -> 385696.4553 | J17: 322997.0233 | K17: 115590.7502 | L17: 7073.513227 | M17: =SUM(I17:L17) -> 831357.7421 | N17: 1.0997465 | O17: =M17*N17 -> 914282.7672 | P17: =O17*W5 -> 485824.7646
B18: =B17+1 -> 2 | C18: AUGATHELLA | E18: =SUMPRODUCT(Input!$E$93:$H$93,Historical_Data!$E6:$H6)/Historical_Data!$I6 -> 55.7407986 | F18: =SUMPRODUCT(Input!$E$94:$H$94,Historical_Data!$E6:$H6)/Historical_Data!$I6 -> 86.63254438 | G18: =SUMPRODUCT(Input!$E$95:$H$95,Historical_Data!$E6:$H6)/Historical_Data!$I6 -> 58.76214508 | H18: =SUMPRODUCT(Input!$E$96:$H$96,Historical_Data!$E6:$H6)/Historical_Data!$I6 -> 33.91309226 | I18: 732108.9942 | J18: 660128.3927 | K18: 83143.56229 | L18: 129176.1719 | M18: 1604557.121 | N18: 1.154572014 | O18: 1852576.747 | P18: 738369.9065
B19: 3 | C19: Duaringa | E19: =SUMPRODUCT(Input!$E$93:$H$93,Historical_Data!$E7:$H7)/Historical_Data!$I7 -> 52.90895681 | F19: =SUMPRODUCT(Input!$E$94:$H$94,Historical_Data!$E7:$H7)/Historical_Data!$I7 -> 83.78045704 | G19: =SUMPRODUCT(Input!$E$95:$H$95,Historical_Data!$E7:$H7)/Historical_Data!$I7 -> 57.32597864 | H19: =SUMPRODUCT(Input!$E$96:$H$96,Historical_Data!$E7:$H7)/Historical_Data!$I7 -> 35.28852207 | I19: 524300.6859 | J19: 662415.6805 | K19: 126316.6528 | L19: 6431.196317 | M19: 1319464.215 | N19: 1.071970627 | O19: 1414426.882 | P19: 911133.881
B20: 4 | C20: EULO | E20: =SUMPRODUCT(Input!$E$93:$H$93,Historical_Data!$E8:$H8)/Historical_Data!$I8 -> 41.05920582 | F20: =SUMPRODUCT(Input!$E$94:$H$94,Historical_Data!$E8:$H8)/Historical_Data!$I8 -> 67.54422993 | G20: =SUMPRODUCT(Input!$E$95:$H$95,Historical_Data!$E8:$H8)/Historical_Data!$I8 -> 47.01462702 | H20: =SUMPRODUCT(Input!$E$96:$H$96,Historical_Data!$E8:$H8)/Historical_Data!$I8 -> 32.44044532 | I20: 199341.5209 | J20: 335315.4167 | K20: 105833.2149 | L20: 26846.47127 | M20: 667336.6238 | N20: 1.250310486 | O20: 834377.9784 | P20: 342634.3029
B21: 5 | C21: KARUMBA | E21: =SUMPRODUCT(Input!$E$93:$H$93,Historical_Data!$E9:$H9)/Historical_Data!$I9 -> 45.61645114 | F21: =SUMPRODUCT(Input!$E$94:$H$94,Historical_Data!$E9:$H9)/Historical_Data!$I9 -> 72.85753858 | G21: =SUMPRODUCT(Input!$E$95:$H$95,Historical_Data!$E9:$H9)/Historical_Data!$I9 -> 50.04931301 | H21: =SUMPRODUCT(Input!$E$96:$H$96,Historical_Data!$E9:$H9)/Historical_Data!$I9 -> 31.67394931 | I21: 412240.2098 | J21: 191725.3115 | K21: 529720.4961 | L21: 0 | M21: 1133686.017 | N21: 1.049706759 | O21: 1190037.875 | P21: 1177863.575
B22: 6 | C22: MORVEN | E22: =SUMPRODUCT(Input!$E$93:$H$93,Historical_Data!$E10:$H10)/Historical_Data!$I10 -> 41.26901907 | F22: =SUMPRODUCT(Input!$E$94:$H$94,Historical_Data!$E10:$H10)/Historical_Data!$I10 -> 67.12060905 | G22: =SUMPRODUCT(Input!$E$95:$H$95,Historical_Data!$E10:$H10)/Historical_Data!$I10 -> 46.48609951 | H22: =SUMPRODUCT(Input!$E$96:$H$96,Historical_Data!$E10:$H10)/Historical_Data!$I10 -> 31.06867043 | I22: 231226.5888 | J22: 386208.4079 | K22: 47816.13463 | L22: 4536.235399 | M22: 669787.3668 | N22: 1.099593525 | O22: 736493.8518 | P22: 327330.6008
B23: 7 | C23: Northern | E23: =SUMPRODUCT(Input!$E$93:$H$93,Historical_Data!$E11:$H11)/Historical_Data!$I11 -> 35.5158731 | F23: =SUMPRODUCT(Input!$E$94:$H$94,Historical_Data!$E11:$H11)/Historical_Data!$I11 -> 63.63983862 | G23: =SUMPRODUCT(Input!$E$95:$H$95,Historical_Data!$E11:$H11)/Historical_Data!$I11 -> 45.88190207 | H23: =SUMPRODUCT(Input!$E$96:$H$96,Historical_Data!$E11:$H11)/Historical_Data!$I11 -> 38.4899945 | I23: 794407.238 | J23: 803199.4064 | K23: 122640.2022 | L23: 92841.36236 | M23: 1813088.209 | N23: 1.16421117 | O23: 2110817.544 | P23: 1057400.11
B24: 8 | C24: Tambo | E24: =SUMPRODUCT(Input!$E$93:$H$93,Historical_Data!$E12:$H12)/Historical_Data!$I12 -> 38.15653321 | F24: =SUMPRODUCT(Input!$E$94:$H$94,Historical_Data!$E12:$H12)/Historical_Data!$I12 -> 64.43423163 | G24: =SUMPRODUCT(Input!$E$95:$H$95,Historical_Data!$E12:$H12)/Historical_Data!$I12 -> 45.35596503 | H24: =SUMPRODUCT(Input!$E$96:$H$96,Historical_Data!$E12:$H12)/Historical_Data!$I12 -> 33.47713024 | I24: 313579.7815 | J24: 434042.1258 | K24: 74356.96669 | L24: 13116.24532 | M24: 835095.1193 | N24: 1.077764818 | O24: 900036.1394 | P24: 332592.5402
C26: Load Data | E26: Average load MW | F26: Scaled average MW | G26: Peak feeder load MW | H26: Scaled Peak | I26: Peak day consumption (MWh) | J26: Peak Day Scaled MWh | K26: Min day consumption | L26: Min day consumption scaled
E27: KW | F27: KW | G27: KW | H27: KW | I27: MWh | J27: MWh | K27: MWh | L27: MWh
B28: 1 | C28: Aramac | D28: =Historical_Data!D5 -> 40001061 | E28: 744 | F28: =E28*Historical_Data!W5 -> 395.3411765 | G28: 2000 | H28: =G28*Historical_Data!W5 -> 1062.745098 | I28: 28.5 | J28: =I28*W5 -> 15.14411765 | K28: 18 | L28: =K28*Historical_Data!W5 -> 9.564705882
B29: =B28+1 -> 2 | C29: AUGATHELLA | D29: =Historical_Data!D6 -> 60026701 | E29: 1773 | F29: =E29*Historical_Data!W6 -> 706.6535009 | G29: 4674 | H29: =G29*Historical_Data!W6 -> 1862.886894 | I29: 70.5 | J29: 28.09874327 | K29: 39 | L29: =K29*Historical_Data!W6 -> 15.54398564
B30: 3 | C30: Duaringa | D30: =Historical_Data!D7 -> 40001038 | E30: 1266 | F30: =E30*Historical_Data!W7 -> 815.5214724 | G30: 2839 | H30: =G30*Historical_Data!W7 -> 1828.803681 | I30: 48 | J30: 30.9202454 | K30: 32 | L30: =K30*Historical_Data!W7 -> 20.61349693
B31: 4 | C31: EULO | D31: =Historical_Data!D8 -> 60026766 | E31: 544 | F31: =E31*Historical_Data!W8 -> 223.391635 | G31: 1783 | H31: =G31*Historical_Data!W8 -> 732.1825095 | I31: 25.5 | J31: 10.47148289 | K31: 7 | L31: =K31*Historical_Data!W8 -> 2.874524715
B32: 5 | C32: KARUMBA | D32: =Historical_Data!D9 -> 10020675 | E32: 868 | F32: =E32*Historical_Data!W9 -> 859.1202046 | G32: 1646 | H32: =G32*Historical_Data!W9 -> 1629.161125 | I32: 28 | J32: 27.71355499 | K32: 15 | L32: =K32*Historical_Data!W9 -> 14.84654731
B33: 6 | C33: MORVEN | D33: =Historical_Data!D10 -> 60026716 | E33: 417 | F33: =E33*Historical_Data!W10 -> 185.3333333 | G33: 968 | H33: =G33*Historical_Data!W10 -> 430.2222222 | I33: 14.8 | J33: 6.577777778 | K33: 10.5 | L33: =K33*Historical_Data!W10 -> 4.666666667
B34: 7 | C34: Northern | D34: =Historical_Data!D11 -> 30053769 | E34: 1181 | F34: =E34*Historical_Data!W11 -> 591.6141509 | G34: 2788 | H34: =G34*Historical_Data!W11 -> 1396.630189 | I34: 39.5 | J34: 19.78726415 | K34: 22 | L34: =K34*Historical_Data!W11 -> 11.02075472
B35: 8 | C35: Tambo | D35: =Historical_Data!D12 -> 40216323 | E35: 781 | F35: =E35*Historical_Data!W12 -> 288.6048265 | G35: 1766 | H35: =G35*Historical_Data!W12 -> 652.5942685 | I35: 28.5 | J35: 10.53167421 | K35: 20 | L35: =K35*Historical_Data!W12 -> 7.390648567

Sheet Source_1
A1: Feeder | B1: EXT REF | C1: Area | D1: Agriculture | E1: Commercial | F1: Industrial | G1: Residential | H1: Total | I1: VCR Investment Rate/MHW | R1: VCR QLD Rates
A2: 1770 | B2: 83022295 | C2: Southern | E2: 5581940.9 | F2: 61982.4 | G2: 3671891.9 | H2: 9315815.2 | I2: =(D2/H2*$S$2+E2/H2*$S$3+F2/H2*$S$4+G2/H2*$S$5)*1000 -> 40577.56158 | R2: Agriculture | S2: 42.14
A3: 1949 | B3: 82917286 | C3: Southern | D3: 140025 | E3: 3911747.7 | F3: 224668.9 | G3: 2844799.4 | H3: 7121241 | I3: =(D3/H3*$S$2+E3/H3*$S$3+F3/H3*$S$4+G3/H3*$S$5)*1000 -> 40842.58383 | R3: Commercial | S3: 49.54
A4: 1950 | B4: 82917289 | C4: Southern | D4: 128615 | E4: 2896237.9 | F4: 342085.9 | G4: 846341.6 | H4: 4213280.4 | I4: 46413.85128 | R4: Industrial | S4: 70.97
A5: 1997 | B5: 83922716 | C5: Southern | D5: 98916.1 | E5: 32089.9 | G5: 547494.7 | H5: 678500.7 | I5: 29821.36639 | R5: Residential | S5: 26.44
A6: 2251 | B6: 83022301 | C6: Southern | E6: 691032.8 | F6: 14691.9 | G6: 2185636.2 | H6: 2891360.9 | I6: 32187.1511
A7: 2267 | B7: 84228730 | C7: Southern | F7: 17507415.7 | H7: 17507415.7 | I7: 70970 | R7: VNR Rate
A8: 3153 | B8: 83921739 | C8: Southern | D8: 11046812.2 | E8: 1841406.7 | F8: 476441.5 | G8: 749833.8 | H8: 14114494.2 | I8: 43244.52611 | R8: Agriculture | S8: 42.14
A9: 3166 | B9: 83937549 | C9: Southern | F9: 25489941.5 | H9: 25489941.5 | I9: 70970 | R9: Commercial | S9: 49.54
A10: 3178 | B10: 84000793 | C10: Southern | D10: 2097058.7 | E10: 472577.8 | F10: 3124840.6 | G10: 391405.5 | H10: 6085882.6 | I10: 56507.86899 | R10: Industrial | S10: 70.97
A11: 3196 | C11: Southern | F11: 22066.5 | H11: 22066.5 | I11: 70970 | R11: Residential | S11: 26.44
A12: 3900 | C12: Southern | E12: 1.2 | H12: 1.2 | I12: 49540
A13: 5632 | B13: 111546806 | C13: Southern | F13: 2522384.9 | H13: 2522384.9 | I13: 70970
A14: 6016 | C14: Southern | F14: 194396082 | H14: 194396082 | I14: 70970
A15: 6027 | C15: Southern | F15: 298990128.9 | H15: 298990128.9 | I15: 70970
A16: 6046 | C16: Southern | F16: 480770 | H16: 480770 | I16: 70970
A17: 6057 | C17: Southern | F17: 49609505.1 | H17: 49609505.1 | I17: 70970
A18: 6058 | C18: Southern | F18: 18111564.8 | H18: 18111564.8 | I18: 70970
A19: 6063 | C19: Southern | F19: 23823769.2 | H19: 23823769.2 | I19: 70970
A20: 6064 | C20: Southern | F20: 225485696 | H20: 225485696 | I20: 70970
A21: 6067 | C21: Southern | E21: 20550 | H21: 20550 | I21: 49540
A22: 6068 | C22: Southern | F22: 94161213.3 | H22: 94161213.3 | I22: 70970
A23: 6069 | C23: Southern | F23: 68194952.8 | H23: 68194952.8 | I23: 70970
A24: 6070 | C24: Southern | F24: 51920446.7 | H24: 51920446.7 | I24: 70970
A25: 6071 | C25: Southern | F25: 23448850.3 | H25: 23448850.3 | I25: 70970
A26: 6072 | C26: Southern | F26: 256940950.6 | H26: 256940950.6 | I26: 70970
A27: 6073 | C27: Southern | F27: 68237362.9 | H27: 68237362.9 | I27: 70970
A28: 6076 | C28: Southern
A29: 6077 | C29: Southern | E29: 1695793.8 | H29: 1695793.8 | I29: 49540
A30: 6079 | C30: Southern | F30: 148995.8 | H30: 148995.8 | I30: 70970
A31: 6106 | C31: Southern | F31: 826604 | H31: 826604 | I31: 70970
A32: 6111 | C32: Southern | F32: 77065036 | H32: 77065036 | I32: 70970
A33: 6113 | C33: Southern | F33: 4255.4 | H33: 4255.4 | I33: 70970
A34: 6271 | C34: Southern | F34: 275581073 | H34: 275581073 | I34: 70970
A35: 6273 | C35: Southern | F35: 36991401.3 | H35: 36991401.3 | I35: 70970
A36: 6274 | C36: Southern | F36: 12600728.5 | H36: 12600728.5 | I36: 70970
A37: 6314 | C37: Southern | F37: 100471874.2 | H37: 100471874.2 | I37: 70970
A38: 7102 | C38: Southern
A39: 7188 | C39: Southern | E39: 2171211.4 | H39: 2171211.4 | I39: 49540
A40: 7190 | C40: Southern | E40: 3965420.1 | H40: 3965420.1 | I40: 49540
A41: 7204 | C41: Southern | E41: 2178701.6 | H41: 2178701.6 | I41: 49540
A42: 7286 | C42: Southern | E42: 13634331.5 | H42: 13634331.5 | I42: 49540
A43: 7374 | C43: Southern | F43: 1306378.8 | H43: 1306378.8 | I43: 70970
A44: 7414 | C44: Southern | E44: 28491603.7 | H44: 28491603.7 | I44: 49540
A45: 14013 | B45: 84119333 | C45: Southern | F45: 4206658 | H45: 4206658 | I45: 70970
A46: 14014 | B46: 84119480 | C46: Southern | D46: 163575.3 | E46: 991755.9 | F46: 207918353 | G46: 1420167.5 | H46: 210493851.7 | I46: 70546.19064
A47: 14028 | B47: 84247259 | C47: Southern | D47: 2772 | E47: 9788905 | F47: 495859.6 | G47: 1920691.2 | H47: 12208227.8 | I47: 46774.47098
A48: 14032 | B48: 84332614 | C48: Southern | D48: 11614 | E48: 6407210.5 | F48: 1119389.7 | G48: 9358993.5 | H48: 16897207.7 | I48: 38160.00304
A49: 14038 | B49: 84510817 | C49: Southern | E49: 5997418.6 | F49: 31291.9 | G49: 2414004.4 | H49: 8442714.9 | I49: 43014.50235
A50: 14039 | B50: 84510820 | C50: Southern | E50: 3452224.3 | F50: 296997.5 | G50: 5138954.2 | H50: 8888176 | I50: 36900.1529
A51: 14040 | B51: 84510823 | C51: Southern | E51: 7507427.5 | G51: 1813877.4 | H51: 9321304.9 | I51: 45044.86028
A52: 14062 | B52: 84588730 | C52: Southern | F52: 10873446.6 | H52: 10873446.6 | I52: 70970
A53: 14065 | B53: 84666984 | C53: Southern | E53: 3015145.1 | F53: 121035 | G53: 1961733.9 | H53: 5097914 | I53: 41159.65599
A54: 14066 | B54: 84667056 | C54: Southern | E54: 801019.8 | G54: 4336371.8 | H54: 5137391.6 | I54: 30041.74167
A55: 14067 | B55: 84670339 | C55: Southern | D55: 1715076.6 | E55: 446661.4 | F55: 15966 | G55: 1991585.1 | H55: 4169289.1 | I55: 35543.6016
A56: 14068 | B56: 84670103 | C56: Southern | D56: 4416 | E56: 4348239 | F56: 130223 | G56: 759226.7 | H56: 5242104.7 | I56: 46720.49579
A57: 14069 | B57: 84668557 | C57: Southern | D57: 286819.1 | E57: 1183596.5 | F57: 782302.5 | G57: 4582973.9 | H57: 6835692 | I57: 36194.69189
A58: 14092 | B58: 84982802 | C58: Southern | D58: 1802720.3 | E58: 861151.2 | F58: 493056.2 | G58: 642071.4 | H58: 3798999.1 | I58: 44905.67798
A59: 14093 | B59: 84997626 | C59: Southern | D59: 8106 | E59: 4802017.8 | F59: 12143.6 | G59: 419239.2 | H59: 5241506.6 | I59: 47730.56365
A60: 14094 | B60: 84997629 | C60: Southern | E60: 17692713.5 | F60: 99160.1 | G60: 90325.1 | H60: 17882198.7 | I60: 49542.15248
A61: 14095 | B61: 84998125 | C61: Southern | E61: 3580187.8 | H61: 3580187.8 | I61: 49540
A62: 14096 | B62: 84998156 | C62: Southern | E62: 5288695.8 | H62: 5288695.8 | I62: 49540
A63: 14097 | B63: 84998159 | C63: Southern | D63: 34834 | E63: 9575220.2 | F63: 549418.3 | G63: 194374.1 | H63: 10353846.6 | I63: 50218.60971
A64: 14099 | B64: 85005859 | C64: Southern | E64: 3442078.6 | F64: 26452 | G64: 8449779 | H64: 11918309.6 | I64: 33210.24896
A65: 14100 | B65: 85018902 | C65: Southern | E65: 4203053.6 | F65: 3063643.2 | G65: 4348403.2 | H65: 11615100 | I65: 46544.39599
A66: 14101 | B66: 85018905 | C66: Southern | E66: 632855.1 | F66: 245977.2 | G66: 5056385.4 | H66: 5935217.7 | I66: 30748.5728
A67: 14114 | B67: 85206371 | C67: Southern | D67: 2870.9 | E67: 400505.1 | F67: 21675 | G67: 4346765.5 | H67: 4771816.5 | I67: =(D67/H67*$S$2+E67/H67*$S$3+F67/H67*$S$4+G67/H67*$S$5)*1000 -> 28590.52877
A68: 14117 | B68: 85221077 | C68: Southern | D68: 1472554.5 | E68: 2914804.8 | F68: 23580.6 | G68: 4980341.4 | H68: 9391281.3 | I68: 36183.20092
A69: 14142 | B69: 91445024 | C69: Southern | D69: 6780 | E69: 193168.9 | F69: 13937 | G69: 11827210 | H69: 12041095.9 | I69: 26870.96262
A70: 14148 | B70: 110819558 | C70: Southern | D70: 596220 | E70: 1949484.7 | F70: 4115615.1 | G70: 1146959.3 | H70: 7808279.1 | I70: 56877.1921
A71: 14149 | B71: 110819559 | C71: Southern | D71: 439198.6 | E71: 3010909.2 | F71: 1244646.1 | G71: 2474302.8 | H71: 7169056.7 | I71: 44834.54155
A72: 2BED1 | B72: 40214375 | C72: Southern | E72: 568235.5 | F72: 11684 | G72: 312825 | H72: 892744.5 | I72: 41726.04049
A73: 2BED2 | B73: 40214378 | C73: Southern | D73: 234917 | E73: 14817 | H73: 249734 | I73: 42579.05035
A74: 2BIR1 | B74: 40214368 | C74: Southern | E74: 322996.2 | G74: 54615 | H74: 377611.2 | I74: 46198.98019
A75: 2BIR2 | B75: 40214370 | C75: Southern | E75: 762230.9 | F75: 33889 | G75: 352228.4 | H75: 1148348.3 | I75: 43087.04947
A76: 2WIN1 | B76: 40214354 | C76: Southern | E76: 123644 | G76: 260100 | H76: 383744 | I76: 33882.92132
A77: 2WIN2 | B77: 40214355 | C77: Southern | E77: 415003.7 | G77: 138632 | H77: 553635.7 | I77: 43755.69238
A78: 2WIN3 | B78: 83920316 | C78: Southern | D78: 2845 | E78: 77463 | G78: 49941 | H78: 130249 | I78: 40521.19678
A79: AS-01 | B79: 25267897 | C79: Southern | D79: 597429.8 | E79: 180019 | G79: 13198 | H79: 790646.8 | I79: 43562.79966
A80: AW109 | B80: 40001162 | C80: Southern | F80: 15005667.4 | H80: 15005667.4 | I80: 70970
A81: AW113 | B81: 40001170 | C81: Southern | D81: 144623.8 | E81: 1316228.1 | F81: 172027.5 | G81: 2844635.6 | H81: 4477515 | I81: 35448.53428
A82: AW118 | B82: 40001225 | C82: Southern | F82: 10025165.6 | H82: 10025165.6 | I82: 70970
A83: BB203 | B83: 40001059 | C83: Southern | D83: 56140.8 | E83: 84589.2 | F83: 23068.8 | G83: 394575.5 | H83: 558374.3 | I83: 33357.71585
A84: BB204 | B84: 40001060 | C84: Southern | D84: 1166 | E84: 5034623.7 | F84: 1678532.7 | G84: 4678001 | H84: 11392323.4 | I84: 43211.22112
A85: BB208 | B85: 40001061 | C85: Southern | D85: 645375.2 | E85: 1633566.5 | F85: 18194.2 | G85: 2561051.9 | H85: 4858187.8 | I85: 36459.77826
A86: BB210 | B86: 40001062 | C86: Southern | D86: 1574056.4 | E86: 2143174.2 | F86: 452004 | G86: 3708354.2 | H86: 7877588.8 | I86: 38416.72918
A87: BB211 | B87: 40001063 | C87: Southern | D87: 140703.3 | E87: 183057.2 | G87: 270842.4 | H87: 594602.9 | I87: 37266.82767
A88: BD-D | B88: 50000011 | C88: Southern | D88: 53458 | E88: 278304.1 | F88: 33779 | G88: 339694 | H88: 705235.1 | I88: 38878.82243
A89: BF202 | B89: 40001029 | C89: Southern | E89: 5409703.3 | F89: 826252.8 | G89: 9704112.9 | H89: 15940069 | I89: 36587.83458
A90: BF203 | B90: 40001030 | C90: Southern | D90: 3184.3 | E90: 7670 | F90: 3072400.5 | G90: 6998 | H90: 3090252.8 | I90: 70786.26344
A91: BF207 | B91: 40001031 | C91: Southern | D91: 10703.3 | E91: 534 | F91: 4332094 | H91: 4343331.3 | I91: 70896.31928
A92: BF208 | B92: 40001032 | C92: Southern | D92: 54836.8 | E92: 1734942.7 | F92: 11265974 | G92: 202069.3 | H92: 13257822.8 | I92: 67367.68055
A93: BG207 | B93: 40001033 | C93: Southern | D93: 401751.1 | E93: 40400.1 | G93: 779531.6 | H93: 1221682.8 | I93: 32366.85317
A94: BG208 | B94: 40001052 | C94: Southern | D94: 232761.2 | E94: 492757.8 | F94: 6541403.8 | G94: 331851.4 | H94: 7598774.2 | I94: 66752.52399
A95: BG-B | B95: 82556066 | C95: Southern | D95: 1295407.7 | E95: 1444011.5 | F95: 31103 | G95: 10011005.9 | H95: 12781528.1 | I95: 30749.31127
A96: BG-C | B96: 82556069 | C96: Southern | D96: 64896.3 | E96: 4617517.7 | F96: 5000.3 | G96: 16567686.3 | H96: 21255100.6 | I96: 31516.71999
A97: BG-D | B97: 82556060 | C97: Southern | D97: 928626.1 | E97: 432165.3 | G97: 1502997.6 | H97: 2863789 | I97: 35016.9057
A98: BG-E | B98: 82556063 | C98: Southern | D98: 30005.7 | E98: 4439 | G98: 12406 | H98: 46850.7 | I98: 38683.7955
A99: BK206 | B99: 40216323 | C99: Southern | D99: 1462623.8 | E99: 1753753.8 | F99: 64947.8 | G99: 3509908.5 | H99: 6791233.9 | I99: 36212.45563
A100: BK210 | B100: 40216325 | C100: Southern | D100: 6427 | E100: 3476723.2 | F100: 94596 | G100: 3381081.5 | H100: 6958827.7 | I100: 38600.89453
A101: BL101 | B101: 40000982 | C101: Southern | D101: 104385 | E101: 2154655.8 | F101: 276287.1 | G101: 7618969.3 | H101: 10154297.2 | I101: 32714.63002
A102: BL103 | B102: 40001246 | C102: Southern | D102: 2068965.8 | E102: 878258.5 | F102: 11957224.2 | G102: 938890.3 | H102: 15843338.8 | I102: 63378.28273
A103: BL104 | B103: 40001247 | C103: Southern | E103: 6926326.4 | F103: 26211.7 | G103: 7300566.1 | H103: 14253104.2 | I103: 37747.38572
A104: BL106 | B104: 40000960 | C104: Southern | D104: 614335.8 | E104: 3199365.5 | F104: 975964.4 | G104: 3205051.6 | H104: 7994717.3 | I104: 42326.75435
A105: BL107 | B105: 40000961 | C105: Southern | D105: 1708507.6 | E105: 4411100.3 | F105: 576705.2 | G105: 3658093.5 | H105: 10354406.6 | I105: 41351.59028
A106: BL109 | B106: 40000962 | C106: Southern | D106: 1057960.5 | E106: 2850885.9 | F106: 218256.2 | G106: 1480043.7 | H106: 5607146.3 | I106: 42880.51854
A107: BR102 | B107: 40001230 | C107: Southern | D107: 39074 | E107: 5886713.6 | F107: 145185 | G107: 7182645.6 | H107: 13253618.2 | I107: 37234.15687
A108: BR103 | B108: 40001174 | C108: Southern | E108: 3279254.9 | F108: 1056800.3 | G108: 4621418.4 | H108: 8957473.6 | I108: 40150.35082
A109: BR107 | B109: 40001175 | C109: Southern | E109: 1664851 | F109: 136579.4 | G109: 10563659.3 | H109: 12365089.7 | I109: 30042.07163
A110: BR108 | B110: 40001176 | C110: Southern | D110: 16477 | E110: 618959.7 | F110: 1145663.5 | G110: 4357785.7 | H110: 6138885.9 | I110: 37121.5886
A111: BU-01 | B111: 20003256 | C111: Southern
A112: BU-02 | B112: 20003259 | C112: Southern | E112: 544702.3 | G112: 152030 | H112: 696732.3 | I112: 44499.48013
A113: BU-03 | B113: 20003262 | C113: Southern | E113: 603636 | G113: 261212.3 | H113: 864848.3 | I113: 42563.04909
A114: BU-04 | B114: 20003265 | C114: Southern | D114: 95274 | E114: 352013.3 | F114: 103654 | G114: 264917.9 | H114: 815859.2 | I114: 43897.6957
A115: BU-05 | B115: 20020608 | C115: Southern | E115: 261385 | F115: 38962 | G115: 548533.9 | H115: 848880.9 | I115: 35596.72783
A116: BW209 | B116: 40001034 | C116: Southern | D116: 29244 | E116: 295985.9 | F116: 2531196.1 | G116: 307975.9 | H116: 3164401.9 | I116: 64365.19763
A117: BW210 | B117: 40001035 | C117: Southern | E117: 12222475.4 | F117: 2479141.5 | G117: 10714264.1 | H117: 25415881 | I117: 41892.36039
A118: BW216 | B118: 40001037 | C118: Southern | D118: 75643 | E118: 10669 | G118: 20755 | H118: 107067 | I118: 39833.94024
A119: BW220 | B119: 40001038 | C119: Southern | D119: 444782.4 | E119: 3369958.9 | F119: 4930679.8 | G119: 4060633.3 | H119: 12806054.4 | I119: 50209.40596
A120: BY-A | B120: 50000015 | C120: Southern | D120: 1800881.9 | E120: 262115.6 | F120: 288789.2 | G120: 792558.8 | H120: 3144345.5 | I120: 41447.41546
A121: BY-D | B121: 50000016 | C121: Southern | D121: 736502.8 | E121: 152249.5 | F121: 281529.9 | G121: 2214318.9 | H121: 3384601.1 | I121: 34599.47967
A122: BY-F | B122: 50000017 | C122: Southern | F122: 1133458.1 | H122: 1133458.1 | I122: 70970
A123: BZ103 | C123: Southern | F123: 25577946.6 | H123: 25577946.6 | I123: 70970
A124: CALI-MINE | C124: Southern | F124: 10859886.1 | H124: 10859886.1 | I124: 70970
A125: CAWDOR | B125: 83850808 | C125: Southern | D125: 412247.6 | E125: 303255 | F125: 152105.8 | G125: 7174336.4 | H125: 8041944.8 | I125: 28958.14077
A126: CB-C | B126: 82915237 | C126: Southern | D126: 25494 | E126: 6160407.8 | F126: 67194.9 | G126: 494837.2 | H126: 6747933.9 | I126: 48031.47778
A127: CB-D | B127: 82915268 | C127: Southern | D127: 4675 | E127: 5357023.9 | F127: 69291 | G127: 1443 | H127: 5432432.9 | I127: 49800.83669
A128: CB-F | B128: 82915228 | C128: Southern | D128: 46072.5 | E128: 10506105.9 | F128: 71768.7 | G128: 207830.2 | H128: 10831777.3 | I128: 49207.29275
A129: CB-H | B129: 82915256 | C129: Southern | D129: 151851 | E129: 1788238.2 | F129: 5052541.8 | G129: 678642.3 | H129: 7671273.3 | I129: 61464.43975
A130: CB-I | B130: 82915231 | C130: Southern | E130: 8544702 | F130: 134252 | G130: 1778656.8 | H130: 10457610.8 | I130: 45886.20637
A131: CB-J | B131: 82915259 | C131: Southern | D131: 2487 | E131: 3932328.5 | F131: 459094.6 | G131: 9020897 | H131: 13414807.1 | I131: =(D131/H131*$S$2+E131/H131*$S$3+F131/H131*$S$4+G131/H131*$S$5)*1000 -> 34738.24208
A132: CB-K | B132: 82915271 | C132: Southern | E132: 8596708 | F132: 1912 | G132: 7253764.7 | H132: 15852384.7 | I132: 38972.44227
A133: CH-C | B133: 50000020 | C133: Southern | D133: 3311352.7 | E133: 459168.5 | F133: 278478.6 | G133: 2974828.4 | H133: 7023828.2 | I133: 37117.32292
A134: CH-D | B134: 84375978 | C134: Southern | D134: 647903.5 | E134: 2711243.6 | F134: 1475077.6 | G134: 2781630.6 | H134: 7615855.3 | I134: 44624.04003
A135: CH-E | B135: 50000021 | C135: Southern | D135: 864774.7 | E135: 619532.3 | F135: 622805.4 | G135: 1339224.9 | H135: 3446337.3 | I135: 42579.36146
A136: CH-F | B136: 50000022 | C136: Southern | D136: 88190.2 | E136: 6548149.8 | F136: 146689 | G136: 3048799.5 | H136: 9831828.5 | I136: 42630.16317
A137: CI104 | B137: 40001177 | C137: Southern | E137: 3262981.3 | F137: 190409.7 | G137: 11255880 | H137: 14709271 | I137: 32140.7456
A138: CI105 | B138: 40001178 | C138: Southern | E138: 10050699.7 | F138: 589364.3 | G138: 2748053.6 | H138: 13388117.6 | I138: 45741.85879
A139: CI109 | B139: 40001179 | C139: Southern | E139: 5504175.8 | F139: 990075.7 | G139: 118327.9 | H139: 6612579.4 | I139: 52335.27044
A140: CI110 | B140: 40001180 | C140: Southern | E140: 8539911.8 | F140: 210428.9 | G140: 3562264.1 | H140: 12312604.8 | I140: 43222.99311
A141: CI111 | B141: 40001231 | C141: Southern | E141: 9808859.3 | F141: 8028320.3 | G141: 80733 | H141: 17917912.6 | I141: 59037.86817
A142: CL203 | B142: 40000998 | C142: Southern | D142: 466 | E142: 6862116.8 | F142: 561229.7 | G142: 7464463.5 | H142: 14888276 | I142: 38766.0593
A143: CL204 | B143: 40001010 | C143: Southern | D143: 1715809.7 | E143: 5517179.4 | F143: 881560.8 | G143: 9546320.2 | H143: 17660870.1 | I143: 37404.4065
A144: CL208 | B144: 40000999 | C144: Southern | D144: 2804 | E144: 399846.7 | F144: 43908.1 | G144: 519997.9 | H144: 966556.7 | I144: 38064.4699
A145: CM201 | B145: 40001039 | C145: Southern | D145: 1090465.8 | E145: 536538 | F145: 61627 | G145: 522587.7 | H145: 2211218.5 | I145: 41028.60405
A146: CM202 | B146: 40200482 | C146: Southern | D146: 2783765.1 | E146: 50295.5 | F146: 382002 | G146: 85620.3 | H146: 3301682.9 | I146: 45181.19625
A147: CN101 | B147: 84947451 | C147: Southern | E147: 22353455.4 | G147: 5070475.3 | H147: 27423930.7 | I147: 45268.98646
A148: CN102 | B148: 40001096 | C148: Southern | D148: 2122 | E148: 11054135.9 | F148: 65894.6 | G148: 5282974.5 | H148: 16405127 | I148: 42186.18357
A149: CN103 | B149: 40001091 | C149: Southern | D149: 10742 | E149: 8253198.7 | F149: 2622 | G149: 8867163.9 | H149: 17133726.6 | I149: 37583.76933
A150: CN104 | B150: 40001093 | C150: Southern | E150: 1513253.7 | F150: 9506.5 | G150: 2150600 | H150: 3673360.2 | I150: 36071.36828
A151: CN108 | B151: 40001094 | C151: Southern | E151: 6741068.7 | F151: 214202.2 | G151: 8923769.7 | H151: 15879040.6 | I151: 36847.24784
A152: CN109 | B152: 40001095 | C152: Southern | E152: 1676512.1 | G152: 1797378.2 | H152: 3473890.3 | I152: 37588.14406
A153: CN110 | B153: 40001090 | C153: Southern | E153: 8203555.9 | F153: 3244.1 | G153: 3883675.9 | H153: 12090475.9 | I153: 42125.61921
A154: CO203 | B154: 40000963 | C154: Southern | D154: 128600.5 | E154: 102519.8 | F154: 46655.7 | G154: 709439.5 | H154: 987215.5 | I154: 32988.53327
A155: CO204 | B155: 40000964 | C155: Southern | D155: 196143 | E155: 8034 | G155: 324625.6 | H155: 528802.6 | I155: 32614.38435
A156: CP101 | B156: 40001183 | C156: Southern | D156: 6039.6 | E156: 959242.7 | G156: 781248.1 | H156: 1746530.4 | I156: 39181.44904
A157: CP103 | B157: 40001232 | C157: Southern | D157: 11262 | E157: 4333900.7 | F157: 202882.9 | G157: 7459674.4 | H157: 12007720 | I157: 35544.5007
A158: CP105 | B158: 40001184 | C158: Southern | D158: 8609 | E158: 3709068.6 | F158: 22094 | G158: 4101462.9 | H158: 7841234.5 | I158: 37509.49317
A159: CP107 | B159: 84962745 | C159: Southern | D159: 190377.9 | E159: 798107.3 | F159: 287780.8 | G159: 6139067.6 | H159: 7415333.6 | I159: 31057.47138
A160: DG-A | B160: 50000027 | C160: Southern | D160: 126169.4 | E160: 2083804.7 | F160: 1348519.1 | G160: 602741.2 | H160: 4161234.4 | I160: 52914.42876
A161: DG-B | B161: 50000028 | C161: Southern | D161: 9547.4 | E161: 7693.2 | F161: 166358.4 | G161: 474314.6 | H161: 657913.6 | I161: 38197.69379
A162: DG-C | B162: 50000025 | C162: Southern | D162: 70305.1 | E162: 1976358.8 | F162: 230688.2 | G162: 3636436.7 | H162: 5913788.8 | I162: 36083.60173
A163: DG-D | B163: 50000026 | C163: Southern | D163: 63799.4 | E163: 132693.6 | G163: 392035.9 | H163: 588528.9 | I163: 33350.23455
A164: DY201 | B164: 40001040 | C164: Southern | D164: 18283 | E164: 10160830.1 | F164: 160491.5 | G164: 3928490.4 | H164: 14268095 | I164: 43411.35496
A165: DY205 | B165: 40001053 | C165: Southern | D165: 96645.5 | E165: 5440880.1 | F165: 2509903 | G165: 5304647 | H165: 13352075.6 | I165: 44337.41553
A166: DY207 | B166: 40001041 | C166: Southern | D166: 248727.2 | E166: 32039.1 | G166: 401130.8 | H166: 681897.1 | I166: 33252.05456
A167: EB10 | C167: Southern | F167: 14518169.5 | G167: 6527 | H167: 14524696.5 | I167: 70949.98944
A168: EB-B | B168: 50000030 | C168: Southern | D168: 4686.9 | E168: 877004.2 | F168: 281978.6 | G168: 5076412.1 | H168: 6240081.8 | I168: 31710.5861
A169: EB-C | B169: 50000031 | C169: Southern | D169: 1375334 | E169: 5003425 | F169: 4391 | G169: 1653891.5 | H169: 8037041.5 | I169: 43531.78589
A170: EB-D | B170: 50000032 | C170: Southern | D170: 1174337 | E170: 5225584.7 | F170: 665780.9 | G170: 7871598 | H170: 14937300.6 | I170: 37740.25601
A171: EB-E | B171: 50000033 | C171: Southern | D171: 137284 | E171: 1790892.6 | F171: 5769599.9 | G171: 9553960.2 | H171: 17251736.7 | I171: 43855.36325
A172: EB-F | B172: 50000034 | C172: Southern | D172: 13115 | E172: 1685610.7 | F172: 274801.6 | G172: 10622359.7 | H172: 12595887 | I172: 30519.14329
A173: EB-G | B173: 50000035 | C173: Southern | E173: 1198956.7 | F173: 174064 | G173: 6060769.6 | H173: 7433790.3 | I173: 31208.35749
A174: EB-H | B174: 50000036 | C174: Southern | D174: 735591.9 | E174: 1351861.1 | F174: 5661716.4 | G174: 2254863.9 | H174: 10004033.3 | I174: 55917.41243
A175: EB-I | B175: 50000037 | C175: Southern | D175: 11293 | E175: 5043263.5 | F175: 3852650.7 | G175: 2669380.5 | H175: 11576587.7 | I175: 51338.11593
A176: EL-01 | B176: 25267901 | C176: Southern | D176: 721336.4 | E176: 12531 | G176: 83539 | H176: 817406.4 | I176: 40648.90218
A177: EM212 | B177: 40001001 | C177: Southern | D177: 52615 | E177: 11910225.9 | F177: 605385.2 | G177: 6198512.1 | H177: 18766738.2 | I177: 42580.79514
A178: EM213 | B178: 40001002 | C178: Southern | E178: 10149225.2 | F178: 1285899.7 | G178: 6978280.3 | H178: 18413405.2 | I178: 42282.16567
A179: EM214 | B179: 40001004 | C179: Southern | D179: 37053 | E179: 5469963 | F179: 158704.3 | G179: 13506321.3 | H179: 19172041.6 | I179: 33429.60406
A180: EM215 | B180: 40001005 | C180: Southern | D180: 4244979.2 | E180: 724161.6 | F180: 1263654.4 | G180: 1289616.1 | H180: 7522411.3 | I180: 45003.83961
A181: EM226 | B181: 40001006 | C181: Southern | D181: 3553400.3 | E181: 5274435.6 | F181: 1551733.3 | G181: 12939632.5 | H181: 23319201.7 | I181: 37020.40211
A182: EM244 | B182: 40001011 | C182: Southern | D182: 7544355.8 | E182: 1471555.3 | F182: 24571 | G182: 3699409.7 | H182: 12739891.8 | I182: 38491.39435
A183: EM246 | B183: 40001009 | C183: Southern | D183: 2672068.9 | E183: 3274469.1 | F183: 1634497.1 | G183: 10723650.5 | H183: 18304685.6 | I183: 36840.39026
A184: EM256 | B184: 82563612 | C184: Southern | D184: 1038514.7 | E184: 10249169.5 | F184: 3357640.1 | G184: 8828445.7 | H184: 23473770 | I184: 43590.04492
A185: EQ101 | C185: Southern | F185: 4193824.2 | H185: 4193824.2 | I185: 70970
A186: ER-D | B186: 50000040 | C186: Southern | D186: 433080.4 | E186: 95721.2 | F186: 1027189.5 | G186: 1424716 | H186: 2980707.1 | I186: 44808.55102
A187: EV-A | B187: 50000043 | C187: Southern | D187: 1886568.9 | E187: 295122.4 | G187: 210165.8 | H187: 2391857.1 | I187: 41673.5435
A188: EV-C | B188: 50000044 | C188: Southern | D188: 548072 | E188: 1705026.2 | F188: 108864.6 | G188: 2192447.2 | H188: 4554410 | I188: 38041.62925
A189: F001Q | B189: 60026640 | C189: Southern | D189: 6341 | E189: 2232584 | F189: 34780.1 | G189: 1894071.4 | H189: 4167776.5 | I189: 39209.63915
A190: F001R | B190: 60026641 | C190: Southern | D190: 534594.7 | E190: 2181053.4 | F190: 958248.3 | G190: 3808826.4 | H190: 7482722.8 | I190: 39997.40014
A191: F002D | B191: 60026984 | C191: Southern | D191: 35253.6 | E191: 2844005.7 | F191: 1879995.2 | G191: 6078645 | H191: 10837899.5 | I191: 40277.20152
A192: F003D | B192: 60026985 | C192: Southern | D192: 17677 | E192: 169697.1 | F192: 46270 | G192: 542792.3 | H192: 776436.4 | I192: 34499.81663
A193: F004Q | B193: 60026644 | C193: Southern | D193: 1037375.5 | E193: 1588638.3 | F193: 320367 | G193: 1915181.8 | H193: 4861562.6 | I193: 40273.05906
A194: F017D | B194: 60026986 | C194: Southern | D194: 51348 | E194: 1921114 | F194: 839193.8 | G194: 1079575 | H194: 3891230.8 | I194: 47655.18901
A195: F021D | B195: 60026647 | C195: Southern | D195: 604623.6 | E195: 3624872.5 | F195: 231679.5 | G195: 4477463.3 | H195: 8938638.9 | I195: =(D195/H195*$S$2+E195/H195*$S$3+F195/H195*$S$4+G195/H195*$S$5)*1000 -> 38023.84789
A196: F022D | B196: 60026649 | C196: Southern | D196: 33446.5 | E196: 8633934.6 | F196: 82082.5 | G196: 4256124 | H196: 13005587.6 | I196: 42096.66537
A197: F022R | B197: 60026650 | C197: Southern | D197: 789421.1 | E197: 2702889.4 | F197: 945652.2 | G197: 2933185.4 | H197: 7371148.1 | I197: 42304.63157
A198: F023D | B198: 60026651 | C198: Southern | E198: 4174017.7 | F198: 260243.2 | G198: 109746.4 | H198: 4544007.3 | I198: 50209.42453
A199: F024D | B199: 60026652 | C199: Southern | D199: 45719.1 | E199: 2146676.9 | F199: 1419 | G199: 5300216.4 | H199: 7494031.4 | I199: 33161.2441
A200: F026C | B200: 60026987 | C200: Southern | D200: 7959 | E200: 5068241.7 | F200: 415073.9 | G200: 1048522 | H200: 6539796.6 | I200: 47187.52299
... 1192 more rows

Sheet Source_2
A1: FEEDER_ID | B1: METERED_DAYS | C1: TOTAL_KWH | D1: KWH_FDR_MIN_CALC | E1: KWH_FDR_MIN
A2: 10020655 | B2: 206792 | C2: 12018410.4 | D2: 0.04035996718 | E2: =IF(D2>0,D2,$E$2) -> 0.04035996718 | F2: =C2/(B224*60*24) -> 0.04101407576
A3: 10020657 | B3: 254745 | C3: 11299430.8 | D3: 0.03080267304 | E3: =IF(D3>0,D3,$E$2) -> 0.03080267304
A4: 10020659 | B4: 279428 | C4: 10038311.7 | D4: 0.02494757072 | E4: 0.02494757072
A5: 10020660 | B5: 254372 | C5: 18194013.6 | D5: 0.04967029259 | E5: 0.04967029259
A6: 10020661 | B6: 464390 | C6: 22896491.7 | D6: 0.03423919864 | E6: 0.03423919864
A7: 10020662 | B7: 159418 | C7: 6194719.2 | D7: 0.02698495987 | E7: 0.02698495987
A8: 10020663 | B8: 212151 | C8: 19841289.9 | D8: 0.06494748336 | E8: 0.06494748336
A9: 10020669 | B9: 109587 | C9: 4379693.3 | D9: 0.02775378175 | E9: 0.02775378175
A10: 10020670 | B10: 49894 | C10: 2105232 | D10: 0.02930145241 | E10: 0.02930145241
A11: 10020671 | B11: 45705 | C11: 2483240.4 | D11: 0.03773049995 | E11: 0.03773049995
A12: 10020673 | B12: 188516 | C12: 12027932.4 | D12: 0.04430780853 | E12: 0.04430780853
A13: 10020674 | B13: 20678 | C13: 2106971.8 | D13: 0.07075997974 | E13: 0.07075997974
A14: 10020675 | B14: 115580 | C14: 7605053.2 | D14: 0.04569377872 | E14: 0.04569377872
A15: 10020677 | B15: 3932 | C15: 9711062.8 | D15: 1.715105191 | E15: 1.715105191
A16: 10020679 | B16: 393036 | C16: 11095098.9 | D16: 0.01960362357 | E16: 0.01960362357
A17: 10020689 | B17: 39960 | C17: 1373002.4 | D17: 0.02386070793 | E17: 0.02386070793
A18: 10020700 | B18: 2220 | C18: 112441.5 | D18: 0.03517314189 | E18: 0.03517314189
A19: 10020711 | B19: 1253 | C19: 38766.7 | D19: 0.02148549038 | E19: 0.02148549038
A20: 10020722 | B20: 133268 | C20: 4422756.7 | D20: 0.02304648392 | E20: 0.02304648392
A21: 10020744 | B21: 19481 | C21: 1060399.3 | D21: 0.03780033893 | E21: 0.03780033893
A22: 10020755 | B22: 116811 | C22: 5583933.8 | D22: 0.03319663221 | E22: 0.03319663221
A23: 10020761 | B23: 304615 | C23: 11409866.5 | D23: 0.02601158316 | E23: 0.02601158316
A24: 10020764 | B24: 698538 | C24: 20558013.1 | D24: 0.02043753953 | E24: 0.02043753953
A25: 10020765 | B25: 147442 | C25: 3721748.7 | D25: 0.0175292502 | E25: 0.0175292502
A26: 10020767 | B26: 397693 | C26: 18481692.3 | D26: 0.03227240244 | E26: 0.03227240244
A27: 10020768 | B27: 66896 | C27: 2537155.6 | D27: 0.0263381011 | E27: 0.0263381011
A28: 10020770 | B28: 31485 | C28: 7302241.5 | D28: 0.1610608557 | E28: 0.1610608557
A29: 10020771 | B29: 98647 | C29: 6513634.5 | D29: 0.04585397723 | E29: 0.04585397723
A30: 10020772 | B30: 271189 | C30: 10300053.6 | D30: 0.02637575639 | E30: 0.02637575639
A31: 10020773 | B31: 182912 | C31: 6731697.6 | D31: 0.02555759054 | E31: 0.02555759054
A32: 10020774 | B32: 571058 | C32: 19867371.1 | D32: 0.02416004239 | E32: 0.02416004239
A33: 10020775 | B33: 338154 | C33: 15991650.7 | D33: 0.03284099252 | E33: 0.03284099252
A34: 10020776 | B34: 101927 | C34: 6759926.1 | D34: 0.04605642396 | E34: 0.04605642396
A35: 10020777 | B35: 585970 | C35: 25155733.3 | D35: 0.02981254883 | E35: 0.02981254883
A36: 10020778 | B36: 208766 | C36: 6862106.9 | D36: 0.02282628404 | E36: 0.02282628404
A37: 10020779 | B37: 184598 | C37: 7777584.2 | D37: 0.02925871428 | E37: 0.02925871428
A38: 10020780 | B38: 210126 | C38: 6918360.5 | D38: 0.02286445758 | E38: 0.02286445758
A39: 10020781 | B39: 100113 | C39: 3104730.2 | D39: 0.02153629038 | E39: 0.02153629038
A40: 10020782 | B40: 179169 | C40: 14652012.7 | D40: 0.05679000731 | E40: 0.05679000731
A41: 10020783 | B41: 553878 | C41: 34313437.7 | D41: 0.04302170547 | E41: 0.04302170547
A42: 10020784 | B42: 278647 | C42: 8437178 | D42: 0.02102714685 | E42: 0.02102714685
A43: 10020785 | B43: 292992 | C43: 8460805.3 | D43: 0.02005365073 | E43: 0.02005365073
A44: 10020786 | B44: 779775 | C44: 24475411.8 | D44: 0.02179707448 | E44: 0.02179707448
A45: 10020787 | B45: 492766 | C45: 10605615.2 | D45: 0.01494626365 | E45: 0.01494626365
A46: 10020788 | B46: 106163 | C46: 16240376.7 | D46: 0.1062332392 | E46: 0.1062332392
A47: 10020794 | B47: 50640 | C47: 5493178.2 | D47: 0.07532991871 | E47: 0.07532991871
A48: 10020795 | B48: 175631 | C48: 10019198.9 | D48: 0.03961588224 | E48: 0.03961588224
A49: 10020796 | B49: 647000 | C49: 19586685.3 | D49: 0.02102297495 | E49: 0.02102297495
A50: 10020797 | B50: 127615 | C50: 6994353.6 | D50: 0.03806127806 | E50: 0.03806127806
A51: 10020798 | B51: 608236 | C51: 34554989.7 | D51: 0.0394526477 | E51: 0.0394526477
A52: 10020799 | B52: 319092 | C52: 13584404.7 | D52: 0.02956393258 | E52: 0.02956393258
A53: 10020800 | B53: 141471 | C53: 25960051.3 | D53: 0.1274311583 | E53: 0.1274311583
A54: 10020802 | B54: 476364 | C54: 14339011.9 | D54: 0.02090344181 | E54: 0.02090344181
A55: 10020803 | B55: 224917 | C55: 21668507.2 | D55: 0.06690278834 | E55: 0.06690278834
A56: 10020804 | B56: 609487 | C56: 15366754.5 | D56: 0.01750875292 | E56: 0.01750875292
A57: 10020805 | B57: 140050 | C57: 20254243.8 | D57: 0.1004316107 | E57: 0.1004316107
A58: 10020806 | B58: 573417 | C58: 13483525.7 | D58: 0.0163294069 | E58: 0.0163294069
A59: 10020807 | B59: 367848 | C59: 13044185.5 | D59: 0.02462555771 | E59: 0.02462555771
A60: 10020808 | B60: 910696 | C60: 27406640.8 | D60: 0.02089872959 | E60: 0.02089872959
A61: 10020809 | B61: 357855 | C61: 15377618.4 | D61: 0.02984142087 | E61: 0.02984142087
A62: 10020810 | B62: 99157 | C62: 13827978.8 | D62: 0.09684402569 | E62: 0.09684402569
A63: 10020811 | B63: 28906 | C63: 10367141.7 | D63: 0.2490626153 | E63: 0.2490626153
A64: 10020812 | B64: 51510 | C64: 11916019.6 | D64: 0.160648682 | E64: 0.160648682
A65: 10020813 | B65: 33563 | C65: 9642457.1 | D65: 0.1995098997 | E65: 0.1995098997
A66: 10020814 | B66: 42069 | C66: 16438011.5 | D66: 0.2713467343 | E66: 0.2713467343
A67: 10020815 | B67: 31939 | C67: 24550370.3 | D67: 0.5337946794 | E67: =IF(D67>0,D67,$E$2) -> 0.5337946794
A68: 10020816 | B68: 78506 | C68: 11696198.5 | D68: 0.1034616471 | E68: 0.1034616471
A69: 10020817 | B69: 454904 | C69: 25293236.6 | D69: 0.03861198767 | E69: 0.03861198767
A70: 10020818 | B70: 118533 | C70: 16575705.6 | D70: 0.0971114092 | E70: 0.0971114092
A71: 10020820 | B71: 55715 | C71: 15565285.2 | D71: 0.1940092584 | E71: 0.1940092584
A72: 10020821 | B72: 608 | C72: 14810182.4 | D72: 16.91586988 | E72: 16.91586988
A73: 10020822 | B73: 101147 | C73: 12503797.2 | D73: 0.08584725696 | E73: 0.08584725696
A74: 10020824 | B74: 187205 | C74: 5203147.9 | D74: 0.0193012855 | E74: 0.0193012855
A75: 10020825 | B75: 973315 | C75: 27792707.8 | D75: 0.01982964562 | E75: 0.01982964562
A76: 10020826 | B76: 1164471 | C76: 32921720.1 | D76: 0.01963321167 | E76: 0.01963321167
A77: 10020827 | B77: 436135 | C77: 11567952.1 | D77: 0.01841929694 | E77: 0.01841929694
A78: 10020828 | B78: 417807 | C78: 10223186.3 | D78: 0.01699213975 | E78: 0.01699213975
A79: 10020829 | B79: 378024 | C79: 10637323 | D79: 0.01954116633 | E79: 0.01954116633
A80: 10020830 | B80: 54293 | C80: 17615151.2 | D80: 0.2253097801 | E80: 0.2253097801
A81: 10020831 | B81: 600215 | C81: 16160849.3 | D81: 0.01869798658 | E81: 0.01869798658
A82: 10020832 | B82: 512192 | C82: 24273502.3 | D82: 0.03291070306 | E82: 0.03291070306
A83: 10020833 | B83: 698706 | C83: 27516474.7 | D83: 0.02734864591 | E83: 0.02734864591
A84: 10020834 | B84: 215583 | C84: 8772900.5 | D84: 0.02825961237 | E84: 0.02825961237
A85: 10020835 | B85: 465977 | C85: 11081847.9 | D85: 0.01651525227 | E85: 0.01651525227
A86: 10020836 | B86: 279721 | C86: 12294773.4 | D86: 0.03052340398 | E86: 0.03052340398
A87: 10020837 | B87: 132066 | C87: 9759409.8 | D87: 0.05131803732 | E87: 0.05131803732
A88: 10020838 | B88: 280165 | C88: 19300699.2 | D88: 0.04784060583 | E88: 0.04784060583
A89: 10020839 | B89: 360954 | C89: 13079410.4 | D89: 0.02516366044 | E89: 0.02516366044
A90: 10020840 | B90: 651313 | C90: 24283277.4 | D90: 0.02589137186 | E90: 0.02589137186
A91: 10020841 | B91: 174133 | C91: 7290865.2 | D91: 0.02907605585 | E91: 0.02907605585
A92: 10020842 | B92: 281806 | C92: 8455395.7 | D92: 0.02083632914 | E92: 0.02083632914
A93: 10020844 | B93: 196534 | C93: 6689581.9 | D93: 0.02363735021 | E93: 0.02363735021
A94: 10020845 | B94: 30648 | C94: 728942.2 | D94: 0.01651689706 | E94: 0.01651689706
A95: 10020846 | B95: 384254 | C95: 19455652.7 | D95: 0.03516129938 | E95: 0.03516129938
A96: 10020847 | B96: 540957 | C96: 14579654.8 | D96: 0.01871638647 | E96: 0.01871638647
A97: 10020848 | B97: 29426 | C97: 1087138.3 | D97: 0.02565612563 | E97: 0.02565612563
A98: 10020850 | B98: 490719 | C98: 11719515.3 | D98: 0.01658495451 | E98: 0.01658495451
A99: 10020855 | B99: 179419 | C99: 10495467.6 | D99: 0.04062289483 | E99: 0.04062289483
A100: 10020856 | B100: 39263 | C100: 1945110.5 | D100: 0.03440315769 | E100: 0.03440315769
A101: 10020857 | B101: 60186 | C101: 4072952.7 | D101: 0.04699497184 | E101: 0.04699497184
A102: 10128810 | B102: 68107 | C102: 1886145.1 | D102: 0.01923184087 | E102: 0.01923184087
A103: 10129302 | B103: 335 | C103: 19129.9 | D103: 0.03965567993 | E103: 0.03965567993
A104: 10129324 | B104: 297949 | C104: 8703625.7 | D104: 0.02028597013 | E104: 0.02028597013
A105: 10129677 | B105: 1007 | C105: 18140.7 | D105: 0.01251013737 | E105: 0.01251013737
A106: 10129863 | B106: 11517 | C106: 8408724.4 | D106: 0.5070236993 | E106: 0.5070236993
A107: 10130404 | B107: 561165 | C107: 15393062.1 | D107: 0.01904898997 | E107: 0.01904898997
A108: 10130408 | B108: 244875 | C108: 14019109.5 | D108: 0.03975698911 | E108: 0.03975698911
A109: 10130452 | B109: 256088 | C109: 11130542.8 | D109: 0.03018315427 | E109: 0.03018315427
A110: 10131875 | B110: 5429 | C110: 1442391.7 | D110: 0.1845019161 | E110: 0.1845019161
A111: 10132616 | B111: 99964 | C111: 12920509.3 | D111: 0.08975807193 | E111: 0.08975807193
A112: 10132684 | B112: 59197 | C112: 4077718.3 | D112: 0.04783601905 | E112: 0.04783601905
A113: 10132687 | B113: 11689 | C113: 1867791 | D113: 0.1109656158 | E113: 0.1109656158
A114: 10134499 | B114: 600920 | C114: 20357020.3 | D114: 0.02352529397 | E114: 0.02352529397
A115: 10134518 | B115: 603229 | C115: 18015856.6 | D115: 0.02074006974 | E115: 0.02074006974
A116: 10134605 | B116: 702324 | C116: 30714181.1 | D116: 0.03036959072 | E116: 0.03036959072
A117: 10135223 | B117: 3047 | C117: 88329.8 | D117: 0.02013132225 | E117: 0.02013132225
A118: 20001080 | B118: 51197 | C118: 5181295.7 | D118: 0.07027993855 | E118: 0.07027993855
A119: 20001081 | B119: 281308 | C119: 12715668.6 | D119: 0.03139023923 | E119: 0.03139023923
A120: 20001108 | B120: 275895 | C120: 10998163.2 | D120: 0.02768304367 | E120: 0.02768304367
A121: 20001141 | B121: 17652 | C121: 5212489 | D121: 0.2050636771 | E121: 0.2050636771
A122: 20001148 | B122: 316473 | C122: 8078390.3 | D122: 0.01772660942 | E122: 0.01772660942
A123: 20001165 | B123: 41312 | C123: 6446363.5 | D123: 0.108361767 | E123: 0.108361767
A124: 20001178 | B124: 398376 | C124: 11985398.5 | D124: 0.02089280831 | E124: 0.02089280831
A125: 20001196 | B125: 167618 | C125: 5497845.5 | D125: 0.02277767462 | E125: 0.02277767462
A126: 20001246 | B126: 20904 | C126: 1220779.9 | D126: 0.04055510043 | E126: 0.04055510043
A127: 20001263 | B127: 116182 | C127: 5889934.7 | D127: 0.03520538836 | E127: 0.03520538836
A128: 20001353 | B128: 61474 | C128: 3734179.6 | D128: 0.04218336659 | E128: 0.04218336659
A129: 20001488 | B129: 182955 | C129: 7966951.3 | D129: 0.03024025071 | E129: 0.03024025071
A130: 20001649 | B130: 129419 | C130: 7520569.8 | D130: 0.04035433682 | E130: 0.04035433682
A131: 20001859 | B131: 21781 | C131: 692223.6 | D131: 0.02207019115 | E131: =IF(D131>0,D131,$E$2) -> 0.02207019115
A132: 20001962 | B132: 87637 | C132: 3889034.1 | D132: 0.03081709923 | E132: 0.03081709923
A133: 20002064 | B133: 26715 | C133: 2080495 | D133: 0.05408153451 | E133: 0.05408153451
A134: 20002143 | B134: 183 | C134: 8.9 | D134: 3.377352763e-05 | E134: 3.377352763e-05
A135: 20002149 | B135: 531 | C135: 4935.5 | D135: 0.006454671479 | E135: 0.006454671479
A136: 20002267 | B136: 144680 | C136: 4678742.1 | D136: 0.02245732968 | E136: 0.02245732968
A137: 20002331 | B137: 310616 | C137: 9399216.7 | D137: 0.02101383644 | E137: 0.02101383644
A138: 20002437 | B138: 253456 | C138: 7180682.3 | D138: 0.01967436135 | E138: 0.01967436135
A139: 20002494 | B139: 67508 | C139: 3229574.3 | D139: 0.03322213561 | E139: 0.03322213561
A140: 20002622 | B140: 423365 | C140: 13371436.4 | D140: 0.02193313033 | E140: 0.02193313033
A141: 20002652 | B141: 272566 | C141: 14223287.8 | D141: 0.03623813386 | E141: 0.03623813386
A142: 20002698 | B142: 363578 | C142: 10083388.9 | D142: 0.01925956302 | E142: 0.01925956302
A143: 20002744 | B143: 365 | C143: 36063 | D143: 0.0686130137 | E143: 0.0686130137
A144: 20002752 | B144: 322835 | C144: 11543911.1 | D144: 0.02483189534 | E144: 0.02483189534
A145: 20002914 | B145: 150307 | C145: 13446532.3 | D145: 0.06212531454 | E145: 0.06212531454
A146: 20002948 | B146: 207170 | C146: 5919329.3 | D146: 0.01984189481 | E146: 0.01984189481
A147: 20002985 | B147: 15630 | C147: 5282915.1 | D147: 0.2347211159 | E147: 0.2347211159
A148: 20003026 | B148: 323587 | C148: 11160857 | D148: 0.0239521215 | E148: 0.0239521215
A149: 20003061 | B149: 166347 | C149: 17442594.5 | D149: 0.07281714036 | E149: 0.07281714036
A150: 20003088 | B150: 300674 | C150: 10897892.5 | D150: 0.02517005429 | E150: 0.02517005429
A151: 20003281 | B151: 187432 | C151: 4655456.7 | D151: 0.01724868775 | E151: 0.01724868775
A152: 20003294 | B152: 409434 | C152: 12260395 | D152: 0.02079495888 | E152: 0.02079495888
A153: 20003306 | B153: 153623 | C153: 6339544.8 | D153: 0.02865756864 | E153: 0.02865756864
A154: 20003317 | B154: 291117 | C154: 12141623.2 | D154: 0.0289632099 | E154: 0.0289632099
A155: 20003329 | B155: 3898 | C155: 8923487.3 | D155: 1.589755305 | E155: 1.589755305
A156: 20003349 | B156: 341473 | C156: 12131110.1 | D156: 0.02467071193 | E156: 0.02467071193
A157: 20003387 | B157: 57817 | C157: 6684312.3 | D157: 0.08028579037 | E157: 0.08028579037
A158: 20003411 | B158: 126710 | C158: 7746344.8 | D158: 0.04245447172 | E158: 0.04245447172
A159: 20003435 | B159: 140167 | C159: 7769685.3 | D159: 0.03849418759 | E159: 0.03849418759
A160: 20003471 | B160: 76416 | C160: 5743577.9 | D160: 0.05219581977 | E160: 0.05219581977
A161: 20003493 | B161: 694 | C161: 70956 | D161: 0.07100144092 | E161: 0.07100144092
A162: 20003547 | B162: 365 | C162: 6756904.2 | D162: 12.8556016 | E162: 12.8556016
A163: 20003550 | B163: 110351 | C163: 1956585.6 | D163: 0.0123128925 | E163: 0.0123128925
A164: 20003792 | B164: 307523 | C164: 12600934.6 | D164: 0.02845526685 | E164: 0.02845526685
A165: 20003866 | B165: 18245 | C165: 49235433.2 | D165: 1.874007841 | E165: 1.874007841
A166: 20003945 | B166: 608 | C166: 35465567.6 | D166: 40.50800393 | E166: 40.50800393
A167: 20003949 | B167: 50311 | C167: 1390785.3 | D167: 0.01919705681 | E167: 0.01919705681
A168: 20003983 | B168: 22527 | C168: 1069280.8 | D168: 0.0329629383 | E168: 0.0329629383
A169: 20004054 | B169: 229504 | C169: 7194641.5 | D169: 0.02176989865 | E169: 0.02176989865
A170: 20004081 | B170: 153953 | C170: 4581641.7 | D170: 0.02066666856 | E170: 0.02066666856
A171: 20004307 | B171: 86004 | C171: 8965889.2 | D171: 0.07239560886 | E171: 0.07239560886
A172: 20004592 | B172: 241115 | C172: 12124640.6 | D172: 0.03492063665 | E172: 0.03492063665
A173: 20004679 | B173: 134 | C173: 822 | D173: 0.004259950249 | E173: 0.004259950249
A174: 20004700 | B174: 164378 | C174: 11317360.6 | D174: 0.04781222666 | E174: 0.04781222666
A175: 20004715 | B175: 15444 | C175: 426697.7 | D175: 0.01918659979 | E175: 0.01918659979
A176: 20004751 | B176: 401320 | C176: 11076470.5 | D176: 0.01916673329 | E176: 0.01916673329
A177: 20004796 | B177: 353680 | C177: 11387439.9 | D177: 0.02235903748 | E177: 0.02235903748
A178: 20004893 | B178: 386707 | C178: 15343076.6 | D178: 0.0275529388 | E178: 0.0275529388
A179: 20004903 | B179: 279839 | C179: 11978431.7 | D179: 0.02972550412 | E179: 0.02972550412
A180: 20004937 | B180: 97742 | C180: 5268476.2 | D180: 0.03743185148 | E180: 0.03743185148
A181: 20004955 | B181: 20584 | C181: 1685502.2 | D181: 0.05686395447 | E181: 0.05686395447
A182: 20005039 | B182: 456 | C182: 80276.5 | D182: 0.1222534418 | E182: 0.1222534418
A183: 20005133 | B183: 347975 | C183: 14014499.9 | D183: 0.02796836439 | E183: 0.02796836439
A184: 20005188 | B184: 174227 | C184: 8124737 | D184: 0.03238406488 | E184: 0.03238406488
A185: 20005242 | B185: 54677 | C185: 11552084.2 | D185: 0.1467213032 | E185: 0.1467213032
A186: 20005265 | B186: 401317 | C186: 15273586.4 | D186: 0.02642962352 | E186: 0.02642962352
A187: 20005314 | B187: 243599 | C187: 10266368.6 | D187: 0.02926704395 | E187: 0.02926704395
A188: 20005336 | B188: 290734 | C188: 12948538.9 | D188: 0.03092875585 | E188: 0.03092875585
A189: 20005357 | B189: 221665 | C189: 9345799.8 | D189: 0.02927904157 | E189: 0.02927904157
A190: 20005412 | B190: 578472 | C190: 16772584.9 | D190: 0.02013516368 | E190: 0.02013516368
A191: 20005447 | B191: 187037 | C191: 7403775.5 | D191: 0.02748927091 | E191: 0.02748927091
A192: 20005482 | B192: 244669 | C192: 8956251.4 | D192: 0.02542054379 | E192: 0.02542054379
A193: 20005577 | B193: 285277 | C193: 7859128.5 | D193: 0.01913132894 | E193: 0.01913132894
A194: 20005605 | B194: 188101 | C194: 10017959.3 | D194: 0.0369850037 | E194: 0.0369850037
A195: 20005628 | B195: 296686 | C195: 8507331.2 | D195: 0.0199128671 | E195: =IF(D195>0,D195,$E$2) -> 0.0199128671
A196: 20005787 | B196: 15368 | C196: 238095.2 | D196: 0.01075897247 | E196: 0.01075897247
A197: 20005832 | B197: 316416 | C197: 11294354.3 | D197: 0.02478794245 | E197: 0.02478794245
A198: 20005851 | B198: 138854 | C198: 7996819.7 | D198: 0.03999414503 | E198: 0.03999414503
A199: 20005887 | B199: 121885 | C199: 2297053 | D199: 0.01308754723 | E199: 0.01308754723
A200: 20005919 | B200: 158942 | C200: 13608435.3 | D200: 0.05945755239 | E200: 0.05945755239
... 1026 more rows

Sheet Source_3
B2: EVENT_YEAR | C2: 2017/18 to 2021/22
B3: OUTAGE_TYPE_CODE | C3: Unplanned/Forced
B4: AER_MED_EXCL_DESC | C4: AER MAJOR EVENT DAY EXCLUSION
B6: Feeder | C6: Less than 12 hours | D6: Between 12 and 24 hours | E6: Between 24 and 72 hours | F6: Greater than 72 hours | G6: Grand Total
B7: Alpha | C7: 22424.95 | D7: 219783.0167 | E7: 21267 | G7: 263474.9667
B8: Aramac | C8: 142805.55 | D8: 183128.3833 | E8: 411678.5667 | G8: 737612.5
B9: AUGATHELLA | C9: 62788.06667 | D9: 57004.06667 | G9: 119792.1333
B10: DAINTREE | C10: 192859.2833 | E10: 2150156.417 | G10: 2343015.7
B11: Duaringa | C11: 14701.15 | D11: 61283.81667 | E11: 105350.8333 | G11: 181335.8
B12: EULO | C12: 760.5833333 | D12: 1037.083333 | E12: 1554.5 | F12: 6099.8 | G12: 9451.966667
B13: KARUMBA | C13: 8075.283333 | G13: 8075.283333
B14: MORVEN | C14: 29151.18333 | D14: 39649.4 | E14: 47895.25 | G14: 116695.8333
B15: Northern | C15: 432131.25 | D15: 1080787.367 | E15: 594856.2833 | F15: 81612.65 | G15: 2189387.55
B16: POONA | C16: 257504.75 | G16: 257504.75
B17: Rolleston | C17: 32554.68333 | D17: 4254.166667 | G17: 36808.85
B18: Springsure | C18: 205542.0667 | D18: 11220.76667 | E18: 148296.9833 | F18: 61583 | G18: 426642.8167
B19: Tambo | C19: 17527.63333 | D19: 31671.41667 | E19: 39149.23333 | G19: 88348.28333
B20: TAROOM | C20: 156785.7 | D20: 289583.0167 | E20: 103961.7167 | G20: 550330.4333
B21: Taroom Feeder | C21: 107612.9667 | D21: 14865 | E21: 11658 | G21: 134135.9667
B22: Grand Total | C22: 1683225.1 | D22: 1994267.5 | E22: 3635824.783 | F22: 149295.45 | G22: 7462612.833
B25: EVENT_YEAR | C25: 2017/18 to 2021/22
B26: AER_EXCLUSIONS | C26: AER Reportable
B27: OUTAGE_TYPE_CODE | C27: Unplanned/Forced
B28: AER_MED_EXCL_DESC | C28: (All)
B30: Feeder | C30: Less than 12 hours | D30: Between 12 and 24 hours | E30: Between 24 and 72 hours | F30: Greater than 72 hours | G30: Grand Total
B31: Alpha | C31: 3110024.067 | D31: 716563.0667 | E31: 647024.9833 | F31: 31627.78333 | G31: 4505239.9
B32: Aramac | C32: 2164015.883 | D32: 959185.35 | E32: 168719.45 | F32: 47950.13333 | G32: 3339870.817
B33: AUGATHELLA | C33: 1134656.417 | D33: 637700.5333 | E33: 128998.25 | F33: 347270.4667 | G33: 2248625.667
B34: DAINTREE | C34: 3411014.35 | D34: 2187459.267 | E34: 157369.7 | G34: 5755843.317
B35: Duaringa | C35: 1097730.767 | D35: 826301.4666 | E35: 142010.2333 | F35: 20458.81667 | G35: 2086501.283
B36: EULO | C36: 1290613.733 | D36: 1319437.933 | E36: 597207.0667 | F36: 214023.15 | G36: 3421281.883
B37: KARUMBA | C37: 980800.6 | D37: 287950.5333 | E37: 1158141.4 | G37: 2426892.533
B38: MORVEN | C38: 905385.0667 | D38: 920079.0333 | E38: 123671.8 | F38: 24353.16667 | G38: 1973489.067
B39: Northern | C39: 5623975.7 | D39: 2336387.067 | E39: 128853.2333 | F39: 571467.5167 | G39: 8660683.517
B40: POONA | C40: 2062762.6 | D40: 323801.75 | E40: 3113.133333 | G40: 2389677.483
B41: Rolleston | C41: 2384479.083 | D41: 300996.6833 | E41: 32394 | F41: 436886.3666 | G41: 3154756.133
B42: Springsure | C42: 442380.6 | D42: 307626.8333 | E42: 143429.7833 | F42: 13480.85 | G42: 906918.0667
B43: Tambo | C43: 1571613.2 | D43: 1270890.783 | E43: 277858.9667 | F43: 75760.8 | G43: 3196123.75
B44: TAROOM | C44: 1224288.567 | D44: 926165.6167 | E44: 578519.8167 | F44: 32233.38333 | G44: 2761207.383
B45: Taroom Feeder | C45: 1408545.633 | D45: 461980.7833 | E45: 263488.7667 | F45: 4705.483333 | G45: 2138720.667
B46: Grand Total | C46: 28812286.27 | D46: 13782526.7 | E46: 4550800.583 | F46: 1820217.917 | G46: 48965831.47
B49: Total CMIN
B51: Feeder | C51: Less than 12 hours | D51: Between 12 and 24 hours | E51: Between 24 and 72 hours | F51: Greater than 72 hours | G51: Grand Total
B52: Alpha | C52: =C7+C31 -> 3132449.017 | D52: =D7+D31 -> 936346.0833 | E52: 668291.9833 | F52: 31627.78333 | G52: 4768714.867
B53: Aramac | C53: =C8+C32 -> 2306821.433 | D53: 1142313.733 | E53: 580398.0167 | F53: 47950.13333 | G53: 4077483.317
B54: AUGATHELLA | C54: 1197444.483 | D54: 694704.6 | E54: 128998.25 | F54: 347270.4667 | G54: 2368417.8
B55: DAINTREE | C55: 3603873.633 | D55: 2187459.267 | E55: 2307526.117 | F55: 0 | G55: 8098859.017
B56: Duaringa | C56: 1112431.917 | D56: 887585.2833 | E56: 247361.0667 | F56: 20458.81667 | G56: 2267837.083
B57: EULO | C57: 1291374.317 | D57: 1320475.017 | E57: 598761.5667 | F57: 220122.95 | G57: 3430733.85
B58: KARUMBA | C58: 988875.8833 | D58: 287950.5333 | E58: 1158141.4 | F58: 0 | G58: 2434967.817
B59: MORVEN | C59: 934536.25 | D59: 959728.4333 | E59: 171567.05 | F59: 24353.16667 | G59: 2090184.9
B60: Northern | C60: 6056106.95 | D60: 3417174.433 | E60: 723709.5167 | F60: 653080.1667 | G60: 10850071.07
B61: POONA | C61: 2320267.35 | D61: 323801.75 | E61: 3113.133333 | F61: 0 | G61: 2647182.233
B62: Rolleston | C62: 2417033.767 | D62: 305250.85 | E62: 32394 | F62: 436886.3666 | G62: 3191564.983
B63: Springsure | C63: 647922.6667 | D63: 318847.6 | E63: 291726.7667 | F63: 75063.85 | G63: 1333560.883
B64: Tambo | C64: 1589140.833 | D64: 1302562.2 | E64: 317008.2 | F64: 75760.8 | G64: 3284472.033
B65: TAROOM | C65: 1381074.267 | D65: 1215748.633 | E65: 682481.5333 | F65: 32233.38333 | G65: 3311537.817
B66: Taroom Feeder | C66: 1516158.6 | D66: 476845.7833 | E66: 275146.7667 | F66: 4705.483333 | G66: 2272856.633
B67: Grand Total | C67: =C22+C46 -> 30495511.37 | D67: 15776794.2 | E67: 8186625.367 | F67: 1969513.367 | G67: 56428444.3

Sheet CECV_Cal>>

Sheet Cal
F2: PV Export Estimated (MW) | BC2: Index | BD2: Financial Year | BE2: Daily Maxmum | BF2: Implied Capacity Limit | BH2: Maximum Export With Curtailment(MW) | DE2: Curtailment (MW) | FC2: CECV (Real $ 2022) | GY2: CECV | GZ2: Financial Year
A3: REGION | B3: YEAR | C3: MONTH | D3: DAY | E3: Day of Week | F3: 1 | G3: 2 | H3: 3 | I3: 4 | J3: 5 | K3: 6 | L3: 7 | M3: 8 | N3: 9 | O3: 10 | P3: 11 | Q3: 12 | R3: 13 | S3: 14 | T3: 15 | U3: 16 | V3: 17 | W3: 18 | X3: 19 | Y3: 20 | Z3: 21 | AA3: 22 | AB3: 23 | AC3: 24 | AD3: 25 | AE3: 26 | AF3: 27 | AG3: 28 | AH3: 29 | AI3: 30 | AJ3: 31 | AK3: 32 | AL3: 33 | AM3: 34 | AN3: 35 | AO3: 36 | AP3: 37 | AQ3: 38 | AR3: 39 | AS3: 40 | AT3: 41 | AU3: 42 | AV3: 43 | AW3: 44 | AX3: 45 | AY3: 46 | AZ3: 47 | BA3: 48 | BH3: 1 | BI3: 2 | BJ3: 3 | BK3: 4 | BL3: 5 | BM3: 6 | BN3: 7 | BO3: 8 | BP3: 9 | BQ3: 10 | BR3: 11 | BS3: 12 | BT3: 13 | BU3: 14 | BV3: 15 | BW3: 16 | BX3: 17 | BY3: 18 | BZ3: 19 | CA3: 20 | CB3: 21 | CC3: 22 | CD3: 23 | CE3: 24 | CF3: 25 | CG3: 26 | CH3: 27 | CI3: 28 | CJ3: 29 | CK3: 30 | CL3: 31 | CM3: 32 | CN3: 33 | CO3: 34 | CP3: 35 | CQ3: 36 | CR3: 37 | CS3: 38 | CT3: 39 | CU3: 40 | CV3: 41 | CW3: 42 | CX3: 43 | CY3: 44 | CZ3: 45 | DA3: 46 | DB3: 47 | DC3: 48 | DE3: 1 | DF3: 2 | DG3: 3 | DH3: 4 | DI3: 5 | DJ3: 6 | DK3: 7 | DL3: 8 | DM3: 9 | DN3: 10 | DO3: 11 | DP3: 12 | DQ3: 13 | DR3: 14 | DS3: 15 | DT3: 16 | DU3: 17 | DV3: 18 | DW3: 19 | DX3: 20 | DY3: 21 | DZ3: 22 | EA3: 23 | EB3: 24 | EC3: 25 | ED3: 26 | EE3: 27 | EF3: 28 | EG3: 29 | EH3: 30 | EI3: 31 | EJ3: 32 | EK3: 33 | EL3: 34 | EM3: 35 | EN3: 36 | EO3: 37 | EP3: 38 | EQ3: 39 | ER3: 40 | ES3: 41 | ET3: 42 | EU3: 43 | EV3: 44 | EW3: 45 | EX3: 46 | EY3: 47 | EZ3: 48 | FA3: MWH | FB3: Day | FC3: 1 | FD3: 2 | FE3: 3 | FF3: 4 | FG3: 5 | FH3: 6 | FI3: 7 | FJ3: 8 | FK3: 9 | FL3: 10 | FM3: 11 | FN3: 12 | FO3: 13 | FP3: 14 | FQ3: 15 | FR3: 16 | FS3: 17 | FT3: 18 | FU3: 19 | FV3: 20 | FW3: 21 | FX3: 22 | FY3: 23 | FZ3: 24 | GA3: 25 | GB3: 26 | GC3: 27 | GD3: 28 | GE3: 29 | GF3: 30 | GG3: 31 | GH3: 32 | GI3: 33 | GJ3: 34 | GK3: 35 | GL3: 36 | GM3: 37 | GN3: 38 | GO3: 39 | GP3: 40 | GQ3: 41 | GR3: 42 | GS3: 43 | GT3: 44 | GU3: 45 | GV3: 46 | GW3: 47 | GX3: 48 | GY3: in $ | HE3: 2024 | HF3: =HE3+1 -> 2025 | HG3: 2026 | HH3: 2027 | HI3: 2028 | HJ3: 2029 | HK3: 2030 | HL3: 2031 | HM3: 2032 | HN3: 2033 | HO3: 2034 | HP3: 2035 | HQ3: 2036 | HR3: 2037 | HS3: 2038 | HT3: 2039 | HU3: 2040 | HV3: 2041 | HW3: 2042 | HX3: 2043 | HY3: 2044
A4: QLD1 | B4: 2022 | C4: 7 | D4: 1 | E4: Friday | F4: =Load_Data!D5 -> 0 | G4: =Load_Data!E5 -> 0 | H4: =Load_Data!F5 -> 0 | I4: =Load_Data!G5 -> 0 | J4: =Load_Data!H5 -> 0 | K4: =Load_Data!I5 -> 0 | L4: =Load_Data!J5 -> 0 | M4: =Load_Data!K5 -> 0 | N4: =Load_Data!L5 -> 0 | O4: =Load_Data!M5 -> 0 | P4: =Load_Data!N5 -> 0 | Q4: =Load_Data!O5 -> 0 | R4: =Load_Data!P5 -> 0 | S4: =Load_Data!Q5 -> 0.2866457772 | T4: =Load_Data!R5 -> 1.957926349 | U4: =Load_Data!S5 -> 5.93207534 | V4: =Load_Data!T5 -> 12.37930099 | W4: =Load_Data!U5 -> 18.9807165 | X4: =Load_Data!V5 -> 25.67100977 | Y4: =Load_Data!W5 -> 30.16947634 | Z4: =Load_Data!X5 -> 33.28449011 | AA4: =Load_Data!Y5 -> 36.62053302 | AB4: =Load_Data!Z5 -> 40.3350222 | AC4: =Load_Data!AA5 -> 38.12131932 | AD4: =Load_Data!AB5 -> 37.61225295 | AE4: =Load_Data!AC5 -> 33.16779361 | AF4: =Load_Data!AD5 -> 33.91898045 | AG4: =Load_Data!AE5 -> 30.36393333 | AH4: =Load_Data!AF5 -> 24.99968146 | AI4: =Load_Data!AG5 -> 17.567276 | AJ4: =Load_Data!AH5 -> 12.57783083 | AK4: =Load_Data!AI5 -> 8.954191645 | AL4: =Load_Data!AJ5 -> 5.319146943 | AM4: =Load_Data!AK5 -> 2.033411672 | AN4: =Load_Data!AL5 -> 0.6732464015 | AO4: =Load_Data!AM5 -> 0.4709416294 | AP4: =Load_Data!AN5 -> 0.2505748718 | AQ4: =Load_Data!AO5 -> 0.1252874359 | AR4: =Load_Data!AP5 -> 0 | AS4: =Load_Data!AQ5 -> 0 | AT4: =Load_Data!AR5 -> 0 | AU4: =Load_Data!AS5 -> 0 | AV4: =Load_Data!AT5 -> 0 | AW4: =Load_Data!AU5 -> 0 | AX4: =Load_Data!AV5 -> 0 | AY4: =Load_Data!AW5 -> 0 | AZ4: =Load_Data!AX5 -> 0 | BA4: =Load_Data!AY5 -> 0 | BC4: 1 | BD4: 2023 | BE4: =MAX(F4:BA4) -> 40.3350222 | BF4: 0 | BH4: =IF(F4>=$BF4,$BF4,F4) -> 0 | BI4: 0 | BJ4: 0 | BK4: 0 | BL4: 0 | BM4: 0 | BN4: 0 | BO4: 0 | BP4: 0 | BQ4: 0 | BR4: 0 | BS4: 0 | BT4: 0 | BU4: 0 | BV4: 0 | BW4: 0 | BX4: =IF(V4>=$BF4,$BF4,V4) -> 0 | BY4: 0 | BZ4: 0 | CA4: 0 | CB4: 0 | CC4: 0 | CD4: 0 | CE4: 0 | CF4: 0 | CG4: 0 | CH4: 0 | CI4: 0 | CJ4: 0 | CK4: 0 | CL4: 0 | CM4: 0 | CN4: =IF(AL4>=$BF4,$BF4,AL4) -> 0 | CO4: 0 | CP4: 0 | CQ4: 0 | CR4: 0 | CS4: 0 | CT4: 0 | CU4: 0 | CV4: 0 | CW4: 0 | CX4: 0 | CY4: 0 | CZ4: 0 | DA4: 0 | DB4: 0 | DC4: 0 | DE4: =F4-BH4 -> 0 | DF4: 0 | DG4: 0 | DH4: 0 | DI4: 0 | DJ4: 0 | DK4: 0 | DL4: 0 | DM4: 0 | DN4: 0 | DO4: 0 | DP4: 0 | DQ4: 0 | DR4: 0.2866457772 | DS4: 1.957926349 | DT4: 5.93207534 | DU4: =V4-BX4 -> 12.37930099 | DV4: 18.9807165 | DW4: 25.67100977 | DX4: 30.16947634 | DY4: 33.28449011 | DZ4: 36.62053302 | EA4: 40.3350222 | EB4: 38.12131932 | EC4: 37.61225295 | ED4: 33.16779361 | EE4: 33.91898045 | EF4: 30.36393333 | EG4: 24.99968146 | EH4: 17.567276 | EI4: 12.57783083 | EJ4: 8.954191645 | EK4: =AL4-CN4 -> 5.319146943 | EL4: 2.033411672 | EM4: 0.6732464015 | EN4: 0.4709416294 | EO4: 0.2505748718 | EP4: 0.1252874359 | EQ4: 0 | ER4: 0 | ES4: 0 | ET4: 0 | EU4: 0 | EV4: 0 | EW4: 0 | EX4: 0 | EY4: 0 | EZ4: 0 | FA4: =SUM(DE4:EZ4)/2 -> 225.8865325 | FB4: 1 | HD4: Solar CECV for 100MW System | HE4: =SUMIF(Cal!$GZ$4:$GZ$8033,HE3,Cal!$GY$4:$GY$8033) -> 10647566.22 | HF4: =SUMIF(Cal!$GZ$4:$GZ$8033,HF3,Cal!$GY$4:$GY$8033) -> 8943836.78 | HG4: =SUMIF(Cal!$GZ$4:$GZ$8033,HG3,Cal!$GY$4:$GY$8033) -> 8069913.713 | HH4: =SUMIF(Cal!$GZ$4:$GZ$8033,HH3,Cal!$GY$4:$GY$8033) -> 7621713.749 | HI4: =SUMIF(Cal!$GZ$4:$GZ$8033,HI3,Cal!$GY$4:$GY$8033) -> 7347245.442 | HJ4: =SUMIF(Cal!$GZ$4:$GZ$8033,HJ3,Cal!$GY$4:$GY$8033) -> 6786918.509 | HK4: =SUMIF(Cal!$GZ$4:$GZ$8033,HK3,Cal!$GY$4:$GY$8033) -> 8335234.804 | HL4: =SUMIF(Cal!$GZ$4:$GZ$8033,HL3,Cal!$GY$4:$GY$8033) -> 9956986.678 | HM4: =SUMIF(Cal!$GZ$4:$GZ$8033,HM3,Cal!$GY$4:$GY$8033) -> 9831023.711 | HN4: =SUMIF(Cal!$GZ$4:$GZ$8033,HN3,Cal!$GY$4:$GY$8033) -> 8951142.156 | HO4: =SUMIF(Cal!$GZ$4:$GZ$8033,HO3,Cal!$GY$4:$GY$8033) -> 8713895.368 | HP4: =SUMIF(Cal!$GZ$4:$GZ$8033,HP3,Cal!$GY$4:$GY$8033) -> 13018489.27 | HQ4: =SUMIF(Cal!$GZ$4:$GZ$8033,HQ3,Cal!$GY$4:$GY$8033) -> 14525026.76 | HR4: =SUMIF(Cal!$GZ$4:$GZ$8033,HR3,Cal!$GY$4:$GY$8033) -> 13283547.76 | HS4: =SUMIF(Cal!$GZ$4:$GZ$8033,HS3,Cal!$GY$4:$GY$8033) -> 8452837.28 | HT4: =SUMIF(Cal!$GZ$4:$GZ$8033,HT3,Cal!$GY$4:$GY$8033) -> 7101033.173 | HU4: =SUMIF(Cal!$GZ$4:$GZ$8033,HU3,Cal!$GY$4:$GY$8033) -> 12723582.2 | HV4: =SUMIF(Cal!$GZ$4:$GZ$8033,HV3,Cal!$GY$4:$GY$8033) -> 16421074.19 | HW4: =SUMIF(Cal!$GZ$4:$GZ$8033,HW3,Cal!$GY$4:$GY$8033) -> 10602594.41 | HX4: =SUMIF(Cal!$GZ$4:$GZ$8033,HX3,Cal!$GY$4:$GY$8033) -> 12130563.93 | HY4: =SUMIF(Cal!$GZ$4:$GZ$8033,HY3,Cal!$GY$4:$GY$8033) -> 12183179.97
A5: QLD1 | B5: 2022 | C5: 7 | D5: 2 | E5: Saturday | F5: =Load_Data!D6 -> 0 | G5: =Load_Data!E6 -> 0 | H5: =Load_Data!F6 -> 0 | I5: =Load_Data!G6 -> 0 | J5: =Load_Data!H6 -> 0 | K5: =Load_Data!I6 -> 0 | L5: =Load_Data!J6 -> 0 | M5: =Load_Data!K6 -> 0 | N5: =Load_Data!L6 -> 0 | O5: =Load_Data!M6 -> 0 | P5: =Load_Data!N6 -> 0 | Q5: =Load_Data!O6 -> 0 | R5: =Load_Data!P6 -> 0 | S5: =Load_Data!Q6 -> 0.3256833563 | T5: =Load_Data!R6 -> 1.285069234 | U5: =Load_Data!S6 -> 4.045862145 | V5: =Load_Data!T6 -> 8.418504722 | W5: =Load_Data!U6 -> 15.17041352 | X5: =Load_Data!V6 -> 19.65729606 | Y5: =Load_Data!W6 -> 24.64823235 | Z5: =Load_Data!X6 -> 29.92174628 | AA5: =Load_Data!Y6 -> 34.43966273 | AB5: =Load_Data!Z6 -> 41.83814355 | AC5: =Load_Data!AA6 -> 37.76894277 | AD5: =Load_Data!AB6 -> 35.88042719 | AE5: =Load_Data!AC6 -> 31.18554362 | AF5: =Load_Data!AD6 -> 34.85630897 | AG5: =Load_Data!AE6 -> 29.73983796 | AH5: =Load_Data!AF6 -> 27.05969697 | AI5: =Load_Data!AG6 -> 21.08404468 | AJ5: =Load_Data!AH6 -> 17.34603411 | AK5: =Load_Data!AI6 -> 9.871072675 | AL5: =Load_Data!AJ6 -> 5.932936271 | AM5: =Load_Data!AK6 -> 2.579647872 | AN5: =Load_Data!AL6 -> 1.055514474 | AO5: =Load_Data!AM6 -> 0.8345022146 | AP5: =Load_Data!AN6 -> 0.3702032616 | AQ5: =Load_Data!AO6 -> 0.1851016308 | AR5: =Load_Data!AP6 -> 0 | AS5: =Load_Data!AQ6 -> 0 | AT5: =Load_Data!AR6 -> 0 | AU5: =Load_Data!AS6 -> 0 | AV5: =Load_Data!AT6 -> 0 | AW5: =Load_Data!AU6 -> 0 | AX5: =Load_Data!AV6 -> 0 | AY5: =Load_Data!AW6 -> 0 | AZ5: =Load_Data!AX6 -> 0 | BA5: =Load_Data!AY6 -> 0 | BC5: =BC4+1 -> 2 | BD5: 2023 | BE5: 41.83814355 | BF5: 0 | BH5: 0 | BI5: 0 | BJ5: 0 | BK5: 0 | BL5: 0 | BM5: 0 | BN5: 0 | BO5: 0 | BP5: 0 | BQ5: 0 | BR5: 0 | BS5: 0 | BT5: 0 | BU5: 0 | BV5: 0 | BW5: 0 | BX5: 0 | BY5: 0 | BZ5: 0 | CA5: 0 | CB5: 0 | CC5: 0 | CD5: 0 | CE5: 0 | CF5: 0 | CG5: 0 | CH5: 0 | CI5: 0 | CJ5: 0 | CK5: 0 | CL5: 0 | CM5: 0 | CN5: 0 | CO5: 0 | CP5: 0 | CQ5: 0 | CR5: 0 | CS5: 0 | CT5: 0 | CU5: 0 | CV5: 0 | CW5: 0 | CX5: 0 | CY5: 0 | CZ5: 0 | DA5: 0 | DB5: 0 | DC5: 0 | DE5: 0 | DF5: 0 | DG5: 0 | DH5: 0 | DI5: 0 | DJ5: 0 | DK5: 0 | DL5: 0 | DM5: 0 | DN5: 0 | DO5: 0 | DP5: 0 | DQ5: 0 | DR5: 0.3256833563 | DS5: 1.285069234 | DT5: 4.045862145 | DU5: 8.418504722 | DV5: 15.17041352 | DW5: 19.65729606 | DX5: 24.64823235 | DY5: 29.92174628 | DZ5: 34.43966273 | EA5: 41.83814355 | EB5: 37.76894277 | EC5: 35.88042719 | ED5: 31.18554362 | EE5: 34.85630897 | EF5: 29.73983796 | EG5: 27.05969697 | EH5: 21.08404468 | EI5: 17.34603411 | EJ5: 9.871072675 | EK5: 5.932936271 | EL5: 2.579647872 | EM5: 1.055514474 | EN5: 0.8345022146 | EO5: 0.3702032616 | EP5: 0.1851016308 | EQ5: 0 | ER5: 0 | ES5: 0 | ET5: 0 | EU5: 0 | EV5: 0 | EW5: 0 | EX5: 0 | EY5: 0 | EZ5: 0 | FA5: =SUM(DE5:EZ5)/2 -> 217.7502143 | FB5: =FB4+1 -> 2
A6: QLD1 | B6: 2022 | C6: 7 | D6: 3 | E6: Sunday | F6: =Load_Data!D7 -> 0 | G6: =Load_Data!E7 -> 0 | H6: =Load_Data!F7 -> 0 | I6: =Load_Data!G7 -> 0 | J6: =Load_Data!H7 -> 0 | K6: =Load_Data!I7 -> 0 | L6: =Load_Data!J7 -> 0 | M6: =Load_Data!K7 -> 0 | N6: =Load_Data!L7 -> 0 | O6: =Load_Data!M7 -> 0 | P6: =Load_Data!N7 -> 0 | Q6: =Load_Data!O7 -> 0 | R6: =Load_Data!P7 -> 0 | S6: =Load_Data!Q7 -> 0.3087197927 | T6: =Load_Data!R7 -> 0.8541058307 | U6: =Load_Data!S7 -> 2.934226612 | V6: =Load_Data!T7 -> 7.091327132 | W6: =Load_Data!U7 -> 10.73972525 | X6: =Load_Data!V7 -> 15.45556155 | Y6: =Load_Data!W7 -> 18.72644002 | Z6: =Load_Data!X7 -> 26.68812408 | AA6: =Load_Data!Y7 -> 27.09121429 | AB6: =Load_Data!Z7 -> 36.16160093 | AC6: =Load_Data!AA7 -> 31.24741474 | AD6: =Load_Data!AB7 -> 29.66600097 | AE6: =Load_Data!AC7 -> 26.70100083 | AF6: =Load_Data!AD7 -> 31.11727068 | AG6: =Load_Data!AE7 -> 25.11616405 | AH6: =Load_Data!AF7 -> 23.70494499 | AI6: =Load_Data!AG7 -> 17.19437884 | AJ6: =Load_Data!AH7 -> 14.19639591 | AK6: =Load_Data!AI7 -> 11.04109449 | AL6: =Load_Data!AJ7 -> 7.026713896 | AM6: =Load_Data!AK7 -> 3.459813079 | AN6: =Load_Data!AL7 -> 1.124088568 | AO6: =Load_Data!AM7 -> 0.4279534654 | AP6: =Load_Data!AN7 -> 0.3132696356 | AQ6: =Load_Data!AO7 -> 0.1566348178 | AR6: =Load_Data!AP7 -> 0 | AS6: =Load_Data!AQ7 -> 0 | AT6: =Load_Data!AR7 -> 0 | AU6: =Load_Data!AS7 -> 0 | AV6: =Load_Data!AT7 -> 0 | AW6: =Load_Data!AU7 -> 0 | AX6: =Load_Data!AV7 -> 0 | AY6: =Load_Data!AW7 -> 0 | AZ6: =Load_Data!AX7 -> 0 | BA6: =Load_Data!AY7 -> 0 | BC6: =BC5+1 -> 3 | BD6: 2023 | BE6: 36.16160093 | BF6: 0 | BH6: 0 | BI6: 0 | BJ6: 0 | BK6: 0 | BL6: 0 | BM6: 0 | BN6: 0 | BO6: 0 | BP6: 0 | BQ6: 0 | BR6: 0 | BS6: 0 | BT6: 0 | BU6: 0 | BV6: 0 | BW6: 0 | BX6: 0 | BY6: 0 | BZ6: 0 | CA6: 0 | CB6: 0 | CC6: 0 | CD6: 0 | CE6: 0 | CF6: 0 | CG6: 0 | CH6: 0 | CI6: 0 | CJ6: 0 | CK6: 0 | CL6: 0 | CM6: 0 | CN6: 0 | CO6: 0 | CP6: 0 | CQ6: 0 | CR6: 0 | CS6: 0 | CT6: 0 | CU6: 0 | CV6: 0 | CW6: 0 | CX6: 0 | CY6: 0 | CZ6: 0 | DA6: 0 | DB6: 0 | DC6: 0 | DE6: 0 | DF6: 0 | DG6: 0 | DH6: 0 | DI6: 0 | DJ6: 0 | DK6: 0 | DL6: 0 | DM6: 0 | DN6: 0 | DO6: 0 | DP6: 0 | DQ6: 0 | DR6: 0.3087197927 | DS6: 0.8541058307 | DT6: 2.934226612 | DU6: 7.091327132 | DV6: 10.73972525 | DW6: 15.45556155 | DX6: 18.72644002 | DY6: 26.68812408 | DZ6: 27.09121429 | EA6: 36.16160093 | EB6: 31.24741474 | EC6: 29.66600097 | ED6: 26.70100083 | EE6: 31.11727068 | EF6: 25.11616405 | EG6: 23.70494499 | EH6: 17.19437884 | EI6: 14.19639591 | EJ6: 11.04109449 | EK6: 7.026713896 | EL6: 3.459813079 | EM6: 1.124088568 | EN6: 0.4279534654 | EO6: 0.3132696356 | EP6: 0.1566348178 | EQ6: 0 | ER6: 0 | ES6: 0 | ET6: 0 | EU6: 0 | EV6: 0 | EW6: 0 | EX6: 0 | EY6: 0 | EZ6: 0 | FA6: 184.2720922 | FB6: =FB5+1 -> 3
A7: QLD1 | B7: 2022 | C7: 7 | D7: 4 | E7: Monday | F7: =Load_Data!D8 -> 0 | G7: =Load_Data!E8 -> 0 | H7: =Load_Data!F8 -> 0 | I7: =Load_Data!G8 -> 0 | J7: =Load_Data!H8 -> 0 | K7: =Load_Data!I8 -> 0 | L7: =Load_Data!J8 -> 0 | M7: =Load_Data!K8 -> 0 | N7: =Load_Data!L8 -> 0 | O7: =Load_Data!M8 -> 0 | P7: =Load_Data!N8 -> 0 | Q7: =Load_Data!O8 -> 0 | R7: =Load_Data!P8 -> 0 | S7: =Load_Data!Q8 -> 0.2619602203 | T7: =Load_Data!R8 -> 1.506806328 | U7: =Load_Data!S8 -> 5.872602041 | V7: =Load_Data!T8 -> 13.90926458 | W7: =Load_Data!U8 -> 22.39980611 | X7: =Load_Data!V8 -> 31.85906173 | Y7: =Load_Data!W8 -> 42.31093359 | Z7: =Load_Data!X8 -> 48.76685821 | AA7: =Load_Data!Y8 -> 57.04475126 | AB7: =Load_Data!Z8 -> 61.18699595 | AC7: =Load_Data!AA8 -> 64.34596848 | AD7: =Load_Data!AB8 -> 65.38808305 | AE7: =Load_Data!AC8 -> 62.76086038 | AF7: =Load_Data!AD8 -> 58.55604864 | AG7: =Load_Data!AE8 -> 53.71979705 | AH7: =Load_Data!AF8 -> 49.43004954 | AI7: =Load_Data!AG8 -> 39.52157514 | AJ7: =Load_Data!AH8 -> 31.48959587 | AK7: =Load_Data!AI8 -> 22.09185767 | AL7: =Load_Data!AJ8 -> 13.22519059 | AM7: =Load_Data!AK8 -> 6.040584503 | AN7: =Load_Data!AL8 -> 1.717915253 | AO7: =Load_Data!AM8 -> 0.9520216025 | AP7: =Load_Data!AN8 -> 0.4766674087 | AQ7: =Load_Data!AO8 -> 0.2383337043 | AR7: =Load_Data!AP8 -> 0 | AS7: =Load_Data!AQ8 -> 0 | AT7: =Load_Data!AR8 -> 0 | AU7: =Load_Data!AS8 -> 0 | AV7: =Load_Data!AT8 -> 0 | AW7: =Load_Data!AU8 -> 0 | AX7: =Load_Data!AV8 -> 0 | AY7: =Load_Data!AW8 -> 0 | AZ7: =Load_Data!AX8 -> 0 | BA7: =Load_Data!AY8 -> 0 | BC7: 4 | BD7: 2023 | BE7: 65.38808305 | BF7: 0 | BH7: 0 | BI7: 0 | BJ7: 0 | BK7: 0 | BL7: 0 | BM7: 0 | BN7: 0 | BO7: 0 | BP7: 0 | BQ7: 0 | BR7: 0 | BS7: 0 | BT7: 0 | BU7: 0 | BV7: 0 | BW7: 0 | BX7: 0 | BY7: 0 | BZ7: 0 | CA7: 0 | CB7: 0 | CC7: 0 | CD7: 0 | CE7: 0 | CF7: 0 | CG7: 0 | CH7: 0 | CI7: 0 | CJ7: 0 | CK7: 0 | CL7: 0 | CM7: 0 | CN7: 0 | CO7: 0 | CP7: 0 | CQ7: 0 | CR7: 0 | CS7: 0 | CT7: 0 | CU7: 0 | CV7: 0 | CW7: 0 | CX7: 0 | CY7: 0 | CZ7: 0 | DA7: 0 | DB7: 0 | DC7: 0 | DE7: 0 | DF7: 0 | DG7: 0 | DH7: 0 | DI7: 0 | DJ7: 0 | DK7: 0 | DL7: 0 | DM7: 0 | DN7: 0 | DO7: 0 | DP7: 0 | DQ7: 0 | DR7: 0.2619602203 | DS7: 1.506806328 | DT7: 5.872602041 | DU7: 13.90926458 | DV7: 22.39980611 | DW7: 31.85906173 | DX7: 42.31093359 | DY7: 48.76685821 | DZ7: 57.04475126 | EA7: 61.18699595 | EB7: 64.34596848 | EC7: 65.38808305 | ED7: 62.76086038 | EE7: 58.55604864 | EF7: 53.71979705 | EG7: 49.43004954 | EH7: 39.52157514 | EI7: 31.48959587 | EJ7: 22.09185767 | EK7: 13.22519059 | EL7: 6.040584503 | EM7: 1.717915253 | EN7: 0.9520216025 | EO7: 0.4766674087 | EP7: 0.2383337043 | EQ7: 0 | ER7: 0 | ES7: 0 | ET7: 0 | EU7: 0 | EV7: 0 | EW7: 0 | EX7: 0 | EY7: 0 | EZ7: 0 | FA7: 377.5367944 | FB7: 4
A8: QLD1 | B8: 2022 | C8: 7 | D8: 5 | E8: Tuesday | F8: =Load_Data!D9 -> 0 | G8: =Load_Data!E9 -> 0 | H8: =Load_Data!F9 -> 0 | I8: =Load_Data!G9 -> 0 | J8: =Load_Data!H9 -> 0 | K8: =Load_Data!I9 -> 0 | L8: =Load_Data!J9 -> 0 | M8: =Load_Data!K9 -> 0 | N8: =Load_Data!L9 -> 0 | O8: =Load_Data!M9 -> 0 | P8: =Load_Data!N9 -> 0 | Q8: =Load_Data!O9 -> 0 | R8: =Load_Data!P9 -> 0 | S8: =Load_Data!Q9 -> 0.5497342345 | T8: =Load_Data!R9 -> 2.079917391 | U8: =Load_Data!S9 -> 8.342897357 | V8: =Load_Data!T9 -> 16.85024114 | W8: =Load_Data!U9 -> 26.11008253 | X8: =Load_Data!V9 -> 35.85308346 | Y8: =Load_Data!W9 -> 45.46233408 | Z8: =Load_Data!X9 -> 53.50052316 | AA8: =Load_Data!Y9 -> 58.92060418 | AB8: =Load_Data!Z9 -> 63.20242629 | AC8: =Load_Data!AA9 -> 63.78311445 | AD8: =Load_Data!AB9 -> 64.61141139 | AE8: =Load_Data!AC9 -> 64.24638781 | AF8: =Load_Data!AD9 -> 61.36776196 | AG8: =Load_Data!AE9 -> 56.88624006 | AH8: =Load_Data!AF9 -> 51.09254335 | AI8: =Load_Data!AG9 -> 42.50091826 | AJ8: =Load_Data!AH9 -> 32.80149538 | AK8: =Load_Data!AI9 -> 22.78015184 | AL8: =Load_Data!AJ9 -> 13.7091053 | AM8: =Load_Data!AK9 -> 5.921937804 | AN8: =Load_Data!AL9 -> 1.315913621 | AO8: =Load_Data!AM9 -> 0.6460988899 | AP8: =Load_Data!AN9 -> 0.4040154394 | AQ8: =Load_Data!AO9 -> 0.2020077197 | AR8: =Load_Data!AP9 -> 0 | AS8: =Load_Data!AQ9 -> 0 | AT8: =Load_Data!AR9 -> 0 | AU8: =Load_Data!AS9 -> 0 | AV8: =Load_Data!AT9 -> 0 | AW8: =Load_Data!AU9 -> 0 | AX8: =Load_Data!AV9 -> 0 | AY8: =Load_Data!AW9 -> 0 | AZ8: =Load_Data!AX9 -> 0 | BA8: =Load_Data!AY9 -> 0 | BC8: 5 | BD8: 2023 | BE8: 64.61141139 | BF8: 0 | BH8: 0 | BI8: 0 | BJ8: 0 | BK8: 0 | BL8: 0 | BM8: 0 | BN8: 0 | BO8: 0 | BP8: 0 | BQ8: 0 | BR8: 0 | BS8: 0 | BT8: 0 | BU8: 0 | BV8: 0 | BW8: 0 | BX8: 0 | BY8: 0 | BZ8: 0 | CA8: 0 | CB8: 0 | CC8: 0 | CD8: 0 | CE8: 0 | CF8: 0 | CG8: 0 | CH8: 0 | CI8: 0 | CJ8: 0 | CK8: 0 | CL8: 0 | CM8: 0 | CN8: 0 | CO8: 0 | CP8: 0 | CQ8: 0 | CR8: 0 | CS8: 0 | CT8: 0 | CU8: 0 | CV8: 0 | CW8: 0 | CX8: 0 | CY8: 0 | CZ8: 0 | DA8: 0 | DB8: 0 | DC8: 0 | DE8: 0 | DF8: 0 | DG8: 0 | DH8: 0 | DI8: 0 | DJ8: 0 | DK8: 0 | DL8: 0 | DM8: 0 | DN8: 0 | DO8: 0 | DP8: 0 | DQ8: 0 | DR8: 0.5497342345 | DS8: 2.079917391 | DT8: 8.342897357 | DU8: 16.85024114 | DV8: 26.11008253 | DW8: 35.85308346 | DX8: 45.46233408 | DY8: 53.50052316 | DZ8: 58.92060418 | EA8: 63.20242629 | EB8: 63.78311445 | EC8: 64.61141139 | ED8: 64.24638781 | EE8: 61.36776196 | EF8: 56.88624006 | EG8: 51.09254335 | EH8: 42.50091826 | EI8: 32.80149538 | EJ8: 22.78015184 | EK8: 13.7091053 | EL8: 5.921937804 | EM8: 1.315913621 | EN8: 0.6460988899 | EO8: 0.4040154394 | EP8: 0.2020077197 | EQ8: 0 | ER8: 0 | ES8: 0 | ET8: 0 | EU8: 0 | EV8: 0 | EW8: 0 | EX8: 0 | EY8: 0 | EZ8: 0 | FA8: 396.5704735 | FB8: 5
A9: QLD1 | B9: 2022 | C9: 7 | D9: 6 | E9: Wednesday | F9: =Load_Data!D10 -> 0 | G9: =Load_Data!E10 -> 0 | H9: =Load_Data!F10 -> 0 | I9: =Load_Data!G10 -> 0 | J9: =Load_Data!H10 -> 0 | K9: =Load_Data!I10 -> 0 | L9: =Load_Data!J10 -> 0 | M9: =Load_Data!K10 -> 0 | N9: =Load_Data!L10 -> 0 | O9: =Load_Data!M10 -> 0 | P9: =Load_Data!N10 -> 0 | Q9: =Load_Data!O10 -> 0 | R9: =Load_Data!P10 -> 0 | S9: =Load_Data!Q10 -> 0.4334983183 | T9: =Load_Data!R10 -> 2.290213616 | U9: =Load_Data!S10 -> 9.017437248 | V9: =Load_Data!T10 -> 15.78992195 | W9: =Load_Data!U10 -> 22.89579869 | X9: =Load_Data!V10 -> 31.46801666 | Y9: =Load_Data!W10 -> 37.55899129 | Z9: =Load_Data!X10 -> 45.01946596 | AA9: =Load_Data!Y10 -> 48.70896233 | AB9: =Load_Data!Z10 -> 51.74320393 | AC9: =Load_Data!AA10 -> 55.58986476 | AD9: =Load_Data!AB10 -> 57.16012401 | AE9: =Load_Data!AC10 -> 50.47034842 | AF9: =Load_Data!AD10 -> 48.79198531 | AG9: =Load_Data!AE10 -> 43.94642818 | AH9: =Load_Data!AF10 -> 41.43803038 | AI9: =Load_Data!AG10 -> 33.04261192 | AJ9: =Load_Data!AH10 -> 26.45001404 | AK9: =Load_Data!AI10 -> 16.94339517 | AL9: =Load_Data!AJ10 -> 9.784763526 | AM9: =Load_Data!AK10 -> 3.863851014 | AN9: =Load_Data!AL10 -> 0.945459258 | AO9: =Load_Data!AM10 -> 0.6608062601 | AP9: =Load_Data!AN10 -> 0.4241051738 | AQ9: =Load_Data!AO10 -> 0.2120525869 | AR9: =Load_Data!AP10 -> 0 | AS9: =Load_Data!AQ10 -> 0 | AT9: =Load_Data!AR10 -> 0 | AU9: =Load_Data!AS10 -> 0 | AV9: =Load_Data!AT10 -> 0 | AW9: =Load_Data!AU10 -> 0 | AX9: =Load_Data!AV10 -> 0 | AY9: =Load_Data!AW10 -> 0 | AZ9: =Load_Data!AX10 -> 0 | BA9: =Load_Data!AY10 -> 0 | BC9: 6 | BD9: 2023 | BE9: 57.16012401 | BF9: 0 | BH9: 0 | BI9: 0 | BJ9: 0 | BK9: 0 | BL9: 0 | BM9: 0 | BN9: 0 | BO9: 0 | BP9: 0 | BQ9: 0 | BR9: 0 | BS9: 0 | BT9: 0 | BU9: 0 | BV9: 0 | BW9: 0 | BX9: 0 | BY9: 0 | BZ9: 0 | CA9: 0 | CB9: 0 | CC9: 0 | CD9: 0 | CE9: 0 | CF9: 0 | CG9: 0 | CH9: 0 | CI9: 0 | CJ9: 0 | CK9: 0 | CL9: 0 | CM9: 0 | CN9: 0 | CO9: 0 | CP9: 0 | CQ9: 0 | CR9: 0 | CS9: 0 | CT9: 0 | CU9: 0 | CV9: 0 | CW9: 0 | CX9: 0 | CY9: 0 | CZ9: 0 | DA9: 0 | DB9: 0 | DC9: 0 | DE9: 0 | DF9: 0 | DG9: 0 | DH9: 0 | DI9: 0 | DJ9: 0 | DK9: 0 | DL9: 0 | DM9: 0 | DN9: 0 | DO9: 0 | DP9: 0 | DQ9: 0 | DR9: 0.4334983183 | DS9: 2.290213616 | DT9: 9.017437248 | DU9: 15.78992195 | DV9: 22.89579869 | DW9: 31.46801666 | DX9: 37.55899129 | DY9: 45.01946596 | DZ9: 48.70896233 | EA9: 51.74320393 | EB9: 55.58986476 | EC9: 57.16012401 | ED9: 50.47034842 | EE9: 48.79198531 | EF9: 43.94642818 | EG9: 41.43803038 | EH9: 33.04261192 | EI9: 26.45001404 | EJ9: 16.94339517 | EK9: 9.784763526 | EL9: 3.863851014 | EM9: 0.945459258 | EN9: 0.6608062601 | EO9: 0.4241051738 | EP9: 0.2120525869 | EQ9: 0 | ER9: 0 | ES9: 0 | ET9: 0 | EU9: 0 | EV9: 0 | EW9: 0 | EX9: 0 | EY9: 0 | EZ9: 0 | FA9: 327.324675 | FB9: 6
A10: QLD1 | B10: 2022 | C10: 7 | D10: 7 | E10: Thursday | F10: =Load_Data!D11 -> 0 | G10: =Load_Data!E11 -> 0 | H10: =Load_Data!F11 -> 0 | I10: =Load_Data!G11 -> 0 | J10: =Load_Data!H11 -> 0 | K10: =Load_Data!I11 -> 0 | L10: =Load_Data!J11 -> 0 | M10: =Load_Data!K11 -> 0 | N10: =Load_Data!L11 -> 0 | O10: =Load_Data!M11 -> 0 | P10: =Load_Data!N11 -> 0 | Q10: =Load_Data!O11 -> 0 | R10: =Load_Data!P11 -> 0 | S10: =Load_Data!Q11 -> 0.4186847541 | T10: =Load_Data!R11 -> 2.459037824 | U10: =Load_Data!S11 -> 8.307791487 | V10: =Load_Data!T11 -> 15.59481598 | W10: =Load_Data!U11 -> 24.4103171 | X10: =Load_Data!V11 -> 32.58034563 | Y10: =Load_Data!W11 -> 40.13809951 | Z10: =Load_Data!X11 -> 45.33610214 | AA10: =Load_Data!Y11 -> 49.77648409 | AB10: =Load_Data!Z11 -> 52.95974652 | AC10: =Load_Data!AA11 -> 55.0623285 | AD10: =Load_Data!AB11 -> 52.85027729 | AE10: =Load_Data!AC11 -> 51.46182118 | AF10: =Load_Data!AD11 -> 53.97377512 | AG10: =Load_Data!AE11 -> 49.22301054 | AH10: =Load_Data!AF11 -> 41.44558672 | AI10: =Load_Data!AG11 -> 32.38982563 | AJ10: =Load_Data!AH11 -> 24.35765276 | AK10: =Load_Data!AI11 -> 16.10830546 | AL10: =Load_Data!AJ11 -> 9.593077538 | AM10: =Load_Data!AK11 -> 3.824244906 | AN10: =Load_Data!AL11 -> 1.081384887 | AO10: =Load_Data!AM11 -> 0.6797859719 | AP10: =Load_Data!AN11 -> 0.3598815826 | AQ10: =Load_Data!AO11 -> 0.1799407913 | AR10: =Load_Data!AP11 -> 0 | AS10: =Load_Data!AQ11 -> 0 | AT10: =Load_Data!AR11 -> 0 | AU10: =Load_Data!AS11 -> 0 | AV10: =Load_Data!AT11 -> 0 | AW10: =Load_Data!AU11 -> 0 | AX10: =Load_Data!AV11 -> 0 | AY10: =Load_Data!AW11 -> 0 | AZ10: =Load_Data!AX11 -> 0 | BA10: =Load_Data!AY11 -> 0 | BC10: 7 | BD10: 2023 | BE10: 55.0623285 | BF10: 0 | BH10: 0 | BI10: 0 | BJ10: 0 | BK10: 0 | BL10: 0 | BM10: 0 | BN10: 0 | BO10: 0 | BP10: 0 | BQ10: 0 | BR10: 0 | BS10: 0 | BT10: 0 | BU10: 0 | BV10: 0 | BW10: 0 | BX10: 0 | BY10: 0 | BZ10: 0 | CA10: 0 | CB10: 0 | CC10: 0 | CD10: 0 | CE10: 0 | CF10: 0 | CG10: 0 | CH10: 0 | CI10: 0 | CJ10: 0 | CK10: 0 | CL10: 0 | CM10: 0 | CN10: 0 | CO10: 0 | CP10: 0 | CQ10: 0 | CR10: 0 | CS10: 0 | CT10: 0 | CU10: 0 | CV10: 0 | CW10: 0 | CX10: 0 | CY10: 0 | CZ10: 0 | DA10: 0 | DB10: 0 | DC10: 0 | DE10: 0 | DF10: 0 | DG10: 0 | DH10: 0 | DI10: 0 | DJ10: 0 | DK10: 0 | DL10: 0 | DM10: 0 | DN10: 0 | DO10: 0 | DP10: 0 | DQ10: 0 | DR10: 0.4186847541 | DS10: 2.459037824 | DT10: 8.307791487 | DU10: 15.59481598 | DV10: 24.4103171 | DW10: 32.58034563 | DX10: 40.13809951 | DY10: 45.33610214 | DZ10: 49.77648409 | EA10: 52.95974652 | EB10: 55.0623285 | EC10: 52.85027729 | ED10: 51.46182118 | EE10: 53.97377512 | EF10: 49.22301054 | EG10: 41.44558672 | EH10: 32.38982563 | EI10: 24.35765276 | EJ10: 16.10830546 | EK10: 9.593077538 | EL10: 3.824244906 | EM10: 1.081384887 | EN10: 0.6797859719 | EO10: 0.3598815826 | EP10: 0.1799407913 | EQ10: 0 | ER10: 0 | ES10: 0 | ET10: 0 | EU10: 0 | EV10: 0 | EW10: 0 | EX10: 0 | EY10: 0 | EZ10: 0 | FA10: 332.286162 | FB10: 7
A11: QLD1 | B11: 2022 | C11: 7 | D11: 8 | E11: Friday | F11: =Load_Data!D12 -> 0 | G11: =Load_Data!E12 -> 0 | H11: =Load_Data!F12 -> 0 | I11: =Load_Data!G12 -> 0 | J11: =Load_Data!H12 -> 0 | K11: =Load_Data!I12 -> 0 | L11: =Load_Data!J12 -> 0 | M11: =Load_Data!K12 -> 0 | N11: =Load_Data!L12 -> 0 | O11: =Load_Data!M12 -> 0 | P11: =Load_Data!N12 -> 0 | Q11: =Load_Data!O12 -> 0 | R11: =Load_Data!P12 -> 0 | S11: =Load_Data!Q12 -> 0.3408942277 | T11: =Load_Data!R12 -> 2.029074982 | U11: =Load_Data!S12 -> 6.449203243 | V11: =Load_Data!T12 -> 12.55598253 | W11: =Load_Data!U12 -> 20.76957328 | X11: =Load_Data!V12 -> 28.97282552 | Y11: =Load_Data!W12 -> 35.70480913 | Z11: =Load_Data!X12 -> 40.26045223 | AA11: =Load_Data!Y12 -> 44.41374356 | AB11: =Load_Data!Z12 -> 45.96148347 | AC11: =Load_Data!AA12 -> 45.51862787 | AD11: =Load_Data!AB12 -> 49.01261712 | AE11: =Load_Data!AC12 -> 46.70982309 | AF11: =Load_Data!AD12 -> 44.54289829 | AG11: =Load_Data!AE12 -> 37.45989872 | AH11: =Load_Data!AF12 -> 30.85782888 | AI11: =Load_Data!AG12 -> 24.20606927 | AJ11: =Load_Data!AH12 -> 18.69741253 | AK11: =Load_Data!AI12 -> 13.27335774 | AL11: =Load_Data!AJ12 -> 7.3249019 | AM11: =Load_Data!AK12 -> 2.955835394 | AN11: =Load_Data!AL12 -> 0.9736079139 | AO11: =Load_Data!AM12 -> 0.9584275003 | AP11: =Load_Data!AN12 -> 0.367600484 | AQ11: =Load_Data!AO12 -> 0.183800242 | AR11: =Load_Data!AP12 -> 0 | AS11: =Load_Data!AQ12 -> 0 | AT11: =Load_Data!AR12 -> 0 | AU11: =Load_Data!AS12 -> 0 | AV11: =Load_Data!AT12 -> 0 | AW11: =Load_Data!AU12 -> 0 | AX11: =Load_Data!AV12 -> 0 | AY11: =Load_Data!AW12 -> 0 | AZ11: =Load_Data!AX12 -> 0 | BA11: =Load_Data!AY12 -> 0 | BC11: 8 | BD11: 2023 | BE11: 49.01261712 | BF11: 0 | BH11: 0 | BI11: 0 | BJ11: 0 | BK11: 0 | BL11: 0 | BM11: 0 | BN11: 0 | BO11: 0 | BP11: 0 | BQ11: 0 | BR11: 0 | BS11: 0 | BT11: 0 | BU11: 0 | BV11: 0 | BW11: 0 | BX11: 0 | BY11: 0 | BZ11: 0 | CA11: 0 | CB11: 0 | CC11: 0 | CD11: 0 | CE11: 0 | CF11: 0 | CG11: 0 | CH11: 0 | CI11: 0 | CJ11: 0 | CK11: 0 | CL11: 0 | CM11: 0 | CN11: 0 | CO11: 0 | CP11: 0 | CQ11: 0 | CR11: 0 | CS11: 0 | CT11: 0 | CU11: 0 | CV11: 0 | CW11: 0 | CX11: 0 | CY11: 0 | CZ11: 0 | DA11: 0 | DB11: 0 | DC11: 0 | DE11: 0 | DF11: 0 | DG11: 0 | DH11: 0 | DI11: 0 | DJ11: 0 | DK11: 0 | DL11: 0 | DM11: 0 | DN11: 0 | DO11: 0 | DP11: 0 | DQ11: 0 | DR11: 0.3408942277 | DS11: 2.029074982 | DT11: 6.449203243 | DU11: 12.55598253 | DV11: 20.76957328 | DW11: 28.97282552 | DX11: 35.70480913 | DY11: 40.26045223 | DZ11: 44.41374356 | EA11: 45.96148347 | EB11: 45.51862787 | EC11: 49.01261712 | ED11: 46.70982309 | EE11: 44.54289829 | EF11: 37.45989872 | EG11: 30.85782888 | EH11: 24.20606927 | EI11: 18.69741253 | EJ11: 13.27335774 | EK11: 7.3249019 | EL11: 2.955835394 | EM11: 0.9736079139 | EN11: 0.9584275003 | EO11: 0.367600484 | EP11: 0.183800242 | EQ11: 0 | ER11: 0 | ES11: 0 | ET11: 0 | EU11: 0 | EV11: 0 | EW11: 0 | EX11: 0 | EY11: 0 | EZ11: 0 | FA11: 280.2503746 | FB11: 8
A12: QLD1 | B12: 2022 | C12: 7 | D12: 9 | E12: Saturday | F12: =Load_Data!D13 -> 0 | G12: =Load_Data!E13 -> 0 | H12: =Load_Data!F13 -> 0 | I12: =Load_Data!G13 -> 0 | J12: =Load_Data!H13 -> 0 | K12: =Load_Data!I13 -> 0 | L12: =Load_Data!J13 -> 0 | M12: =Load_Data!K13 -> 0 | N12: =Load_Data!L13 -> 0 | O12: =Load_Data!M13 -> 0 | P12: =Load_Data!N13 -> 0 | Q12: =Load_Data!O13 -> 0 | R12: =Load_Data!P13 -> 0 | S12: =Load_Data!Q13 -> 0.2882379956 | T12: =Load_Data!R13 -> 1.533533789 | U12: =Load_Data!S13 -> 3.72109405 | V12: =Load_Data!T13 -> 7.516241351 | W12: =Load_Data!U13 -> 10.70164105 | X12: =Load_Data!V13 -> 15.13894365 | Y12: =Load_Data!W13 -> 18.43567227 | Z12: =Load_Data!X13 -> 24.10742728 | AA12: =Load_Data!Y13 -> 26.61978426 | AB12: =Load_Data!Z13 -> 36.46251321 | AC12: =Load_Data!AA13 -> 32.25249027 | AD12: =Load_Data!AB13 -> 40.44323576 | AE12: =Load_Data!AC13 -> 42.1212691 | AF12: =Load_Data!AD13 -> 47.09229934 | AG12: =Load_Data!AE13 -> 38.10572759 | AH12: =Load_Data!AF13 -> 35.47798527 | AI12: =Load_Data!AG13 -> 34.29029787 | AJ12: =Load_Data!AH13 -> 32.29726527 | AK12: =Load_Data!AI13 -> 21.36131317 | AL12: =Load_Data!AJ13 -> 11.75654205 | AM12: =Load_Data!AK13 -> 5.205685296 | AN12: =Load_Data!AL13 -> 1.347971454 | AO12: =Load_Data!AM13 -> 0.9866298953 | AP12: =Load_Data!AN13 -> 0.4364772623 | AQ12: =Load_Data!AO13 -> 0.2182386311 | AR12: =Load_Data!AP13 -> 0 | AS12: =Load_Data!AQ13 -> 0 | AT12: =Load_Data!AR13 -> 0 | AU12: =Load_Data!AS13 -> 0 | AV12: =Load_Data!AT13 -> 0 | AW12: =Load_Data!AU13 -> 0 | AX12: =Load_Data!AV13 -> 0 | AY12: =Load_Data!AW13 -> 0 | AZ12: =Load_Data!AX13 -> 0 | BA12: =Load_Data!AY13 -> 0 | BC12: 9 | BD12: 2023 | BE12: 47.09229934 | BF12: 0 | BH12: 0 | BI12: 0 | BJ12: 0 | BK12: 0 | BL12: 0 | BM12: 0 | BN12: 0 | BO12: 0 | BP12: 0 | BQ12: 0 | BR12: 0 | BS12: 0 | BT12: 0 | BU12: 0 | BV12: 0 | BW12: 0 | BX12: 0 | BY12: 0 | BZ12: 0 | CA12: 0 | CB12: 0 | CC12: 0 | CD12: 0 | CE12: 0 | CF12: 0 | CG12: 0 | CH12: 0 | CI12: 0 | CJ12: 0 | CK12: 0 | CL12: 0 | CM12: 0 | CN12: 0 | CO12: 0 | CP12: 0 | CQ12: 0 | CR12: 0 | CS12: 0 | CT12: 0 | CU12: 0 | CV12: 0 | CW12: 0 | CX12: 0 | CY12: 0 | CZ12: 0 | DA12: 0 | DB12: 0 | DC12: 0 | DE12: 0 | DF12: 0 | DG12: 0 | DH12: 0 | DI12: 0 | DJ12: 0 | DK12: 0 | DL12: 0 | DM12: 0 | DN12: 0 | DO12: 0 | DP12: 0 | DQ12: 0 | DR12: 0.2882379956 | DS12: 1.533533789 | DT12: 3.72109405 | DU12: 7.516241351 | DV12: 10.70164105 | DW12: 15.13894365 | DX12: 18.43567227 | DY12: 24.10742728 | DZ12: 26.61978426 | EA12: 36.46251321 | EB12: 32.25249027 | EC12: 40.44323576 | ED12: 42.1212691 | EE12: 47.09229934 | EF12: 38.10572759 | EG12: 35.47798527 | EH12: 34.29029787 | EI12: 32.29726527 | EJ12: 21.36131317 | EK12: 11.75654205 | EL12: 5.205685296 | EM12: 1.347971454 | EN12: 0.9866298953 | EO12: 0.4364772623 | EP12: 0.2182386311 | EQ12: 0 | ER12: 0 | ES12: 0 | ET12: 0 | EU12: 0 | EV12: 0 | EW12: 0 | EX12: 0 | EY12: 0 | EZ12: 0 | FA12: 243.9592586 | FB12: 9
A13: QLD1 | B13: 2022 | C13: 7 | D13: 10 | E13: Sunday | F13: =Load_Data!D14 -> 0 | G13: =Load_Data!E14 -> 0 | H13: =Load_Data!F14 -> 0 | I13: =Load_Data!G14 -> 0 | J13: =Load_Data!H14 -> 0 | K13: =Load_Data!I14 -> 0 | L13: =Load_Data!J14 -> 0 | M13: =Load_Data!K14 -> 0 | N13: =Load_Data!L14 -> 0 | O13: =Load_Data!M14 -> 0 | P13: =Load_Data!N14 -> 0 | Q13: =Load_Data!O14 -> 0 | R13: =Load_Data!P14 -> 0 | S13: =Load_Data!Q14 -> 0.5411478601 | T13: =Load_Data!R14 -> 2.849899507 | U13: =Load_Data!S14 -> 10.62134998 | V13: =Load_Data!T14 -> 19.36383486 | W13: =Load_Data!U14 -> 28.28867913 | X13: =Load_Data!V14 -> 37.94357057 | Y13: =Load_Data!W14 -> 48.3659768 | Z13: =Load_Data!X14 -> 55.42124213 | AA13: =Load_Data!Y14 -> 60.77284427 | AB13: =Load_Data!Z14 -> 64.41404219 | AC13: =Load_Data!AA14 -> 67.9180316 | AD13: =Load_Data!AB14 -> 68.91241763 | AE13: =Load_Data!AC14 -> 68.95910619 | AF13: =Load_Data!AD14 -> 67.24074464 | AG13: =Load_Data!AE14 -> 62.79759372 | AH13: =Load_Data!AF14 -> 55.89009139 | AI13: =Load_Data!AG14 -> 46.45479009 | AJ13: =Load_Data!AH14 -> 35.995587 | AK13: =Load_Data!AI14 -> 25.37156884 | AL13: =Load_Data!AJ14 -> 15.59029664 | AM13: =Load_Data!AK14 -> 6.878103161 | AN13: =Load_Data!AL14 -> 1.824204797 | AO13: =Load_Data!AM14 -> 0.5576862512 | AP13: =Load_Data!AN14 -> 0.5071090278 | AQ13: =Load_Data!AO14 -> 0.2535545139 | AR13: =Load_Data!AP14 -> 0 | AS13: =Load_Data!AQ14 -> 0 | AT13: =Load_Data!AR14 -> 0 | AU13: =Load_Data!AS14 -> 0 | AV13: =Load_Data!AT14 -> 0 | AW13: =Load_Data!AU14 -> 0 | AX13: =Load_Data!AV14 -> 0 | AY13: =Load_Data!AW14 -> 0 | AZ13: =Load_Data!AX14 -> 0 | BA13: =Load_Data!AY14 -> 0 | BC13: 10 | BD13: 2023 | BE13: 68.95910619 | BF13: 0 | BH13: 0 | BI13: 0 | BJ13: 0 | BK13: 0 | BL13: 0 | BM13: 0 | BN13: 0 | BO13: 0 | BP13: 0 | BQ13: 0 | BR13: 0 | BS13: 0 | BT13: 0 | BU13: 0 | BV13: 0 | BW13: 0 | BX13: 0 | BY13: 0 | BZ13: 0 | CA13: 0 | CB13: 0 | CC13: 0 | CD13: 0 | CE13: 0 | CF13: 0 | CG13: 0 | CH13: 0 | CI13: 0 | CJ13: 0 | CK13: 0 | CL13: 0 | CM13: 0 | CN13: 0 | CO13: 0 | CP13: 0 | CQ13: 0 | CR13: 0 | CS13: 0 | CT13: 0 | CU13: 0 | CV13: 0 | CW13: 0 | CX13: 0 | CY13: 0 | CZ13: 0 | DA13: 0 | DB13: 0 | DC13: 0 | DE13: 0 | DF13: 0 | DG13: 0 | DH13: 0 | DI13: 0 | DJ13: 0 | DK13: 0 | DL13: 0 | DM13: 0 | DN13: 0 | DO13: 0 | DP13: 0 | DQ13: 0 | DR13: 0.5411478601 | DS13: 2.849899507 | DT13: 10.62134998 | DU13: 19.36383486 | DV13: 28.28867913 | DW13: 37.94357057 | DX13: 48.3659768 | DY13: 55.42124213 | DZ13: 60.77284427 | EA13: 64.41404219 | EB13: 67.9180316 | EC13: 68.91241763 | ED13: 68.95910619 | EE13: 67.24074464 | EF13: 62.79759372 | EG13: 55.89009139 | EH13: 46.45479009 | EI13: 35.995587 | EJ13: 25.37156884 | EK13: 15.59029664 | EL13: 6.878103161 | EM13: 1.824204797 | EN13: 0.5576862512 | EO13: 0.5071090278 | EP13: 0.2535545139 | EQ13: 0 | ER13: 0 | ES13: 0 | ET13: 0 | EU13: 0 | EV13: 0 | EW13: 0 | EX13: 0 | EY13: 0 | EZ13: 0 | FA13: 426.8667364 | FB13: 10
A14: QLD1 | B14: 2022 | C14: 7 | D14: 11 | E14: Monday | F14: =Load_Data!D15 -> 0 | G14: =Load_Data!E15 -> 0 | H14: =Load_Data!F15 -> 0 | I14: =Load_Data!G15 -> 0 | J14: =Load_Data!H15 -> 0 | K14: =Load_Data!I15 -> 0 | L14: =Load_Data!J15 -> 0 | M14: =Load_Data!K15 -> 0 | N14: =Load_Data!L15 -> 0 | O14: =Load_Data!M15 -> 0 | P14: =Load_Data!N15 -> 0 | Q14: =Load_Data!O15 -> 0 | R14: =Load_Data!P15 -> 0 | S14: =Load_Data!Q15 -> 0.5846560038 | T14: =Load_Data!R15 -> 2.747894403 | U14: =Load_Data!S15 -> 10.70758102 | V14: =Load_Data!T15 -> 18.88260191 | W14: =Load_Data!U15 -> 28.18369625 | X14: =Load_Data!V15 -> 37.39767651 | Y14: =Load_Data!W15 -> 46.33507316 | Z14: =Load_Data!X15 -> 53.73142405 | AA14: =Load_Data!Y15 -> 59.73790315 | AB14: =Load_Data!Z15 -> 65.19506351 | AC14: =Load_Data!AA15 -> 68.13132387 | AD14: =Load_Data!AB15 -> 69.12020143 | AE14: =Load_Data!AC15 -> 68.10984581 | AF14: =Load_Data!AD15 -> 64.66372367 | AG14: =Load_Data!AE15 -> 59.31577014 | AH14: =Load_Data!AF15 -> 52.77437069 | AI14: =Load_Data!AG15 -> 44.20059336 | AJ14: =Load_Data!AH15 -> 34.67126471 | AK14: =Load_Data!AI15 -> 22.72546438 | AL14: =Load_Data!AJ15 -> 12.80408592 | AM14: =Load_Data!AK15 -> 5.39412651 | AN14: =Load_Data!AL15 -> 1.519156959 | AO14: =Load_Data!AM15 -> 0.6583176919 | AP14: =Load_Data!AN15 -> 0.432478035 | AQ14: =Load_Data!AO15 -> 0.2162390175 | AR14: =Load_Data!AP15 -> 0 | AS14: =Load_Data!AQ15 -> 0 | AT14: =Load_Data!AR15 -> 0 | AU14: =Load_Data!AS15 -> 0 | AV14: =Load_Data!AT15 -> 0 | AW14: =Load_Data!AU15 -> 0 | AX14: =Load_Data!AV15 -> 0 | AY14: =Load_Data!AW15 -> 0 | AZ14: =Load_Data!AX15 -> 0 | BA14: =Load_Data!AY15 -> 0 | BC14: 11 | BD14: 2023 | BE14: 69.12020143 | BF14: 0 | BH14: 0 | BI14: 0 | BJ14: 0 | BK14: 0 | BL14: 0 | BM14: 0 | BN14: 0 | BO14: 0 | BP14: 0 | BQ14: 0 | BR14: 0 | BS14: 0 | BT14: 0 | BU14: 0 | BV14: 0 | BW14: 0 | BX14: 0 | BY14: 0 | BZ14: 0 | CA14: 0 | CB14: 0 | CC14: 0 | CD14: 0 | CE14: 0 | CF14: 0 | CG14: 0 | CH14: 0 | CI14: 0 | CJ14: 0 | CK14: 0 | CL14: 0 | CM14: 0 | CN14: 0 | CO14: 0 | CP14: 0 | CQ14: 0 | CR14: 0 | CS14: 0 | CT14: 0 | CU14: 0 | CV14: 0 | CW14: 0 | CX14: 0 | CY14: 0 | CZ14: 0 | DA14: 0 | DB14: 0 | DC14: 0 | DE14: 0 | DF14: 0 | DG14: 0 | DH14: 0 | DI14: 0 | DJ14: 0 | DK14: 0 | DL14: 0 | DM14: 0 | DN14: 0 | DO14: 0 | DP14: 0 | DQ14: 0 | DR14: 0.5846560038 | DS14: 2.747894403 | DT14: 10.70758102 | DU14: 18.88260191 | DV14: 28.18369625 | DW14: 37.39767651 | DX14: 46.33507316 | DY14: 53.73142405 | DZ14: 59.73790315 | EA14: 65.19506351 | EB14: 68.13132387 | EC14: 69.12020143 | ED14: 68.10984581 | EE14: 64.66372367 | EF14: 59.31577014 | EG14: 52.77437069 | EH14: 44.20059336 | EI14: 34.67126471 | EJ14: 22.72546438 | EK14: 12.80408592 | EL14: 5.39412651 | EM14: 1.519156959 | EN14: 0.6583176919 | EO14: 0.432478035 | EP14: 0.2162390175 | EQ14: 0 | ER14: 0 | ES14: 0 | ET14: 0 | EU14: 0 | EV14: 0 | EW14: 0 | EX14: 0 | EY14: 0 | EZ14: 0 | FA14: 414.1202661 | FB14: 11
A15: QLD1 | B15: 2022 | C15: 7 | D15: 12 | E15: Tuesday | F15: =Load_Data!D16 -> 0 | G15: =Load_Data!E16 -> 0 | H15: =Load_Data!F16 -> 0 | I15: =Load_Data!G16 -> 0 | J15: =Load_Data!H16 -> 0 | K15: =Load_Data!I16 -> 0 | L15: =Load_Data!J16 -> 0 | M15: =Load_Data!K16 -> 0 | N15: =Load_Data!L16 -> 0 | O15: =Load_Data!M16 -> 0 | P15: =Load_Data!N16 -> 0 | Q15: =Load_Data!O16 -> 0 | R15: =Load_Data!P16 -> 0 | S15: =Load_Data!Q16 -> 0.3319930127 | T15: =Load_Data!R16 -> 2.383722196 | U15: =Load_Data!S16 -> 7.636684153 | V15: =Load_Data!T16 -> 15.23080093 | W15: =Load_Data!U16 -> 23.16219663 | X15: =Load_Data!V16 -> 30.10559909 | Y15: =Load_Data!W16 -> 34.76556305 | Z15: =Load_Data!X16 -> 42.61556832 | AA15: =Load_Data!Y16 -> 44.88298177 | AB15: =Load_Data!Z16 -> 48.96237101 | AC15: =Load_Data!AA16 -> 51.55881029 | AD15: =Load_Data!AB16 -> 53.39831821 | AE15: =Load_Data!AC16 -> 53.64987119 | AF15: =Load_Data!AD16 -> 52.48230877 | AG15: =Load_Data!AE16 -> 48.40059295 | AH15: =Load_Data!AF16 -> 43.70413032 | AI15: =Load_Data!AG16 -> 34.28092838 | AJ15: =Load_Data!AH16 -> 27.79243936 | AK15: =Load_Data!AI16 -> 16.68082243 | AL15: =Load_Data!AJ16 -> 8.958830113 | AM15: =Load_Data!AK16 -> 4.253412533 | AN15: =Load_Data!AL16 -> 1.368942673 | AO15: =Load_Data!AM16 -> 0.7530739036 | AP15: =Load_Data!AN16 -> 0.4535304313 | AQ15: =Load_Data!AO16 -> 0.2419957192 | AR15: =Load_Data!AP16 -> 0 | AS15: =Load_Data!AQ16 -> 0 | AT15: =Load_Data!AR16 -> 0 | AU15: =Load_Data!AS16 -> 0 | AV15: =Load_Data!AT16 -> 0 | AW15: =Load_Data!AU16 -> 0 | AX15: =Load_Data!AV16 -> 0 | AY15: =Load_Data!AW16 -> 0 | AZ15: =Load_Data!AX16 -> 0 | BA15: =Load_Data!AY16 -> 0 | BC15: 12 | BD15: 2023 | BE15: 53.64987119 | BF15: 0 | BH15: 0 | BI15: 0 | BJ15: 0 | BK15: 0 | BL15: 0 | BM15: 0 | BN15: 0 | BO15: 0 | BP15: 0 | BQ15: 0 | BR15: 0 | BS15: 0 | BT15: 0 | BU15: 0 | BV15: 0 | BW15: 0 | BX15: 0 | BY15: 0 | BZ15: 0 | CA15: 0 | CB15: 0 | CC15: 0 | CD15: 0 | CE15: 0 | CF15: 0 | CG15: 0 | CH15: 0 | CI15: 0 | CJ15: 0 | CK15: 0 | CL15: 0 | CM15: 0 | CN15: 0 | CO15: 0 | CP15: 0 | CQ15: 0 | CR15: 0 | CS15: 0 | CT15: 0 | CU15: 0 | CV15: 0 | CW15: 0 | CX15: 0 | CY15: 0 | CZ15: 0 | DA15: 0 | DB15: 0 | DC15: 0 | DE15: 0 | DF15: 0 | DG15: 0 | DH15: 0 | DI15: 0 | DJ15: 0 | DK15: 0 | DL15: 0 | DM15: 0 | DN15: 0 | DO15: 0 | DP15: 0 | DQ15: 0 | DR15: 0.3319930127 | DS15: 2.383722196 | DT15: 7.636684153 | DU15: 15.23080093 | DV15: 23.16219663 | DW15: 30.10559909 | DX15: 34.76556305 | DY15: 42.61556832 | DZ15: 44.88298177 | EA15: 48.96237101 | EB15: 51.55881029 | EC15: 53.39831821 | ED15: 53.64987119 | EE15: 52.48230877 | EF15: 48.40059295 | EG15: 43.70413032 | EH15: 34.28092838 | EI15: 27.79243936 | EJ15: 16.68082243 | EK15: 8.958830113 | EL15: 4.253412533 | EM15: 1.368942673 | EN15: 0.7530739036 | EO15: 0.4535304313 | EP15: 0.2419957192 | EQ15: 0 | ER15: 0 | ES15: 0 | ET15: 0 | EU15: 0 | EV15: 0 | EW15: 0 | EX15: 0 | EY15: 0 | EZ15: 0 | FA15: 324.0277437 | FB15: 12
A16: QLD1 | B16: 2022 | C16: 7 | D16: 13 | E16: Wednesday | F16: =Load_Data!D17 -> 0 | G16: =Load_Data!E17 -> 0 | H16: =Load_Data!F17 -> 0 | I16: =Load_Data!G17 -> 0 | J16: =Load_Data!H17 -> 0 | K16: =Load_Data!I17 -> 0 | L16: =Load_Data!J17 -> 0 | M16: =Load_Data!K17 -> 0 | N16: =Load_Data!L17 -> 0 | O16: =Load_Data!M17 -> 0 | P16: =Load_Data!N17 -> 0 | Q16: =Load_Data!O17 -> 0 | R16: =Load_Data!P17 -> 0 | S16: =Load_Data!Q17 -> 0.4172425996 | T16: =Load_Data!R17 -> 2.725759246 | U16: =Load_Data!S17 -> 9.458319615 | V16: =Load_Data!T17 -> 17.50519013 | W16: =Load_Data!U17 -> 26.99189783 | X16: =Load_Data!V17 -> 35.02650387 | Y16: =Load_Data!W17 -> 42.70945264 | Z16: =Load_Data!X17 -> 51.81471711 | AA16: =Load_Data!Y17 -> 55.11164995 | AB16: =Load_Data!Z17 -> 55.6727952 | AC16: =Load_Data!AA17 -> 57.33606598 | AD16: =Load_Data!AB17 -> 59.24327821 | AE16: =Load_Data!AC17 -> 61.7648559 | AF16: =Load_Data!AD17 -> 59.82326847 | AG16: =Load_Data!AE17 -> 55.55284879 | AH16: =Load_Data!AF17 -> 47.86826802 | AI16: =Load_Data!AG17 -> 39.7888116 | AJ16: =Load_Data!AH17 -> 31.3927329 | AK16: =Load_Data!AI17 -> 21.35811072 | AL16: =Load_Data!AJ17 -> 11.83603155 | AM16: =Load_Data!AK17 -> 4.984751331 | AN16: =Load_Data!AL17 -> 1.322820596 | AO16: =Load_Data!AM17 -> 0.7847421943 | AP16: =Load_Data!AN17 -> 0.5132806898 | AQ16: =Load_Data!AO17 -> 0.2566403449 | AR16: =Load_Data!AP17 -> 0 | AS16: =Load_Data!AQ17 -> 0 | AT16: =Load_Data!AR17 -> 0 | AU16: =Load_Data!AS17 -> 0 | AV16: =Load_Data!AT17 -> 0 | AW16: =Load_Data!AU17 -> 0 | AX16: =Load_Data!AV17 -> 0 | AY16: =Load_Data!AW17 -> 0 | AZ16: =Load_Data!AX17 -> 0 | BA16: =Load_Data!AY17 -> 0 | BC16: 13 | BD16: 2023 | BE16: 61.7648559 | BF16: 0 | BH16: 0 | BI16: 0 | BJ16: 0 | BK16: 0 | BL16: 0 | BM16: 0 | BN16: 0 | BO16: 0 | BP16: 0 | BQ16: 0 | BR16: 0 | BS16: 0 | BT16: 0 | BU16: 0 | BV16: 0 | BW16: 0 | BX16: 0 | BY16: 0 | BZ16: 0 | CA16: 0 | CB16: 0 | CC16: 0 | CD16: 0 | CE16: 0 | CF16: 0 | CG16: 0 | CH16: 0 | CI16: 0 | CJ16: 0 | CK16: 0 | CL16: 0 | CM16: 0 | CN16: 0 | CO16: 0 | CP16: 0 | CQ16: 0 | CR16: 0 | CS16: 0 | CT16: 0 | CU16: 0 | CV16: 0 | CW16: 0 | CX16: 0 | CY16: 0 | CZ16: 0 | DA16: 0 | DB16: 0 | DC16: 0 | DE16: 0 | DF16: 0 | DG16: 0 | DH16: 0 | DI16: 0 | DJ16: 0 | DK16: 0 | DL16: 0 | DM16: 0 | DN16: 0 | DO16: 0 | DP16: 0 | DQ16: 0 | DR16: 0.4172425996 | DS16: 2.725759246 | DT16: 9.458319615 | DU16: 17.50519013 | DV16: 26.99189783 | DW16: 35.02650387 | DX16: 42.70945264 | DY16: 51.81471711 | DZ16: 55.11164995 | EA16: 55.6727952 | EB16: 57.33606598 | EC16: 59.24327821 | ED16: 61.7648559 | EE16: 59.82326847 | EF16: 55.55284879 | EG16: 47.86826802 | EH16: 39.7888116 | EI16: 31.3927329 | EJ16: 21.35811072 | EK16: 11.83603155 | EL16: 4.984751331 | EM16: 1.322820596 | EN16: 0.7847421943 | EO16: 0.5132806898 | EP16: 0.2566403449 | EQ16: 0 | ER16: 0 | ES16: 0 | ET16: 0 | EU16: 0 | EV16: 0 | EW16: 0 | EX16: 0 | EY16: 0 | EZ16: 0 | FA16: 375.6300177 | FB16: 13
A17: QLD1 | B17: 2022 | C17: 7 | D17: 14 | E17: Thursday | F17: =Load_Data!D18 -> 0 | G17: =Load_Data!E18 -> 0 | H17: =Load_Data!F18 -> 0 | I17: =Load_Data!G18 -> 0 | J17: =Load_Data!H18 -> 0 | K17: =Load_Data!I18 -> 0 | L17: =Load_Data!J18 -> 0 | M17: =Load_Data!K18 -> 0 | N17: =Load_Data!L18 -> 0 | O17: =Load_Data!M18 -> 0 | P17: =Load_Data!N18 -> 0 | Q17: =Load_Data!O18 -> 0 | R17: =Load_Data!P18 -> 0 | S17: =Load_Data!Q18 -> 0.4951523853 | T17: =Load_Data!R18 -> 2.283783861 | U17: =Load_Data!S18 -> 6.962741148 | V17: =Load_Data!T18 -> 14.00277255 | W17: =Load_Data!U18 -> 22.06716892 | X17: =Load_Data!V18 -> 30.62967704 | Y17: =Load_Data!W18 -> 38.25638285 | Z17: =Load_Data!X18 -> 41.747963 | AA17: =Load_Data!Y18 -> 43.8010456 | AB17: =Load_Data!Z18 -> 44.13411292 | AC17: =Load_Data!AA18 -> 42.58710141 | AD17: =Load_Data!AB18 -> 45.87407137 | AE17: =Load_Data!AC18 -> 44.0987905 | AF17: =Load_Data!AD18 -> 44.50129107 | AG17: =Load_Data!AE18 -> 37.02461971 | AH17: =Load_Data!AF18 -> 33.05193632 | AI17: =Load_Data!AG18 -> 26.04018478 | AJ17: =Load_Data!AH18 -> 17.48730573 | AK17: =Load_Data!AI18 -> 11.45717545 | AL17: =Load_Data!AJ18 -> 7.540931521 | AM17: =Load_Data!AK18 -> 3.562970257 | AN17: =Load_Data!AL18 -> 1.312633406 | AO17: =Load_Data!AM18 -> 1.02328127 | AP17: =Load_Data!AN18 -> 0.5427833844 | AQ17: =Load_Data!AO18 -> 0.2713916922 | AR17: =Load_Data!AP18 -> 0 | AS17: =Load_Data!AQ18 -> 0 | AT17: =Load_Data!AR18 -> 0 | AU17: =Load_Data!AS18 -> 0 | AV17: =Load_Data!AT18 -> 0 | AW17: =Load_Data!AU18 -> 0 | AX17: =Load_Data!AV18 -> 0 | AY17: =Load_Data!AW18 -> 0 | AZ17: =Load_Data!AX18 -> 0 | BA17: =Load_Data!AY18 -> 0 | BC17: 14 | BD17: 2023 | BE17: 45.87407137 | BF17: 0 | BH17: 0 | BI17: 0 | BJ17: 0 | BK17: 0 | BL17: 0 | BM17: 0 | BN17: 0 | BO17: 0 | BP17: 0 | BQ17: 0 | BR17: 0 | BS17: 0 | BT17: 0 | BU17: 0 | BV17: 0 | BW17: 0 | BX17: 0 | BY17: 0 | BZ17: 0 | CA17: 0 | CB17: 0 | CC17: 0 | CD17: 0 | CE17: 0 | CF17: 0 | CG17: 0 | CH17: 0 | CI17: 0 | CJ17: 0 | CK17: 0 | CL17: 0 | CM17: 0 | CN17: 0 | CO17: 0 | CP17: 0 | CQ17: 0 | CR17: 0 | CS17: 0 | CT17: 0 | CU17: 0 | CV17: 0 | CW17: 0 | CX17: 0 | CY17: 0 | CZ17: 0 | DA17: 0 | DB17: 0 | DC17: 0 | DE17: 0 | DF17: 0 | DG17: 0 | DH17: 0 | DI17: 0 | DJ17: 0 | DK17: 0 | DL17: 0 | DM17: 0 | DN17: 0 | DO17: 0 | DP17: 0 | DQ17: 0 | DR17: 0.4951523853 | DS17: 2.283783861 | DT17: 6.962741148 | DU17: 14.00277255 | DV17: 22.06716892 | DW17: 30.62967704 | DX17: 38.25638285 | DY17: 41.747963 | DZ17: 43.8010456 | EA17: 44.13411292 | EB17: 42.58710141 | EC17: 45.87407137 | ED17: 44.0987905 | EE17: 44.50129107 | EF17: 37.02461971 | EG17: 33.05193632 | EH17: 26.04018478 | EI17: 17.48730573 | EJ17: 11.45717545 | EK17: 7.540931521 | EL17: 3.562970257 | EM17: 1.312633406 | EN17: 1.02328127 | EO17: 0.5427833844 | EP17: 0.2713916922 | EQ17: 0 | ER17: 0 | ES17: 0 | ET17: 0 | EU17: 0 | EV17: 0 | EW17: 0 | EX17: 0 | EY17: 0 | EZ17: 0 | FA17: 280.3786341 | FB17: 14
A18: QLD1 | B18: 2022 | C18: 7 | D18: 15 | E18: Friday | F18: =Load_Data!D19 -> 0 | G18: =Load_Data!E19 -> 0 | H18: =Load_Data!F19 -> 0 | I18: =Load_Data!G19 -> 0 | J18: =Load_Data!H19 -> 0 | K18: =Load_Data!I19 -> 0 | L18: =Load_Data!J19 -> 0 | M18: =Load_Data!K19 -> 0 | N18: =Load_Data!L19 -> 0 | O18: =Load_Data!M19 -> 0 | P18: =Load_Data!N19 -> 0 | Q18: =Load_Data!O19 -> 0 | R18: =Load_Data!P19 -> 0 | S18: =Load_Data!Q19 -> 0.3633389052 | T18: =Load_Data!R19 -> 1.501092498 | U18: =Load_Data!S19 -> 4.62080447 | V18: =Load_Data!T19 -> 10.40689164 | W18: =Load_Data!U19 -> 17.06894066 | X18: =Load_Data!V19 -> 25.48988236 | Y18: =Load_Data!W19 -> 31.92488547 | Z18: =Load_Data!X19 -> 38.16294559 | AA18: =Load_Data!Y19 -> 41.54999963 | AB18: =Load_Data!Z19 -> 57.49631706 | AC18: =Load_Data!AA19 -> 49.5070174 | AD18: =Load_Data!AB19 -> 49.41016789 | AE18: =Load_Data!AC19 -> 50.3021061 | AF18: =Load_Data!AD19 -> 50.45711051 | AG18: =Load_Data!AE19 -> 46.58356232 | AH18: =Load_Data!AF19 -> 41.12027977 | AI18: =Load_Data!AG19 -> 36.78586134 | AJ18: =Load_Data!AH19 -> 34.40364298 | AK18: =Load_Data!AI19 -> 22.27911696 | AL18: =Load_Data!AJ19 -> 12.91712425 | AM18: =Load_Data!AK19 -> 5.767506249 | AN18: =Load_Data!AL19 -> 1.810447528 | AO18: =Load_Data!AM19 -> 0.8281587368 | AP18: =Load_Data!AN19 -> 0.7135796327 | AQ18: =Load_Data!AO19 -> 0.3567898163 | AR18: =Load_Data!AP19 -> 0 | AS18: =Load_Data!AQ19 -> 0 | AT18: =Load_Data!AR19 -> 0 | AU18: =Load_Data!AS19 -> 0 | AV18: =Load_Data!AT19 -> 0 | AW18: =Load_Data!AU19 -> 0 | AX18: =Load_Data!AV19 -> 0 | AY18: =Load_Data!AW19 -> 0 | AZ18: =Load_Data!AX19 -> 0 | BA18: =Load_Data!AY19 -> 0 | BC18: 15 | BD18: 2023 | BE18: 57.49631706 | BF18: 0 | BH18: 0 | BI18: 0 | BJ18: 0 | BK18: 0 | BL18: 0 | BM18: 0 | BN18: 0 | BO18: 0 | BP18: 0 | BQ18: 0 | BR18: 0 | BS18: 0 | BT18: 0 | BU18: 0 | BV18: 0 | BW18: 0 | BX18: 0 | BY18: 0 | BZ18: 0 | CA18: 0 | CB18: 0 | CC18: 0 | CD18: 0 | CE18: 0 | CF18: 0 | CG18: 0 | CH18: 0 | CI18: 0 | CJ18: 0 | CK18: 0 | CL18: 0 | CM18: 0 | CN18: 0 | CO18: 0 | CP18: 0 | CQ18: 0 | CR18: 0 | CS18: 0 | CT18: 0 | CU18: 0 | CV18: 0 | CW18: 0 | CX18: 0 | CY18: 0 | CZ18: 0 | DA18: 0 | DB18: 0 | DC18: 0 | DE18: 0 | DF18: 0 | DG18: 0 | DH18: 0 | DI18: 0 | DJ18: 0 | DK18: 0 | DL18: 0 | DM18: 0 | DN18: 0 | DO18: 0 | DP18: 0 | DQ18: 0 | DR18: 0.3633389052 | DS18: 1.501092498 | DT18: 4.62080447 | DU18: 10.40689164 | DV18: 17.06894066 | DW18: 25.48988236 | DX18: 31.92488547 | DY18: 38.16294559 | DZ18: 41.54999963 | EA18: 57.49631706 | EB18: 49.5070174 | EC18: 49.41016789 | ED18: 50.3021061 | EE18: 50.45711051 | EF18: 46.58356232 | EG18: 41.12027977 | EH18: 36.78586134 | EI18: 34.40364298 | EJ18: 22.27911696 | EK18: 12.91712425 | EL18: 5.767506249 | EM18: 1.810447528 | EN18: 0.8281587368 | EO18: 0.7135796327 | EP18: 0.3567898163 | EQ18: 0 | ER18: 0 | ES18: 0 | ET18: 0 | EU18: 0 | EV18: 0 | EW18: 0 | EX18: 0 | EY18: 0 | EZ18: 0 | FA18: 315.9137849 | FB18: 15
A19: QLD1 | B19: 2022 | C19: 7 | D19: 16 | E19: Saturday | F19: =Load_Data!D20 -> 0 | G19: =Load_Data!E20 -> 0 | H19: =Load_Data!F20 -> 0 | I19: =Load_Data!G20 -> 0 | J19: =Load_Data!H20 -> 0 | K19: =Load_Data!I20 -> 0 | L19: =Load_Data!J20 -> 0 | M19: =Load_Data!K20 -> 0 | N19: =Load_Data!L20 -> 0 | O19: =Load_Data!M20 -> 0 | P19: =Load_Data!N20 -> 0 | Q19: =Load_Data!O20 -> 0 | R19: =Load_Data!P20 -> 0 | S19: =Load_Data!Q20 -> 0.3040083388 | T19: =Load_Data!R20 -> 2.272637608 | U19: =Load_Data!S20 -> 7.079343761 | V19: =Load_Data!T20 -> 13.88725808 | W19: =Load_Data!U20 -> 19.56606093 | X19: =Load_Data!V20 -> 28.08568187 | Y19: =Load_Data!W20 -> 35.63536737 | Z19: =Load_Data!X20 -> 44.94103849 | AA19: =Load_Data!Y20 -> 50.40327611 | AB19: =Load_Data!Z20 -> 54.14486385 | AC19: =Load_Data!AA20 -> 54.23510528 | AD19: =Load_Data!AB20 -> 54.51941228 | AE19: =Load_Data!AC20 -> 53.59854135 | AF19: =Load_Data!AD20 -> 52.5592596 | AG19: =Load_Data!AE20 -> 47.32342901 | AH19: =Load_Data!AF20 -> 43.65187374 | AI19: =Load_Data!AG20 -> 34.52773331 | AJ19: =Load_Data!AH20 -> 26.61040777 | AK19: =Load_Data!AI20 -> 18.85656625 | AL19: =Load_Data!AJ20 -> 11.3399286 | AM19: =Load_Data!AK20 -> 5.130010542 | AN19: =Load_Data!AL20 -> 1.482447632 | AO19: =Load_Data!AM20 -> 0.6214739483 | AP19: =Load_Data!AN20 -> 0.6623527928 | AQ19: =Load_Data!AO20 -> 0.3311763964 | AR19: =Load_Data!AP20 -> 0 | AS19: =Load_Data!AQ20 -> 0 | AT19: =Load_Data!AR20 -> 0 | AU19: =Load_Data!AS20 -> 0 | AV19: =Load_Data!AT20 -> 0 | AW19: =Load_Data!AU20 -> 0 | AX19: =Load_Data!AV20 -> 0 | AY19: =Load_Data!AW20 -> 0 | AZ19: =Load_Data!AX20 -> 0 | BA19: =Load_Data!AY20 -> 0 | BC19: 16 | BD19: 2023 | BE19: 54.51941228 | BF19: 0 | BH19: 0 | BI19: 0 | BJ19: 0 | BK19: 0 | BL19: 0 | BM19: 0 | BN19: 0 | BO19: 0 | BP19: 0 | BQ19: 0 | BR19: 0 | BS19: 0 | BT19: 0 | BU19: 0 | BV19: 0 | BW19: =IF(U19>=$BF19,$BF19,U19) -> 0 | BX19: 0 | BY19: 0 | BZ19: 0 | CA19: 0 | CB19: 0 | CC19: 0 | CD19: 0 | CE19: 0 | CF19: 0 | CG19: 0 | CH19: 0 | CI19: 0 | CJ19: 0 | CK19: 0 | CL19: 0 | CM19: =IF(AK19>=$BF19,$BF19,AK19) -> 0 | CN19: 0 | CO19: 0 | CP19: 0 | CQ19: 0 | CR19: 0 | CS19: 0 | CT19: 0 | CU19: 0 | CV19: 0 | CW19: 0 | CX19: 0 | CY19: 0 | CZ19: 0 | DA19: 0 | DB19: 0 | DC19: =IF(BA19>=$BF19,$BF19,BA19) -> 0 | DE19: 0 | DF19: 0 | DG19: 0 | DH19: 0 | DI19: 0 | DJ19: 0 | DK19: 0 | DL19: 0 | DM19: 0 | DN19: 0 | DO19: 0 | DP19: 0 | DQ19: 0 | DR19: 0.3040083388 | DS19: 2.272637608 | DT19: =U19-BW19 -> 7.079343761 | DU19: 13.88725808 | DV19: 19.56606093 | DW19: 28.08568187 | DX19: 35.63536737 | DY19: 44.94103849 | DZ19: 50.40327611 | EA19: 54.14486385 | EB19: 54.23510528 | EC19: 54.51941228 | ED19: 53.59854135 | EE19: 52.5592596 | EF19: 47.32342901 | EG19: 43.65187374 | EH19: 34.52773331 | EI19: 26.61040777 | EJ19: =AK19-CM19 -> 18.85656625 | EK19: 11.3399286 | EL19: 5.130010542 | EM19: 1.482447632 | EN19: 0.6214739483 | EO19: 0.6623527928 | EP19: 0.3311763964 | EQ19: 0 | ER19: 0 | ES19: 0 | ET19: 0 | EU19: 0 | EV19: 0 | EW19: 0 | EX19: 0 | EY19: 0 | EZ19: =BA19-DC19 -> 0 | FA19: 330.8846274 | FB19: 16
A20: QLD1 | B20: 2022 | C20: 7 | D20: 17 | E20: Sunday | F20: =Load_Data!D21 -> 0 | G20: =Load_Data!E21 -> 0 | H20: =Load_Data!F21 -> 0 | I20: =Load_Data!G21 -> 0 | J20: =Load_Data!H21 -> 0 | K20: =Load_Data!I21 -> 0 | L20: =Load_Data!J21 -> 0 | M20: =Load_Data!K21 -> 0 | N20: =Load_Data!L21 -> 0 | O20: =Load_Data!M21 -> 0 | P20: =Load_Data!N21 -> 0 | Q20: =Load_Data!O21 -> 0 | R20: =Load_Data!P21 -> 0 | S20: =Load_Data!Q21 -> 0.5932431234 | T20: =Load_Data!R21 -> 3.232265012 | U20: =Load_Data!S21 -> 11.05624538 | V20: =Load_Data!T21 -> 20.18961347 | W20: =Load_Data!U21 -> 31.62699965 | X20: =Load_Data!V21 -> 40.81481191 | Y20: =Load_Data!W21 -> 49.59846543 | Z20: =Load_Data!X21 -> 55.49218446 | AA20: =Load_Data!Y21 -> 61.3406368 | AB20: =Load_Data!Z21 -> 67.52266807 | AC20: =Load_Data!AA21 -> 70.7550007 | AD20: =Load_Data!AB21 -> 72.44996038 | AE20: =Load_Data!AC21 -> 71.94464158 | AF20: =Load_Data!AD21 -> 68.71977656 | AG20: =Load_Data!AE21 -> 63.15863271 | AH20: =Load_Data!AF21 -> 55.58182597 | AI20: =Load_Data!AG21 -> 46.89196913 | AJ20: =Load_Data!AH21 -> 36.40893084 | AK20: =Load_Data!AI21 -> 24.95521204 | AL20: =Load_Data!AJ21 -> 14.39726146 | AM20: =Load_Data!AK21 -> 6.259080732 | AN20: =Load_Data!AL21 -> 1.516080701 | AO20: =Load_Data!AM21 -> 0.6573663529 | AP20: =Load_Data!AN21 -> 0.6002327018 | AQ20: =Load_Data!AO21 -> 0.3001163509 | AR20: =Load_Data!AP21 -> 0 | AS20: =Load_Data!AQ21 -> 0 | AT20: =Load_Data!AR21 -> 0 | AU20: =Load_Data!AS21 -> 0 | AV20: =Load_Data!AT21 -> 0 | AW20: =Load_Data!AU21 -> 0 | AX20: =Load_Data!AV21 -> 0 | AY20: =Load_Data!AW21 -> 0 | AZ20: =Load_Data!AX21 -> 0 | BA20: =Load_Data!AY21 -> 0 | BC20: 17 | BD20: 2023 | BE20: 72.44996038 | BF20: 0 | BH20: =IF(F20>=$BF20,$BF20,F20) -> 0 | BI20: 0 | BJ20: 0 | BK20: 0 | BL20: 0 | BM20: 0 | BN20: 0 | BO20: 0 | BP20: 0 | BQ20: 0 | BR20: 0 | BS20: 0 | BT20: 0 | BU20: 0 | BV20: 0 | BW20: 0 | BX20: 0 | BY20: 0 | BZ20: 0 | CA20: 0 | CB20: 0 | CC20: 0 | CD20: 0 | CE20: 0 | CF20: 0 | CG20: 0 | CH20: 0 | CI20: 0 | CJ20: 0 | CK20: 0 | CL20: 0 | CM20: 0 | CN20: 0 | CO20: 0 | CP20: 0 | CQ20: 0 | CR20: 0 | CS20: 0 | CT20: 0 | CU20: 0 | CV20: 0 | CW20: 0 | CX20: 0 | CY20: 0 | CZ20: 0 | DA20: 0 | DB20: 0 | DC20: 0 | DE20: =F20-BH20 -> 0 | DF20: 0 | DG20: 0 | DH20: 0 | DI20: 0 | DJ20: 0 | DK20: 0 | DL20: 0 | DM20: 0 | DN20: 0 | DO20: 0 | DP20: 0 | DQ20: 0 | DR20: 0.5932431234 | DS20: 3.232265012 | DT20: 11.05624538 | DU20: 20.18961347 | DV20: 31.62699965 | DW20: 40.81481191 | DX20: 49.59846543 | DY20: 55.49218446 | DZ20: 61.3406368 | EA20: 67.52266807 | EB20: 70.7550007 | EC20: 72.44996038 | ED20: 71.94464158 | EE20: 68.71977656 | EF20: 63.15863271 | EG20: 55.58182597 | EH20: 46.89196913 | EI20: 36.40893084 | EJ20: 24.95521204 | EK20: 14.39726146 | EL20: 6.259080732 | EM20: 1.516080701 | EN20: 0.6573663529 | EO20: 0.6002327018 | EP20: 0.3001163509 | EQ20: 0 | ER20: 0 | ES20: 0 | ET20: 0 | EU20: 0 | EV20: 0 | EW20: 0 | EX20: 0 | EY20: 0 | EZ20: 0 | FA20: 438.0316107 | FB20: 17
A21: QLD1 | B21: 2022 | C21: 7 | D21: 18 | E21: Monday | F21: =Load_Data!D22 -> 0 | G21: =Load_Data!E22 -> 0 | H21: =Load_Data!F22 -> 0 | I21: =Load_Data!G22 -> 0 | J21: =Load_Data!H22 -> 0 | K21: =Load_Data!I22 -> 0 | L21: =Load_Data!J22 -> 0 | M21: =Load_Data!K22 -> 0 | N21: =Load_Data!L22 -> 0 | O21: =Load_Data!M22 -> 0 | P21: =Load_Data!N22 -> 0 | Q21: =Load_Data!O22 -> 0 | R21: =Load_Data!P22 -> 0 | S21: =Load_Data!Q22 -> 0.6013231487 | T21: =Load_Data!R22 -> 3.27482218 | U21: =Load_Data!S22 -> 11.0809207 | V21: =Load_Data!T22 -> 21.46806894 | W21: =Load_Data!U22 -> 32.18487712 | X21: =Load_Data!V22 -> 41.72412065 | Y21: =Load_Data!W22 -> 50.89169707 | Z21: =Load_Data!X22 -> 57.73822626 | AA21: =Load_Data!Y22 -> 64.27116157 | AB21: =Load_Data!Z22 -> 68.70049172 | AC21: =Load_Data!AA22 -> 71.73621088 | AD21: =Load_Data!AB22 -> 72.8965855 | AE21: =Load_Data!AC22 -> 72.13799565 | AF21: =Load_Data!AD22 -> 69.20660227 | AG21: =Load_Data!AE22 -> 64.24663807 | AH21: =Load_Data!AF22 -> 56.51203459 | AI21: =Load_Data!AG22 -> 48.61909594 | AJ21: =Load_Data!AH22 -> 37.81243893 | AK21: =Load_Data!AI22 -> 27.10802416 | AL21: =Load_Data!AJ22 -> 15.91145473 | AM21: =Load_Data!AK22 -> 7.299378743 | AN21: =Load_Data!AL22 -> 1.982039952 | AO21: =Load_Data!AM22 -> 0.5691705871 | AP21: =Load_Data!AN22 -> 0.6875913018 | AQ21: =Load_Data!AO22 -> 0.3437976483 | AR21: =Load_Data!AP22 -> 0 | AS21: =Load_Data!AQ22 -> 0 | AT21: =Load_Data!AR22 -> 0 | AU21: =Load_Data!AS22 -> 0 | AV21: =Load_Data!AT22 -> 0 | AW21: =Load_Data!AU22 -> 0 | AX21: =Load_Data!AV22 -> 0 | AY21: =Load_Data!AW22 -> 0 | AZ21: =Load_Data!AX22 -> 0 | BA21: =Load_Data!AY22 -> 0 | BC21: 18 | BD21: 2023 | BE21: 72.8965855 | BF21: 0 | BH21: 0 | BI21: 0 | BJ21: 0 | BK21: 0 | BL21: 0 | BM21: 0 | BN21: 0 | BO21: 0 | BP21: 0 | BQ21: 0 | BR21: 0 | BS21: 0 | BT21: 0 | BU21: 0 | BV21: 0 | BW21: 0 | BX21: 0 | BY21: 0 | BZ21: 0 | CA21: 0 | CB21: 0 | CC21: 0 | CD21: 0 | CE21: 0 | CF21: 0 | CG21: 0 | CH21: 0 | CI21: 0 | CJ21: 0 | CK21: 0 | CL21: 0 | CM21: 0 | CN21: 0 | CO21: 0 | CP21: 0 | CQ21: 0 | CR21: 0 | CS21: 0 | CT21: 0 | CU21: 0 | CV21: 0 | CW21: 0 | CX21: 0 | CY21: 0 | CZ21: 0 | DA21: 0 | DB21: 0 | DC21: 0 | DE21: 0 | DF21: 0 | DG21: 0 | DH21: 0 | DI21: 0 | DJ21: 0 | DK21: 0 | DL21: 0 | DM21: 0 | DN21: 0 | DO21: 0 | DP21: 0 | DQ21: 0 | DR21: 0.6013231487 | DS21: 3.27482218 | DT21: 11.0809207 | DU21: 21.46806894 | DV21: 32.18487712 | DW21: 41.72412065 | DX21: 50.89169707 | DY21: 57.73822626 | DZ21: 64.27116157 | EA21: 68.70049172 | EB21: 71.73621088 | EC21: 72.8965855 | ED21: 72.13799565 | EE21: 69.20660227 | EF21: 64.24663807 | EG21: 56.51203459 | EH21: 48.61909594 | EI21: 37.81243893 | EJ21: 27.10802416 | EK21: 15.91145473 | EL21: 7.299378743 | EM21: 1.982039952 | EN21: 0.5691705871 | EO21: 0.6875913018 | EP21: 0.3437976483 | EQ21: 0 | ER21: 0 | ES21: 0 | ET21: 0 | EU21: 0 | EV21: 0 | EW21: 0 | EX21: 0 | EY21: 0 | EZ21: 0 | FA21: 449.5023842 | FB21: 18
A22: QLD1 | B22: 2022 | C22: 7 | D22: 19 | E22: Tuesday | F22: =Load_Data!D23 -> 0 | G22: =Load_Data!E23 -> 0 | H22: =Load_Data!F23 -> 0 | I22: =Load_Data!G23 -> 0 | J22: =Load_Data!H23 -> 0 | K22: =Load_Data!I23 -> 0 | L22: =Load_Data!J23 -> 0 | M22: =Load_Data!K23 -> 0 | N22: =Load_Data!L23 -> 0 | O22: =Load_Data!M23 -> 0 | P22: =Load_Data!N23 -> 0 | Q22: =Load_Data!O23 -> 0 | R22: =Load_Data!P23 -> 0 | S22: =Load_Data!Q23 -> 0.5760080378 | T22: =Load_Data!R23 -> 3.065837251 | U22: =Load_Data!S23 -> 10.23430784 | V22: =Load_Data!T23 -> 19.44990193 | W22: =Load_Data!U23 -> 28.63405683 | X22: =Load_Data!V23 -> 39.22769471 | Y22: =Load_Data!W23 -> 47.4539644 | Z22: =Load_Data!X23 -> 54.49238618 | AA22: =Load_Data!Y23 -> 59.7771207 | AB22: =Load_Data!Z23 -> 62.39899012 | AC22: =Load_Data!AA23 -> 62.86551546 | AD22: =Load_Data!AB23 -> 63.71745066 | AE22: =Load_Data!AC23 -> 62.44844969 | AF22: =Load_Data!AD23 -> 59.22001626 | AG22: =Load_Data!AE23 -> 54.4216765 | AH22: =Load_Data!AF23 -> 49.15414239 | AI22: =Load_Data!AG23 -> 43.16220104 | AJ22: =Load_Data!AH23 -> 34.79121228 | AK22: =Load_Data!AI23 -> 24.56386099 | AL22: =Load_Data!AJ23 -> 14.83963766 | AM22: =Load_Data!AK23 -> 6.320833692 | AN22: =Load_Data!AL23 -> 1.525703782 | AO22: =Load_Data!AM23 -> 0.6908238725 | AP22: =Load_Data!AN23 -> 0.6010527155 | AQ22: =Load_Data!AO23 -> 0.3005283551 | AR22: =Load_Data!AP23 -> 0 | AS22: =Load_Data!AQ23 -> 0 | AT22: =Load_Data!AR23 -> 0 | AU22: =Load_Data!AS23 -> 0 | AV22: =Load_Data!AT23 -> 0 | AW22: =Load_Data!AU23 -> 0 | AX22: =Load_Data!AV23 -> 0 | AY22: =Load_Data!AW23 -> 0 | AZ22: =Load_Data!AX23 -> 0 | BA22: =Load_Data!AY23 -> 0 | BC22: 19 | BD22: 2023 | BE22: 63.71745066 | BF22: 0 | BH22: 0 | BI22: 0 | BJ22: 0 | BK22: 0 | BL22: 0 | BM22: 0 | BN22: 0 | BO22: 0 | BP22: 0 | BQ22: 0 | BR22: 0 | BS22: 0 | BT22: 0 | BU22: 0 | BV22: 0 | BW22: 0 | BX22: 0 | BY22: 0 | BZ22: 0 | CA22: 0 | CB22: 0 | CC22: 0 | CD22: 0 | CE22: 0 | CF22: 0 | CG22: 0 | CH22: 0 | CI22: 0 | CJ22: 0 | CK22: 0 | CL22: 0 | CM22: 0 | CN22: 0 | CO22: 0 | CP22: 0 | CQ22: 0 | CR22: 0 | CS22: 0 | CT22: 0 | CU22: 0 | CV22: 0 | CW22: 0 | CX22: 0 | CY22: 0 | CZ22: 0 | DA22: 0 | DB22: 0 | DC22: 0 | DE22: 0 | DF22: 0 | DG22: 0 | DH22: 0 | DI22: 0 | DJ22: 0 | DK22: 0 | DL22: 0 | DM22: 0 | DN22: 0 | DO22: 0 | DP22: 0 | DQ22: 0 | DR22: 0.5760080378 | DS22: 3.065837251 | DT22: 10.23430784 | DU22: 19.44990193 | DV22: 28.63405683 | DW22: 39.22769471 | DX22: 47.4539644 | DY22: 54.49238618 | DZ22: 59.7771207 | EA22: 62.39899012 | EB22: 62.86551546 | EC22: 63.71745066 | ED22: 62.44844969 | EE22: 59.22001626 | EF22: 54.4216765 | EG22: 49.15414239 | EH22: 43.16220104 | EI22: 34.79121228 | EJ22: 24.56386099 | EK22: 14.83963766 | EL22: 6.320833692 | EM22: 1.525703782 | EN22: 0.6908238725 | EO22: 0.6010527155 | EP22: 0.3005283551 | EQ22: 0 | ER22: 0 | ES22: 0 | ET22: 0 | EU22: 0 | EV22: 0 | EW22: 0 | EX22: 0 | EY22: 0 | EZ22: 0 | FA22: 401.9666867 | FB22: 19
A23: QLD1 | B23: 2022 | C23: 7 | D23: 20 | E23: Wednesday | F23: =Load_Data!D24 -> 0 | G23: =Load_Data!E24 -> 0 | H23: =Load_Data!F24 -> 0 | I23: =Load_Data!G24 -> 0 | J23: =Load_Data!H24 -> 0 | K23: =Load_Data!I24 -> 0 | L23: =Load_Data!J24 -> 0 | M23: =Load_Data!K24 -> 0 | N23: =Load_Data!L24 -> 0 | O23: =Load_Data!M24 -> 0 | P23: =Load_Data!N24 -> 0 | Q23: =Load_Data!O24 -> 0 | R23: =Load_Data!P24 -> 0 | S23: =Load_Data!Q24 -> 0.6465948858 | T23: =Load_Data!R24 -> 3.296437041 | U23: =Load_Data!S24 -> 10.82712653 | V23: =Load_Data!T24 -> 20.39606679 | W23: =Load_Data!U24 -> 30.08853622 | X23: =Load_Data!V24 -> 39.92574442 | Y23: =Load_Data!W24 -> 49.31742098 | Z23: =Load_Data!X24 -> 57.25099209 | AA23: =Load_Data!Y24 -> 61.43598471 | AB23: =Load_Data!Z24 -> 61.70755169 | AC23: =Load_Data!AA24 -> 63.30422279 | AD23: =Load_Data!AB24 -> 64.86424906 | AE23: =Load_Data!AC24 -> 67.03654286 | AF23: =Load_Data!AD24 -> 65.13201082 | AG23: =Load_Data!AE24 -> 60.95854143 | AH23: =Load_Data!AF24 -> 55.35926178 | AI23: =Load_Data!AG24 -> 45.75468334 | AJ23: =Load_Data!AH24 -> 35.95629766 | AK23: =Load_Data!AI24 -> 25.44990591 | AL23: =Load_Data!AJ24 -> 15.47771081 | AM23: =Load_Data!AK24 -> 7.377314554 | AN23: =Load_Data!AL24 -> 1.912671943 | AO23: =Load_Data!AM24 -> 0.5358810427 | AP23: =Load_Data!AN24 -> 0.7221295677 | AQ23: =Load_Data!AO24 -> 0.3610667813 | AR23: =Load_Data!AP24 -> 0 | AS23: =Load_Data!AQ24 -> 0 | AT23: =Load_Data!AR24 -> 0 | AU23: =Load_Data!AS24 -> 0 | AV23: =Load_Data!AT24 -> 0 | AW23: =Load_Data!AU24 -> 0 | AX23: =Load_Data!AV24 -> 0 | AY23: =Load_Data!AW24 -> 0 | AZ23: =Load_Data!AX24 -> 0 | BA23: =Load_Data!AY24 -> 0 | BC23: 20 | BD23: 2023 | BE23: 67.03654286 | BF23: 0 | BH23: 0 | BI23: 0 | BJ23: 0 | BK23: 0 | BL23: 0 | BM23: 0 | BN23: 0 | BO23: 0 | BP23: 0 | BQ23: 0 | BR23: 0 | BS23: 0 | BT23: 0 | BU23: 0 | BV23: 0 | BW23: 0 | BX23: 0 | BY23: 0 | BZ23: 0 | CA23: 0 | CB23: 0 | CC23: 0 | CD23: 0 | CE23: 0 | CF23: 0 | CG23: 0 | CH23: 0 | CI23: 0 | CJ23: 0 | CK23: 0 | CL23: 0 | CM23: 0 | CN23: 0 | CO23: 0 | CP23: 0 | CQ23: 0 | CR23: 0 | CS23: 0 | CT23: 0 | CU23: 0 | CV23: 0 | CW23: 0 | CX23: 0 | CY23: 0 | CZ23: 0 | DA23: 0 | DB23: 0 | DC23: 0 | DE23: 0 | DF23: 0 | DG23: 0 | DH23: 0 | DI23: 0 | DJ23: 0 | DK23: 0 | DL23: 0 | DM23: 0 | DN23: 0 | DO23: 0 | DP23: 0 | DQ23: 0 | DR23: 0.6465948858 | DS23: 3.296437041 | DT23: 10.82712653 | DU23: 20.39606679 | DV23: 30.08853622 | DW23: 39.92574442 | DX23: 49.31742098 | DY23: 57.25099209 | DZ23: 61.43598471 | EA23: 61.70755169 | EB23: 63.30422279 | EC23: 64.86424906 | ED23: 67.03654286 | EE23: 65.13201082 | EF23: 60.95854143 | EG23: 55.35926178 | EH23: 45.75468334 | EI23: 35.95629766 | EJ23: 25.44990591 | EK23: 15.47771081 | EL23: 7.377314554 | EM23: 1.912671943 | EN23: 0.5358810427 | EO23: 0.7221295677 | EP23: 0.3610667813 | EQ23: 0 | ER23: 0 | ES23: 0 | ET23: 0 | EU23: 0 | EV23: 0 | EW23: 0 | EX23: 0 | EY23: 0 | EZ23: 0 | FA23: 422.5474728 | FB23: 20
A24: QLD1 | B24: 2022 | C24: 7 | D24: 21 | E24: Thursday | F24: =Load_Data!D25 -> 0 | G24: =Load_Data!E25 -> 0 | H24: =Load_Data!F25 -> 0 | I24: =Load_Data!G25 -> 0 | J24: =Load_Data!H25 -> 0 | K24: =Load_Data!I25 -> 0 | L24: =Load_Data!J25 -> 0 | M24: =Load_Data!K25 -> 0 | N24: =Load_Data!L25 -> 0 | O24: =Load_Data!M25 -> 0 | P24: =Load_Data!N25 -> 0 | Q24: =Load_Data!O25 -> 0 | R24: =Load_Data!P25 -> 0 | S24: =Load_Data!Q25 -> 0.6861861356 | T24: =Load_Data!R25 -> 3.332595009 | U24: =Load_Data!S25 -> 10.93351931 | V24: =Load_Data!T25 -> 20.42108958 | W24: =Load_Data!U25 -> 30.1513511 | X24: =Load_Data!V25 -> 38.97902034 | Y24: =Load_Data!W25 -> 47.11401582 | Z24: =Load_Data!X25 -> 53.82611956 | AA24: =Load_Data!Y25 -> 61.19801893 | AB24: =Load_Data!Z25 -> 65.48770987 | AC24: =Load_Data!AA25 -> 68.98761004 | AD24: =Load_Data!AB25 -> 71.7818091 | AE24: =Load_Data!AC25 -> 71.55311831 | AF24: =Load_Data!AD25 -> 67.89116106 | AG24: =Load_Data!AE25 -> 65.92231533 | AH24: =Load_Data!AF25 -> 59.54728766 | AI24: =Load_Data!AG25 -> 50.67773555 | AJ24: =Load_Data!AH25 -> 39.35019499 | AK24: =Load_Data!AI25 -> 28.33812776 | AL24: =Load_Data!AJ25 -> 18.40571953 | AM24: =Load_Data!AK25 -> 8.834736805 | AN24: =Load_Data!AL25 -> 2.646904199 | AO24: =Load_Data!AM25 -> 0.6480795915 | AP24: =Load_Data!AN25 -> 0.8999326358 | AQ24: =Load_Data!AO25 -> 0.4499683153 | AR24: =Load_Data!AP25 -> 0 | AS24: =Load_Data!AQ25 -> 0 | AT24: =Load_Data!AR25 -> 0 | AU24: =Load_Data!AS25 -> 0 | AV24: =Load_Data!AT25 -> 0 | AW24: =Load_Data!AU25 -> 0 | AX24: =Load_Data!AV25 -> 0 | AY24: =Load_Data!AW25 -> 0 | AZ24: =Load_Data!AX25 -> 0 | BA24: =Load_Data!AY25 -> 0 | BC24: 21 | BD24: 2023 | BE24: 71.7818091 | BF24: 0 | BH24: 0 | BI24: 0 | BJ24: 0 | BK24: 0 | BL24: 0 | BM24: 0 | BN24: 0 | BO24: 0 | BP24: 0 | BQ24: 0 | BR24: 0 | BS24: 0 | BT24: 0 | BU24: 0 | BV24: 0 | BW24: 0 | BX24: 0 | BY24: 0 | BZ24: 0 | CA24: 0 | CB24: 0 | CC24: 0 | CD24: 0 | CE24: 0 | CF24: 0 | CG24: 0 | CH24: 0 | CI24: 0 | CJ24: 0 | CK24: 0 | CL24: 0 | CM24: 0 | CN24: 0 | CO24: 0 | CP24: 0 | CQ24: 0 | CR24: 0 | CS24: 0 | CT24: 0 | CU24: 0 | CV24: 0 | CW24: 0 | CX24: 0 | CY24: 0 | CZ24: 0 | DA24: 0 | DB24: 0 | DC24: 0 | DE24: 0 | DF24: 0 | DG24: 0 | DH24: 0 | DI24: 0 | DJ24: 0 | DK24: 0 | DL24: 0 | DM24: 0 | DN24: 0 | DO24: 0 | DP24: 0 | DQ24: 0 | DR24: 0.6861861356 | DS24: 3.332595009 | DT24: 10.93351931 | DU24: 20.42108958 | DV24: 30.1513511 | DW24: 38.97902034 | DX24: 47.11401582 | DY24: 53.82611956 | DZ24: 61.19801893 | EA24: 65.48770987 | EB24: 68.98761004 | EC24: 71.7818091 | ED24: 71.55311831 | EE24: 67.89116106 | EF24: 65.92231533 | EG24: 59.54728766 | EH24: 50.67773555 | EI24: 39.35019499 | EJ24: 28.33812776 | EK24: 18.40571953 | EL24: 8.834736805 | EM24: 2.646904199 | EN24: 0.6480795915 | EO24: 0.8999326358 | EP24: 0.4499683153 | EQ24: 0 | ER24: 0 | ES24: 0 | ET24: 0 | EU24: 0 | EV24: 0 | EW24: 0 | EX24: 0 | EY24: 0 | EZ24: 0 | FA24: 444.0321633 | FB24: 21
A25: QLD1 | B25: 2022 | C25: 7 | D25: 22 | E25: Friday | F25: =Load_Data!D26 -> 0 | G25: =Load_Data!E26 -> 0 | H25: =Load_Data!F26 -> 0 | I25: =Load_Data!G26 -> 0 | J25: =Load_Data!H26 -> 0 | K25: =Load_Data!I26 -> 0 | L25: =Load_Data!J26 -> 0 | M25: =Load_Data!K26 -> 0 | N25: =Load_Data!L26 -> 0 | O25: =Load_Data!M26 -> 0 | P25: =Load_Data!N26 -> 0 | Q25: =Load_Data!O26 -> 0 | R25: =Load_Data!P26 -> 0 | S25: =Load_Data!Q26 -> 0.666106741 | T25: =Load_Data!R26 -> 3.730158803 | U25: =Load_Data!S26 -> 12.55619882 | V25: =Load_Data!T26 -> 21.80678622 | W25: =Load_Data!U26 -> 32.50508859 | X25: =Load_Data!V26 -> 42.21051751 | Y25: =Load_Data!W26 -> 52.06284833 | Z25: =Load_Data!X26 -> 59.07184523 | AA25: =Load_Data!Y26 -> 65.85948281 | AB25: =Load_Data!Z26 -> 70.42158833 | AC25: =Load_Data!AA26 -> 73.31671364 | AD25: =Load_Data!AB26 -> 73.96371752 | AE25: =Load_Data!AC26 -> 72.97086152 | AF25: =Load_Data!AD26 -> 70.64022417 | AG25: =Load_Data!AE26 -> 65.19134072 | AH25: =Load_Data!AF26 -> 59.28357329 | AI25: =Load_Data!AG26 -> 50.98252639 | AJ25: =Load_Data!AH26 -> 40.60108241 | AK25: =Load_Data!AI26 -> 28.27029423 | AL25: =Load_Data!AJ26 -> 16.84265474 | AM25: =Load_Data!AK26 -> 8.080594435 | AN25: =Load_Data!AL26 -> 2.49517042 | AO25: =Load_Data!AM26 -> 0.7151315441 | AP25: =Load_Data!AN26 -> 0.9391407073 | AQ25: =Load_Data!AO26 -> 0.469572351 | AR25: =Load_Data!AP26 -> 0 | AS25: =Load_Data!AQ26 -> 0 | AT25: =Load_Data!AR26 -> 0 | AU25: =Load_Data!AS26 -> 0 | AV25: =Load_Data!AT26 -> 0 | AW25: =Load_Data!AU26 -> 0 | AX25: =Load_Data!AV26 -> 0 | AY25: =Load_Data!AW26 -> 0 | AZ25: =Load_Data!AX26 -> 0 | BA25: =Load_Data!AY26 -> 0 | BC25: 22 | BD25: 2023 | BE25: 73.96371752 | BF25: 0 | BH25: 0 | BI25: 0 | BJ25: 0 | BK25: 0 | BL25: 0 | BM25: 0 | BN25: 0 | BO25: 0 | BP25: 0 | BQ25: 0 | BR25: 0 | BS25: 0 | BT25: 0 | BU25: 0 | BV25: 0 | BW25: 0 | BX25: 0 | BY25: 0 | BZ25: 0 | CA25: 0 | CB25: 0 | CC25: 0 | CD25: 0 | CE25: 0 | CF25: 0 | CG25: 0 | CH25: 0 | CI25: 0 | CJ25: 0 | CK25: 0 | CL25: 0 | CM25: 0 | CN25: 0 | CO25: 0 | CP25: 0 | CQ25: 0 | CR25: 0 | CS25: 0 | CT25: 0 | CU25: 0 | CV25: 0 | CW25: 0 | CX25: 0 | CY25: 0 | CZ25: 0 | DA25: 0 | DB25: 0 | DC25: 0 | DE25: 0 | DF25: 0 | DG25: 0 | DH25: 0 | DI25: 0 | DJ25: 0 | DK25: 0 | DL25: 0 | DM25: 0 | DN25: 0 | DO25: 0 | DP25: 0 | DQ25: 0 | DR25: 0.666106741 | DS25: 3.730158803 | DT25: 12.55619882 | DU25: 21.80678622 | DV25: 32.50508859 | DW25: 42.21051751 | DX25: 52.06284833 | DY25: 59.07184523 | DZ25: 65.85948281 | EA25: 70.42158833 | EB25: 73.31671364 | EC25: 73.96371752 | ED25: 72.97086152 | EE25: 70.64022417 | EF25: 65.19134072 | EG25: 59.28357329 | EH25: 50.98252639 | EI25: 40.60108241 | EJ25: 28.27029423 | EK25: 16.84265474 | EL25: 8.080594435 | EM25: 2.49517042 | EN25: 0.7151315441 | EO25: 0.9391407073 | EP25: 0.469572351 | EQ25: 0 | ER25: 0 | ES25: 0 | ET25: 0 | EU25: 0 | EV25: 0 | EW25: 0 | EX25: 0 | EY25: 0 | EZ25: 0 | FA25: 462.8266097 | FB25: 22
A26: QLD1 | B26: 2022 | C26: 7 | D26: 23 | E26: Saturday | F26: =Load_Data!D27 -> 0 | G26: =Load_Data!E27 -> 0 | H26: =Load_Data!F27 -> 0 | I26: =Load_Data!G27 -> 0 | J26: =Load_Data!H27 -> 0 | K26: =Load_Data!I27 -> 0 | L26: =Load_Data!J27 -> 0 | M26: =Load_Data!K27 -> 0 | N26: =Load_Data!L27 -> 0 | O26: =Load_Data!M27 -> 0 | P26: =Load_Data!N27 -> 0 | Q26: =Load_Data!O27 -> 0 | R26: =Load_Data!P27 -> 0 | S26: =Load_Data!Q27 -> 0.3909348184 | T26: =Load_Data!R27 -> 2.869261041 | U26: =Load_Data!S27 -> 8.227397878 | V26: =Load_Data!T27 -> 15.95499687 | W26: =Load_Data!U27 -> 23.38190487 | X26: =Load_Data!V27 -> 33.29689065 | Y26: =Load_Data!W27 -> 41.64197704 | Z26: =Load_Data!X27 -> 45.64823375 | AA26: =Load_Data!Y27 -> 52.49638489 | AB26: =Load_Data!Z27 -> 54.77528454 | AC26: =Load_Data!AA27 -> 59.15232146 | AD26: =Load_Data!AB27 -> 57.00310376 | AE26: =Load_Data!AC27 -> 56.24585381 | AF26: =Load_Data!AD27 -> 56.43616427 | AG26: =Load_Data!AE27 -> 52.75005934 | AH26: =Load_Data!AF27 -> 52.95716898 | AI26: =Load_Data!AG27 -> 42.16346801 | AJ26: =Load_Data!AH27 -> 32.18190116 | AK26: =Load_Data!AI27 -> 23.04646854 | AL26: =Load_Data!AJ27 -> 15.12409323 | AM26: =Load_Data!AK27 -> 7.330561815 | AN26: =Load_Data!AL27 -> 2.175297741 | AO26: =Load_Data!AM27 -> 0.815718187 | AP26: =Load_Data!AN27 -> 0.9167185651 | AQ26: =Load_Data!AO27 -> 0.4583612799 | AR26: =Load_Data!AP27 -> 0 | AS26: =Load_Data!AQ27 -> 0 | AT26: =Load_Data!AR27 -> 0 | AU26: =Load_Data!AS27 -> 0 | AV26: =Load_Data!AT27 -> 0 | AW26: =Load_Data!AU27 -> 0 | AX26: =Load_Data!AV27 -> 0 | AY26: =Load_Data!AW27 -> 0 | AZ26: =Load_Data!AX27 -> 0 | BA26: =Load_Data!AY27 -> 0 | BC26: 23 | BD26: 2023 | BE26: 59.15232146 | BF26: 0 | BH26: 0 | BI26: 0 | BJ26: 0 | BK26: 0 | BL26: 0 | BM26: 0 | BN26: 0 | BO26: 0 | BP26: 0 | BQ26: 0 | BR26: 0 | BS26: 0 | BT26: 0 | BU26: 0 | BV26: 0 | BW26: 0 | BX26: 0 | BY26: 0 | BZ26: 0 | CA26: 0 | CB26: 0 | CC26: 0 | CD26: 0 | CE26: 0 | CF26: 0 | CG26: 0 | CH26: 0 | CI26: 0 | CJ26: 0 | CK26: 0 | CL26: 0 | CM26: 0 | CN26: 0 | CO26: 0 | CP26: 0 | CQ26: 0 | CR26: 0 | CS26: 0 | CT26: 0 | CU26: 0 | CV26: 0 | CW26: 0 | CX26: 0 | CY26: 0 | CZ26: 0 | DA26: 0 | DB26: 0 | DC26: 0 | DE26: 0 | DF26: 0 | DG26: 0 | DH26: 0 | DI26: 0 | DJ26: 0 | DK26: 0 | DL26: 0 | DM26: 0 | DN26: 0 | DO26: 0 | DP26: 0 | DQ26: 0 | DR26: 0.3909348184 | DS26: 2.869261041 | DT26: 8.227397878 | DU26: 15.95499687 | DV26: 23.38190487 | DW26: 33.29689065 | DX26: 41.64197704 | DY26: 45.64823375 | DZ26: 52.49638489 | EA26: 54.77528454 | EB26: 59.15232146 | EC26: 57.00310376 | ED26: 56.24585381 | EE26: 56.43616427 | EF26: 52.75005934 | EG26: 52.95716898 | EH26: 42.16346801 | EI26: 32.18190116 | EJ26: 23.04646854 | EK26: 15.12409323 | EL26: 7.330561815 | EM26: 2.175297741 | EN26: 0.815718187 | EO26: 0.9167185651 | EP26: 0.4583612799 | EQ26: 0 | ER26: 0 | ES26: 0 | ET26: 0 | EU26: 0 | EV26: 0 | EW26: 0 | EX26: 0 | EY26: 0 | EZ26: 0 | FA26: 368.7202632 | FB26: 23
A27: QLD1 | B27: 2022 | C27: 7 | D27: 24 | E27: Sunday | F27: =Load_Data!D28 -> 0 | G27: =Load_Data!E28 -> 0 | H27: =Load_Data!F28 -> 0 | I27: =Load_Data!G28 -> 0 | J27: =Load_Data!H28 -> 0 | K27: =Load_Data!I28 -> 0 | L27: =Load_Data!J28 -> 0 | M27: =Load_Data!K28 -> 0 | N27: =Load_Data!L28 -> 0 | O27: =Load_Data!M28 -> 0 | P27: =Load_Data!N28 -> 0 | Q27: =Load_Data!O28 -> 0 | R27: =Load_Data!P28 -> 0 | S27: =Load_Data!Q28 -> 0.3755761238 | T27: =Load_Data!R28 -> 3.134572177 | U27: =Load_Data!S28 -> 10.26877507 | V27: =Load_Data!T28 -> 19.60504353 | W27: =Load_Data!U28 -> 29.5354526 | X27: =Load_Data!V28 -> 38.56768243 | Y27: =Load_Data!W28 -> 47.35136434 | Z27: =Load_Data!X28 -> 54.44290248 | AA27: =Load_Data!Y28 -> 59.67719428 | AB27: =Load_Data!Z28 -> 64.64055699 | AC27: =Load_Data!AA28 -> 67.67033105 | AD27: =Load_Data!AB28 -> 69.36820283 | AE27: =Load_Data!AC28 -> 68.65438141 | AF27: =Load_Data!AD28 -> 65.49576695 | AG27: =Load_Data!AE28 -> 59.99381067 | AH27: =Load_Data!AF28 -> 54.71587341 | AI27: =Load_Data!AG28 -> 48.17519998 | AJ27: =Load_Data!AH28 -> 37.90123296 | AK27: =Load_Data!AI28 -> 25.43342346 | AL27: =Load_Data!AJ28 -> 15.78517699 | AM27: =Load_Data!AK28 -> 7.665649346 | AN27: =Load_Data!AL28 -> 2.213928218 | AO27: =Load_Data!AM28 -> 0.6252911658 | AP27: =Load_Data!AN28 -> 0.9325873001 | AQ27: =Load_Data!AO28 -> 0.4662956475 | AR27: =Load_Data!AP28 -> 0 | AS27: =Load_Data!AQ28 -> 0 | AT27: =Load_Data!AR28 -> 0 | AU27: =Load_Data!AS28 -> 0 | AV27: =Load_Data!AT28 -> 0 | AW27: =Load_Data!AU28 -> 0 | AX27: =Load_Data!AV28 -> 0 | AY27: =Load_Data!AW28 -> 0 | AZ27: =Load_Data!AX28 -> 0 | BA27: =Load_Data!AY28 -> 0 | BC27: 24 | BD27: 2023 | BE27: 69.36820283 | BF27: 0 | BH27: 0 | BI27: 0 | BJ27: 0 | BK27: 0 | BL27: 0 | BM27: 0 | BN27: 0 | BO27: 0 | BP27: 0 | BQ27: 0 | BR27: 0 | BS27: 0 | BT27: 0 | BU27: 0 | BV27: 0 | BW27: 0 | BX27: 0 | BY27: 0 | BZ27: 0 | CA27: 0 | CB27: 0 | CC27: 0 | CD27: 0 | CE27: 0 | CF27: 0 | CG27: 0 | CH27: 0 | CI27: 0 | CJ27: 0 | CK27: 0 | CL27: 0 | CM27: 0 | CN27: 0 | CO27: 0 | CP27: 0 | CQ27: 0 | CR27: 0 | CS27: 0 | CT27: 0 | CU27: 0 | CV27: 0 | CW27: 0 | CX27: 0 | CY27: 0 | CZ27: 0 | DA27: 0 | DB27: 0 | DC27: 0 | DE27: 0 | DF27: 0 | DG27: 0 | DH27: 0 | DI27: 0 | DJ27: 0 | DK27: 0 | DL27: 0 | DM27: 0 | DN27: 0 | DO27: 0 | DP27: 0 | DQ27: 0 | DR27: 0.3755761238 | DS27: 3.134572177 | DT27: 10.26877507 | DU27: 19.60504353 | DV27: 29.5354526 | DW27: 38.56768243 | DX27: 47.35136434 | DY27: 54.44290248 | DZ27: 59.67719428 | EA27: 64.64055699 | EB27: 67.67033105 | EC27: 69.36820283 | ED27: 68.65438141 | EE27: 65.49576695 | EF27: 59.99381067 | EG27: 54.71587341 | EH27: 48.17519998 | EI27: 37.90123296 | EJ27: 25.43342346 | EK27: 15.78517699 | EL27: 7.665649346 | EM27: 2.213928218 | EN27: 0.6252911658 | EO27: 0.9325873001 | EP27: 0.4662956475 | EQ27: 0 | ER27: 0 | ES27: 0 | ET27: 0 | EU27: 0 | EV27: 0 | EW27: 0 | EX27: 0 | EY27: 0 | EZ27: 0 | FA27: 426.3481357 | FB27: 24
A28: QLD1 | B28: 2022 | C28: 7 | D28: 25 | E28: Monday | F28: =Load_Data!D29 -> 0 | G28: =Load_Data!E29 -> 0 | H28: =Load_Data!F29 -> 0 | I28: =Load_Data!G29 -> 0 | J28: =Load_Data!H29 -> 0 | K28: =Load_Data!I29 -> 0 | L28: =Load_Data!J29 -> 0 | M28: =Load_Data!K29 -> 0 | N28: =Load_Data!L29 -> 0 | O28: =Load_Data!M29 -> 0 | P28: =Load_Data!N29 -> 0 | Q28: =Load_Data!O29 -> 0 | R28: =Load_Data!P29 -> 0 | S28: =Load_Data!Q29 -> 0.7909449228 | T28: =Load_Data!R29 -> 4.173137034 | U28: =Load_Data!S29 -> 13.18524852 | V28: =Load_Data!T29 -> 22.83024681 | W28: =Load_Data!U29 -> 33.33225291 | X28: =Load_Data!V29 -> 43.18198434 | Y28: =Load_Data!W29 -> 51.99655676 | Z28: =Load_Data!X29 -> 59.06724249 | AA28: =Load_Data!Y29 -> 65.09447844 | AB28: =Load_Data!Z29 -> 69.78985772 | AC28: =Load_Data!AA29 -> 72.51579017 | AD28: =Load_Data!AB29 -> 73.53875944 | AE28: =Load_Data!AC29 -> 73.08164945 | AF28: =Load_Data!AD29 -> 71.0018546 | AG28: =Load_Data!AE29 -> 66.32027444 | AH28: =Load_Data!AF29 -> 59.79165567 | AI28: =Load_Data!AG29 -> 50.89583727 | AJ28: =Load_Data!AH29 -> 40.65446789 | AK28: =Load_Data!AI29 -> 29.22737668 | AL28: =Load_Data!AJ29 -> 18.12300343 | AM28: =Load_Data!AK29 -> 8.696667035 | AN28: =Load_Data!AL29 -> 2.594141838 | AO28: =Load_Data!AM29 -> 0.5557455424 | AP28: =Load_Data!AN29 -> 1.010907856 | AQ28: =Load_Data!AO29 -> 0.5022806674 | AR28: =Load_Data!AP29 -> 0 | AS28: =Load_Data!AQ29 -> 0 | AT28: =Load_Data!AR29 -> 0 | AU28: =Load_Data!AS29 -> 0 | AV28: =Load_Data!AT29 -> 0 | AW28: =Load_Data!AU29 -> 0 | AX28: =Load_Data!AV29 -> 0 | AY28: =Load_Data!AW29 -> 0 | AZ28: =Load_Data!AX29 -> 0 | BA28: =Load_Data!AY29 -> 0 | BC28: 25 | BD28: 2023 | BE28: 73.53875944 | BF28: 0 | BH28: 0 | BI28: 0 | BJ28: 0 | BK28: 0 | BL28: 0 | BM28: 0 | BN28: 0 | BO28: 0 | BP28: 0 | BQ28: 0 | BR28: 0 | BS28: 0 | BT28: 0 | BU28: 0 | BV28: 0 | BW28: 0 | BX28: 0 | BY28: 0 | BZ28: 0 | CA28: 0 | CB28: 0 | CC28: 0 | CD28: 0 | CE28: 0 | CF28: 0 | CG28: 0 | CH28: 0 | CI28: 0 | CJ28: 0 | CK28: 0 | CL28: 0 | CM28: 0 | CN28: 0 | CO28: 0 | CP28: 0 | CQ28: 0 | CR28: 0 | CS28: 0 | CT28: 0 | CU28: 0 | CV28: 0 | CW28: 0 | CX28: 0 | CY28: 0 | CZ28: 0 | DA28: 0 | DB28: 0 | DC28: 0 | DE28: 0 | DF28: 0 | DG28: 0 | DH28: 0 | DI28: 0 | DJ28: 0 | DK28: 0 | DL28: 0 | DM28: 0 | DN28: 0 | DO28: 0 | DP28: 0 | DQ28: 0 | DR28: 0.7909449228 | DS28: 4.173137034 | DT28: 13.18524852 | DU28: 22.83024681 | DV28: 33.33225291 | DW28: 43.18198434 | DX28: 51.99655676 | DY28: 59.06724249 | DZ28: 65.09447844 | EA28: 69.78985772 | EB28: 72.51579017 | EC28: 73.53875944 | ED28: 73.08164945 | EE28: 71.0018546 | EF28: 66.32027444 | EG28: 59.79165567 | EH28: 50.89583727 | EI28: 40.65446789 | EJ28: 29.22737668 | EK28: 18.12300343 | EL28: 8.696667035 | EM28: 2.594141838 | EN28: 0.5557455424 | EO28: 1.010907856 | EP28: 0.5022806674 | EQ28: 0 | ER28: 0 | ES28: 0 | ET28: 0 | EU28: 0 | EV28: 0 | EW28: 0 | EX28: 0 | EY28: 0 | EZ28: 0 | FA28: 465.976181 | FB28: 25
A29: QLD1 | B29: 2022 | C29: 7 | D29: 26 | E29: Tuesday | F29: =Load_Data!D30 -> 0 | G29: =Load_Data!E30 -> 0 | H29: =Load_Data!F30 -> 0 | I29: =Load_Data!G30 -> 0 | J29: =Load_Data!H30 -> 0 | K29: =Load_Data!I30 -> 0 | L29: =Load_Data!J30 -> 0 | M29: =Load_Data!K30 -> 0 | N29: =Load_Data!L30 -> 0 | O29: =Load_Data!M30 -> 0 | P29: =Load_Data!N30 -> 0 | Q29: =Load_Data!O30 -> 0 | R29: =Load_Data!P30 -> 0 | S29: =Load_Data!Q30 -> 0.8547125605 | T29: =Load_Data!R30 -> 4.015067897 | U29: =Load_Data!S30 -> 13.06136118 | V29: =Load_Data!T30 -> 22.97253513 | W29: =Load_Data!U30 -> 33.69843062 | X29: =Load_Data!V30 -> 43.54934517 | Y29: =Load_Data!W30 -> 52.8957298 | Z29: =Load_Data!X30 -> 59.7518133 | AA29: =Load_Data!Y30 -> 65.69509024 | AB29: =Load_Data!Z30 -> 69.99076847 | AC29: =Load_Data!AA30 -> 72.42698809 | AD29: =Load_Data!AB30 -> 73.61909871 | AE29: =Load_Data!AC30 -> 70.30305039 | AF29: =Load_Data!AD30 -> 72.59447564 | AG29: =Load_Data!AE30 -> 61.79410089 | AH29: =Load_Data!AF30 -> 55.91681378 | AI29: =Load_Data!AG30 -> 47.3698718 | AJ29: =Load_Data!AH30 -> 37.83522594 | AK29: =Load_Data!AI30 -> 24.66804315 | AL29: =Load_Data!AJ30 -> 13.62051233 | AM29: =Load_Data!AK30 -> 6.383628568 | AN29: =Load_Data!AL30 -> 2.170358044 | AO29: =Load_Data!AM30 -> 0.6621064915 | AP29: =Load_Data!AN30 -> 0.8862452887 | AQ29: =Load_Data!AO30 -> 0.4431246418 | AR29: =Load_Data!AP30 -> 0 | AS29: =Load_Data!AQ30 -> 0 | AT29: =Load_Data!AR30 -> 0 | AU29: =Load_Data!AS30 -> 0 | AV29: =Load_Data!AT30 -> 0 | AW29: =Load_Data!AU30 -> 0 | AX29: =Load_Data!AV30 -> 0 | AY29: =Load_Data!AW30 -> 0 | AZ29: =Load_Data!AX30 -> 0 | BA29: =Load_Data!AY30 -> 0 | BC29: 26 | BD29: 2023 | BE29: 73.61909871 | BF29: 0 | BH29: 0 | BI29: 0 | BJ29: 0 | BK29: 0 | BL29: 0 | BM29: 0 | BN29: 0 | BO29: 0 | BP29: 0 | BQ29: 0 | BR29: 0 | BS29: 0 | BT29: 0 | BU29: 0 | BV29: 0 | BW29: 0 | BX29: 0 | BY29: 0 | BZ29: 0 | CA29: 0 | CB29: 0 | CC29: 0 | CD29: 0 | CE29: 0 | CF29: 0 | CG29: 0 | CH29: 0 | CI29: 0 | CJ29: 0 | CK29: 0 | CL29: 0 | CM29: 0 | CN29: 0 | CO29: 0 | CP29: 0 | CQ29: 0 | CR29: 0 | CS29: 0 | CT29: 0 | CU29: 0 | CV29: 0 | CW29: 0 | CX29: 0 | CY29: 0 | CZ29: 0 | DA29: 0 | DB29: 0 | DC29: 0 | DE29: 0 | DF29: 0 | DG29: 0 | DH29: 0 | DI29: 0 | DJ29: 0 | DK29: 0 | DL29: 0 | DM29: 0 | DN29: 0 | DO29: 0 | DP29: 0 | DQ29: 0 | DR29: 0.8547125605 | DS29: 4.015067897 | DT29: 13.06136118 | DU29: 22.97253513 | DV29: 33.69843062 | DW29: 43.54934517 | DX29: 52.8957298 | DY29: 59.7518133 | DZ29: 65.69509024 | EA29: 69.99076847 | EB29: 72.42698809 | EC29: 73.61909871 | ED29: 70.30305039 | EE29: 72.59447564 | EF29: 61.79410089 | EG29: 55.91681378 | EH29: 47.3698718 | EI29: 37.83522594 | EJ29: 24.66804315 | EK29: 13.62051233 | EL29: 6.383628568 | EM29: 2.170358044 | EN29: 0.6621064915 | EO29: 0.8862452887 | EP29: 0.4431246418 | EQ29: 0 | ER29: 0 | ES29: 0 | ET29: 0 | EU29: 0 | EV29: 0 | EW29: 0 | EX29: 0 | EY29: 0 | EZ29: 0 | FA29: 453.5892491 | FB29: 26
A30: QLD1 | B30: 2022 | C30: 7 | D30: 27 | E30: Wednesday | F30: =Load_Data!D31 -> 0 | G30: =Load_Data!E31 -> 0 | H30: =Load_Data!F31 -> 0 | I30: =Load_Data!G31 -> 0 | J30: =Load_Data!H31 -> 0 | K30: =Load_Data!I31 -> 0 | L30: =Load_Data!J31 -> 0 | M30: =Load_Data!K31 -> 0 | N30: =Load_Data!L31 -> 0 | O30: =Load_Data!M31 -> 0 | P30: =Load_Data!N31 -> 0 | Q30: =Load_Data!O31 -> 0 | R30: =Load_Data!P31 -> 0 | S30: =Load_Data!Q31 -> 0.6910302333 | T30: =Load_Data!R31 -> 4.147427552 | U30: =Load_Data!S31 -> 11.53905816 | V30: =Load_Data!T31 -> 21.31481522 | W30: =Load_Data!U31 -> 31.5234886 | X30: =Load_Data!V31 -> 40.01895059 | Y30: =Load_Data!W31 -> 47.04628544 | Z30: =Load_Data!X31 -> 54.83290712 | AA30: =Load_Data!Y31 -> 57.97193724 | AB30: =Load_Data!Z31 -> 60.56611674 | AC30: =Load_Data!AA31 -> 65.6526392 | AD30: =Load_Data!AB31 -> 68.34018941 | AE30: =Load_Data!AC31 -> 66.29842539 | AF30: =Load_Data!AD31 -> 66.12295284 | AG30: =Load_Data!AE31 -> 61.91452439 | AH30: =Load_Data!AF31 -> 54.75938494 | AI30: =Load_Data!AG31 -> 48.7886603 | AJ30: =Load_Data!AH31 -> 39.45563807 | AK30: =Load_Data!AI31 -> 27.98446637 | AL30: =Load_Data!AJ31 -> 17.36256573 | AM30: =Load_Data!AK31 -> 7.900523224 | AN30: =Load_Data!AL31 -> 2.298504481 | AO30: =Load_Data!AM31 -> 0.5645404966 | AP30: =Load_Data!AN31 -> 0.9238797026 | AQ30: =Load_Data!AO31 -> 0.4619418487 | AR30: =Load_Data!AP31 -> 0 | AS30: =Load_Data!AQ31 -> 0 | AT30: =Load_Data!AR31 -> 0 | AU30: =Load_Data!AS31 -> 0 | AV30: =Load_Data!AT31 -> 0 | AW30: =Load_Data!AU31 -> 0 | AX30: =Load_Data!AV31 -> 0 | AY30: =Load_Data!AW31 -> 0 | AZ30: =Load_Data!AX31 -> 0 | BA30: =Load_Data!AY31 -> 0 | BC30: 27 | BD30: 2023 | BE30: 68.34018941 | BF30: 0 | BH30: 0 | BI30: 0 | BJ30: 0 | BK30: 0 | BL30: 0 | BM30: 0 | BN30: 0 | BO30: 0 | BP30: 0 | BQ30: 0 | BR30: 0 | BS30: 0 | BT30: 0 | BU30: 0 | BV30: 0 | BW30: 0 | BX30: 0 | BY30: 0 | BZ30: 0 | CA30: 0 | CB30: 0 | CC30: 0 | CD30: 0 | CE30: 0 | CF30: 0 | CG30: 0 | CH30: 0 | CI30: 0 | CJ30: 0 | CK30: 0 | CL30: 0 | CM30: 0 | CN30: 0 | CO30: 0 | CP30: 0 | CQ30: 0 | CR30: 0 | CS30: 0 | CT30: 0 | CU30: 0 | CV30: 0 | CW30: 0 | CX30: 0 | CY30: 0 | CZ30: 0 | DA30: 0 | DB30: 0 | DC30: 0 | DE30: 0 | DF30: 0 | DG30: 0 | DH30: 0 | DI30: 0 | DJ30: 0 | DK30: 0 | DL30: 0 | DM30: 0 | DN30: 0 | DO30: 0 | DP30: 0 | DQ30: 0 | DR30: 0.6910302333 | DS30: 4.147427552 | DT30: 11.53905816 | DU30: 21.31481522 | DV30: 31.5234886 | DW30: 40.01895059 | DX30: 47.04628544 | DY30: 54.83290712 | DZ30: 57.97193724 | EA30: 60.56611674 | EB30: 65.6526392 | EC30: 68.34018941 | ED30: 66.29842539 | EE30: 66.12295284 | EF30: 61.91452439 | EG30: 54.75938494 | EH30: 48.7886603 | EI30: 39.45563807 | EJ30: 27.98446637 | EK30: 17.36256573 | EL30: 7.900523224 | EM30: 2.298504481 | EN30: 0.5645404966 | EO30: 0.9238797026 | EP30: 0.4619418487 | EQ30: 0 | ER30: 0 | ES30: 0 | ET30: 0 | EU30: 0 | EV30: 0 | EW30: 0 | EX30: 0 | EY30: 0 | EZ30: 0 | FA30: 429.2404266 | FB30: 27
A31: QLD1 | B31: 2022 | C31: 7 | D31: 28 | E31: Thursday | F31: =Load_Data!D32 -> 0 | G31: =Load_Data!E32 -> 0 | H31: =Load_Data!F32 -> 0 | I31: =Load_Data!G32 -> 0 | J31: =Load_Data!H32 -> 0 | K31: =Load_Data!I32 -> 0 | L31: =Load_Data!J32 -> 0 | M31: =Load_Data!K32 -> 0 | N31: =Load_Data!L32 -> 0 | O31: =Load_Data!M32 -> 0 | P31: =Load_Data!N32 -> 0 | Q31: =Load_Data!O32 -> 0 | R31: =Load_Data!P32 -> 0 | S31: =Load_Data!Q32 -> 0.4814726763 | T31: =Load_Data!R32 -> 3.711282263 | U31: =Load_Data!S32 -> 11.02508275 | V31: =Load_Data!T32 -> 20.32892621 | W31: =Load_Data!U32 -> 30.59621115 | X31: =Load_Data!V32 -> 40.1079521 | Y31: =Load_Data!W32 -> 47.1300337 | Z31: =Load_Data!X32 -> 53.27493437 | AA31: =Load_Data!Y32 -> 58.48382996 | AB31: =Load_Data!Z32 -> 64.7555277 | AC31: =Load_Data!AA32 -> 67.13564235 | AD31: =Load_Data!AB32 -> 67.89087244 | AE31: =Load_Data!AC32 -> 67.47134943 | AF31: =Load_Data!AD32 -> 64.99949589 | AG31: =Load_Data!AE32 -> 59.52932758 | AH31: =Load_Data!AF32 -> 54.41697279 | AI31: =Load_Data!AG32 -> 47.00822167 | AJ31: =Load_Data!AH32 -> 38.97256647 | AK31: =Load_Data!AI32 -> 27.4433593 | AL31: =Load_Data!AJ32 -> 16.65530184 | AM31: =Load_Data!AK32 -> 7.57586696 | AN31: =Load_Data!AL32 -> 2.150567276 | AO31: =Load_Data!AM32 -> 0.6436499176 | AP31: =Load_Data!AN32 -> 1.064306021 | AQ31: =Load_Data!AO32 -> 0.5320420922 | AR31: =Load_Data!AP32 -> 0 | AS31: =Load_Data!AQ32 -> 0 | AT31: =Load_Data!AR32 -> 0 | AU31: =Load_Data!AS32 -> 0 | AV31: =Load_Data!AT32 -> 0 | AW31: =Load_Data!AU32 -> 0 | AX31: =Load_Data!AV32 -> 0 | AY31: =Load_Data!AW32 -> 0 | AZ31: =Load_Data!AX32 -> 0 | BA31: =Load_Data!AY32 -> 0 | BC31: 28 | BD31: 2023 | BE31: 67.89087244 | BF31: 0 | BH31: 0 | BI31: 0 | BJ31: 0 | BK31: 0 | BL31: 0 | BM31: 0 | BN31: 0 | BO31: 0 | BP31: 0 | BQ31: 0 | BR31: 0 | BS31: 0 | BT31: 0 | BU31: 0 | BV31: 0 | BW31: 0 | BX31: 0 | BY31: 0 | BZ31: 0 | CA31: 0 | CB31: 0 | CC31: 0 | CD31: 0 | CE31: 0 | CF31: 0 | CG31: 0 | CH31: 0 | CI31: 0 | CJ31: 0 | CK31: 0 | CL31: 0 | CM31: 0 | CN31: 0 | CO31: 0 | CP31: 0 | CQ31: 0 | CR31: 0 | CS31: 0 | CT31: 0 | CU31: 0 | CV31: 0 | CW31: 0 | CX31: 0 | CY31: 0 | CZ31: 0 | DA31: 0 | DB31: 0 | DC31: 0 | DE31: 0 | DF31: 0 | DG31: 0 | DH31: 0 | DI31: 0 | DJ31: 0 | DK31: 0 | DL31: 0 | DM31: 0 | DN31: 0 | DO31: 0 | DP31: 0 | DQ31: 0 | DR31: 0.4814726763 | DS31: 3.711282263 | DT31: 11.02508275 | DU31: 20.32892621 | DV31: 30.59621115 | DW31: 40.1079521 | DX31: 47.1300337 | DY31: 53.27493437 | DZ31: 58.48382996 | EA31: 64.7555277 | EB31: 67.13564235 | EC31: 67.89087244 | ED31: 67.47134943 | EE31: 64.99949589 | EF31: 59.52932758 | EG31: 54.41697279 | EH31: 47.00822167 | EI31: 38.97256647 | EJ31: 27.4433593 | EK31: 16.65530184 | EL31: 7.57586696 | EM31: 2.150567276 | EN31: 0.6436499176 | EO31: 1.064306021 | EP31: 0.5320420922 | EQ31: 0 | ER31: 0 | ES31: 0 | ET31: 0 | EU31: 0 | EV31: 0 | EW31: 0 | EX31: 0 | EY31: 0 | EZ31: 0 | FA31: 426.6923974 | FB31: 28
A32: QLD1 | B32: 2022 | C32: 7 | D32: 29 | E32: Friday | F32: =Load_Data!D33 -> 0 | G32: =Load_Data!E33 -> 0 | H32: =Load_Data!F33 -> 0 | I32: =Load_Data!G33 -> 0 | J32: =Load_Data!H33 -> 0 | K32: =Load_Data!I33 -> 0 | L32: =Load_Data!J33 -> 0 | M32: =Load_Data!K33 -> 0 | N32: =Load_Data!L33 -> 0 | O32: =Load_Data!M33 -> 0 | P32: =Load_Data!N33 -> 0 | Q32: =Load_Data!O33 -> 0 | R32: =Load_Data!P33 -> 0 | S32: =Load_Data!Q33 -> 0.5046517634 | T32: =Load_Data!R33 -> 3.002200399 | U32: =Load_Data!S33 -> 8.212960697 | V32: =Load_Data!T33 -> 15.47687847 | W32: =Load_Data!U33 -> 24.37014434 | X32: =Load_Data!V33 -> 36.16917179 | Y32: =Load_Data!W33 -> 44.02739315 | Z32: =Load_Data!X33 -> 51.53222179 | AA32: =Load_Data!Y33 -> 58.39614885 | AB32: =Load_Data!Z33 -> 66.67279017 | AC32: =Load_Data!AA33 -> 68.87292498 | AD32: =Load_Data!AB33 -> 73.88269064 | AE32: =Load_Data!AC33 -> 72.66368165 | AF32: =Load_Data!AD33 -> 69.22064741 | AG32: =Load_Data!AE33 -> 64.64729372 | AH32: =Load_Data!AF33 -> 60.42989005 | AI32: =Load_Data!AG33 -> 51.37038161 | AJ32: =Load_Data!AH33 -> 40.30627899 | AK32: =Load_Data!AI33 -> 29.43482814 | AL32: =Load_Data!AJ33 -> 18.28742607 | AM32: =Load_Data!AK33 -> 8.688078429 | AN32: =Load_Data!AL33 -> 2.680539746 | AO32: =Load_Data!AM33 -> 0.6457023352 | AP32: =Load_Data!AN33 -> 1.182355576 | AQ32: =Load_Data!AO33 -> 0.5911797852 | AR32: =Load_Data!AP33 -> 0 | AS32: =Load_Data!AQ33 -> 0 | AT32: =Load_Data!AR33 -> 0 | AU32: =Load_Data!AS33 -> 0 | AV32: =Load_Data!AT33 -> 0 | AW32: =Load_Data!AU33 -> 0 | AX32: =Load_Data!AV33 -> 0 | AY32: =Load_Data!AW33 -> 0 | AZ32: =Load_Data!AX33 -> 0 | BA32: =Load_Data!AY33 -> 0 | BC32: 29 | BD32: 2023 | BE32: 73.88269064 | BF32: 0 | BH32: 0 | BI32: 0 | BJ32: 0 | BK32: 0 | BL32: 0 | BM32: 0 | BN32: 0 | BO32: 0 | BP32: 0 | BQ32: 0 | BR32: 0 | BS32: 0 | BT32: 0 | BU32: 0 | BV32: 0 | BW32: 0 | BX32: 0 | BY32: 0 | BZ32: 0 | CA32: 0 | CB32: 0 | CC32: 0 | CD32: 0 | CE32: 0 | CF32: 0 | CG32: 0 | CH32: 0 | CI32: 0 | CJ32: 0 | CK32: 0 | CL32: 0 | CM32: 0 | CN32: 0 | CO32: 0 | CP32: 0 | CQ32: 0 | CR32: 0 | CS32: 0 | CT32: 0 | CU32: 0 | CV32: 0 | CW32: 0 | CX32: 0 | CY32: 0 | CZ32: 0 | DA32: 0 | DB32: 0 | DC32: 0 | DE32: 0 | DF32: 0 | DG32: 0 | DH32: 0 | DI32: 0 | DJ32: 0 | DK32: 0 | DL32: 0 | DM32: 0 | DN32: 0 | DO32: 0 | DP32: 0 | DQ32: 0 | DR32: 0.5046517634 | DS32: 3.002200399 | DT32: 8.212960697 | DU32: 15.47687847 | DV32: 24.37014434 | DW32: 36.16917179 | DX32: 44.02739315 | DY32: 51.53222179 | DZ32: 58.39614885 | EA32: 66.67279017 | EB32: 68.87292498 | EC32: 73.88269064 | ED32: 72.66368165 | EE32: 69.22064741 | EF32: 64.64729372 | EG32: 60.42989005 | EH32: 51.37038161 | EI32: 40.30627899 | EJ32: 29.43482814 | EK32: 18.28742607 | EL32: 8.688078429 | EM32: 2.680539746 | EN32: 0.6457023352 | EO32: 1.182355576 | EP32: 0.5911797852 | EQ32: 0 | ER32: 0 | ES32: 0 | ET32: 0 | EU32: 0 | EV32: 0 | EW32: 0 | EX32: 0 | EY32: 0 | EZ32: 0 | FA32: 435.6342303 | FB32: 29
A33: QLD1 | B33: 2022 | C33: 7 | D33: 30 | E33: Saturday | F33: =Load_Data!D34 -> 0 | G33: =Load_Data!E34 -> 0 | H33: =Load_Data!F34 -> 0 | I33: =Load_Data!G34 -> 0 | J33: =Load_Data!H34 -> 0 | K33: =Load_Data!I34 -> 0 | L33: =Load_Data!J34 -> 0 | M33: =Load_Data!K34 -> 0 | N33: =Load_Data!L34 -> 0 | O33: =Load_Data!M34 -> 0 | P33: =Load_Data!N34 -> 0 | Q33: =Load_Data!O34 -> 0 | R33: =Load_Data!P34 -> 0 | S33: =Load_Data!Q34 -> 0.800558828 | T33: =Load_Data!R34 -> 4.507304593 | U33: =Load_Data!S34 -> 12.35228372 | V33: =Load_Data!T34 -> 21.35241673 | W33: =Load_Data!U34 -> 31.53910448 | X33: =Load_Data!V34 -> 41.23474306 | Y33: =Load_Data!W34 -> 49.34181885 | Z33: =Load_Data!X34 -> 55.6267511 | AA33: =Load_Data!Y34 -> 61.53946731 | AB33: =Load_Data!Z34 -> 67.16964288 | AC33: =Load_Data!AA34 -> 69.62872411 | AD33: =Load_Data!AB34 -> 70.89949979 | AE33: =Load_Data!AC34 -> 70.95279536 | AF33: =Load_Data!AD34 -> 68.88920066 | AG33: =Load_Data!AE34 -> 64.16089994 | AH33: =Load_Data!AF34 -> 57.41607128 | AI33: =Load_Data!AG34 -> 49.27369343 | AJ33: =Load_Data!AH34 -> 38.64727436 | AK33: =Load_Data!AI34 -> 27.51355216 | AL33: =Load_Data!AJ34 -> 16.86355261 | AM33: =Load_Data!AK34 -> 7.699554462 | AN33: =Load_Data!AL34 -> 2.461898633 | AO33: =Load_Data!AM34 -> 0.7221289361 | AP33: =Load_Data!AN34 -> 1.128206253 | AQ33: =Load_Data!AO34 -> 0.5641051241 | AR33: =Load_Data!AP34 -> 0 | AS33: =Load_Data!AQ34 -> 0 | AT33: =Load_Data!AR34 -> 0 | AU33: =Load_Data!AS34 -> 0 | AV33: =Load_Data!AT34 -> 0 | AW33: =Load_Data!AU34 -> 0 | AX33: =Load_Data!AV34 -> 0 | AY33: =Load_Data!AW34 -> 0 | AZ33: =Load_Data!AX34 -> 0 | BA33: =Load_Data!AY34 -> 0 | BC33: 30 | BD33: 2023 | BE33: 70.95279536 | BF33: 0 | BH33: 0 | BI33: 0 | BJ33: 0 | BK33: 0 | BL33: 0 | BM33: 0 | BN33: 0 | BO33: 0 | BP33: 0 | BQ33: 0 | BR33: 0 | BS33: 0 | BT33: 0 | BU33: 0 | BV33: 0 | BW33: 0 | BX33: 0 | BY33: 0 | BZ33: 0 | CA33: 0 | CB33: 0 | CC33: 0 | CD33: 0 | CE33: 0 | CF33: 0 | CG33: 0 | CH33: 0 | CI33: 0 | CJ33: 0 | CK33: 0 | CL33: 0 | CM33: 0 | CN33: 0 | CO33: 0 | CP33: 0 | CQ33: 0 | CR33: 0 | CS33: 0 | CT33: 0 | CU33: 0 | CV33: 0 | CW33: 0 | CX33: 0 | CY33: 0 | CZ33: 0 | DA33: 0 | DB33: 0 | DC33: 0 | DE33: 0 | DF33: 0 | DG33: 0 | DH33: 0 | DI33: 0 | DJ33: 0 | DK33: 0 | DL33: 0 | DM33: 0 | DN33: 0 | DO33: 0 | DP33: 0 | DQ33: 0 | DR33: 0.800558828 | DS33: 4.507304593 | DT33: 12.35228372 | DU33: 21.35241673 | DV33: 31.53910448 | DW33: 41.23474306 | DX33: 49.34181885 | DY33: 55.6267511 | DZ33: 61.53946731 | EA33: 67.16964288 | EB33: 69.62872411 | EC33: 70.89949979 | ED33: 70.95279536 | EE33: 68.88920066 | EF33: 64.16089994 | EG33: 57.41607128 | EH33: 49.27369343 | EI33: 38.64727436 | EJ33: 27.51355216 | EK33: 16.86355261 | EL33: 7.699554462 | EM33: 2.461898633 | EN33: 0.7221289361 | EO33: 1.128206253 | EP33: 0.5641051241 | EQ33: 0 | ER33: 0 | ES33: 0 | ET33: 0 | EU33: 0 | EV33: 0 | EW33: 0 | EX33: 0 | EY33: 0 | EZ33: 0 | FA33: 446.1426243 | FB33: 30
